{"text_format":"1","workbook":"xlsx","n_sheets":14,"sheets":["Introducción","Prácticas elegibles y DA","Referencias","Calculos_Biogás","HC_RO_Valorización Ambiental","RO_Análisis financiero","Emisiones GEI","FE y conversiones","Modelo financiero (Energía)","Modelo financiero (Biogas)","Dropdown_digestores","Biodigestores","Dropdown_Dptos","Base de datos"],"not_rendered":{"charts":9,"images":5,"macros":1,"external_links":0,"defined_names":7,"comments":5,"pivot_tables":0},"unopened":[],"bounds":{"document_bytes":16777216,"sheet_cells":100000,"rows_first":2000,"rows_last":500,"rows_between":2000,"halvings":0,"cell_chars":16384,"cell_head_chars":4096},"cells_cut":0,"cells_raw":0,"read":"whole","date_system":"1900"}

{"sheet":"Introducción","index":0,"n_rows":21,"n_cols":10,"rows_kept":21,"cut":false,"hidden":false,"merged":[[9,1,9,6],[10,1,10,6],[18,1,18,6],[5,4,5,6],[6,1,7,2],[4,4,4,6],[6,4,6,6],[7,4,7,6],[4,1,5,2],[1,1,1,2],[1,3,1,6],[2,1,2,6],[3,4,3,6],[3,1,3,2]]}
[]
[null,null,null,"Proxy: \"HERRAMIENTA DE CÁLCULO PARA DETERMINAR EL POTENCIAL ENERGÉTICO DE BIODIGESTORES IN SITU EN LAS PLAZAS DE MERCADO DE COLOMBIA\""]
[null,"Esta herramienta constituye un ejercicio práctico de los planteamientos teóricos basados en ciencia que componen las buenas prácticas e inversiones para la transición hacia la agricultura ecológica, contempladas dentro de la Taxonomía Verde de Colombia (TVC). Este ejercicio responde a la continuación del proceso de priorización de proxies desarrollado en la Nota conceptual, con especial enfoque en la dimensión ambiental de Residuos. A continuación se describe brevemente su contenido:"]
[null,"NOMENCLATURA DE PÁGINA",null,"NOMBRE DE LA PESTAÑA","CONTENIDO DE LA PESTAÑA"]
[null,null,null,"Prácticas elegibles y Dimensiones Ambientales (DA)","Esta pestaña incluye la información de las tablas 3.5 a la 3.9 de la TVC, las cuales se relacionan con las buenas prácticas para la agricultura ecológica generales y para los cultivos priorizados por la taxonomía (café, arroz, cultivos frutales y cacao). Adicionalmente, se incluyen las columnas relacionadas al alcance de las buenas prácticas con relación al tipo de productor y a la(s) dimensión(es) ambientales con las que se relacionan. Dicho análisis fue parte del desarrollo metodológico de priorización presentado en la Nota Conceptual para focalización de desarrollos para la implementación de la TVC por el sector Agricultura con enfoque en los pequeños y medianos productores.",null,null,null,null,"Intelligent IoT-multiagent precision irrigation approach for improving water use efficiency in irrigation systems at farm and district scales,"]
[null,null,null,"Referencias","Esta pestaña contiene el enlace a todas las fuentes y referencias bibliográficas utilizadas para el planteamiento metodológico y desarrollo de la herramienta proxy presentada dentro de este desarrollo. "]
[null,null,null,"HC_RO_Valoración_Ambiental","Esta pestaña corresponde a la herramienta de cálculo (HC) para estimar el potencial de valorización de residuos orgánicos provenientes de la operación de las plazas de mercado en el país. Está diseñada para apoyar proyectos in situ enfocados en tecnologías del tratamiento biológico de la digestión anaeróbica de los residuos orgánicos sobrantes de la operación de las plazas de mercado."]
[null,null,null,"RO_Análisis financiero","Esta pestaña presenta una herramienta de cálculo para la valorización económica por gestión de residuos orgánicos a través de biodigestores in situ para plazas de mercado."]
[]
[null,"ACCESO A LA HERRAMIENTA PROXY DESARROLLADA",null,null,null,null,null,null,null,2022]
[null,"\nDe clic en el botón de la herramienta a la que desea acceder a continuación:"]
[]
[null,"Desarrollado por:",null,null,null,null,null,null,"Arroz","http://www.scielo.org.co/pdf/nova/v14n26/v14n26a07.pdf"]
[]
[]
[]
[]
[]
[null,"Acuse de responsabilidad: La información contenida en esta comunicación no constituye asesoramiento de inversión de ningún tipo y Climate Bonds Iniciative ni Ambire Global (el consorcio) son asesores de inversión. Cualquier referencia a una organización financiera o a un instrumento de deuda o producto de inversión se hace únicamente con fines informativos. Los enlaces a sitios web externos son sólo para fines informativos. El consorcio no acepta ninguna responsabilidad por el contenido de sitios web externos. El consorcio no respalda, recomienda o asesora sobre los méritos financieros o de otro tipo de cualquier instrumento de deuda o producto de inversión y ninguna información contenida en esta comunicación debe ser tomada como tal, ni debe confiarse en cualquier información contenida en esta comunicación para tomar cualquier decisión de inversión. La certificación según el Estándar de Climate Bonds sólo refleja los atributos climáticos del uso de los ingresos de un instrumento de deuda designado. No refleja la solvencia del instrumento de deuda designado, ni su conformidad con las leyes nacionales o internacionales. La decisión de invertir en algo es exclusivamente suya. El consorcio no acepta responsabilidad de ningún tipo, por cualquier inversión que un individuo u organización realice, ni por cualquier inversión realizada por terceros en nombre de un individuo u organización, basada total o parcialmente en cualquier información contenida en esta o cualquier otra comunicación pública de Climate Bonds Initiative."]
[]
[null,"Última actualización: 05/02/2025"]

{"sheet":"Prácticas elegibles y DA","index":1,"n_rows":92,"n_cols":11,"rows_kept":92,"cut":false,"hidden":false,"merged":[[1,1,1,2],[1,3,1,8],[5,4,5,5],[5,6,5,7],[24,4,24,5],[24,6,24,7],[20,4,20,7],[4,2,83,2],[7,4,7,7],[13,4,13,7],[2,1,2,8],[3,3,3,8],[83,4,83,5],[91,1,91,7],[48,4,48,7],[56,4,56,7],[60,4,60,7],[63,4,63,7],[71,4,71,7],[54,4,54,5],[69,4,69,5],[54,6,54,7],[69,6,69,7],[85,1,85,5],[4,1,83,1],[39,4,39,5],[16,4,16,7],[30,4,30,7],[33,4,33,7],[39,6,39,7],[26,4,26,7],[78,4,78,7],[41,4,41,7],[44,4,44,7],[75,4,75,7]]}
[]
[null,null,null,"PRÁCTICAS ELEGIBLES DENTRO DEL SECTOR USO DEL SUELO (AFOLU) DE LA TVC\nAPLICABLES A LA HERRAMIENTA PROXY PARA EL SECTOR AGRICULTURA"]
[null,"INVERSIONES Y PRÁCTICAS PARA LA TRANSICIÓN A LA AGRÍCULTURA ECOLÓGICA"]
[null,"SECTOR","ACTIVIDAD","PRÁCTICAS ELEGIBLES"]
[null,"AFOLU: Uso del suelo","Inversiones y prácticas para la transición hacia la agricultura ecológica."]
[null,null,null,null,"Tabla 3.5 de la TVC\n INVERSIONES Y PRÁCTICAS PARA LA TRANSICIÓN A LA AGRÍCULTURA ECOLÓGICA",null,"Análisis con enfasís en alcance de la práctica y tipo de productor"]
[null,null,null,null,"Título","Insumos elegibles","Alcance del tipo de productor","Dimensiones Ambientales (DA)"]
[null,null,null,null,"Prácticas básicas"]
[null,null,null,null,"Rotación de cultivos (en cultivos transitorios o de ciclo corto)","Semillas, plántulas, equipamiento y mano de obra que permita la rotación de cultivos.","Pequeños, medianos y grandes productores","Uso del suelo"]
[null,null,null,null,"Gestión de fertilizantes","Equipamiento y materiales de aplicación de fertilizantes, que permitan una dosificación oportuna (cuando el cultivo lo requiera en base al análisis de suelos) y eficiente. Fertirrigación (técnica que permite la aplicación simultanea de agua y fertilizantes a través del sistema de riego).","Pequeños, medianos y grandes productores","Calidad el aire, \nRecurso hídrico,\nResiduos,\nUso del suelo"]
[null,null,null,null,"Control de plagas y enfermedades","Insumos para el control biológico y físico de plagas y enfermedades; p. ej., semillas de plantas repelentes, trampas o redes.","Pequeños, medianos y grandes productores","Residuos,\nUso del suelo"]
[null,null,null,null,"Conservación del suelo","Semillas, abonos, equipamiento ligero para obras de protección del suelo.","Pequeños, medianos y grandes productores","Uso del suelo"]
[null,null,null,null,"Gestión de recursos hídricos","Seguir el plan de mejora de la finca según documento de Planificación Predial o similar.","Pequeños, medianos y grandes productores","Recurso hídrico,\nResiduos,\nUso del suelo"]
[null,null,null,null,"Prácticas intermedias"]
[null,null,null,null,"Gestión de residuos y tratamiento del agua contaminada con desechos orgánicos","Equipo, herramientas, insumos y mano de obra. ","Pequeños, medianos y grandes productores","Recurso hídrico, Residuos"]
[null,null,null,null,"Abonos orgánicos o verdes (uso de coberturas vegetales)","Equipo material, herramientas e insumos (p. ej., composteras, plántulas, mano de obra, lombricompuestos).","Pequeños, medianos y grandes productores","Residuos,\nUso del suelo"]
[null,null,null,null,"Prácticas avanzadas o transformativas"]
[null,null,null,null,"Paso de cultivos transitorios o pasturas a sistemas agroforestales (p. ej., a cacao, frutales o forestería) y agrosilvopastoriles","Semillas, plántulas, material, incluyendo el necesario para el desarrollo de viveros, y otros insumos (equipamiento y mano de obra).","Pequeños, medianos y grandes productores","Recurso hídrico,\nUso del suelo"]
[null,null,null,null,"Introducción de policultivos o cultivos asociados en cultivos permanentes","Semillas, plántulas, material, también para el desarrollo de viveros, y otros insumos (equipamiento y mano de obra).","Pequeños, medianos y grandes productores","Biotecnología, Uso del suelo"]
[null,null,null,null,"Mejoramiento del material genético en semillas y material reproductivo. Biotecnología en cadenas productivas agrícolas","Insumos de estos materiales y asistencia técnica.","Grandes productores","Biotecnología, Uso del suelo"]
[null,null,null,null,"Adopciones tecnológicas complementarias"]
[null,null,null,null,"Biodigestores","Biodigestores, equipamiento e instalación.","Pequeños, medianos y grandes productores","Residuos,\nUso del suelo"]
[null,null,null,null,"Ahorro energético y energias limpias","Compra e instalación de sistemas fotovoltaicos. Servicios de mantenimiento de los equipos para mejorar la eficiencia.","Pequeños, medianos y grandes productores","Eficiencia energética"]
[]
[null,null,null,null,"Tabla 3.6 de la TVC\nRECONVERSIÓN DE CULTIVOS DE CAFÉ",null,"Análisis con enfasís en alcance de la práctica y tipo de productor"]
[null,null,null,null,"Título","Insumos elegibles","Alcance del tipo de productor","Dimensiones Ambientales (DA)"]
[null,null,null,null,"Prácticas básicas"]
[null,null,null,null,"Conservación del suelo","Matraca, sembradoras de tracción mecánica o animal y palo plantador.","Pequeños, medianos y grandes productores","Uso del suelo"]
[null,null,null,null,"Gestión de fertilizantes","Fertiirrigación (técnica que permite la aplicación simultanea de agua y fertilizantes a través del sistema de riego Equipamiento y materiales de aplicación de fertilizantes, que permitan una dosificación oportuna y eficiente (Hardware y sofware).","Pequeños, medianos y grandes productores","Uso del suelo"]
[null,null,null,null,"Control de plagas y enfermedades","Material vegetal, plántulas nativas y semillas registradas en el ICA.","Pequeños, medianos y grandes productores","Uso del suelo"]
[null,null,null,null,"Prácticas intermedias"]
[null,null,null,null,"Gestión de residuos y tratamiento del agua contaminada con desechos orgánicos","Sistemas aprovechamiento sustratos -abono orgánico, sistemas para canalización aguas mieles a para Fertiirrigación. Canalización para biodigestores, plantas descontaminantes (Osmosis Inversa), tecnologías de tratamiento de aguas residuales producidas por el beneficio húmedo del café.","Pequeños, medianos y grandes productores","Uso del suelo, Recurso hídrico, Residuos"]
[null,null,null,null,"Abonos orgánicos o verdes (uso de coberturas vegetales)","Camas de compostaje, lombriz californiana, tanques y equipos para preparación.","Pequeños, medianos y grandes productores","Uso del suelo"]
[null,null,null,null,"Prácticas avanzadas o transformativas"]
[null,null,null,null,"Introducción de policultivos o cultivos asociados en cultivos permanentes","Plántulas y semillas de especies maderables nativas.","Pequeños, medianos y grandes productores","Uso del suelo"]
[null,null,null,null,"Mejoramiento del material genético en semillas y material reproductivo. Biotecnología en cadenas productivas agrícolas","Semillas de variedades mejoradas, resilientes a la variabilidad climática y a plagas. Que sean semillas certificadas por el ICA y por la Federación de Cafeteros.","Pequeños, medianos y grandes productores","Biotecnología, Uso del suelo"]
[null,null,null,null,"Biodigestores","Equipos para biodigestor, geomembranas, tanques, canaletas, generadores eléctricos de metano.","Medianos y grandes productores","Uso del suelo, Residuos"]
[null,null,null,null,"Ahorro energético y energías limpias","Generador de energía de metano, equipos complementarios e instalaciones, paneles solares, baterías e instalaciones, equipos eólicos, hidro generación eléctrica, equipos complementarios e instalaciones de bajo consumo energético.","Medianos y grandes productores","Eficiencia energética"]
[]
[null,null,null,null,"Tabla 3.7 de la TVC\nRECONVERSIÓN DE CULTIVOS DE ARROZ",null,"Análisis con enfasís en alcance de la práctica y tipo de productor"]
[null,null,null,null,"Título","Insumos elegibles","Alcance del tipo de productor","Dimensiones Ambientales (DA)"]
[null,null,null,null,"Prácticas básicas"]
[null,null,null,null,"Conservación del suelo","Herramientas para siembra y cosecha manual o animal.","Pequeños, medianos y grandes productores","Uso del suelo"]
[null,null,null,null,"Gestión del recurso hídrico","Membranas cobertura canales, medidores caudales, equipos de sistematización control y calidad del agua.","Pequeños, medianos y grandes productores","Recurso hídrico"]
[null,null,null,null,"Prácticas intermedias"]
[null,null,null,null,"Control de plagas y enfermedades","Material vegetal, semillas, plántulas nativas, semillas ICA","Pequeños, medianos y grandes productores","Uso del suelo"]
[null,null,null,null,"Mejoramiento del material genético en semillas y material reproductivo.","Material vegetal certificado por el ICA y Fedearroz.","Pequeños, medianos y grandes productores","Biotecnología, Uso del suelo"]
[null,null,null,null,"Protección de cuerpos de agua, reducción estrés hídrico","Repositorios, pocetas necesarias para el cultivo del arroz secano y para la adecuación de terrenos.","Pequeños, medianos y grandes productores","Recurso hídrico"]
[null,null,null,null,"Prácticas avanzadas o transformativas"]
[null,null,null,null,"Abonos orgánicos o verdes","Equipos para la adecuación de los suelos con abono orgánico: camas de lumbricultura, fertirriegos.","Pequeños, medianos y grandes productores","Uso del suelo, Residuos"]
[null,null,null,null,"Control Biológico","Materiales para procesos biológicos requeridos en el control natural (vectores, peces, patos, etc.). P. ej., 150 patos por hectárea.","Pequeños, medianos y grandes productores","Uso del suelo"]
[null,null,null,null,"Biodigestores ","Equipos para biodigestor, geomembranas, tanques, canaletas, generadores eléctricos de metano.","Pequeños, medianos y grandes productores","Residuos, Uso del suelo"]
[null,null,null,null,"Ahorro energético y energías limpias ","Generador de energía de metano, equipos complementarios e instalaciones, paneles solares, baterías e instalaciones, equipos eólicos, hidro generación eléctrica, equipos complementarios e instalaciones de bajo consumo energético.","Medianos y grandes productores","Eficiencia energética"]
[]
[null,null,null,null,"Tabla 3.8 de la TVC\nRECONVERSIÓN DE CULTIVOS DE CULTIVOS FRUTALES",null,"Análisis con enfasís en alcance de la práctica y tipo de productor"]
[null,null,null,null,"Título","Insumos elegibles","Alcance del tipo de productor","Dimensiones Ambientales (DA)"]
[null,null,null,null,"Prácticas básicas"]
[null,null,null,null,"Conservación del suelo","Matraca, sembradoras de tracción mecánica o animal y palo plantador.","Pequeños, medianos y grandes productores","Uso del suelo"]
[null,null,null,null,"Gestión del recurso hídrico","Sistemas de riego eficiente: aspersión, goteo, software irrigación controlada","Pequeños, medianos y grandes productores","Recurso hídrico, Residuos, Uso del suelo"]
[null,null,null,null,"Control de plagas y enfermedades","Material vegetal, semillas, plántulas nativas, semillas ICA.","Pequeños, medianos y grandes productores","Uso del suelo"]
[null,null,null,null,"Prácticas intermedias"]
[null,null,null,null,"Mejoramiento del material genético en semillas y material reproductivo. Biotecnología en cadenas productivas agrícolas","Semillas de variedades mejoradas, resilientes a la variabilidad climática y a plagas. Semillas certificadas por el ICA.","Grandes productores","Biotecnología, Uso del suelo"]
[null,null,null,null,"Introducción de policultivos o cultivos asociados en cultivos permanentes","Frutales: Material vegetal, plántulas y semillas ICA.\n  Maderables: Plántulas, semillas de especies maderables nativas. Los insumos necesarios para implementar un sistema en rectángulo: 3 metros entre hileras y 2 metros entre plantas.","Medianos y grandes productores","Biotecnología, Uso del suelo"]
[null,null,null,null,"Prácticas avanzadas o transformativas"]
[null,null,null,null,"Abonos orgánicos o verdes","Camas de compostaje, lombriz californiana, tanques, equipos para preparación.","Pequeños, medianos y grandes productores","Uso del suelo, Residuos"]
[null,null,null,null,"Protección de cuerpos de agua, reducción estrés hídrico","Material necesario para la adecuación del terreno e insumos para pocetas, tanques y sistema hídrico aguas.","Pequeños, medianos y grandes productores","Recurso hídrico"]
[null,null,null,null,"Biodigestores","Equipos e insumos como biodigestor, tanques, geomembranas, canaletas, etc. Generadores eléctricos de biogás.","Pequeños, medianos y grandes productores","Residuos, Eficiencia energética"]
[null,null,null,null,"Ahorro energético y energías limpias","Generador de energía de metano, equipos complementarios e instalaciones , paneles solares ,baterías e instalaciones, equipos eólicos, hidro generación eléctrica, equipos complementarios e instalaciones de bajo consumo energético.","Medianos y grandes productores","Eficiencia energética"]
[]
[null,null,null,null,"Tabla 3.9 de la TVC\nRECONVERSIÓN DE CULTIVOS DE CACAO",null,"Análisis con enfasís en alcance de la práctica y tipo de productor"]
[null,null,null,null,"Título","Insumos elegibles","Alcance del tipo de productor","Dimensiones Ambientales (DA)"]
[null,null,null,null,"Prácticas básicas"]
[null,null,null,null,"Conservación del suelo","Matraca, sembradoras de tracción mecánica o animal y palo plantador.","Pequeños, medianos y grandes productores","Uso del suelo"]
[null,null,null,null,"Gestión de fertilizantes","fertiirrigación (técnica que permite la aplicación simultanea de agua y fertilizantes a través del sistema de riego Equipamiento y materiales de aplicación de fertilizantes, que permitan una dosificación oportuna y eficiente (Hardware y Software).","Pequeños, medianos y grandes productores","Uso del suelo, Residuos"]
[null,null,null,null,"Control de plagas y enfermedades","Material vegetal como semillas y plántulas nativas. Semillas deben estar registradas en el ICA.","Pequeños, medianos y grandes productores","Uso del suelo"]
[null,null,null,null,"Prácticas intermedias"]
[null,null,null,null,"Gestión de residuos y tratamiento del agua contaminada con desechos orgánicos","Sistemas aprovechamiento sustratos -abono orgánico, sistemas para canalización aguas residuales para Fertiirrigación. Canalización para biodigestores, plantas descontaminantes (Osmosis Inversa), Sistema de tratamiento de aguas residuales.","Pequeños, medianos y grandes productores","Residuos, Uso del suelo, Recurso hídrico"]
[null,null,null,null,"Introducción de policultivos o cultivos asociados en cultivos permanentes","Plántulas y semillas de especies maderables nativas. Material vegetal, plántulas y semillas ICA.","Pequeños, medianos y grandes productores","Biotecnología, Uso del suelo"]
[null,null,null,null,"Prácticas avanzadas o transformativas"]
[null,null,null,null,"Abonos Orgánicos","Camas de compostaje, lombriz californiana, tanques y equipos para preparación.","Pequeños, medianos y grandes productores","Uso del suelo"]
[null,null,null,null,"Protección de cuerpos de agua, reducción estrés hídrico","Materiales para la adecuación del terreno para pocetas, tanques y sistema hídrico.","Pequeños, medianos y grandes productores","Recurso hídrico"]
[null,null,null,null,"Biodigestores","Equipos para biodigestor, geomembranas, tanques, canaletas, etc., también generadores eléctricos de biogás.","Pequeños, medianos y grandes productores","Uso del suelo, Residuos, Eficiencia energética"]
[null,null,null,null,"Ahorro energético y energías limpias","Generador de energía de metano, equipos complementarios e instalaciones , paneles solares ,baterías e instalaciones, equipos eólicos, hidro generación eléctrica, equipos complementarios e instalaciones de bajo consumo energético.","Medianos y grandes productores","Eficiencia energética"]
[]
[null,null,null,null,null,null,null,null,null,null,"Volume 192,"]
[null,"Desarrollado por:",null,null,null,null,null,null,null,"Arroz","http://www.scielo.org.co/pdf/nova/v14n26/v14n26a07.pdf"]
[]
[]
[]
[]
[]
[null,"Acuse de responsabilidad: La información contenida en esta comunicación no constituye asesoramiento de inversión de ningún tipo y Climate Bonds Iniciative ni Ambire Global (el consorcio) son asesores de inversión. Cualquier referencia a una organización financiera o a un instrumento de deuda o producto de inversión se hace únicamente con fines informativos. Los enlaces a sitios web externos son sólo para fines informativos. El consorcio no acepta ninguna responsabilidad por el contenido de sitios web externos. El consorcio no respalda, recomienda o asesora sobre los méritos financieros o de otro tipo de cualquier instrumento de deuda o producto de inversión y ninguna información contenida en esta comunicación debe ser tomada como tal, ni debe confiarse en cualquier información contenida en esta comunicación para tomar cualquier decisión de inversión. La certificación según el Estándar de Climate Bonds sólo refleja los atributos climáticos del uso de los ingresos de un instrumento de deuda designado. No refleja la solvencia del instrumento de deuda designado, ni su conformidad con las leyes nacionales o internacionales. La decisión de invertir en algo es exclusivamente suya. El consorcio no acepta responsabilidad de ningún tipo, por cualquier inversión que un individuo u organización realice, ni por cualquier inversión realizada por terceros en nombre de un individuo u organización, basada total o parcialmente en cualquier información contenida en esta o cualquier otra comunicación pública de Climate Bonds Initiative."]

{"sheet":"Referencias","index":2,"n_rows":23,"n_cols":9,"rows_kept":23,"cut":false,"hidden":false,"merged":[[8,2,8,5],[9,2,9,5],[22,1,22,5],[11,2,11,5],[10,2,10,5],[12,2,12,5],[13,2,13,5],[14,2,14,5],[2,2,2,5],[3,2,3,5],[1,2,1,5],[6,2,6,5],[7,2,7,5],[4,2,4,5],[5,2,5,5]]}
[]
[null,null,"FUENTES RELEVANTES PARA EL DESARROLLO DEL PROXY DE IMPLEMENTACIÓN DE LA TVC"]
[null,"Gobierno de Colombia, 2024. Segundo desarrollo de proxies para la implementación de la TVC - Subsector Agricultura","Manual del usuario anexo a la presente herramienta para contextualización de la navegabilidad y uso de la segunda herramienta de proxies presentada en formato Excel."]
[null,"Gobierno de Colombia, 2024. Proxies de Implementación de la TVC para los sectores Agua, Transporte y AFOLU","Herramienta Excel desarrollada para las actividades A4 (Inversiones para el uso eficiente del agua ), T4 (Transporte interurbano de carga y pasajeros), T5 (Transporte particular) y para las buenas prácticas para la agrícultura ecológica y la ganadería/forestería sostenible (tablas 3.4, 3.5 y 3.10) de la TVC. "]
[null,"Gobierno de Colombia, 2024. Primera versión del desarrollo de proxies para la implementación de la Taxonomía Verde de Colombia","Manual del usuario anexo a la presente herramienta para contextualización de la navegabilidad y uso de la primera herramienta de proxies presentada en formato Excel."]
[null,"CBI-Ambire Global, 2024. Nota Conceptual ","Documento técnico de uso institucional dirigido a la Mesa de Taxonomía de Colombia y partes interesadas donde se evaluó el estado de las necesidades de desarrollo de herramientas para la priorización de medidas para la implementación de la TVC en el subsector Agricultura, con enfoque en los pequeños y medianos productores. "]
[null,"Gobierno de Colombia, 2023. Guía general de implementación de la Taxonomía Verde de Colombia","Insumo complementario que hace parte del Toolkit de la Taxonomía Verde de Colombia e incluye instrumentos de aplicación e implementación de la Taxonomía."]
[null,"Gobierno de Colombia, 2022. Taxonomía Verde de Colombia","Insumo principal para el cual se realizó el desarrollo de los proxies para implementación de cuatro de sus actividades en tres sectores económicos priorizados. "]
[null,"IPCC, 2019. Reajuste de los lineamientos para formulación de Inventarios de emisiones de gases de efecto invernadero del IPCC","El Reajuste de las Directrices del IPCC de 2019 no tiene por objeto revisar las Directrices del IPCC de 2006, sino actualizar, complementar y/o profundizar sus orientaciones en los casos en que se hayan detectado brechas o datos científicos obsoletos. No sustituirá a las Directrices del IPCC de 2006. Debe utilizarse junto con las Directrices del IPCC de 2006. Para la presente herramienta se usaron los Capítulos 10 y 11 del volumen 4 del reporte. "]
[null,"FAO, 2019. Guía teórico-práctica sobre el biogás y los biodigestores. Colección Documentos Técnicos N° 12. Buenos Aires.","Guía teórico-práctica sobre el biogás y los biodigestores. En este manual se contienen recomendaciones, así como ejemplos de teconologías de biodigestores."]
[null,"MinVivienda, 2012. Reglamento técnico del Sector de Agua Potable y Saneamiento Básico - RAS (titulo F)","El titulo F (Sistemas de Aseo Urbano) establece los criterios básicos, los requisitos mínimos y las buenas prácticas técnicas de ingeniería que deben reunir los diferentes procesos involucrados en la conceptualización, el diseño, la implementación y construcción, la supervisión técnica, la puesta en marcha, la operación, el mantenimiento, el cierre, la clausura y la postclausura y las actividades de salvamento de infraestructura de los diferentes componentes y subcomponentes del sistema de aseo urbano que se desarrollen en el país, con el fin de garantizar la seguridad, durabilidad, funcionalidad, calidad, efectividad, sostenibilidad, redundancia e integralidad dentro del nivel de complejidad determinado para el proyecto."]
[null,"Gobierno de Colombia, 2000. RAS 2000, Titulo F. ","El RAS 2000, en su Título F, hace referencia al Reglamento Técnico para el Diseño y Construcción de Sistemas de Acueducto y Alcantarillado en Colombia. Este documento es emitido por el Ministerio de Vivienda, Ciudad y Territorio de Colombia y establece las normas y directrices para el diseño, construcción, operación y mantenimiento de los sistemas de acueducto y alcantarillado en el país. El Título F del RAS 2000 se centra particularmente en las especificaciones y normas técnicas relacionadas con los sistemas de alcantarillado. "]
[null,"https://wa-reportsui.azurewebsites.net//home/report/6e05bb70-f345-4c0e-9ac2-e394883617f1 ","Tarifa del servicio publico de Agua de el reporte de la Superservicios del sistema único de información de servicios públicos domiciliarios (SUI)"]
[null,"https://www.superservicios.gov.co/sites/default/files/inline-files/Boletin-tarifario-de-energia-primer-trimestre-de-2024.pdf","Tarifa del servicio publico de Energía de el reporte de la Superservicios - Boletín tarifario (Primer trimestre 2024)"]
[null,"https://www.superservicios.gov.co/sites/default/files/inline-files/Informacion-tarifaria-empresas-gas-natural-por-redes-de-tuberia-enero-2024.xlsx","Tarifa del servicio publico de Gas - Información tarifaria empresas gas natural por redes de tubería"]
[]
[null,"Desarrollado por:",null,null,null,null,null,"Arroz","http://www.scielo.org.co/pdf/nova/v14n26/v14n26a07.pdf"]
[]
[]
[]
[]
[]
[null,"Acuse de responsabilidad: La información contenida en esta comunicación no constituye asesoramiento de inversión de ningún tipo y Climate Bonds Iniciative ni Ambire Global (el consorcio) son asesores de inversión. Cualquier referencia a una organización financiera o a un instrumento de deuda o producto de inversión se hace únicamente con fines informativos. Los enlaces a sitios web externos son sólo para fines informativos. El consorcio no acepta ninguna responsabilidad por el contenido de sitios web externos. El consorcio no respalda, recomienda o asesora sobre los méritos financieros o de otro tipo de cualquier instrumento de deuda o producto de inversión y ninguna información contenida en esta comunicación debe ser tomada como tal, ni debe confiarse en cualquier información contenida en esta comunicación para tomar cualquier decisión de inversión. La certificación según el Estándar de Climate Bonds sólo refleja los atributos climáticos del uso de los ingresos de un instrumento de deuda designado. No refleja la solvencia del instrumento de deuda designado, ni su conformidad con las leyes nacionales o internacionales. La decisión de invertir en algo es exclusivamente suya. El consorcio no acepta responsabilidad de ningún tipo, por cualquier inversión que un individuo u organización realice, ni por cualquier inversión realizada por terceros en nombre de un individuo u organización, basada total o parcialmente en cualquier información contenida en esta o cualquier otra comunicación pública de Climate Bonds Initiative."]

{"sheet":"Calculos_Biogás","index":3,"n_rows":22,"n_cols":5,"rows_kept":22,"cut":false,"hidden":true,"merged":[[1,1,1,2],[1,3,1,18]]}
[]
[null,null,null,"RESULTADOS DEL ANÁLISIS DE EMISIONES DE GEI POR TRANSPORTE, TRATAMIENTO O DISPOSICIÓN FINAL DE RESIDUOS ORGÁNICOS GENERADOS EN LAS PLAZAS DE MERCADO DE COLOMBIA A TRAVÉS DE BIODIGESTORES"]
[]
[null,"1. Datos de generación de residuos sólidos orgánicos"]
[null,"Tipo de residuo","Cantidad orgánicos (kg/año)","Mezcla (l/año)","Producción de biogás (m3/año)"]
[null,"Residuos de orgánicos mixtos",{"$f":"IF('HC_RO_Valorización Ambiental'!$F$26=\"Si\",IF('HC_RO_Valorización Ambiental'!$E$39=$B$15,'HC_RO_Valorización Ambiental'!$D$39*330,IF('HC_RO_Valorización Ambiental'!$E$39=$B$16,'HC_RO_Valorización Ambiental'!$D$39*'FE y conversiones'!$H$9,IF('HC_RO_Valorización Ambiental'!$E$39=$B$17,'HC_RO_Valorización Ambiental'!$D$39*'FE y conversiones'!$H$10,IF('HC_RO_Valorización Ambiental'!$E$39=$B$18,'HC_RO_Valorización Ambiental'!$D$39,IF('HC_RO_Valorización Ambiental'!$E$39=$B$19,'HC_RO_Valorización Ambiental'!$D$39*(1000*330),IF('HC_RO_Valorización Ambiental'!$E$39=$B$20,'HC_RO_Valorización Ambiental'!$D$39*(1000*'FE y conversiones'!$H$9),IF('HC_RO_Valorización Ambiental'!$E$39=$B$21,'HC_RO_Valorización Ambiental'!$D$39*(1000*'FE y conversiones'!$H$10),IF('HC_RO_Valorización Ambiental'!$E$39=$B$22,'HC_RO_Valorización Ambiental'!$D$39*1000)))))))),'HC_RO_Valorización Ambiental'!$D$40*'HC_RO_Valorización Ambiental'!$D$41*0.4*'HC_RO_Valorización Ambiental'!$F$42*330)","v":{"$error":"#VALUE!"}},{"$f":"+C6+(C6*'FE y conversiones'!$C$67)","v":{"$error":"#VALUE!"}},{"$f":"+C6*'FE y conversiones'!C44%*'FE y conversiones'!D44%*'FE y conversiones'!E44","v":{"$error":"#VALUE!"}}]
[null,"Residuos de verduras",{"$f":"+IF('HC_RO_Valorización Ambiental'!$E$35=$B$15,'HC_RO_Valorización Ambiental'!$D$35*330,IF('HC_RO_Valorización Ambiental'!$E$35=$B$16,'HC_RO_Valorización Ambiental'!$D$35*'FE y conversiones'!$H$9,IF('HC_RO_Valorización Ambiental'!$E$35=$B$17,'HC_RO_Valorización Ambiental'!$D$35*'FE y conversiones'!$H$10,IF('HC_RO_Valorización Ambiental'!$E$35=$B$18,'HC_RO_Valorización Ambiental'!$D$35,IF('HC_RO_Valorización Ambiental'!$E$35=$B$19,'HC_RO_Valorización Ambiental'!$D$35*(1000*330),IF('HC_RO_Valorización Ambiental'!$E$35=$B$20,'HC_RO_Valorización Ambiental'!$D$35*(1000*'FE y conversiones'!$H$9),IF('HC_RO_Valorización Ambiental'!$E$35=$B$21,'HC_RO_Valorización Ambiental'!$D$35*(1000*'FE y conversiones'!$H$10),IF('HC_RO_Valorización Ambiental'!$E$35=$B$22,'HC_RO_Valorización Ambiental'!$D$35*1000))))))))","v":false},{"$f":"+C7+(C7*'FE y conversiones'!$C$67)","v":0},{"$f":"+C7*AVERAGE('FE y conversiones'!C40,'FE y conversiones'!C42)%*AVERAGE('FE y conversiones'!D40,'FE y conversiones'!D42)%*AVERAGE('FE y conversiones'!E40,'FE y conversiones'!E42)","v":0}]
[null,"Residuos de hortalizas",{"$f":"+IF('HC_RO_Valorización Ambiental'!$E$36=$B$15,'HC_RO_Valorización Ambiental'!$D$36*330,IF('HC_RO_Valorización Ambiental'!$E$36=$B$16,'HC_RO_Valorización Ambiental'!$D$36*'FE y conversiones'!$H$9,IF('HC_RO_Valorización Ambiental'!$E$36=$B$17,'HC_RO_Valorización Ambiental'!$D$36*'FE y conversiones'!$H$10,IF('HC_RO_Valorización Ambiental'!$E$36=$B$18,'HC_RO_Valorización Ambiental'!$D$36,IF('HC_RO_Valorización Ambiental'!$E$36=$B$19,'HC_RO_Valorización Ambiental'!$D$36*(1000*330),IF('HC_RO_Valorización Ambiental'!$E$36=$B$20,'HC_RO_Valorización Ambiental'!$D$36*(1000*'FE y conversiones'!$H$9),IF('HC_RO_Valorización Ambiental'!$E$36=$B$21,'HC_RO_Valorización Ambiental'!$D$36*(1000*'FE y conversiones'!$H$10),IF('HC_RO_Valorización Ambiental'!$E$36=$B$22,'HC_RO_Valorización Ambiental'!$D$36*1000))))))))","v":false},{"$f":"+C8+(C8*'FE y conversiones'!$C$67)","v":0},{"$f":"+C8*AVERAGE('FE y conversiones'!C41,'FE y conversiones'!C45,'FE y conversiones'!C46)%*AVERAGE('FE y conversiones'!D41,'FE y conversiones'!D45,'FE y conversiones'!D46)%*AVERAGE('FE y conversiones'!E41,'FE y conversiones'!E45,'FE y conversiones'!E46)","v":0}]
[null,"Residuos de frutas",{"$f":"+IF('HC_RO_Valorización Ambiental'!$E$37=$B$15,'HC_RO_Valorización Ambiental'!$D$37*330,IF('HC_RO_Valorización Ambiental'!$E$37=$B$16,'HC_RO_Valorización Ambiental'!$D$37*'FE y conversiones'!$H$9,IF('HC_RO_Valorización Ambiental'!$E$37=$B$17,'HC_RO_Valorización Ambiental'!$D$37*'FE y conversiones'!$H$10,IF('HC_RO_Valorización Ambiental'!$E$37=$B$18,'HC_RO_Valorización Ambiental'!$D$37,IF('HC_RO_Valorización Ambiental'!$E$37=$B$19,'HC_RO_Valorización Ambiental'!$D$37*(1000*330),IF('HC_RO_Valorización Ambiental'!$E$37=$B$20,'HC_RO_Valorización Ambiental'!$D$37*(1000*'FE y conversiones'!$H$9),IF('HC_RO_Valorización Ambiental'!$E$37=$B$21,'HC_RO_Valorización Ambiental'!$D$37*(1000*'FE y conversiones'!$H$10),IF('HC_RO_Valorización Ambiental'!$E$37=$B$22,'HC_RO_Valorización Ambiental'!$D$37*1000))))))))","v":false},{"$f":"+C9+(C9*'FE y conversiones'!$C$67)","v":0},{"$f":"+C9*'FE y conversiones'!C43%*'FE y conversiones'!D43%*'FE y conversiones'!E43","v":0}]
[null,"Residuos cárnicos",{"$f":"+IF('HC_RO_Valorización Ambiental'!$E$38=$B$15,'HC_RO_Valorización Ambiental'!$D$38*330,IF('HC_RO_Valorización Ambiental'!$E$38=$B$16,'HC_RO_Valorización Ambiental'!$D$38*'FE y conversiones'!$H$9,IF('HC_RO_Valorización Ambiental'!$E$38=$B$17,'HC_RO_Valorización Ambiental'!$D$38*'FE y conversiones'!$H$10,IF('HC_RO_Valorización Ambiental'!$E$38=$B$18,'HC_RO_Valorización Ambiental'!$D$38,IF('HC_RO_Valorización Ambiental'!$E$38=$B$19,'HC_RO_Valorización Ambiental'!$D$38*(1000*330),IF('HC_RO_Valorización Ambiental'!$E$38=$B$20,'HC_RO_Valorización Ambiental'!$D$38*(1000*'FE y conversiones'!$H$9),IF('HC_RO_Valorización Ambiental'!$E$38=$B$21,'HC_RO_Valorización Ambiental'!$D$38*(1000*'FE y conversiones'!$H$10),IF('HC_RO_Valorización Ambiental'!$E$38=$B$22,'HC_RO_Valorización Ambiental'!$D$38*1000))))))))","v":false},{"$f":"+C10+(C10*'FE y conversiones'!$C$67)","v":0},{"$f":"+C10*'FE y conversiones'!C38%*'FE y conversiones'!D38%*'FE y conversiones'!E38","v":0}]
[null,"Total",{"$f":"+SUM(C6:C10)","v":{"$error":"#VALUE!"}},{"$f":"+SUM(D6:D10)","v":{"$error":"#VALUE!"}},{"$f":"+SUM(E6:E10)","v":{"$error":"#VALUE!"}}]
[]
[null,"X. Datos de verificación"]
[null,"Unidad de peso/tiempo"]
[null,"kg/día"]
[null,"kg/semana"]
[null,"kg/mes"]
[null,"kg/año"]
[null,"t/día"]
[null,"t/semana"]
[null,"t/mes"]
[null,"t/año"]

{"sheet":"HC_RO_Valorización Ambiental","index":4,"n_rows":79,"n_cols":10,"rows_kept":79,"cut":false,"hidden":false,"merged":[[19,3,19,4],[14,1,21,1],[16,3,16,4],[14,3,14,4],[68,5,74,5],[33,1,38,1],[68,1,74,1],[64,2,64,4],[34,5,38,5],[48,3,48,4],[49,3,49,4],[50,3,50,4],[46,3,46,4],[75,1,78,1],[26,3,26,4],[43,1,43,4],[44,1,44,4],[45,3,45,4],[33,3,33,4],[61,2,61,4],[1,2,1,5],[3,1,3,4],[5,1,5,4],[6,3,6,4],[7,3,7,4],[6,1,11,1],[8,3,8,4],[9,3,9,4],[11,3,11,4],[10,3,10,4],[13,1,13,4],[57,1,67,1],[23,1,23,4],[24,1,24,4],[25,3,25,4],[41,3,41,4],[39,1,41,1],[27,3,27,4],[25,1,32,1],[56,1,56,4],[28,3,28,4],[29,3,29,4],[30,3,30,4],[31,3,31,4],[32,3,32,4],[45,1,52,1]]}
[]
[null,null,"HERRAMIENTA DE CÁLCULO PARA DETERMINAR EL POTENCIAL ENERGÉTICO DE BIODIGESTORES IN SITU EN LAS PLAZAS DE MERCADO DE COLOMBIA"]
[]
[null,"\nInstrucciones de diligenciamiento\n\nBienvenido a la herramienta de cálculo para estimar el potencial de valorización ambiental y económico de la implementación de biodigestores in situ para el tratamiento de los residuos orgánicos producto del descarte en plazas de mercado.  Las celdas en color AZUL corresponden a celdas con listas despleglables donde el usuario debe seleccionar una opción según el tipo de proyecto de su interés. El usuario debe ingresar manualmente los datos del proyecto en cada celda que se encuentre resaltada en color AMARILLO. Estos datos serán usados para la estimación del potencial de biogás de los residuos valorizados así como la estimación de la reducción de los GEI por el tratamiento biológico de los residuos a través de las tecnologías de digestión anaeróbica o compostaje. Los resultados de los cálculos serán visibles en las celdas resaltadas en color VERDE. \n\nNOTA: Recuerde habilitar la ejecución de macros para el funcionamiento de la herramienta de cálculo de emisiones, sin estas la calculadora NO funcionará. ",null,null,null,"\nBotones para el funcionamiento de la herramienta"]
[]
[null,"1. Ingreso de información general"]
["1.1.","Información general\nUbicación de la plaza de mercado","Seleccione el departamento donde se ubica la plaza de mercado:","Seleccione un departamento",null,{"$f":"+$D$7","v":"Seleccione un departamento"}]
["1.2.",null,"Seleccione el municipio donde se ubica la plaza de mercado:"]
["1.3.",null,"Ingrese el nombre de la plaza de mercado:"]
["1.4",null,"Seleccione el área donde se ubica la plaza de mercado:","Indique la zona donde se ubica la plaza de mercado"]
[null,null,"Seleccione de que manera quiere usar el biogas generado en el biodigestor:","Seleccione un uso",null,{"$f":"+D11","v":"Seleccione un uso"}]
["1.5",null,"Seleccione la zona donde se ubica la plaza de mercado:","Indique el sector donde se ubica la plaza de mercado",null,{"$f":"+D12","v":"Indique el sector donde se ubica la plaza de mercado"}]
[]
[null,"2. Ingreso de información - Costos y consumo de servicios"]
["2.1.","Información general\nCostos y consumo de servicios","¿Conoce el costo de gestionar sus residuos orgánicos?","Indique una respuesta"]
["2.2.",null,"Indique la tarifa por la gestión de los residuos orgánicos:",null,"$/t"]
["2.3.",null,"¿Conoce el costo del consumo de gas natural? ","Indique una respuesta"]
["2.4.",null,"Indique cuanto consume mensualmente en promedio de gas natural:",null,"m3/mes"]
["2.5.",null,"Indique la tarifa correspondiente a su consumo de gas natural:",null,"$/m3"]
["2.6.",null,"¿Conoce el costo del consumo de energía electrica en la plaza de mercado?","Indique una respuesta"]
["2.7.",null,"Indique cuanto consume mensualmente en promedio de energía eléctrica:",null,"kWh/mes",{"$f":"+D21/12","v":0}]
["2.8.",null,"Indique la tarifa correspondiente a su consumo de energía eléctrica:",null,"$/kWh"]
[]
[null,"3. Ingreso de información - Generación de residuos orgánicos"]
[null,"DATOS DE LA GENERACIÓN DE LOS RESIDUOS SÓLIDOS ORGÁNICOS"]
["3.1","Información general \nCaracterísticas de los Residuos orgánicos","¿Conoce el peso promedio de los residuos orgánicos generados en la plaza de mercado?","Indique una respuesta",null,{"$f":"+D26","v":"Indique una respuesta"}]
["3.2",null,"¿Clasifica los residuos orgánicos por tipos específicos?","Indique una respuesta"]
["3.3",null,"¿Cuántos tipos de residuos orgánicos genera regularmente en su operación?","Seleccione la cantidad de tipos de residuos orgánicos existentes"]
[null,null,"Seleccione el tipo de residuo orgánico No. 1 que genera en su establecimiento","Seleccione el tipo de residuos orgánico"]
[null,null,"Seleccione el tipo de residuo orgánico No. 2 que genera en su establecimiento","Seleccione el tipo de residuos orgánico"]
[null,null,"Seleccione el tipo de residuo orgánico No. 3 que genera en su establecimiento","Seleccione el tipo de residuos orgánico"]
[null,null,"Seleccione el tipo de residuo orgánico No. 4 que genera en su establecimiento","Seleccione el tipo de residuos orgánico"]
[null,null,"Seleccione el tipo de residuo orgánico No. 5 que genera en su establecimiento","Seleccione el tipo de residuos orgánico"]
["3.4","Información general \nGeneración de residuos orgánicos","¿Cual es la cantidad de residuos por unidad de tiempo que se genera de residuos orgánicos?","Indique las unidades"]
["3.5",null,"Ingrese la cantidad de verduras generadas en su instalación:",null,{"$f":"+$D$34","v":"Indique las unidades"}]
["3.6",null,"Ingrese la cantidad de hortalizas generadas en su instalación:",null,{"$f":"+$D$34","v":"Indique las unidades"}]
["3.7",null,"Ingrese la cantidad de frutas generadas en su instalación:",null,{"$f":"+$D$34","v":"Indique las unidades"}]
["3.8",null,"Ingrese la cantidad de cárnicos generados en su instalación:",null,{"$f":"+$D$34","v":"Indique las unidades"}]
["3.9",null,"Ingrese la cantidad de residuos orgánicos mixtos generados en su instalación",null,{"$f":"+$D$34","v":"Indique las unidades"}]
["3.10","Información general \nVolumen de residuos orgánicos depositados","¿Cuál es el volumen diario del tipo de caneca/bolsa empleada para depositar sus residuos orgánicos?","Indique el volumen correspondiente","l"]
[null,null,"Ingrese el número de canecas o bolsas donde deposita todos sus residuos orgánicos diariamente",null,"#"]
["3.11",null,"Indique el porcentaje de llenado diario de los contenedores/bolsas utilizados donde recolecta los residuos orgánicos:","Indique el porcentaje de llenado",null,{"$f":"+IF($D$42=$G$42,25%,IF($D$42=$H$42,50%,IF($D$42=$I$42,75%,100%)))","v":1},"25% de llenado","50% de llenado","75% de llenado","100% de llenado"]
[]
[null,"4. Ingreso de información - Transporte para el tratamiento residuos orgánicos"]
[null,"DATOS DEL TRANSPORTE DE RESIDUOS ORGÁNICOS A SU SITIO DE TRATAMIENTO/DISPOSICIÓN FINAL"]
["4.1","Información general\nRecolección de residuos","¿Qué tipo de disposición final y/o tratamiento le dan actualmente a los residuos orgánicos generados?","Indique el tipo de disposición final y/o tratamiento"]
["4.2",null,"¿La disposición final/tratamiento de residuos se realiza en un lugar distinto a la plaza de mercado?","Indique una respuesta"]
["4.3",null,"¿Con qué frecuencia se recolectan los residuos orgánicos en la plaza de mercado?","Indique la frecuencia con la que se recolectan los residuos","veces a la semana"]
["4.4",null,"¿Conoce el tipo de combustible que emplea el vehículo encargado de la recolección de residuos orgánicos?","Indique una respuesta"]
["4.5",null,"¿Qué tipo de combustible utiliza el vehículo encargado de la recolección de residuos orgánicos?","Indique el tipo de combustible empleado"]
["4.6",null,"¿Conoce la cantidad de combustible que consume el vehículo por cada viaje?","Indique una respuesta"]
["4.7",null,"¿Cuánto combustible consume el vehículo por cada viaje?",null,{"$f":"VLOOKUP(D50,Dropdown_digestores!S2:T6,2,FALSE)","v":" "}]
["4.8",null,"¿Cuál es la distancia aproximada desde la plaza de mercado hasta el sitio de tratamiento/disposición final?",null,"km"]
[]
[]
[]
[null,"5. Resultados"]
[5.0999999999999996,"RESULTADOS\nGeneración de biogás/biometano","Volumen de biogás generado",{"$f":"+Calculos_Biogás!E11/'FE y conversiones'!$H$8","v":{"$error":"#VALUE!"}},"m3/día"]
[null,null,"Equivalente energetico del biogás generado",{"$f":"+(D58*'FE y conversiones'!C59%*'FE y conversiones'!C60%*'FE y conversiones'!C62%*'FE y conversiones'!C63%*'FE y conversiones'!C64)","v":{"$error":"#VALUE!"}},"kWh/dia"]
[null,null,"Equivalente a gas natural",{"$f":"+$D$58/(('FE y conversiones'!$C$74/'FE y conversiones'!$C$71)/'FE y conversiones'!$C$59%)","v":{"$error":"#VALUE!"}},"m3/día"]
[null,null,"Cantidad de digestato (Enmienda de suelo)",{"$f":"+((Calculos_Biogás!$C$11)*'FE y conversiones'!$C$68)/365","v":{"$error":"#VALUE!"}},"kg/día"]
[null,null,"Escenario 1. Producción de biogás con destino a autoconsumo de biogás"]
[null,null,"Volumen de biogás destinado para autoconsumo",{"$f":"IF($D$58*30>'HC_RO_Valorización Ambiental'!$D$18,'HC_RO_Valorización Ambiental'!$D$18/30,'HC_RO_Valorización Ambiental'!$D$58)","v":{"$error":"#VALUE!"}},"m3/día"]
[null,null,"Excedente de biogás (despues de autoconsumo)",{"$f":"IF($D$58*30>'HC_RO_Valorización Ambiental'!$D$18,$D$58-'HC_RO_Valorización Ambiental'!$D$18/30,0)","v":{"$error":"#VALUE!"}},"m3/día"]
[null,null,"Escenario 2. Producción de biogás con destino a producción de energía electrica"]
[null,null,"Cantidad de energía electrica generada",{"$f":"(($D$58*'FE y conversiones'!$C$60%*65%*'FE y conversiones'!$C$64*'FE y conversiones'!C62%*'FE y conversiones'!C63%))","v":{"$error":"#VALUE!"}},"kWh/día"]
[null,null,"Potencial energía electrica para suplir la demanda energética de la plaza de mercado",{"$f":"IF($D$66>('HC_RO_Valorización Ambiental'!$D$21/30),('HC_RO_Valorización Ambiental'!$D$21/30),'HC_RO_Valorización Ambiental'!$D$66)","v":{"$error":"#VALUE!"}},"kWh/día"]
[null,null,"Energía electrica destinada para inyección a la red eléctrica nacional",{"$f":"IF($D$66>('HC_RO_Valorización Ambiental'!$D$21/30),$D$66-('HC_RO_Valorización Ambiental'!$D$21/30),0)","v":{"$error":"#VALUE!"}},"kWh/día"]
[null,"RESULTADOS\nFinancieros","CAPEX",{"$f":"+'RO_Análisis financiero'!$C$14","v":{"$error":"#VALUE!"}},"$"]
[null,null,"OPEX",{"$f":"+SUM('RO_Análisis financiero'!$D$16:$D$19)","v":{"$error":"#VALUE!"}},"$/Año 1"]
[null,null,{"$f":"+'RO_Análisis financiero'!B21","v":"Ingresos por venta de biogás"},{"$f":"+'RO_Análisis financiero'!$D$21","v":{"$error":"#VALUE!"}},"$"]
[null,null,"Ingresos por venta de digestato",{"$f":"+'RO_Análisis financiero'!$D$22","v":{"$error":"#VALUE!"}},"$"]
[null,null,"Ingresos por gestión de residuos",{"$f":"+'RO_Análisis financiero'!$D$23","v":{"$error":"#VALUE!"}},"$"]
[null,null,"Ingresos anual esperado",{"$f":"+'RO_Análisis financiero'!$D$24","v":{"$error":"#VALUE!"}},"$"]
[null,null,"Ingresos mensual esperado",{"$f":"+'RO_Análisis financiero'!$D$25","v":{"$error":"#VALUE!"}},"$"]
[null,"RESULTADOS\nReducción de emisiones de GEI","Emisiones de GEI - Escenario base",{"$f":"+IF($D$49=\"No\",'Emisiones GEI'!$D$14,IF(AND($D$49=\"Si\",$D$51=\"Si\"),IF($D$50='Emisiones GEI'!$B$19,'Emisiones GEI'!$D$47,IF($D$50='Emisiones GEI'!$B$25,'Emisiones GEI'!$D$53,IF($D$50='Emisiones GEI'!$B$31,'Emisiones GEI'!$D$59,'Emisiones GEI'!D62))),IF($D$49=\"Si\",IF($D$50='Emisiones GEI'!$B$19,'Emisiones GEI'!$D$23,IF($D$50='Emisiones GEI'!$B$25,'Emisiones GEI'!$D$29,IF($D$50='Emisiones GEI'!$B$31,'Emisiones GEI'!$D$35,'Emisiones GEI'!$D$38))))))+IF($D$26=\"No\",IF($D$46='Emisiones GEI'!$H$9,SUM('Emisiones GEI'!$J$13,'Emisiones GEI'!$J$18,'Emisiones GEI'!$J$23,'Emisiones GEI'!$J$27),IF($D$46='Emisiones GEI'!$H$29,SUM('Emisiones GEI'!$J$33,'Emisiones GEI'!$J$38,'Emisiones GEI'!$J$43,'Emisiones GEI'!$J$47),SUM('Emisiones GEI'!$J$53,'Emisiones GEI'!$J$58,'Emisiones GEI'!$J$63,'Emisiones GEI'!$J$67))),IF($D$26=\"Si\",IF($D$46='Emisiones GEI'!$H$70,SUM('Emisiones GEI'!$J$75,'Emisiones GEI'!$J$79,'Emisiones GEI'!$J$83,'Emisiones GEI'!$J$86),IF($D$46='Emisiones GEI'!$H$88,SUM('Emisiones GEI'!$J$92,'Emisiones GEI'!$J$97,'Emisiones GEI'!$J$102,'Emisiones GEI'!$J$106),SUM('Emisiones GEI'!$J$112,'Emisiones GEI'!$J$117,'Emisiones GEI'!$J$122,'Emisiones GEI'!$J$126)))))","v":0},"t CO2e/año"]
[null,null,"Emisiones de GEI - Escenario proyecto",{"$f":"+IF($D$26=\"No\",SUM('Emisiones GEI'!$P$13,'Emisiones GEI'!$P$18,'Emisiones GEI'!$P$23,'Emisiones GEI'!$P$27),SUM('Emisiones GEI'!$P$37,'Emisiones GEI'!$P$42,'Emisiones GEI'!$P$47,'Emisiones GEI'!$P$51))","v":0},"t CO2e/año"]
[null,null,"Potencial reducción de emisiones de GEI",{"$f":"+D76-D77","v":0},"t CO2e/año"]
[null,null,"Porcentaje de reducción de emisiones de GEI",{"$f":"(D78/D76)*100","v":{"$error":"#DIV/0!"}},"%"]

{"sheet":"RO_Análisis financiero","index":5,"n_rows":75,"n_cols":18,"rows_kept":75,"cut":false,"hidden":true,"merged":[[74,0,77,17],[5,3,5,5],[1,2,1,17],[8,1,8,17],[3,1,3,17],[5,1,5,2]]}
[]
[null,null,"RESULTADOS DEL ANÁLISIS ECONÓMICO PARA EL TRATAMIENTO DE RESIDUOS ORGÁNICOS GENERADOS EN LAS PLAZAS DE MERCADO DE COLOMBIA A TRAVÉS DE BIODIGESTORES"]
[]
[null,"Valorización económica por gestión de residuos orgánicos a través de biodigestores in situ para plazas de mercado"]
[]
[null,"Cálculo de valorización económica para el establecimiento:",null,{"$f":"'HC_RO_Valorización Ambiental'!D9","v":0}]
[]
[]
[null,"RESULTADOS DE LA VALORIZACIÓN ECONÓMICA PARA RESIDUOS ORGÁNICOS DEL ESTABLECIMIENTO COMERCIAL"]
[]
[null,"VALORIZACIÓN ECONOMICA ESCENARIO: Proyecto de instalación de biodigestor para producción y consumo de biogás"]
[]
[null,"COSTOS","Año 0","Año 1","Año 2","Año 3","Año 4","Año 5","Año 6","Año 7","Año 8","Año 9","Año 10","Año 11","Año 12","Año 13","Año 14","Año 15"]
[null,"CAPEX",{"$f":"+('Modelo financiero (Biogas)'!$B$171*(Calculos_Biogás!$C$11/1000))+'Modelo financiero (Biogas)'!$C$171","v":{"$error":"#VALUE!"}}]
[null,"OPEX",null,{"$f":"+SUM(D16:D19)","v":{"$error":"#VALUE!"}},{"$f":"+SUM(E16:E19)","v":{"$error":"#VALUE!"}},{"$error":"#VALUE!"},{"$error":"#VALUE!"},{"$error":"#VALUE!"},{"$error":"#VALUE!"},{"$error":"#VALUE!"},{"$error":"#VALUE!"},{"$error":"#VALUE!"},{"$error":"#VALUE!"},{"$error":"#VALUE!"},{"$error":"#VALUE!"},{"$error":"#VALUE!"},{"$error":"#VALUE!"},{"$error":"#VALUE!"}]
[null,"Costo por energía",null,{"$f":"ROUND((ROUND(('Modelo financiero (Biogas)'!$B$173*(Calculos_Biogás!$C$11/1000))+'Modelo financiero (Biogas)'!$C$173,0))*'Modelo financiero (Biogas)'!$F$167,4)","v":{"$error":"#VALUE!"}},{"$f":"+D16*(1+'Modelo financiero (Biogas)'!$C$13)","v":{"$error":"#VALUE!"}},{"$f":"+E16*(1+'Modelo financiero (Biogas)'!$C$13)","v":{"$error":"#VALUE!"}},{"$f":"+F16*(1+'Modelo financiero (Biogas)'!$C$13)","v":{"$error":"#VALUE!"}},{"$f":"+G16*(1+'Modelo financiero (Biogas)'!$C$13)","v":{"$error":"#VALUE!"}},{"$f":"+H16*(1+'Modelo financiero (Biogas)'!$C$13)","v":{"$error":"#VALUE!"}},{"$f":"+I16*(1+'Modelo financiero (Biogas)'!$C$13)","v":{"$error":"#VALUE!"}},{"$f":"+J16*(1+'Modelo financiero (Biogas)'!$C$13)","v":{"$error":"#VALUE!"}},{"$f":"+K16*(1+'Modelo financiero (Biogas)'!$C$13)","v":{"$error":"#VALUE!"}},{"$f":"+L16*(1+'Modelo financiero (Biogas)'!$C$13)","v":{"$error":"#VALUE!"}},{"$f":"+M16*(1+'Modelo financiero (Biogas)'!$C$13)","v":{"$error":"#VALUE!"}},{"$f":"+N16*(1+'Modelo financiero (Biogas)'!$C$13)","v":{"$error":"#VALUE!"}},{"$f":"+O16*(1+'Modelo financiero (Biogas)'!$C$13)","v":{"$error":"#VALUE!"}},{"$f":"+P16*(1+'Modelo financiero (Biogas)'!$C$13)","v":{"$error":"#VALUE!"}},{"$f":"+Q16*(1+'Modelo financiero (Biogas)'!$C$13)","v":{"$error":"#VALUE!"}}]
[null,"Costo por agua",null,{"$f":"ROUND((ROUND(('Modelo financiero (Biogas)'!$B$173*(Calculos_Biogás!$C$11/1000))+'Modelo financiero (Biogas)'!$C$173,0))*'Modelo financiero (Biogas)'!$G$167,4)","v":{"$error":"#VALUE!"}},{"$f":"+D17*(1+'Modelo financiero (Biogas)'!$C$14)","v":{"$error":"#VALUE!"}},{"$f":"+E17*(1+'Modelo financiero (Biogas)'!$C$14)","v":{"$error":"#VALUE!"}},{"$f":"+F17*(1+'Modelo financiero (Biogas)'!$C$14)","v":{"$error":"#VALUE!"}},{"$f":"+G17*(1+'Modelo financiero (Biogas)'!$C$14)","v":{"$error":"#VALUE!"}},{"$f":"+H17*(1+'Modelo financiero (Biogas)'!$C$14)","v":{"$error":"#VALUE!"}},{"$f":"+I17*(1+'Modelo financiero (Biogas)'!$C$14)","v":{"$error":"#VALUE!"}},{"$f":"+J17*(1+'Modelo financiero (Biogas)'!$C$14)","v":{"$error":"#VALUE!"}},{"$f":"+K17*(1+'Modelo financiero (Biogas)'!$C$14)","v":{"$error":"#VALUE!"}},{"$f":"+L17*(1+'Modelo financiero (Biogas)'!$C$14)","v":{"$error":"#VALUE!"}},{"$f":"+M17*(1+'Modelo financiero (Biogas)'!$C$14)","v":{"$error":"#VALUE!"}},{"$f":"+N17*(1+'Modelo financiero (Biogas)'!$C$14)","v":{"$error":"#VALUE!"}},{"$f":"+O17*(1+'Modelo financiero (Biogas)'!$C$14)","v":{"$error":"#VALUE!"}},{"$f":"+P17*(1+'Modelo financiero (Biogas)'!$C$14)","v":{"$error":"#VALUE!"}},{"$f":"+Q17*(1+'Modelo financiero (Biogas)'!$C$14)","v":{"$error":"#VALUE!"}}]
[null,"Costo por personal",null,{"$f":"ROUND((ROUND(('Modelo financiero (Biogas)'!$B$173*(Calculos_Biogás!$C$11/1000))+'Modelo financiero (Biogas)'!$C$173,0))*'Modelo financiero (Biogas)'!$H$167,4)","v":{"$error":"#VALUE!"}},{"$f":"+D18*(1+'Modelo financiero (Biogas)'!$C$11)","v":{"$error":"#VALUE!"}},{"$f":"+E18*(1+'Modelo financiero (Biogas)'!$C$11)","v":{"$error":"#VALUE!"}},{"$f":"+F18*(1+'Modelo financiero (Biogas)'!$C$11)","v":{"$error":"#VALUE!"}},{"$f":"+G18*(1+'Modelo financiero (Biogas)'!$C$11)","v":{"$error":"#VALUE!"}},{"$f":"+H18*(1+'Modelo financiero (Biogas)'!$C$11)","v":{"$error":"#VALUE!"}},{"$f":"+I18*(1+'Modelo financiero (Biogas)'!$C$11)","v":{"$error":"#VALUE!"}},{"$f":"+J18*(1+'Modelo financiero (Biogas)'!$C$11)","v":{"$error":"#VALUE!"}},{"$f":"+K18*(1+'Modelo financiero (Biogas)'!$C$11)","v":{"$error":"#VALUE!"}},{"$f":"+L18*(1+'Modelo financiero (Biogas)'!$C$11)","v":{"$error":"#VALUE!"}},{"$f":"+M18*(1+'Modelo financiero (Biogas)'!$C$11)","v":{"$error":"#VALUE!"}},{"$f":"+N18*(1+'Modelo financiero (Biogas)'!$C$11)","v":{"$error":"#VALUE!"}},{"$f":"+O18*(1+'Modelo financiero (Biogas)'!$C$11)","v":{"$error":"#VALUE!"}},{"$f":"+P18*(1+'Modelo financiero (Biogas)'!$C$11)","v":{"$error":"#VALUE!"}},{"$f":"+Q18*(1+'Modelo financiero (Biogas)'!$C$11)","v":{"$error":"#VALUE!"}}]
[null,"Costo por mantenimiento",null,{"$f":"ROUND((ROUND(('Modelo financiero (Biogas)'!$B$173*(Calculos_Biogás!$C$11/1000))+'Modelo financiero (Biogas)'!$C$173,0))*'Modelo financiero (Biogas)'!$I$167,4)","v":{"$error":"#VALUE!"}},{"$f":"+D19*(1+'Modelo financiero (Biogas)'!$C$11)","v":{"$error":"#VALUE!"}},{"$f":"+E19*(1+'Modelo financiero (Biogas)'!$C$11)","v":{"$error":"#VALUE!"}},{"$f":"+F19*(1+'Modelo financiero (Biogas)'!$C$11)","v":{"$error":"#VALUE!"}},{"$f":"+G19*(1+'Modelo financiero (Biogas)'!$C$11)","v":{"$error":"#VALUE!"}},{"$f":"+H19*(1+'Modelo financiero (Biogas)'!$C$11)","v":{"$error":"#VALUE!"}},{"$f":"+I19*(1+'Modelo financiero (Biogas)'!$C$11)","v":{"$error":"#VALUE!"}},{"$f":"+J19*(1+'Modelo financiero (Biogas)'!$C$11)","v":{"$error":"#VALUE!"}},{"$f":"+K19*(1+'Modelo financiero (Biogas)'!$C$11)","v":{"$error":"#VALUE!"}},{"$f":"+L19*(1+'Modelo financiero (Biogas)'!$C$11)","v":{"$error":"#VALUE!"}},{"$f":"+M19*(1+'Modelo financiero (Biogas)'!$C$11)","v":{"$error":"#VALUE!"}},{"$f":"+N19*(1+'Modelo financiero (Biogas)'!$C$11)","v":{"$error":"#VALUE!"}},{"$f":"+O19*(1+'Modelo financiero (Biogas)'!$C$11)","v":{"$error":"#VALUE!"}},{"$f":"+P19*(1+'Modelo financiero (Biogas)'!$C$11)","v":{"$error":"#VALUE!"}},{"$f":"+Q19*(1+'Modelo financiero (Biogas)'!$C$11)","v":{"$error":"#VALUE!"}}]
[null,"INGRESOS","-"]
[null,{"$f":"+IF('HC_RO_Valorización Ambiental'!$F$11=\"Uso - Energía eléctrica\",\"Ingresos por venta de energía eléctrica\",\"Ingresos por venta de biogás\")","v":"Ingresos por venta de biogás"},"-",{"$f":"+IF('HC_RO_Valorización Ambiental'!$F$11=\"Uso - Energía eléctrica\",ROUND(('Modelo financiero (Energía)'!$B$179*(Calculos_Biogás!$C$11/1000))+'Modelo financiero (Energía)'!$C$179,0)*'Modelo financiero (Energía)'!$J$171,ROUND(('Modelo financiero (Biogas)'!$B$175*(Calculos_Biogás!$C$11/1000))+'Modelo financiero (Biogas)'!$C$175,0)*'Modelo financiero (Biogas)'!$J$167)","v":{"$error":"#VALUE!"}},{"$f":"+D21*(1+'Modelo financiero (Biogas)'!$C$12)","v":{"$error":"#VALUE!"}},{"$f":"+E21*(1+'Modelo financiero (Biogas)'!$C$12)","v":{"$error":"#VALUE!"}},{"$f":"+F21*(1+'Modelo financiero (Biogas)'!$C$12)","v":{"$error":"#VALUE!"}},{"$f":"+G21*(1+'Modelo financiero (Biogas)'!$C$12)","v":{"$error":"#VALUE!"}},{"$f":"+H21*(1+'Modelo financiero (Biogas)'!$C$12)","v":{"$error":"#VALUE!"}},{"$f":"+I21*(1+'Modelo financiero (Biogas)'!$C$12)","v":{"$error":"#VALUE!"}},{"$f":"+J21*(1+'Modelo financiero (Biogas)'!$C$12)","v":{"$error":"#VALUE!"}},{"$f":"+K21*(1+'Modelo financiero (Biogas)'!$C$12)","v":{"$error":"#VALUE!"}},{"$f":"+L21*(1+'Modelo financiero (Biogas)'!$C$12)","v":{"$error":"#VALUE!"}},{"$f":"+M21*(1+'Modelo financiero (Biogas)'!$C$12)","v":{"$error":"#VALUE!"}},{"$f":"+N21*(1+'Modelo financiero (Biogas)'!$C$12)","v":{"$error":"#VALUE!"}},{"$f":"+O21*(1+'Modelo financiero (Biogas)'!$C$12)","v":{"$error":"#VALUE!"}},{"$f":"+P21*(1+'Modelo financiero (Biogas)'!$C$12)","v":{"$error":"#VALUE!"}},{"$f":"+Q21*(1+'Modelo financiero (Biogas)'!$C$12)","v":{"$error":"#VALUE!"}}]
[null,"Ingresos por venta de digestato","-",{"$f":"ROUND(('Modelo financiero (Biogas)'!$B$175*(Calculos_Biogás!$C$11/1000))+'Modelo financiero (Biogas)'!$C$175,0)*'Modelo financiero (Biogas)'!$K$167","v":{"$error":"#VALUE!"}},{"$f":"+D22*(1+'Modelo financiero (Biogas)'!$C$11)","v":{"$error":"#VALUE!"}},{"$f":"+E22*(1+'Modelo financiero (Biogas)'!$C$11)","v":{"$error":"#VALUE!"}},{"$f":"+F22*(1+'Modelo financiero (Biogas)'!$C$11)","v":{"$error":"#VALUE!"}},{"$f":"+G22*(1+'Modelo financiero (Biogas)'!$C$11)","v":{"$error":"#VALUE!"}},{"$f":"+H22*(1+'Modelo financiero (Biogas)'!$C$11)","v":{"$error":"#VALUE!"}},{"$f":"+I22*(1+'Modelo financiero (Biogas)'!$C$11)","v":{"$error":"#VALUE!"}},{"$f":"+J22*(1+'Modelo financiero (Biogas)'!$C$11)","v":{"$error":"#VALUE!"}},{"$f":"+K22*(1+'Modelo financiero (Biogas)'!$C$11)","v":{"$error":"#VALUE!"}},{"$f":"+L22*(1+'Modelo financiero (Biogas)'!$C$11)","v":{"$error":"#VALUE!"}},{"$f":"+M22*(1+'Modelo financiero (Biogas)'!$C$11)","v":{"$error":"#VALUE!"}},{"$f":"+N22*(1+'Modelo financiero (Biogas)'!$C$11)","v":{"$error":"#VALUE!"}},{"$f":"+O22*(1+'Modelo financiero (Biogas)'!$C$11)","v":{"$error":"#VALUE!"}},{"$f":"+P22*(1+'Modelo financiero (Biogas)'!$C$11)","v":{"$error":"#VALUE!"}},{"$f":"+Q22*(1+'Modelo financiero (Biogas)'!$C$11)","v":{"$error":"#VALUE!"}}]
[null,"Ingresos por gestión de residuos","-",{"$f":"ROUND(('Modelo financiero (Biogas)'!$B$175*(Calculos_Biogás!$C$11/1000))+'Modelo financiero (Biogas)'!$C$175,0)*'Modelo financiero (Biogas)'!$L$167","v":{"$error":"#VALUE!"}},{"$f":"+D23*(1+'Modelo financiero (Biogas)'!$C$11)","v":{"$error":"#VALUE!"}},{"$f":"+E23*(1+'Modelo financiero (Biogas)'!$C$11)","v":{"$error":"#VALUE!"}},{"$f":"+F23*(1+'Modelo financiero (Biogas)'!$C$11)","v":{"$error":"#VALUE!"}},{"$f":"+G23*(1+'Modelo financiero (Biogas)'!$C$11)","v":{"$error":"#VALUE!"}},{"$f":"+H23*(1+'Modelo financiero (Biogas)'!$C$11)","v":{"$error":"#VALUE!"}},{"$f":"+I23*(1+'Modelo financiero (Biogas)'!$C$11)","v":{"$error":"#VALUE!"}},{"$f":"+J23*(1+'Modelo financiero (Biogas)'!$C$11)","v":{"$error":"#VALUE!"}},{"$f":"+K23*(1+'Modelo financiero (Biogas)'!$C$11)","v":{"$error":"#VALUE!"}},{"$f":"+L23*(1+'Modelo financiero (Biogas)'!$C$11)","v":{"$error":"#VALUE!"}},{"$f":"+M23*(1+'Modelo financiero (Biogas)'!$C$11)","v":{"$error":"#VALUE!"}},{"$f":"+N23*(1+'Modelo financiero (Biogas)'!$C$11)","v":{"$error":"#VALUE!"}},{"$f":"+O23*(1+'Modelo financiero (Biogas)'!$C$11)","v":{"$error":"#VALUE!"}},{"$f":"+P23*(1+'Modelo financiero (Biogas)'!$C$11)","v":{"$error":"#VALUE!"}},{"$f":"+Q23*(1+'Modelo financiero (Biogas)'!$C$11)","v":{"$error":"#VALUE!"}}]
[null,"Ingresos anual esperado","-",{"$f":"+D22+D23+D21","v":{"$error":"#VALUE!"}},{"$f":"+E22+E23+E21","v":{"$error":"#VALUE!"}},{"$f":"+F22+F23+F21","v":{"$error":"#VALUE!"}},{"$error":"#VALUE!"},{"$error":"#VALUE!"},{"$error":"#VALUE!"},{"$error":"#VALUE!"},{"$error":"#VALUE!"},{"$error":"#VALUE!"},{"$error":"#VALUE!"},{"$error":"#VALUE!"},{"$error":"#VALUE!"},{"$error":"#VALUE!"},{"$error":"#VALUE!"},{"$error":"#VALUE!"}]
[null,"Ingresos mensual esperado","-",{"$f":"+D24/12","v":{"$error":"#VALUE!"}},{"$error":"#VALUE!"},{"$error":"#VALUE!"},{"$error":"#VALUE!"},{"$error":"#VALUE!"},{"$error":"#VALUE!"},{"$error":"#VALUE!"},{"$error":"#VALUE!"},{"$error":"#VALUE!"},{"$error":"#VALUE!"},{"$error":"#VALUE!"},{"$error":"#VALUE!"},{"$error":"#VALUE!"},{"$error":"#VALUE!"},{"$error":"#VALUE!"}]
[null,"Utilidad",null,{"$f":"+D24-D20","v":{"$error":"#VALUE!"}},{"$f":"+E24-E20","v":{"$error":"#VALUE!"}},{"$f":"+F24-F20","v":{"$error":"#VALUE!"}},{"$error":"#VALUE!"},{"$error":"#VALUE!"},{"$error":"#VALUE!"},{"$error":"#VALUE!"},{"$error":"#VALUE!"},{"$error":"#VALUE!"},{"$error":"#VALUE!"},{"$error":"#VALUE!"},{"$error":"#VALUE!"},{"$error":"#VALUE!"},{"$error":"#VALUE!"},{"$error":"#VALUE!"}]
[]
[]
[]
[]
[]
[]
[]
[]
[]
[]
[]
[]
[]
[]
[]
[]
[]
[]
[]
[]
[]
[]
[]
[]
[]
[]
[]
[]
[]
[]
[]
[]
[]
[]
[]
[]
[]
[]
[]
[]
[]
[]
[]
[]
[]
[]
[]
[]
["Acuse de responsabilidad: La información contenida en esta comunicación no constituye una herramienta oficial de cálculo de emisiones de GEI reportable como estándar de ningún tipo; Climate Bonds Iniciative y Ambire Global (el consorcio) actuan como consultores/desarrolladores de la herramienta, respectivamente. Los enlaces a sitios web externos son sólo para fines informativos. El consorcio no acepta ninguna responsabilidad por el contenido de sitios web externos. El consorcio no acepta responsabilidad de ningún tipo, por cualquier decisión de: modificación de operación, rutas de disposición final o recorversión de procesos que un individuo u organización realice, ni por cualquier inversión realizada por terceros en nombre de un individuo u organización, basada total o parcialmente en cualquier información contenida en esta o cualquier otra comunicación pública relacionada de la Mesa de Taxonomía Verde de Colombia o cualquiera de las instituciones que la integran. "]

{"sheet":"Emisiones GEI","index":6,"n_rows":126,"n_cols":17,"rows_kept":126,"cut":false,"hidden":true,"merged":[[113,8,113,10],[118,8,118,10],[123,8,123,10],[7,13,7,14],[7,15,7,17],[28,15,31,17],[28,13,31,14],[33,14,33,16],[38,14,38,16],[43,14,43,16],[48,14,48,16],[88,8,88,10],[93,8,93,10],[98,8,98,10],[103,8,103,10],[108,8,108,10],[68,7,68,8],[7,9,7,11],[7,7,7,8],[19,8,19,10],[24,8,24,10],[14,8,14,10],[68,9,68,11],[49,8,49,10],[54,8,54,10],[59,8,59,10],[64,8,64,10],[24,3,24,4],[36,3,36,4],[30,3,30,4],[54,3,54,4],[9,14,9,16],[14,14,14,16],[19,14,19,16],[24,14,24,16],[44,8,44,10],[9,8,9,10],[39,8,39,10],[1,3,1,18],[70,8,70,10],[15,2,17,5],[60,3,60,4],[5,7,5,11],[5,13,5,17],[48,3,48,4],[5,1,5,5],[7,2,7,5],[8,3,8,4],[42,3,42,4],[1,1,1,2],[39,2,41,5],[29,8,29,10],[34,8,34,10],[18,3,18,4]]}
[]
[null,null,null,"ANÁLISIS DE EMISIONES DE GEI POR TRANSPORTE, TRATAMIENTO O DISPOSICIÓN FINAL DE RESIDUOS ORGÁNICOS GENERADOS EN LAS PLAZAS DE MERCADO DE COLOMBIA A TRAVÉS DE BIODIGESTORES"]
[]
[null,null,"Sección I. Emisiones de GEI Linea base: transporte",null,null,null,null,null,"Sección II. Emisiones de GEI Linea base: tratamiento/disposición final externo",null,null,null,null,null,"Sección III. Emisiones de GEI proyecto: Biodigestor in situ"]
[]
[null,"CÁLCULO DE EMISIONES EQUIVALENTES DE GEI DEL TRANSPORTE DE RESIDUOS ORGÁNICOS EN EL ESCENARIO DE LINEA BASE",null,null,null,null,null,"CÁLCULO DE EMISIONES EQUIVALENTES DE GEI DEL TRATAMIENTO/DISPOSICIÓN FINAL EN LINEA BASE",null,null,null,null,null,"CÁLCULO DE EMISIONES EQUIVALENTES DE GEI DEL TRATAMIENTO CON BIODIGESTOR IN SITU (ESCENARIO PROYECTO)"]
[]
[null,null,"ESCENARIO I. Emisiones equivalentes de GEI relacionadas al transporte de residuos al sitio de tratamiento/disposición final (LINEA BASE) a partir de supuestos de cálculo (el usuario no conoce los datos de consumo del vehículo) se asume tipo y vólumen de combustible diésel B2 para vehículo de carga pesada de 2 ejes con tránsito por terreno ondulado:",null,null,null,null,"ESCENARIO I. RESIDUOS ORGÁNICOS MIXTOS GENERALES, SIN SEPARACIÓN EN LA FUENTE POR TIPO DE ORGÁNICO",null,"FUENTE: EPA (2024), IPCC (2006)",null,null,null,"ESCENARIO I. RESIDUOS ORGÁNICOS MIXTOS GENERALES, SIN SEPARACIÓN EN LA FUENTE POR TIPO DE ORGÁNICO",null,"FUENTE: IPCC (2006)"]
[null,null,"A. DIÉSEL B2","FUENTE: UPME (2016); EPA (2024), UPME (2020)",null,null,null,"Disposición final en relleno sanitario","RELLENO SANITARIO",null,null,null,null,"Tratamiento via digestión anaerobica","DIGESTIÓN ANAERÓBICA"]
[null,null,null,"   ",null,null,null,null,"A1. Emisiones relacionadas al escenario base: disposición de residuos orgánicos en relleno sanitario con dato de residuos dado por día y frecuencia de recolección",null,null,null,null,null,"A1. Emisiones relacionadas al escenario base: tratamiento biológico de residuos orgánicos a través de DA con dato de residuos dado por día y frecuencia de recolección"]
[null,null,"Por día:",{"$f":"((('FE y conversiones'!H24)*(('HC_RO_Valorización Ambiental'!D53*'FE y conversiones'!C9)/('FE y conversiones'!H18)))+(('FE y conversiones'!H25)*(('HC_RO_Valorización Ambiental'!D53*'FE y conversiones'!C10)/('FE y conversiones'!H18)))+(('FE y conversiones'!H26)*(('HC_RO_Valorización Ambiental'!D53*'FE y conversiones'!C11)/('FE y conversiones'!H18))))","v":0},"kg CO2e/día",null,null,null,"Cada dia:",{"$f":"IF(OR('HC_RO_Valorización Ambiental'!E39=\"kg/día\",'HC_RO_Valorización Ambiental'!E39=\"t/día\"),'HC_RO_Valorización Ambiental'!D39*'FE y conversiones'!C22,0)","v":0},{"$f":"IF('HC_RO_Valorización Ambiental'!E39=\"kg/día\",\"kg CO2e/día\",\"t CO2e/día\")","v":"t CO2e/día"},null,null,null,"Cada dia:",{"$f":"IF(OR('HC_RO_Valorización Ambiental'!E39=\"kg/día\",'HC_RO_Valorización Ambiental'!E39=\"t/día\"),(('HC_RO_Valorización Ambiental'!D39*('FE y conversiones'!C27/'FE y conversiones'!H12))+('HC_RO_Valorización Ambiental'!D39*('FE y conversiones'!C29/'FE y conversiones'!H12))),0)","v":0},{"$f":"IF('HC_RO_Valorización Ambiental'!E39=\"kg/día\",\"kg CO2e/día\",\"t CO2e/día\")","v":"t CO2e/día"}]
[null,null,"Cada semana:",{"$f":"D11*('HC_RO_Valorización Ambiental'!D48)","v":{"$error":"#VALUE!"}},"kg CO2e/semana",null,null,null,"Cada año:",{"$f":"J11*'FE y conversiones'!H8","v":0},{"$f":"IF('HC_RO_Valorización Ambiental'!E39=\"kg/día\",\"kg CO2e/año\",\"t CO2e/año\")","v":"t CO2e/año"},null,null,null,"Cada año:",{"$f":"J51*'FE y conversiones'!H8","v":0},{"$f":"IF('HC_RO_Valorización Ambiental'!E39=\"kg/día\",\"kg CO2e/año\",\"t CO2e/año\")","v":"t CO2e/año"}]
[null,null,"Cada año:",{"$f":"D12*('FE y conversiones'!H9)","v":{"$error":"#VALUE!"}},"kg CO2e/año",null,null,null,"Emisiones equivalentes anuales de residuos orgánicos en relleno sanitario ",{"$f":"IF('HC_RO_Valorización Ambiental'!E39=\"kg/día\",J12*'FE y conversiones'!H11,J12)","v":0},"t CO2e/año",null,null,null,"Emisiones equivalentes anuales de residuos orgánicos a través de digestión anaeróbica",{"$f":"IF('HC_RO_Valorización Ambiental'!E39=\"kg/día\",J52*'FE y conversiones'!H11,J52)","v":0},"t CO2e/año"]
[null,null,"Emisiones equivalentes anuales de GEI de transporte de residuos a tratamiento/disposición final con vehículo de 2 ejes de diésel B2",{"$f":"D13*'FE y conversiones'!H11","v":{"$error":"#VALUE!"}},"t CO2e/año"]
[null,null,null,null,null,null,null,null,"A2. Emisiones relacionadas al escenario base: disposición de residuos orgánicos en relleno sanitario con dato de residuos dado por semana",null,null,null,null,null,"A2. Emisiones relacionadas al escenario base: tratamiento biológico de residuos orgánicos a través de DA con dato de residuos dado por semana"]
[null,null,"ESCENARIO II. Emisiones equivalentes de GEI relacionadas al transporte de residuos al sitio de tratamiento/disposición final (LINEA BASE) a partir de supuestos de cálculo (el usuario conoce el tipo de combustible pero no el volumen de consumo del vehículo de transporte) con supuesto de cálculo de vehículo de carga pesada de 2 ejes, con tránsito por terreno ondulado:",null,null,null,null,null,"Cada semana:",{"$f":"IF(OR('HC_RO_Valorización Ambiental'!E39=\"kg/semana\",'HC_RO_Valorización Ambiental'!E39=\"t/semana\"),'HC_RO_Valorización Ambiental'!D39*'FE y conversiones'!C22,0)","v":0},{"$f":"IF('HC_RO_Valorización Ambiental'!E39=\"kg/semana\",\"kg CO2e/semana\",\"t CO2e/semana\")","v":"t CO2e/semana"},null,null,null,"Cada semana:",{"$f":"IF(OR('HC_RO_Valorización Ambiental'!E39=\"kg/semana\",'HC_RO_Valorización Ambiental'!E39=\"t/semana\"),(('HC_RO_Valorización Ambiental'!D39*('FE y conversiones'!C27/'FE y conversiones'!H12))+('HC_RO_Valorización Ambiental'!D39*('FE y conversiones'!C29/'FE y conversiones'!H12))),0)","v":0},{"$f":"IF('HC_RO_Valorización Ambiental'!E39=\"kg/semana\",\"kg CO2e/semana\",\"t CO2e/semana\")","v":"t CO2e/semana"}]
[null,null,null,null,null,null,null,null,"Cada año:",{"$f":"'Emisiones GEI'!J16*'FE y conversiones'!H9","v":0},{"$f":"IF('HC_RO_Valorización Ambiental'!E39=\"kg/semana\",\"kg CO2e/año\",\"t CO2e/año\")","v":"t CO2e/año"},null,null,null,"Cada año:",{"$f":"'Emisiones GEI'!J56*'FE y conversiones'!H9","v":0},{"$f":"IF('HC_RO_Valorización Ambiental'!E39=\"kg/semana\",\"kg CO2e/año\",\"t CO2e/año\")","v":"t CO2e/año"}]
[null,null,null,null,null,null,null,null,"Emisiones equivalentes anuales de residuos orgánicos en relleno sanitario ",{"$f":"IF('HC_RO_Valorización Ambiental'!E39=\"kg/semana\",J17*'FE y conversiones'!H11,J17)","v":0},"t CO2e/año",null,null,null,"Emisiones equivalentes anuales de residuos orgánicos a través de digestión anaeróbica",{"$f":"IF('HC_RO_Valorización Ambiental'!E39=\"kg/semana\",J57*'FE y conversiones'!H11,J57)","v":0},"t CO2e/año"]
[null,"Diésel B2","A. DIÉSEL B2","FUENTE: UPME (2016), UPME (2020), EPA (2024)"]
[null,null,"Por día:",{"$f":"((('FE y conversiones'!H24)*(('HC_RO_Valorización Ambiental'!D53*'FE y conversiones'!C9)/('FE y conversiones'!H18)))+(('FE y conversiones'!H25)*(('HC_RO_Valorización Ambiental'!D53*'FE y conversiones'!C10)/('FE y conversiones'!H18)))+(('FE y conversiones'!H26)*(('HC_RO_Valorización Ambiental'!D53*'FE y conversiones'!C11)/('FE y conversiones'!H18))))","v":0},"kg CO2e/día",null,null,null,"A3. Emisiones relacionadas al escenario base: disposición de residuos orgánicos en relleno sanitario con dato de residuos dado por mes",null,null,null,null,null,"A3. Emisiones relacionadas al escenario base: tratamiento biológico de residuos orgánicos a través de DA con dato de residuos dado por mes"]
[null,null,"Cada semana:",{"$f":"D11*('HC_RO_Valorización Ambiental'!D48)","v":{"$error":"#VALUE!"}},"kg CO2e/semana",null,null,null,"Cada mes:",{"$f":"IF(OR('HC_RO_Valorización Ambiental'!E39=\"kg/mes\",'HC_RO_Valorización Ambiental'!E39=\"t/mes\"),'HC_RO_Valorización Ambiental'!D39*'FE y conversiones'!C22,0)","v":0},{"$f":"IF('HC_RO_Valorización Ambiental'!E39=\"kg/mes\",\"kg CO2e/mes\",\"t CO2e/mes\")","v":"t CO2e/mes"},null,null,null,"Cada mes:",{"$f":"IF(OR('HC_RO_Valorización Ambiental'!E39=\"kg/mes\",'HC_RO_Valorización Ambiental'!E39=\"t/mes\"),(('HC_RO_Valorización Ambiental'!D39*('FE y conversiones'!C27/'FE y conversiones'!H12))+('HC_RO_Valorización Ambiental'!D39*('FE y conversiones'!C29/'FE y conversiones'!H12))),0)","v":0},{"$f":"IF('HC_RO_Valorización Ambiental'!E39=\"kg/mes\",\"kg CO2e/mes\",\"t CO2e/mes\")","v":"t CO2e/mes"}]
[null,null,"Cada año:",{"$f":"D12*('FE y conversiones'!H9)","v":{"$error":"#VALUE!"}},"kg CO2e/año",null,null,null,"Cada año:",{"$f":"'Emisiones GEI'!J21*'FE y conversiones'!H10","v":0},{"$f":"IF('HC_RO_Valorización Ambiental'!E39=\"kg/mes\",\"kg CO2e/año\",\"t CO2e/año\")","v":"t CO2e/año"},null,null,null,"Cada año:",{"$f":"'Emisiones GEI'!J61*'FE y conversiones'!H10","v":0},{"$f":"IF('HC_RO_Valorización Ambiental'!E39=\"kg/mes\",\"kg CO2e/año\",\"t CO2e/año\")","v":"t CO2e/año"}]
[null,null,"Emisiones equivalentes anuales de GEI de transporte de residuos a tratamiento/disposición final con vehículo de 2 ejes de diésel B2",{"$f":"D13*'FE y conversiones'!H11","v":{"$error":"#VALUE!"}},"t CO2e/año",null,null,null,"Emisiones equivalentes anuales de residuos orgánicos en relleno sanitario ",{"$f":"IF('HC_RO_Valorización Ambiental'!E39=\"kg/mes\",J22*'FE y conversiones'!H11,J22)","v":0},"t CO2e/año",null,null,null,"Emisiones equivalentes anuales de residuos orgánicos a través de digestión anaeróbica",{"$f":"IF('HC_RO_Valorización Ambiental'!E39=\"kg/mes\",J62*'FE y conversiones'!H11,J62)","v":0},"t CO2e/año"]
[]
[null,"Gasolina E10","B. GASOLINA E10","FUENTE: UPME (2016), UPME (2020), EPA (2024)",null,null,null,null,"A4. Emisiones relacionadas al escenario base: disposición de residuos orgánicos en relleno sanitario con dato de residuos dado por año",null,null,null,null,null,"A4. Emisiones relacionadas al escenario base: tratamiento biológico de residuos orgánicos a través de DA con dato de residuos dado por año"]
[null,null,"Por día:",{"$f":"((('FE y conversiones'!H24)*(('HC_RO_Valorización Ambiental'!D53*'FE y conversiones'!C6)/('FE y conversiones'!H18)))+(('FE y conversiones'!H25)*(('HC_RO_Valorización Ambiental'!D53*'FE y conversiones'!C7)/('FE y conversiones'!H18)))+(('FE y conversiones'!H26)*(('HC_RO_Valorización Ambiental'!D53*'FE y conversiones'!C8)/('FE y conversiones'!H18))))","v":0},"kg CO2e/día",null,null,null,"Cada año:",{"$f":"IF(OR('HC_RO_Valorización Ambiental'!E39=\"kg/año\",'HC_RO_Valorización Ambiental'!E39=\"t/año\"),'HC_RO_Valorización Ambiental'!D39*'FE y conversiones'!C22,0)","v":0},{"$f":"IF('HC_RO_Valorización Ambiental'!E39=\"kg/año\",\"kg CO2e/año\",\"t CO2e/año\")","v":"t CO2e/año"},null,null,null,"Cada año:",{"$f":"IF(OR('HC_RO_Valorización Ambiental'!E39=\"kg/año\",'HC_RO_Valorización Ambiental'!E39=\"t/año\"),(('HC_RO_Valorización Ambiental'!D39*('FE y conversiones'!C27/'FE y conversiones'!H12))+('HC_RO_Valorización Ambiental'!D39*('FE y conversiones'!C29/'FE y conversiones'!H12))),0)","v":0},{"$f":"IF('HC_RO_Valorización Ambiental'!E39=\"kg/año\",\"kg CO2e/año\",\"t CO2e/año\")","v":"t CO2e/año"}]
[null,null,"Cada semana:",{"$f":"D26*('HC_RO_Valorización Ambiental'!D48)","v":{"$error":"#VALUE!"}},"kg CO2e/semana",null,null,null,"Emisiones equivalentes anuales de residuos orgánicos en relleno sanitario ",{"$f":"IF('HC_RO_Valorización Ambiental'!E39=\"kg/año\",J26*'FE y conversiones'!H11,J26)","v":0},"t CO2e/año",null,null,null,"Emisiones equivalentes anuales de residuos orgánicos a través de digestión anaeróbica",{"$f":"IF('HC_RO_Valorización Ambiental'!E39=\"kg/año\",J66*'FE y conversiones'!H11,J66)","v":0},"t CO2e/año"]
[null,null,"Cada año:",{"$f":"D27*('FE y conversiones'!H9)","v":{"$error":"#VALUE!"}},"kg CO2e/año"]
[null,null,"Emisiones equivalentes anuales de GEI de transporte de residuos a tratamiento/disposición final con vehículo de 2 ejes de gasolina E10",{"$f":"D28*'FE y conversiones'!H11","v":{"$error":"#VALUE!"}},"t CO2e/año",null,null,"Tratamiento via compostaje","COMPOSTAJE",null,null,null,null,"ESCENARIO II. RESIDUOS ORGÁNICOS CON SEPARACIÓN EN LA FUENTE POR TIPO DE ORGÁNICO",null,"FUENTE: IPCC (2006)"]
[null,null,null,null,null,null,null,null,"B1. Emisiones relacionadas al escenario base: tratamiento biológico de residuos orgánicos a través de compostaje con dato de residuos dado por día y frecuencia de recolección"]
[null,"Gas natural comprimido (GNC)","C. GAS NATURAL COMPRIMIDO (GNC)","FUENTE: UPME (2016), UPME (2019), EPA (2023)",null,null,null,null,"Cada dia:",{"$f":"IF(OR('HC_RO_Valorización Ambiental'!$E$39=\"kg/día\",'HC_RO_Valorización Ambiental'!$E$39=\"t/día\"),(('HC_RO_Valorización Ambiental'!$D$39*('FE y conversiones'!$C$26/'FE y conversiones'!$H$12))+('HC_RO_Valorización Ambiental'!$D$39*('FE y conversiones'!$C$28/'FE y conversiones'!$H$12))),0)","v":0},{"$f":"IF('HC_RO_Valorización Ambiental'!E39=\"kg/día\",\"kg CO2e/día\",\"t CO2e/día\")","v":"t CO2e/día"}]
[null,null,"Por día:",{"$f":"((('FE y conversiones'!H24)*('HC_RO_Valorización Ambiental'!D53*'FE y conversiones'!H20*'FE y conversiones'!C12))+(('FE y conversiones'!H25)*('HC_RO_Valorización Ambiental'!D53*'FE y conversiones'!H20*'FE y conversiones'!C13))+(('FE y conversiones'!H26)*('HC_RO_Valorización Ambiental'!D53*'FE y conversiones'!H20*'FE y conversiones'!C14)))","v":0},"kg CO2e/día",null,null,null,"Cada año:",{"$f":"$J31*'FE y conversiones'!$H$8","v":0},{"$f":"IF('HC_RO_Valorización Ambiental'!E39=\"kg/día\",\"kg CO2e/año\",\"t CO2e/año\")","v":"t CO2e/año"}]
[null,null,"Cada semana:",{"$f":"D32*('HC_RO_Valorización Ambiental'!D48)","v":{"$error":"#VALUE!"}},"kg CO2e/semana",null,null,null,"Emisiones equivalentes anuales de residuos orgánicos a través de compostaje",{"$f":"IF('HC_RO_Valorización Ambiental'!$E39=\"kg/día\",$J32*'FE y conversiones'!$H$11,$J32)","v":0},"t CO2e/año",null,null,"Tratamiento via digestión anaerobica","DIGESTIÓN ANAERÓBICA"]
[null,null,"Cada año:",{"$f":"D33*('FE y conversiones'!H9)","v":{"$error":"#VALUE!"}},"kg CO2e/año",null,null,null,null,null,null,null,null,null,"C1. Emisiones relacionadas al escenario base: tratamiento biológico de residuos orgánicos a través de DA con dato de residuos dado por día y frecuencia de recolección"]
[null,null,"Emisiones equivalentes anuales de GEI de transporte de residuos a tratamiento/disposición final con vehículo de carga pesada con GNC",{"$f":"D34*'FE y conversiones'!H11","v":{"$error":"#VALUE!"}},"t CO2e/año",null,null,null,"B2. Emisiones relacionadas al escenario base: tratamiento biológico de residuos orgánicos a través de compostaje con dato de residuos dado por semana",null,null,null,null,null,"Cada dia:",{"$f":"IF(OR('HC_RO_Valorización Ambiental'!$D$34=\"kg/día\",'HC_RO_Valorización Ambiental'!$D$34=\"t/día\"),((('HC_RO_Valorización Ambiental'!$D$35*('FE y conversiones'!$C$27/'FE y conversiones'!$H$12))+('HC_RO_Valorización Ambiental'!$D$35*('FE y conversiones'!$C$29/'FE y conversiones'!$H$12)))+(('HC_RO_Valorización Ambiental'!$D$36*('FE y conversiones'!$C$27/'FE y conversiones'!$H$12))+('HC_RO_Valorización Ambiental'!$D$36*('FE y conversiones'!$C$29/'FE y conversiones'!$H$12)))+(('HC_RO_Valorización Ambiental'!$D$37*('FE y conversiones'!$C$27/'FE y conversiones'!$H$12))+('HC_RO_Valorización Ambiental'!$D$37*('FE y conversiones'!$C$29/'FE y conversiones'!$H$12)))+(('HC_RO_Valorización Ambiental'!$D$38*('FE y conversiones'!$C$27/'FE y conversiones'!$H$12))+('HC_RO_Valorización Ambiental'!$D$38*('FE y conversiones'!$C$29/'FE y conversiones'!$H$12)))+(('HC_RO_Valorización Ambiental'!$D$39*('FE y conversiones'!$C$27/'FE y conversiones'!$H$12))+('HC_RO_Valorización Ambiental'!$D$39*('FE y conversiones'!$C$29/'FE y conversiones'!$H$12)))),0)","v":0},{"$f":"IF('HC_RO_Valorización Ambiental'!$E$35=\"kg/día\",\"kg CO2e/día\",\"t CO2e/día\")","v":"t CO2e/día"}]
[null,null,null,null,null,null,null,null,"Cada semana:",{"$f":"IF(OR('HC_RO_Valorización Ambiental'!$E39=\"kg/semana\",'HC_RO_Valorización Ambiental'!$E39=\"t/semana\"),(('HC_RO_Valorización Ambiental'!$D39*('FE y conversiones'!$C$26/'FE y conversiones'!$H$12))+('HC_RO_Valorización Ambiental'!$D39*('FE y conversiones'!$C$28/'FE y conversiones'!$H$12))),0)","v":0},{"$f":"IF('HC_RO_Valorización Ambiental'!E39=\"kg/semana\",\"kg CO2e/semana\",\"t CO2e/semana\")","v":"t CO2e/semana"},null,null,null,"Cada año:",{"$f":"$P35*'FE y conversiones'!$H$8","v":0},{"$f":"IF('HC_RO_Valorización Ambiental'!$E$35=\"kg/día\",\"kg CO2e/año\",\"t CO2e/año\")","v":"t CO2e/año"}]
[null,"Eléctrico","D. ELÉCTRICO","FUENTE: UPME (2016)",null,null,null,null,"Cada año:",{"$f":"'Emisiones GEI'!$J36*'FE y conversiones'!$H$9","v":0},{"$f":"IF('HC_RO_Valorización Ambiental'!E39=\"kg/semana\",\"kg CO2e/año\",\"t CO2e/año\")","v":"t CO2e/año"},null,null,null,"Emisiones equivalentes anuales de residuos orgánicos a través de digestión anaeróbica",{"$f":"IF('HC_RO_Valorización Ambiental'!$D$34=\"kg/día\",$P36*'FE y conversiones'!$H$11,$P36)","v":0},"t CO2e/año"]
[null,null,"Emisiones equivalentes totales de GEI de transporte de residuos a tratamiento/disposición final con vehículo eléctrico",0,"t CO2e/año",null,null,null,"Emisiones equivalentes anuales de residuos orgánicos a través de compostaje",{"$f":"IF('HC_RO_Valorización Ambiental'!E39=\"kg/semana\",J37*'FE y conversiones'!H11,J37)","v":0},"t CO2e/año"]
[null,null,null,null,null,null,null,null,null,null,null,null,null,null,"C2. Emisiones relacionadas al escenario base: tratamiento biológico de residuos orgánicos a través de DA con dato de residuos dado por semana"]
[null,null,"ESCENARIO III. Emisiones equivalentes de GEI relacionadas al transporte de residuos al sitio de tratamiento/disposición final (LINEA BASE) a partir de los datos ingresados por el usuario (el usuario conoce el tipo de combustible y el volumen de consumo del vehículo de transporte) con supuesto de cálculo de vehículo de carga pesada de 2 ejes:",null,null,null,null,null,"B3. Emisiones relacionadas al escenario base: tratamiento biológico de residuos orgánicos a través de compostaje con dato de residuos dado por mes",null,null,null,null,null,"Cada semana:",{"$f":"IF(OR('HC_RO_Valorización Ambiental'!$D$34=\"kg/semana\",'HC_RO_Valorización Ambiental'!$D$34=\"t/semana\"),((('HC_RO_Valorización Ambiental'!$D$35*('FE y conversiones'!$C$27/'FE y conversiones'!$H$12))+('HC_RO_Valorización Ambiental'!$D$35*('FE y conversiones'!$C$29/'FE y conversiones'!$H$12)))+(('HC_RO_Valorización Ambiental'!$D$36*('FE y conversiones'!$C$27/'FE y conversiones'!$H$12))+('HC_RO_Valorización Ambiental'!$D$36*('FE y conversiones'!$C$29/'FE y conversiones'!$H$12)))+(('HC_RO_Valorización Ambiental'!$D$37*('FE y conversiones'!$C$27/'FE y conversiones'!$H$12))+('HC_RO_Valorización Ambiental'!$D$37*('FE y conversiones'!$C$29/'FE y conversiones'!$H$12)))+(('HC_RO_Valorización Ambiental'!$D$38*('FE y conversiones'!$C$27/'FE y conversiones'!$H$12))+('HC_RO_Valorización Ambiental'!$D$38*('FE y conversiones'!$C$29/'FE y conversiones'!$H$12)))+(('HC_RO_Valorización Ambiental'!$D$39*('FE y conversiones'!$C$27/'FE y conversiones'!$H$12))+('HC_RO_Valorización Ambiental'!$D$39*('FE y conversiones'!$C$29/'FE y conversiones'!$H$12)))),0)","v":0},{"$f":"IF('HC_RO_Valorización Ambiental'!$E$35=\"kg/semana\",\"kg CO2e/semana\",\"t CO2e/semana\")","v":"t CO2e/semana"}]
[null,null,null,null,null,null,null,null,"Cada mes:",{"$f":"IF(OR('HC_RO_Valorización Ambiental'!$E39=\"kg/mes\",'HC_RO_Valorización Ambiental'!$E39=\"t/mes\"),(('HC_RO_Valorización Ambiental'!$D39*('FE y conversiones'!$C$26/'FE y conversiones'!$H$12))+('HC_RO_Valorización Ambiental'!$D39*('FE y conversiones'!$C$28/'FE y conversiones'!$H$12))),0)","v":0},{"$f":"IF('HC_RO_Valorización Ambiental'!E39=\"kg/mes\",\"kg CO2e/mes\",\"t CO2e/mes\")","v":"t CO2e/mes"},null,null,null,"Cada año:",{"$f":"'Emisiones GEI'!$P40*'FE y conversiones'!$H$9","v":0},{"$f":"IF('HC_RO_Valorización Ambiental'!$E$35=\"kg/semana\",\"kg CO2e/año\",\"t CO2e/año\")","v":"t CO2e/año"}]
[null,null,null,null,null,null,null,null,"Cada año:",{"$f":"'Emisiones GEI'!$J41*'FE y conversiones'!$H$10","v":0},{"$f":"IF('HC_RO_Valorización Ambiental'!E39=\"kg/mes\",\"kg CO2e/año\",\"t CO2e/año\")","v":"t CO2e/año"},null,null,null,"Emisiones equivalentes anuales de residuos orgánicos a través de digestión anaeróbica",{"$f":"IF('HC_RO_Valorización Ambiental'!$D$34=\"kg/semana\",$P41*'FE y conversiones'!$H$11,$P41)","v":0},"t CO2e/año"]
[null,null,"A. DIÉSEL B2","FUENTE: UPME (2016); EPA (2024)",null,null,null,null,"Emisiones equivalentes anuales de residuos orgánicos a través de compostaje",{"$f":"IF('HC_RO_Valorización Ambiental'!$E39=\"kg/mes\",$J42*'FE y conversiones'!$H$11,$J42)","v":0},"t CO2e/año"]
[null,null,"Por día:",{"$f":"(('FE y conversiones'!H24)*('HC_RO_Valorización Ambiental'!D52*'FE y conversiones'!C9))+(('FE y conversiones'!H25)*('HC_RO_Valorización Ambiental'!D52*'FE y conversiones'!C10))+(('FE y conversiones'!H26)*('HC_RO_Valorización Ambiental'!D52*'FE y conversiones'!C11))","v":0},"kg CO2e/día",null,null,null,null,null,null,null,null,null,"C3. Emisiones relacionadas al escenario base: tratamiento biológico de residuos orgánicos a través de DA con dato de residuos dado por mes"]
[null,null,"Cada semana:",{"$f":"D44*('HC_RO_Valorización Ambiental'!D48)","v":{"$error":"#VALUE!"}},"kg CO2e/semana",null,null,null,"B4. Emisiones relacionadas al escenario base: tratamiento biológico de residuos orgánicos a través de compostaje con dato de residuos dado por año",null,null,null,null,null,"Cada mes:",{"$f":"IF(OR('HC_RO_Valorización Ambiental'!$D$34=\"kg/mes\",'HC_RO_Valorización Ambiental'!$D$34=\"t/mes\"),((('HC_RO_Valorización Ambiental'!$D$35*('FE y conversiones'!$C$27/'FE y conversiones'!$H$12))+('HC_RO_Valorización Ambiental'!$D$35*('FE y conversiones'!$C$29/'FE y conversiones'!$H$12)))+(('HC_RO_Valorización Ambiental'!$D$36*('FE y conversiones'!$C$27/'FE y conversiones'!$H$12))+('HC_RO_Valorización Ambiental'!$D$36*('FE y conversiones'!$C$29/'FE y conversiones'!$H$12)))+(('HC_RO_Valorización Ambiental'!$D$37*('FE y conversiones'!$C$27/'FE y conversiones'!$H$12))+('HC_RO_Valorización Ambiental'!$D$37*('FE y conversiones'!$C$29/'FE y conversiones'!$H$12)))+(('HC_RO_Valorización Ambiental'!$D$38*('FE y conversiones'!$C$27/'FE y conversiones'!$H$12))+('HC_RO_Valorización Ambiental'!$D$38*('FE y conversiones'!$C$29/'FE y conversiones'!$H$12)))+(('HC_RO_Valorización Ambiental'!$D$39*('FE y conversiones'!$C$27/'FE y conversiones'!$H$12))+('HC_RO_Valorización Ambiental'!$D$39*('FE y conversiones'!$C$29/'FE y conversiones'!$H$12)))),0)","v":0},{"$f":"IF('HC_RO_Valorización Ambiental'!$E$35=\"kg/mes\",\"kg CO2e/mes\",\"t CO2e/mes\")","v":"t CO2e/mes"}]
[null,null,"Cada año:",{"$f":"D45*('FE y conversiones'!H9)","v":{"$error":"#VALUE!"}},"kg CO2e/año",null,null,null,"Cada año:",{"$f":"IF(OR('HC_RO_Valorización Ambiental'!$E39=\"kg/año\",'HC_RO_Valorización Ambiental'!$E39=\"t/año\"),(('HC_RO_Valorización Ambiental'!$D39*('FE y conversiones'!$C$26/'FE y conversiones'!$H$12))+('HC_RO_Valorización Ambiental'!$D39*('FE y conversiones'!$C$28/'FE y conversiones'!$H$12))),0)","v":0},{"$f":"IF('HC_RO_Valorización Ambiental'!E39=\"kg/año\",\"kg CO2e/año\",\"t CO2e/año\")","v":"t CO2e/año"},null,null,null,"Cada año:",{"$f":"'Emisiones GEI'!$P45*'FE y conversiones'!$H$10","v":0},{"$f":"IF('HC_RO_Valorización Ambiental'!$E$35=\"kg/mes\",\"kg CO2e/año\",\"t CO2e/año\")","v":"t CO2e/año"}]
[null,null,"Emisiones equivalentes anuales de GEI de transporte de residuos a tratamiento/disposición final con vehículo de 2 ejes de diésel B2",{"$f":"D46*'FE y conversiones'!H11","v":{"$error":"#VALUE!"}},"t CO2e/año",null,null,null,"Emisiones equivalentes anuales de residuos orgánicos a través de compostaje",{"$f":"IF('HC_RO_Valorización Ambiental'!$E39=\"kg/año\",$J46*'FE y conversiones'!$H$11,$J46)","v":0},"t CO2e/año",null,null,null,"Emisiones equivalentes anuales de residuos orgánicos a través de digestión anaeróbica",{"$f":"IF('HC_RO_Valorización Ambiental'!$D$34=\"kg/mes\",$P46*'FE y conversiones'!$H$11,$P46)","v":0},"t CO2e/año"]
[]
[null,null,"B. GASOLINA E10","FUENTE: UPME (2016); EPA (2024)",null,null,null,"Tratamiento via digestión anaerobica","DIGESTIÓN ANAERÓBICA",null,null,null,null,null,"C4. Emisiones relacionadas al escenario base: tratamiento biológico de residuos orgánicos a través de DA con dato de residuos dado por año"]
[null,null,"Por día:",{"$f":"(('FE y conversiones'!H24)*('HC_RO_Valorización Ambiental'!D52*'FE y conversiones'!C6))+(('FE y conversiones'!H25)*('HC_RO_Valorización Ambiental'!D52*'FE y conversiones'!C7))+(('FE y conversiones'!H26)*('HC_RO_Valorización Ambiental'!D52*'FE y conversiones'!C8))","v":0},"kg CO2e/día",null,null,null,"C1. Emisiones relacionadas al escenario base: tratamiento biológico de residuos orgánicos a través de DA con dato de residuos dado por día y frecuencia de recolección",null,null,null,null,null,"Cada año:",{"$f":"IF(OR('HC_RO_Valorización Ambiental'!$D$34=\"kg/año\",'HC_RO_Valorización Ambiental'!$D$34=\"t/año\"),((('HC_RO_Valorización Ambiental'!$D$35*('FE y conversiones'!$C$27/'FE y conversiones'!$H$12))+('HC_RO_Valorización Ambiental'!$D$35*('FE y conversiones'!$C$29/'FE y conversiones'!$H$12)))+(('HC_RO_Valorización Ambiental'!$D$36*('FE y conversiones'!$C$27/'FE y conversiones'!$H$12))+('HC_RO_Valorización Ambiental'!$D$36*('FE y conversiones'!$C$29/'FE y conversiones'!$H$12)))+(('HC_RO_Valorización Ambiental'!$D$37*('FE y conversiones'!$C$27/'FE y conversiones'!$H$12))+('HC_RO_Valorización Ambiental'!$D$37*('FE y conversiones'!$C$29/'FE y conversiones'!$H$12)))+(('HC_RO_Valorización Ambiental'!$D$38*('FE y conversiones'!$C$27/'FE y conversiones'!$H$12))+('HC_RO_Valorización Ambiental'!$D$38*('FE y conversiones'!$C$29/'FE y conversiones'!$H$12)))+(('HC_RO_Valorización Ambiental'!$D$39*('FE y conversiones'!$C$27/'FE y conversiones'!$H$12))+('HC_RO_Valorización Ambiental'!$D$39*('FE y conversiones'!$C$29/'FE y conversiones'!$H$12)))),0)","v":0},{"$f":"IF('HC_RO_Valorización Ambiental'!$E$35=\"kg/año\",\"kg CO2e/año\",\"t CO2e/año\")","v":"t CO2e/año"}]
[null,null,"Cada semana:",{"$f":"D50*('HC_RO_Valorización Ambiental'!D48)","v":{"$error":"#VALUE!"}},"kg CO2e/semana",null,null,null,"Cada dia:",{"$f":"IF(OR('HC_RO_Valorización Ambiental'!E39=\"kg/día\",'HC_RO_Valorización Ambiental'!E39=\"t/día\"),(('HC_RO_Valorización Ambiental'!D39*('FE y conversiones'!C27/'FE y conversiones'!H12))+('HC_RO_Valorización Ambiental'!D39*('FE y conversiones'!C29/'FE y conversiones'!H12))),0)","v":0},{"$f":"IF('HC_RO_Valorización Ambiental'!E39=\"kg/día\",\"kg CO2e/día\",\"t CO2e/día\")","v":"t CO2e/día"},null,null,null,"Emisiones equivalentes anuales de residuos orgánicos a través de digestión anaeróbica",{"$f":"IF('HC_RO_Valorización Ambiental'!$D$34=\"kg/año\",$P50*'FE y conversiones'!$H$11,$P50)","v":0},"t CO2e/año"]
[null,null,"Cada año:",{"$f":"D51*('FE y conversiones'!H9)","v":{"$error":"#VALUE!"}},"kg CO2e/año",null,null,null,"Cada año:",{"$f":"J51*'FE y conversiones'!H8","v":0},{"$f":"IF('HC_RO_Valorización Ambiental'!E39=\"kg/día\",\"kg CO2e/año\",\"t CO2e/año\")","v":"t CO2e/año"}]
[null,null,"Emisiones equivalentes anuales de GEI de transporte de residuos a tratamiento/disposición final con vehículo de 2 ejes de gasolina E10",{"$f":"D52*'FE y conversiones'!H11","v":{"$error":"#VALUE!"}},"t CO2e/año",null,null,null,"Emisiones equivalentes anuales de residuos orgánicos a través de digestión anaeróbica",{"$f":"IF('HC_RO_Valorización Ambiental'!E39=\"kg/día\",J52*'FE y conversiones'!H11,J52)","v":0},"t CO2e/año"]
[]
[null,null,"C. GAS NATURAL COMPRIMIDO (GNC)","FUENTE: UPME (2016), EPA (2023)",null,null,null,null,"C2. Emisiones relacionadas al escenario base: tratamiento biológico de residuos orgánicos a través de DA con dato de residuos dado por semana"]
[null,null,"Por día:",{"$f":"((('FE y conversiones'!H24)*('HC_RO_Valorización Ambiental'!D52*'FE y conversiones'!C12))+(('FE y conversiones'!H25)*('HC_RO_Valorización Ambiental'!D53*'FE y conversiones'!C13))+(('FE y conversiones'!H26)*('HC_RO_Valorización Ambiental'!D53*'FE y conversiones'!C14)))","v":0},"kg CO2e/día",null,null,null,"Cada semana:",{"$f":"IF(OR('HC_RO_Valorización Ambiental'!E39=\"kg/semana\",'HC_RO_Valorización Ambiental'!E39=\"t/semana\"),(('HC_RO_Valorización Ambiental'!D39*('FE y conversiones'!C27/'FE y conversiones'!H12))+('HC_RO_Valorización Ambiental'!D39*('FE y conversiones'!C29/'FE y conversiones'!H12))),0)","v":0},{"$f":"IF('HC_RO_Valorización Ambiental'!E39=\"kg/semana\",\"kg CO2e/semana\",\"t CO2e/semana\")","v":"t CO2e/semana"}]
[null,null,"Cada semana:",{"$f":"D56*('HC_RO_Valorización Ambiental'!D48)","v":{"$error":"#VALUE!"}},"kg CO2e/semana",null,null,null,"Cada año:",{"$f":"'Emisiones GEI'!J56*'FE y conversiones'!H9","v":0},{"$f":"IF('HC_RO_Valorización Ambiental'!E39=\"kg/semana\",\"kg CO2e/año\",\"t CO2e/año\")","v":"t CO2e/año"}]
[null,null,"Cada año:",{"$f":"D57*('FE y conversiones'!H9)","v":{"$error":"#VALUE!"}},"kg CO2e/año",null,null,null,"Emisiones equivalentes anuales de residuos orgánicos a través de digestión anaeróbica",{"$f":"IF('HC_RO_Valorización Ambiental'!E39=\"kg/semana\",J57*'FE y conversiones'!H11,J57)","v":0},"t CO2e/año"]
[null,null,"Emisiones equivalentes anuales de GEI de transporte de residuos a tratamiento/disposición final con vehículo de carga pesada con GNC",{"$f":"D58*'FE y conversiones'!H11","v":{"$error":"#VALUE!"}},"t CO2e/año"]
[null,null,null,null,null,null,null,null,"C3. Emisiones relacionadas al escenario base: tratamiento biológico de residuos orgánicos a través de DA con dato de residuos dado por mes"]
[null,null,"D. ELÉCTRICO","FUENTE: UPME (2016)",null,null,null,null,"Cada mes:",{"$f":"IF(OR('HC_RO_Valorización Ambiental'!E39=\"kg/mes\",'HC_RO_Valorización Ambiental'!E39=\"t/mes\"),(('HC_RO_Valorización Ambiental'!D39*('FE y conversiones'!C27/'FE y conversiones'!H12))+('HC_RO_Valorización Ambiental'!D39*('FE y conversiones'!C29/'FE y conversiones'!H12))),0)","v":0},{"$f":"IF('HC_RO_Valorización Ambiental'!E39=\"kg/mes\",\"kg CO2e/mes\",\"t CO2e/mes\")","v":"t CO2e/mes"}]
[null,null,"Emisiones equivalentes totales de GEI de transporte de residuos a tratamiento/disposición final con vehículo eléctrico",0,"t CO2e/año",null,null,null,"Cada año:",{"$f":"'Emisiones GEI'!J61*'FE y conversiones'!H10","v":0},{"$f":"IF('HC_RO_Valorización Ambiental'!E39=\"kg/mes\",\"kg CO2e/año\",\"t CO2e/año\")","v":"t CO2e/año"}]
[null,null,null,null,null,null,null,null,"Emisiones equivalentes anuales de residuos orgánicos a través de digestión anaeróbica",{"$f":"IF('HC_RO_Valorización Ambiental'!E39=\"kg/mes\",J62*'FE y conversiones'!H11,J62)","v":0},"t CO2e/año"]
[]
[null,null,null,null,null,null,null,null,"C4. Emisiones relacionadas al escenario base: tratamiento biológico de residuos orgánicos a través de DA con dato de residuos dado por año"]
[null,null,null,null,null,null,null,null,"Cada año:",{"$f":"IF(OR('HC_RO_Valorización Ambiental'!E39=\"kg/año\",'HC_RO_Valorización Ambiental'!E39=\"t/año\"),(('HC_RO_Valorización Ambiental'!D39*('FE y conversiones'!C27/'FE y conversiones'!H12))+('HC_RO_Valorización Ambiental'!D39*('FE y conversiones'!C29/'FE y conversiones'!H12))),0)","v":0},{"$f":"IF('HC_RO_Valorización Ambiental'!E39=\"kg/año\",\"kg CO2e/año\",\"t CO2e/año\")","v":"t CO2e/año"}]
[null,null,null,null,null,null,null,null,"Emisiones equivalentes anuales de residuos orgánicos a través de digestión anaeróbica",{"$f":"IF('HC_RO_Valorización Ambiental'!E39=\"kg/año\",J66*'FE y conversiones'!H11,J66)","v":0},"t CO2e/año"]
[]
[null,null,null,null,null,null,null,"ESCENARIO II. RESIDUOS ORGÁNICOS CON SEPARACIÓN EN LA FUENTE POR TIPO DE ORGÁNICO",null,"FUENTE: EPA (2024)"]
[null,null,null,null,null,null,null,"Disposición final en relleno sanitario","RELLENO SANITARIO"]
[null,null,null,null,null,null,null,null,"A. Emisiones relacionadas al escenario base: disposición final de residuos orgánicos en relleno sanitario con dato de residuos dado por día y frecuencia de recolección"]
[]
[null,null,null,null,null,null,null,null,"Cada dia:",{"$f":"IF(OR('HC_RO_Valorización Ambiental'!D34=\"kg/día\",'HC_RO_Valorización Ambiental'!D34=\"t/día\"),(('HC_RO_Valorización Ambiental'!D35*'FE y conversiones'!C19)+('HC_RO_Valorización Ambiental'!D36*'FE y conversiones'!C20)+('HC_RO_Valorización Ambiental'!D37*'FE y conversiones'!C19)+('HC_RO_Valorización Ambiental'!D38*'FE y conversiones'!C21)+('HC_RO_Valorización Ambiental'!D39*'FE y conversiones'!C22)),0)","v":0},{"$f":"IF('HC_RO_Valorización Ambiental'!$E35=\"kg/día\",\"kg CO2e/día\",\"t CO2e/día\")","v":"t CO2e/día"}]
[null,null,null,null,null,null,null,null,"Cada año:",{"$f":"$J73*'FE y conversiones'!H8","v":0},{"$f":"IF('HC_RO_Valorización Ambiental'!E35=\"kg/día\",\"kg CO2e/año\",\"t CO2e/año\")","v":"t CO2e/año"}]
[null,null,null,null,null,null,null,null,"Emisiones equivalentes anuales de residuos orgánicos en relleno sanitario ",{"$f":"IF('HC_RO_Valorización Ambiental'!D34=\"kg/día\",J74*'FE y conversiones'!H11,J74)","v":0},"t CO2e/año"]
[null,null,null,null,null,null,null,null,null,null," "]
[null,null,null,null,null,null,null,null,"Cada semana:",{"$f":"IF(OR('HC_RO_Valorización Ambiental'!D34=\"kg/semana\",'HC_RO_Valorización Ambiental'!D34=\"t/semana\"),(('HC_RO_Valorización Ambiental'!D35*'FE y conversiones'!C19)+('HC_RO_Valorización Ambiental'!D36*'FE y conversiones'!C20)+('HC_RO_Valorización Ambiental'!D37*'FE y conversiones'!C19)+('HC_RO_Valorización Ambiental'!D38*'FE y conversiones'!C21)+('HC_RO_Valorización Ambiental'!D39*'FE y conversiones'!C22)),0)","v":0},{"$f":"IF('HC_RO_Valorización Ambiental'!E35=\"kg/semana\",\"kg CO2e/semana\",\"t CO2e/semana\")","v":"t CO2e/semana"}]
[null,null,null,null,null,null,null,null,"Cada año:",{"$f":"J77*'FE y conversiones'!H9","v":0},{"$f":"IF('HC_RO_Valorización Ambiental'!E35=\"kg/semana\",\"kg CO2e/año\",\"t CO2e/año\")","v":"t CO2e/año"}]
[null,null,null,null,null,null,null,null,"Emisiones equivalentes anuales de residuos orgánicos en relleno sanitario ",{"$f":"IF('HC_RO_Valorización Ambiental'!D34=\"kg/semana\",J78*'FE y conversiones'!H11,J78)","v":0},"t CO2e/año"]
[null,null,null,null,null,null,null,null,null,null," "]
[null,null,null,null,null,null,null,null,"Cada mes:",{"$f":"IF(OR('HC_RO_Valorización Ambiental'!D34=\"kg/mes\",'HC_RO_Valorización Ambiental'!D34=\"t/mes\"),(('HC_RO_Valorización Ambiental'!D35*'FE y conversiones'!C19)+('HC_RO_Valorización Ambiental'!D36*'FE y conversiones'!C20)+('HC_RO_Valorización Ambiental'!D37*'FE y conversiones'!C19)+('HC_RO_Valorización Ambiental'!D38*'FE y conversiones'!C21)+('HC_RO_Valorización Ambiental'!D39*'FE y conversiones'!C22)),0)","v":0},{"$f":"IF('HC_RO_Valorización Ambiental'!E35=\"kg/mes\",\"kg CO2e/mes\",\"t CO2e/mes\")","v":"t CO2e/mes"}]
[null,null,null,null,null,null,null,null,"Cada año:",{"$f":"J81*'FE y conversiones'!H10","v":0},{"$f":"IF('HC_RO_Valorización Ambiental'!E35=\"kg/mes\",\"kg CO2e/año\",\"t CO2e/año\")","v":"t CO2e/año"}]
[null,null,null,null,null,null,null,null,"Emisiones equivalentes anuales de residuos orgánicos en relleno sanitario ",{"$f":"IF('HC_RO_Valorización Ambiental'!D34=\"kg/mes\",J82*'FE y conversiones'!H11,J82)","v":0},"t CO2e/año"]
[null,null,null,null,null,null,null,null,null,null," "]
[null,null,null,null,null,null,null,null,"Cada año:",{"$f":"IF(OR('HC_RO_Valorización Ambiental'!D34=\"kg/año\",'HC_RO_Valorización Ambiental'!D34=\"t/año\"),(('HC_RO_Valorización Ambiental'!D35*'FE y conversiones'!C19)+('HC_RO_Valorización Ambiental'!D36*'FE y conversiones'!C20)+('HC_RO_Valorización Ambiental'!D37*'FE y conversiones'!C19)+('HC_RO_Valorización Ambiental'!D38*'FE y conversiones'!C21)+('HC_RO_Valorización Ambiental'!D39*'FE y conversiones'!C22)),0)","v":0},{"$f":"IF('HC_RO_Valorización Ambiental'!E35=\"kg/año\",\"kg CO2e/año\",\"t CO2e/año\")","v":"t CO2e/año"}]
[null,null,null,null,null,null,null,null,"Emisiones equivalentes anuales de residuos orgánicos en relleno sanitario ",{"$f":"IF('HC_RO_Valorización Ambiental'!D34=\"kg/año\",J85*'FE y conversiones'!H11,J85)","v":0},"t CO2e/año"]
[null,null,null,null,null,null,null,null,null,null," "]
[null,null,null,null,null,null,null,"Tratamiento via compostaje","COMPOSTAJE"]
[null,null,null,null,null,null,null,null,"B1. Emisiones relacionadas al escenario base: tratamiento biológico de residuos orgánicos a través de compostaje con dato de residuos dado por día y frecuencia de recolección"]
[null,null,null,null,null,null,null,null,"Cada dia:",{"$f":"IF(OR('HC_RO_Valorización Ambiental'!$D$34=\"kg/día\",'HC_RO_Valorización Ambiental'!$D$34=\"t/día\"),((('HC_RO_Valorización Ambiental'!$D$35*('FE y conversiones'!$C$26/'FE y conversiones'!$H$12))+('HC_RO_Valorización Ambiental'!$D$35*('FE y conversiones'!$C$28/'FE y conversiones'!$H$12)))+(('HC_RO_Valorización Ambiental'!$D$36*('FE y conversiones'!$C$26/'FE y conversiones'!$H$12))+('HC_RO_Valorización Ambiental'!$D$36*('FE y conversiones'!$C$28/'FE y conversiones'!$H$12)))+(('HC_RO_Valorización Ambiental'!$D$37*('FE y conversiones'!$C$26/'FE y conversiones'!$H$12))+('HC_RO_Valorización Ambiental'!$D$37*('FE y conversiones'!$C$28/'FE y conversiones'!$H$12)))+(('HC_RO_Valorización Ambiental'!$D$38*('FE y conversiones'!$C$26/'FE y conversiones'!$H$12))+('HC_RO_Valorización Ambiental'!$D$38*('FE y conversiones'!$C$28/'FE y conversiones'!$H$12)))+(('HC_RO_Valorización Ambiental'!$D$39*('FE y conversiones'!$C$26/'FE y conversiones'!$H$12))+('HC_RO_Valorización Ambiental'!$D$39*('FE y conversiones'!$C$28/'FE y conversiones'!$H$12)))),0)","v":0},{"$f":"IF('HC_RO_Valorización Ambiental'!$E$35=\"kg/día\",\"kg CO2e/día\",\"t CO2e/día\")","v":"t CO2e/día"}]
[null,null,null,null,null,null,null,null,"Cada año:",{"$f":"$J90*'FE y conversiones'!$H$8","v":0},{"$f":"IF('HC_RO_Valorización Ambiental'!$E$35=\"kg/día\",\"kg CO2e/año\",\"t CO2e/año\")","v":"t CO2e/año"}]
[null,null,null,null,null,null,null,null,"Emisiones equivalentes anuales de residuos orgánicos a través de compostaje",{"$f":"IF('HC_RO_Valorización Ambiental'!$D$34=\"kg/día\",$J91*'FE y conversiones'!$H$11,$J91)","v":0},"t CO2e/año"]
[]
[null,null,null,null,null,null,null,null,"B2. Emisiones relacionadas al escenario base: tratamiento biológico de residuos orgánicos a través de compostaje con dato de residuos dado por semana"]
[null,null,null,null,null,null,null,null,"Cada semana:",{"$f":"IF(OR('HC_RO_Valorización Ambiental'!$D$34=\"kg/semana\",'HC_RO_Valorización Ambiental'!$D$34=\"t/semana\"),((('HC_RO_Valorización Ambiental'!$D$35*('FE y conversiones'!$C$26/'FE y conversiones'!$H$12))+('HC_RO_Valorización Ambiental'!$D$35*('FE y conversiones'!$C$28/'FE y conversiones'!$H$12)))+(('HC_RO_Valorización Ambiental'!$D$36*('FE y conversiones'!$C$26/'FE y conversiones'!$H$12))+('HC_RO_Valorización Ambiental'!$D$36*('FE y conversiones'!$C$28/'FE y conversiones'!$H$12)))+(('HC_RO_Valorización Ambiental'!$D$37*('FE y conversiones'!$C$26/'FE y conversiones'!$H$12))+('HC_RO_Valorización Ambiental'!$D$37*('FE y conversiones'!$C$28/'FE y conversiones'!$H$12)))+(('HC_RO_Valorización Ambiental'!$D$38*('FE y conversiones'!$C$26/'FE y conversiones'!$H$12))+('HC_RO_Valorización Ambiental'!$D$38*('FE y conversiones'!$C$28/'FE y conversiones'!$H$12)))+(('HC_RO_Valorización Ambiental'!$D$39*('FE y conversiones'!$C$26/'FE y conversiones'!$H$12))+('HC_RO_Valorización Ambiental'!$D$39*('FE y conversiones'!$C$28/'FE y conversiones'!$H$12)))),0)","v":0},{"$f":"IF('HC_RO_Valorización Ambiental'!$E$35=\"kg/semana\",\"kg CO2e/semana\",\"t CO2e/semana\")","v":"t CO2e/semana"}]
[null,null,null,null,null,null,null,null,"Cada año:",{"$f":"'Emisiones GEI'!$J95*'FE y conversiones'!$H$9","v":0},{"$f":"IF('HC_RO_Valorización Ambiental'!$E$35=\"kg/semana\",\"kg CO2e/año\",\"t CO2e/año\")","v":"t CO2e/año"}]
[null,null,null,null,null,null,null,null,"Emisiones equivalentes anuales de residuos orgánicos a través de compostaje",{"$f":"IF('HC_RO_Valorización Ambiental'!$D$34=\"kg/semana\",$J96*'FE y conversiones'!$H$11,$J96)","v":0},"t CO2e/año"]
[]
[null,null,null,null,null,null,null,null,"B3. Emisiones relacionadas al escenario base: tratamiento biológico de residuos orgánicos a través de compostaje con dato de residuos dado por mes"]
[null,null,null,null,null,null,null,null,"Cada mes:",{"$f":"IF(OR('HC_RO_Valorización Ambiental'!$D$34=\"kg/mes\",'HC_RO_Valorización Ambiental'!$D$34=\"t/mes\"),((('HC_RO_Valorización Ambiental'!$D$35*('FE y conversiones'!$C$26/'FE y conversiones'!$H$12))+('HC_RO_Valorización Ambiental'!$D$35*('FE y conversiones'!$C$28/'FE y conversiones'!$H$12)))+(('HC_RO_Valorización Ambiental'!$D$36*('FE y conversiones'!$C$26/'FE y conversiones'!$H$12))+('HC_RO_Valorización Ambiental'!$D$36*('FE y conversiones'!$C$28/'FE y conversiones'!$H$12)))+(('HC_RO_Valorización Ambiental'!$D$37*('FE y conversiones'!$C$26/'FE y conversiones'!$H$12))+('HC_RO_Valorización Ambiental'!$D$37*('FE y conversiones'!$C$28/'FE y conversiones'!$H$12)))+(('HC_RO_Valorización Ambiental'!$D$38*('FE y conversiones'!$C$26/'FE y conversiones'!$H$12))+('HC_RO_Valorización Ambiental'!$D$38*('FE y conversiones'!$C$28/'FE y conversiones'!$H$12)))+(('HC_RO_Valorización Ambiental'!$D$39*('FE y conversiones'!$C$26/'FE y conversiones'!$H$12))+('HC_RO_Valorización Ambiental'!$D$39*('FE y conversiones'!$C$28/'FE y conversiones'!$H$12)))),0)","v":0},{"$f":"IF('HC_RO_Valorización Ambiental'!$E$35=\"kg/mes\",\"kg CO2e/mes\",\"t CO2e/mes\")","v":"t CO2e/mes"}]
[null,null,null,null,null,null,null,null,"Cada año:",{"$f":"'Emisiones GEI'!$J100*'FE y conversiones'!$H$10","v":0},{"$f":"IF('HC_RO_Valorización Ambiental'!$E$35=\"kg/mes\",\"kg CO2e/año\",\"t CO2e/año\")","v":"t CO2e/año"}]
[null,null,null,null,null,null,null,null,"Emisiones equivalentes anuales de residuos orgánicos a través de compostaje",{"$f":"IF('HC_RO_Valorización Ambiental'!$D$34=\"kg/mes\",$J101*'FE y conversiones'!$H$11,$J101)","v":0},"t CO2e/año"]
[]
[null,null,null,null,null,null,null,null,"B4. Emisiones relacionadas al escenario base: tratamiento biológico de residuos orgánicos a través de compostaje con dato de residuos dado por año"]
[null,null,null,null,null,null,null,null,"Cada año:",{"$f":"IF(OR('HC_RO_Valorización Ambiental'!$D$34=\"kg/año\",'HC_RO_Valorización Ambiental'!$D$34=\"t/año\"),((('HC_RO_Valorización Ambiental'!$D$35*('FE y conversiones'!$C$26/'FE y conversiones'!$H$12))+('HC_RO_Valorización Ambiental'!$D$35*('FE y conversiones'!$C$28/'FE y conversiones'!$H$12)))+(('HC_RO_Valorización Ambiental'!$D$36*('FE y conversiones'!$C$26/'FE y conversiones'!$H$12))+('HC_RO_Valorización Ambiental'!$D$36*('FE y conversiones'!$C$28/'FE y conversiones'!$H$12)))+(('HC_RO_Valorización Ambiental'!$D$37*('FE y conversiones'!$C$26/'FE y conversiones'!$H$12))+('HC_RO_Valorización Ambiental'!$D$37*('FE y conversiones'!$C$28/'FE y conversiones'!$H$12)))+(('HC_RO_Valorización Ambiental'!$D$38*('FE y conversiones'!$C$26/'FE y conversiones'!$H$12))+('HC_RO_Valorización Ambiental'!$D$38*('FE y conversiones'!$C$28/'FE y conversiones'!$H$12)))+(('HC_RO_Valorización Ambiental'!$D$39*('FE y conversiones'!$C$26/'FE y conversiones'!$H$12))+('HC_RO_Valorización Ambiental'!$D$39*('FE y conversiones'!$C$28/'FE y conversiones'!$H$12)))),0)","v":0},{"$f":"IF('HC_RO_Valorización Ambiental'!$E$35=\"kg/año\",\"kg CO2e/año\",\"t CO2e/año\")","v":"t CO2e/año"}]
[null,null,null,null,null,null,null,null,"Emisiones equivalentes anuales de residuos orgánicos a través de compostaje",{"$f":"IF('HC_RO_Valorización Ambiental'!$D$34=\"kg/año\",$J105*'FE y conversiones'!$H$11,$J105)","v":0},"t CO2e/año"]
[]
[null,null,null,null,null,null,null,"Tratamiento via digestión anaerobica","DIGESTIÓN ANAERÓBICA"]
[null,null,null,null,null,null,null,null,"C1. Emisiones relacionadas al escenario base: tratamiento biológico de residuos orgánicos a través de DA con dato de residuos dado por día y frecuencia de recolección"]
[null,null,null,null,null,null,null,null,"Cada dia:",{"$f":"IF(OR('HC_RO_Valorización Ambiental'!$D$34=\"kg/día\",'HC_RO_Valorización Ambiental'!$D$34=\"t/día\"),((('HC_RO_Valorización Ambiental'!$D$35*('FE y conversiones'!$C$27/'FE y conversiones'!$H$12))+('HC_RO_Valorización Ambiental'!$D$35*('FE y conversiones'!$C$29/'FE y conversiones'!$H$12)))+(('HC_RO_Valorización Ambiental'!$D$36*('FE y conversiones'!$C$27/'FE y conversiones'!$H$12))+('HC_RO_Valorización Ambiental'!$D$36*('FE y conversiones'!$C$29/'FE y conversiones'!$H$12)))+(('HC_RO_Valorización Ambiental'!$D$37*('FE y conversiones'!$C$27/'FE y conversiones'!$H$12))+('HC_RO_Valorización Ambiental'!$D$37*('FE y conversiones'!$C$29/'FE y conversiones'!$H$12)))+(('HC_RO_Valorización Ambiental'!$D$38*('FE y conversiones'!$C$27/'FE y conversiones'!$H$12))+('HC_RO_Valorización Ambiental'!$D$38*('FE y conversiones'!$C$29/'FE y conversiones'!$H$12)))+(('HC_RO_Valorización Ambiental'!$D$39*('FE y conversiones'!$C$27/'FE y conversiones'!$H$12))+('HC_RO_Valorización Ambiental'!$D$39*('FE y conversiones'!$C$29/'FE y conversiones'!$H$12)))),0)","v":0},{"$f":"IF('HC_RO_Valorización Ambiental'!$E$35=\"kg/día\",\"kg CO2e/día\",\"t CO2e/día\")","v":"t CO2e/día"}]
[null,null,null,null,null,null,null,null,"Cada año:",{"$f":"$J110*'FE y conversiones'!$H$8","v":0},{"$f":"IF('HC_RO_Valorización Ambiental'!$E$35=\"kg/día\",\"kg CO2e/año\",\"t CO2e/año\")","v":"t CO2e/año"}]
[null,null,null,null,null,null,null,null,"Emisiones equivalentes anuales de residuos orgánicos a través de digestión anaeróbica",{"$f":"IF('HC_RO_Valorización Ambiental'!$D$34=\"kg/día\",$J111*'FE y conversiones'!$H$11,$J111)","v":0},"t CO2e/año"]
[]
[null,null,null,null,null,null,null,null,"C2. Emisiones relacionadas al escenario base: tratamiento biológico de residuos orgánicos a través de DA con dato de residuos dado por semana"]
[null,null,null,null,null,null,null,null,"Cada semana:",{"$f":"IF(OR('HC_RO_Valorización Ambiental'!$D$34=\"kg/semana\",'HC_RO_Valorización Ambiental'!$D$34=\"t/semana\"),((('HC_RO_Valorización Ambiental'!$D$35*('FE y conversiones'!$C$27/'FE y conversiones'!$H$12))+('HC_RO_Valorización Ambiental'!$D$35*('FE y conversiones'!$C$29/'FE y conversiones'!$H$12)))+(('HC_RO_Valorización Ambiental'!$D$36*('FE y conversiones'!$C$27/'FE y conversiones'!$H$12))+('HC_RO_Valorización Ambiental'!$D$36*('FE y conversiones'!$C$29/'FE y conversiones'!$H$12)))+(('HC_RO_Valorización Ambiental'!$D$37*('FE y conversiones'!$C$27/'FE y conversiones'!$H$12))+('HC_RO_Valorización Ambiental'!$D$37*('FE y conversiones'!$C$29/'FE y conversiones'!$H$12)))+(('HC_RO_Valorización Ambiental'!$D$38*('FE y conversiones'!$C$27/'FE y conversiones'!$H$12))+('HC_RO_Valorización Ambiental'!$D$38*('FE y conversiones'!$C$29/'FE y conversiones'!$H$12)))+(('HC_RO_Valorización Ambiental'!$D$39*('FE y conversiones'!$C$27/'FE y conversiones'!$H$12))+('HC_RO_Valorización Ambiental'!$D$39*('FE y conversiones'!$C$29/'FE y conversiones'!$H$12)))),0)","v":0},{"$f":"IF('HC_RO_Valorización Ambiental'!$E$35=\"kg/semana\",\"kg CO2e/semana\",\"t CO2e/semana\")","v":"t CO2e/semana"}]
[null,null,null,null,null,null,null,null,"Cada año:",{"$f":"'Emisiones GEI'!$J115*'FE y conversiones'!$H$9","v":0},{"$f":"IF('HC_RO_Valorización Ambiental'!$E$35=\"kg/semana\",\"kg CO2e/año\",\"t CO2e/año\")","v":"t CO2e/año"}]
[null,null,null,null,null,null,null,null,"Emisiones equivalentes anuales de residuos orgánicos a través de digestión anaeróbica",{"$f":"IF('HC_RO_Valorización Ambiental'!$D$34=\"kg/semana\",$J116*'FE y conversiones'!$H$11,$J116)","v":0},"t CO2e/año"]
[]
[null,null,null,null,null,null,null,null,"C3. Emisiones relacionadas al escenario base: tratamiento biológico de residuos orgánicos a través de DA con dato de residuos dado por mes"]
[null,null,null,null,null,null,null,null,"Cada mes:",{"$f":"IF(OR('HC_RO_Valorización Ambiental'!$D$34=\"kg/mes\",'HC_RO_Valorización Ambiental'!$D$34=\"t/mes\"),((('HC_RO_Valorización Ambiental'!$D$35*('FE y conversiones'!$C$27/'FE y conversiones'!$H$12))+('HC_RO_Valorización Ambiental'!$D$35*('FE y conversiones'!$C$29/'FE y conversiones'!$H$12)))+(('HC_RO_Valorización Ambiental'!$D$36*('FE y conversiones'!$C$27/'FE y conversiones'!$H$12))+('HC_RO_Valorización Ambiental'!$D$36*('FE y conversiones'!$C$29/'FE y conversiones'!$H$12)))+(('HC_RO_Valorización Ambiental'!$D$37*('FE y conversiones'!$C$27/'FE y conversiones'!$H$12))+('HC_RO_Valorización Ambiental'!$D$37*('FE y conversiones'!$C$29/'FE y conversiones'!$H$12)))+(('HC_RO_Valorización Ambiental'!$D$38*('FE y conversiones'!$C$27/'FE y conversiones'!$H$12))+('HC_RO_Valorización Ambiental'!$D$38*('FE y conversiones'!$C$29/'FE y conversiones'!$H$12)))+(('HC_RO_Valorización Ambiental'!$D$39*('FE y conversiones'!$C$27/'FE y conversiones'!$H$12))+('HC_RO_Valorización Ambiental'!$D$39*('FE y conversiones'!$C$29/'FE y conversiones'!$H$12)))),0)","v":0},{"$f":"IF('HC_RO_Valorización Ambiental'!$E$35=\"kg/mes\",\"kg CO2e/mes\",\"t CO2e/mes\")","v":"t CO2e/mes"}]
[null,null,null,null,null,null,null,null,"Cada año:",{"$f":"'Emisiones GEI'!$J120*'FE y conversiones'!$H$10","v":0},{"$f":"IF('HC_RO_Valorización Ambiental'!$E$35=\"kg/mes\",\"kg CO2e/año\",\"t CO2e/año\")","v":"t CO2e/año"}]
[null,null,null,null,null,null,null,null,"Emisiones equivalentes anuales de residuos orgánicos a través de digestión anaeróbica",{"$f":"IF('HC_RO_Valorización Ambiental'!$D$34=\"kg/mes\",$J121*'FE y conversiones'!$H$11,$J121)","v":0},"t CO2e/año"]
[]
[null,null,null,null,null,null,null,null,"C4. Emisiones relacionadas al escenario base: tratamiento biológico de residuos orgánicos a través de DA con dato de residuos dado por año"]
[null,null,null,null,null,null,null,null,"Cada año:",{"$f":"IF(OR('HC_RO_Valorización Ambiental'!$D$34=\"kg/año\",'HC_RO_Valorización Ambiental'!$D$34=\"t/año\"),((('HC_RO_Valorización Ambiental'!$D$35*('FE y conversiones'!$C$27/'FE y conversiones'!$H$12))+('HC_RO_Valorización Ambiental'!$D$35*('FE y conversiones'!$C$29/'FE y conversiones'!$H$12)))+(('HC_RO_Valorización Ambiental'!$D$36*('FE y conversiones'!$C$27/'FE y conversiones'!$H$12))+('HC_RO_Valorización Ambiental'!$D$36*('FE y conversiones'!$C$29/'FE y conversiones'!$H$12)))+(('HC_RO_Valorización Ambiental'!$D$37*('FE y conversiones'!$C$27/'FE y conversiones'!$H$12))+('HC_RO_Valorización Ambiental'!$D$37*('FE y conversiones'!$C$29/'FE y conversiones'!$H$12)))+(('HC_RO_Valorización Ambiental'!$D$38*('FE y conversiones'!$C$27/'FE y conversiones'!$H$12))+('HC_RO_Valorización Ambiental'!$D$38*('FE y conversiones'!$C$29/'FE y conversiones'!$H$12)))+(('HC_RO_Valorización Ambiental'!$D$39*('FE y conversiones'!$C$27/'FE y conversiones'!$H$12))+('HC_RO_Valorización Ambiental'!$D$39*('FE y conversiones'!$C$29/'FE y conversiones'!$H$12)))),0)","v":0},{"$f":"IF('HC_RO_Valorización Ambiental'!$E$35=\"kg/año\",\"kg CO2e/año\",\"t CO2e/año\")","v":"t CO2e/año"}]
[null,null,null,null,null,null,null,null,"Emisiones equivalentes anuales de residuos orgánicos a través de digestión anaeróbica",{"$f":"IF('HC_RO_Valorización Ambiental'!$D$34=\"kg/año\",$J125*'FE y conversiones'!$H$11,$J125)","v":0},"t CO2e/año"]

{"sheet":"FE y conversiones","index":7,"n_rows":78,"n_cols":9,"rows_kept":78,"cut":false,"hidden":true,"merged":[[46,1,46,3],[23,1,23,4],[29,1,30,4],[38,1,38,8],[36,1,36,8],[1,2,1,8],[3,6,3,8],[3,1,3,4],[16,1,16,4],[34,1,34,8],[33,1,33,8]]}
[]
[null,null,"FACTORES DE EMISIÓN Y DE CONVERSIÓN PARA LA HERRAMIENTA DE CÁLCULO PARA DETERMINAR EL POTENCIAL ENERGÉTICO DE BIODIGESTORES IN SITU EN LAS PLAZAS DE MERCADO DE COLOMBIA"]
[]
[null,"FACTORES DE EMISIÓN PARA TRANSPORTE (COMBUSTIÓN)",null,null,null,null,"CONVERSIÓN DE UNIDADES"]
[null,"COMBUSTIBLE","FE","UNIDADES","FUENTE",null,"UNIDAD INICIAL","VALOR","UNIDAD DE CONVERSIÓN"]
[null,"Gasolina E10 comercial",7.6181000000000001,"kg CO2/gal","UPME, 2016",null,"Semana",7,"días"]
[null,"Gasolina vehículos de 2 ejes",{"$f":"7.13092481713072/H12","v":7.1309248171307201E-3},"kg CH4/gal","EPA, 2024",null,"Mes",4.33,"semanas"]
[null,"Gasolina vehículos de 2 ejes",{"$f":"0.496792413874469/H12","v":4.9679241387446901E-4},"kg N2O/gal","EPA, 2024",null,"Año",365,"días"]
[null,"Diesel B2",10.148999999999999,"kg CO2/gal","UPME, 2016",null,"Año",52,"semanas"]
[null,"Diesel",{"$f":"0.421250548042225/H12","v":4.2125054804222501E-4},"kg CH4/gal","EPA, 2024",null,"Año",12,"meses"]
[null,"Diesel",{"$f":"0.603154193787731/H12","v":6.0315419378773104E-4},"kg N2O/gal","EPA, 2024",null,"Tonelada",1E-3,"kilogramos"]
[null,"Gas natural vehicular",1.9801,"kg CO2/m³","UPME, 2016",null,"Kilogramo",1000,"gramos"]
[null,"Gas natural comprimido CNG para camiones de carga pesada",{"$f":"0.921/(H14*H12)","v":5.7228429045447205E-4},"kg CH4/km","EPA, 2023",null,"Metro cúbico",265.17200000000003,"galón"]
[null,"Gas natural comprimido CNG para camiones de carga pesada",0,"kg N2O/km","EPA, 2023",null,"Milla",1.60934,"kilómetros"]
[null,"Electricidad 2021",0.126,"kg CO2/kWh","UPME, 2016"]
[null,null,null,null,null,null,"Eficiencias de consumo de combustibles","UPME (2020), UPME (2019)"]
[null,"FACTORES DE EMISIÓN PARA RESIDUOS POR DISPOSICIÓN FINAL EN RELLENO SANITARIO",null,null,null,null,"UNIDAD INICIAL","VALOR","UNIDAD DE CONVERSIÓN"]
[null,"COMBUSTIBLE","FE","UNIDADES","FUENTE",null,"Eficiencia de consumo de combustible diésel en camiones pesados de 2 ejes para terreno ondulado",10.01,"km/gal"]
[null,"Residuos de frutas y vegetales por disposición final en relleno sanitario",0.28000000000000003,"kg CO2e/kg residuos de frutas y verduras","EPA, 2024",null,"Eficiencia de consumo (promedio nacional) de combustible gasolina en camiones pesados",10,"km/gal"]
[null,"Residuos de comida (sin carne) por disposición final en relleno sanitario",0.67,"kg CO2e/kg residuos de comida sin carne","EPA, 2024",null,"Eficiencia de consumo de gas natural vehicular",0.16666700000000001,"m³/km"]
[null,"Residuos de comida (solo carne) por disposición final en el relleno sanitario",0.69,"kg CO2e/kg residuos de comida  (carne)","EPA, 2024"]
[null,"Residuos de orgánicos mixtos por disposición final",0.54,"kg CO2e/kg residuos orgánicos mixtos","EPA, 2024",null,"Potencial de Calentamiento Global (GWP100, por sus siglas en inglés)","Valores para cálculo"]
[null,null,null,null,null,null,"Caracterización de factores","FUENTE: EPA, 2024"]
[null,"FACTORES DE EMISIÓN PROCEDENTES DEL TRATAMIENTO BIOLÓGICO DE RESIDUOS",null,null,null,null,"CO2",{"$f":"1","v":1}]
[null,"Tratamiento biológico","FE","UNIDADES","FUENTE",null,"CH4",28]
[null,"Compostaje",4,"g CH4/kg residuo tratado","IPCC, 2006",null,"N2O",265]
[null,"Digestión anaerobia",1,"g CH4/kg residuo tratado","IPCC, 2006"]
[null,"Compostaje",0.3,"g N2O/kg residuo tratado","IPCC, 2006",null,"Verduras"]
[null,"Digestión anaerobia",0,"g N2O/kg residuo tratado","IPCC, 2006",null,"Hortalizas (tubérculo)"]
[null,"Fuente:\nIPCC. 2006. Volume 5, Chapter 4: Biological treatment. 2006 IPCC Guidelines for National Greenhouse Gas Inventories. Intergovernmental Panel on Climate Change. Disponible: http://www.ipcc-nggip.iges.or.jp/public/2006gl/pdf/5_Volume5/V5_4_Ch4_Bio_Treat.pdf. Accessed 6/28/2017.",null,null,null,null,"Frutas"]
[null,null,null,null,null,null,"Carnicos"]
[null,null,null,null,null,null,"Orgánicos mixtos"]
[]
[null,"FACTORES DE CONVERSIÓN DE PRODUCCIÓN DE BIOGAS Y BIOMETANO A TRAVÉS DE RESIDUOS ORGÁNICOS"]
[null,"La siguiente Tabla presenta los rendimientos máximos de gas por kilogramo de materia seca orgánica para distintos sustratos, evidenciando una variación significativa. Factores como la variedad del sustrato, el momento de la cosecha, la frecuencia anual de cortes de hierba, las condiciones climáticas, la carga del biorreactor y el tiempo de residencia influyen notablemente en el rendimiento de biogás.\n\nPara estimar el potencial de generación de biogás de un sustrato, es necesario determinar la cantidad de materia seca orgánica contenida en este. La fórmula empleada para este cálculo es la siguiente:\n• MSo (kg) = Cantidad de sustrato (kg) × MS (%) × MSo (%)/MS (%)\n\nUna vez calculada la materia seca orgánica, se puede estimar la cantidad de biogás producido utilizando la siguiente ecuación:\n• Cantidad de biogás (m3) = MSo (kg) × Potencial de biogás (m3/kg MSo)\n\nEste procedimiento permite determinar el volumen de biogás que un sustrato específico puede generar en un biorreactor bajo condiciones controladas.\n"]
[null,"Sustrato para producción de biogás","MS \n(%)","MSo por MS (%)","Potencial de biogás \n(m3 kgoDM-1)","Potencial de biogás \n(m3/tonRO)","Potencial de biometano \n(m3/tonRO)","Tiempo de retención \n(d)","Contenido de metano\n(%)*"]
[null,"Residuos de animales"]
[null,"Desechos de carne*",15,76,0.8,{"$f":"(E38*C38%*D38%)*1000","v":91.2},{"$f":"+F38*I38%","v":64.751999999999995},"-",71]
[null,"Residuos verdes, hierba, cereales, residuos vegetales"]
[null,"Residuos vegetales",15,76,{"$f":"550/1000","v":0.55000000000000004},{"$f":"(E40*C40%*D40%)*1000","v":62.7},{"$f":"+F40*I40%","v":43.262999999999998},{"$f":"+AVERAGE(8,20)","v":14},69]
[null,"Hojas",15,82,0.6,73.8,{"$f":"+F41*I41%","v":48.707999999999998},{"$f":"+AVERAGE(8,20)","v":14},66]
[null,"Verduras (frescas)",{"$f":"+AVERAGE(12,42)","v":27},{"$f":"+AVERAGE(90,97)","v":93.5},{"$f":"+AVERAGE(0.4,0.8)","v":0.60000000000000009},151.47000000000006,81.793800000000033,"-",54]
[null,"Frutas descalificadas*",15,80,{"$f":"550/1000","v":0.55000000000000004},66,36.300000000000004,"-",55]
[null,"Residuos de mercados",{"$f":"+AVERAGE(28,15)","v":21.5},76,{"$f":"+AVERAGE(0.4,0.6)","v":0.5},81.699999999999989,51.470999999999997,30,63]
[null,"Hojas de remolacha",{"$f":"+AVERAGE(15,18)","v":16.5},{"$f":"+AVERAGE(78,80)","v":79},{"$f":"+AVERAGE(0.4,0.8)","v":0.60000000000000009},78.210000000000022,40.669200000000011,"-",52]
[null,"Remolacha",{"$f":"+AVERAGE(12,23)","v":17.5},{"$f":"+AVERAGE(80,95)","v":87.5},{"$f":"+AVERAGE(0.4,1)","v":0.7},107.18749999999999,55.737499999999997,"-",52]
[null,"Fuente:\nDeublein, D., & Steinhauser, A. (2011). Biogas fron waste and renewable resources. WILEY-VCH.\nFuente propia"]
[null,"MS = Materia Seca"]
[null,"MSo = Materia Seca Organica"]
[null,"Hipotesis:"]
[null,"• Residuos orgánicos mixtos = Residuos de mercados"]
[null,"• Residuos de verduras = Residuos vegetales + Residuos de verduras (frescas)"]
[null,"• Residuos de hortalizas = Residuos de hojas + Residuos de hojas de remolacha + Remolacha"]
[null,"• Residuos de frutas = Residuos de frutas descalificadas"]
[null,"• Residuos cárnicos = Residuos de desechos de carne"]
[]
[]
[null,"Unidad","Valor","Unidad"]
[null,"Contenido de metano en el biogas producido",65,"%"]
[null,"Recuperación eléctrica del biogás",60,"%"]
[null,"Recuperación termica del biogás",40,"%"]
[null,"Eficiencia del generador del motor",35,"%"]
[null,"Disponibilidad anual del generador del motor",90,"%"]
[null,"PCI (CH4)",{"$f":"+ROUND(9.9524,2)","v":9.9499999999999993},"kWh/m3"]
[null,"Consideraciones técnicas del biodigestor","Valor","Unidad"]
[null,"Tiempo de retención",35,"dias"]
[null,"Relacion agua:residuo",0.2,"ton/ton"]
[null,"Potencial de generación de digestato",0.1,"ton/tonRO"]
[null,"Factores de equivalente relevantes","Valor","Unidad"]
[null,"Density (CH4)",0.71599999999999997,"kg/m3"]
[null,"PCI (CH4)",{"$f":"+C70*C72","v":9.952399999999999},"kWh/m3"]
[null,"PCI (CH4)",13.9,"kWh/kg"]
[null,"Density (Natural gas)",0.77700000000000002,"kg/m3"]
[null,"PCI (Natural gas)",{"$f":"+$C$73*$C$75","v":10.178699999999999},"kWh/m3"]
[null,"PCI (Natural gas)",13.1,"kWh/kg"]
[]
[]
[null,{"$f":"+C64*C63%*C62%*C60%*C59%","v":1.2223574999999998}]

{"sheet":"Modelo financiero (Energía)","index":8,"n_rows":179,"n_cols":58,"rows_kept":179,"cut":false,"hidden":true,"merged":[[14,1,14,3],[14,21,14,23],[14,41,14,43],[1,2,1,57],[3,1,3,14],[5,11,5,12],[5,31,5,32],[5,51,5,52],[21,5,26,5],[21,25,26,25],[21,45,26,45],[27,1,27,3],[27,21,27,23],[27,41,27,43],[83,51,83,52],[30,1,30,3],[30,21,30,23],[30,41,30,43],[34,1,34,3],[34,21,34,23],[34,41,34,43],[99,45,104,45],[39,1,39,3],[39,21,39,23],[39,41,39,43],[83,11,83,12],[83,31,83,32],[92,1,92,3],[92,21,92,23],[92,41,92,43],[99,5,104,5],[99,25,104,25],[105,1,105,3],[105,21,105,23],[105,41,105,43],[108,1,108,3],[108,21,108,23],[108,41,108,43],[112,1,112,3],[112,21,112,23],[112,41,112,43],[117,1,117,3],[117,21,117,23],[117,41,117,43],[163,5,163,8],[163,9,163,11],[172,1,172,2],[175,1,175,2],[177,1,177,2]]}
[]
[null,null,"MODELOS FINANCIEROS PARA EVALUAR LA VIABILIDAD DE LA IMPLEMENTACIÓN DE BIODIGESTORES IN SITU EN LAS PLAZAS DE MERCADO DE COLOMBIA SEGÚN EL TAMAÑO DE LA TECNOLOGÍA"]
[]
[null,"\nEl modelo financiero para evaluar la viabilidad de la implementación de biodigestores tiene como objetivo proporcionar un análisis exhaustivo de los aspectos económicos involucrados, considerando tanto los ingresos como los costos anuales durante un período de 15 años. Este análisis abarca el costo de inversión inicial (CAPEX), los costos operativos recurrentes y las diversas fuentes de ingresos, tales como la venta de biogás y digestato, así como los beneficios derivados de la reducción en los costos de gestión de residuos.\nEl estudio se desarrolla mediante cinco modelos financieros, correspondientes a biodigestores de diferentes tamaños: 1 tonelada, 2 toneladas, 5 toneladas, 15 toneladas y 30 toneladas. En cada uno de estos modelos, se detallan aspectos como el consumo anual de energía, agua y personal, así como la generación de biogás, digestato y las tarifas asociadas con la gestión de residuos. Estos valores se calculan para el primer año, y para los años siguientes se aplica el valor del IPC 2025 como variable fija, que ajusta tanto los costos como los ingresos de acuerdo con la inflación proyectada."]
[]
[null,"1 TPD",null,null,null,null,null,null,null,null,null,null,null,null,null,null,null,null,null,null,null,"2 TPD",null,null,null,null,null,null,null,null,null,null,null,null,null,null,null,null,null,null,null,"5 TPD"]
[]
[null,"Información","Valor","Unidades",null,null,null,null,null,null,null,null,null,null,null,null,null,null,null,null,null,"Información","Valor","Unidades",null,null,null,null,null,null,null,null,null,null,null,null,null,null,null,null,null,"Información","Valor","Unidades"]
[null,"Residuos orgánicos",1,"ton/día",null,null,null,null,null,null,null,null,null,null,null,null,null,null,null,null,null,"Residuos orgánicos",2,"ton/día",null,null,null,null,null,null,null,null,null,null,null,null,null,null,null,null,null,"Residuos orgánicos",5,"ton/día"]
[null,"Residuos orgánicos",{"$f":"+C9*330","v":330},"ton/año",null,null,null,null,null,null,null,null,null,null,null,null,null,null,null,null,null,"Residuos orgánicos",{"$f":"+W9*330","v":660},"ton/año",null,null,null,null,null,null,null,null,null,null,null,null,null,null,null,null,null,"Residuos orgánicos",{"$f":"+AQ9*330","v":1650},"ton/año"]
[null,"IPC 2025",5.1999999999999998E-2,"%",null,null,null,null,null,null,null,null,null,null,null,null,null,null,null,null,null,"IPC 2025",5.1999999999999998E-2,"%",null,null,null,null,null,null,null,null,null,null,null,null,null,null,null,null,null,"IPC 2025",5.1999999999999998E-2,"%"]
[null,"Incremento del biometano anual",0.14000000000000001,"%",null,null,null,null,null,null,null,null,null,null,null,null,null,null,null,null,null,"Incremento del biometano anual",0.14000000000000001,"%",null,null,null,null,null,null,null,null,null,null,null,null,null,null,null,null,null,"Incremento del biometano anual",0.14000000000000001,"%"]
[null,"Incremento de energía electrica anual",0.05,"%",null,null,null,null,null,null,null,null,null,null,null,null,null,null,null,null,null,"Incremento de energía electrica anual",0.05,"%",null,null,null,null,null,null,null,null,null,null,null,null,null,null,null,null,null,"Incremento de energía electrica anual",0.05,"%"]
[null,"Incremento de agua anual",0.05,"%",null,null,null,null,null,null,null,null,null,null,null,null,null,null,null,null,null,"Incremento de agua anual",0.05,"%",null,null,null,null,null,null,null,null,null,null,null,null,null,null,null,null,null,"Incremento de agua anual",0.05,"%"]
[null,"Tarifas",null,null,null,null,null,null,null,null,null,null,null,null,null,null,null,null,null,null,null,"Tarifas",null,null,null,null,null,null,null,null,null,null,null,null,null,null,null,null,null,null,null,"Tarifas"]
[null,"Tarifa de tratamiento de residuos orgánicos",{"$f":"IF('HC_RO_Valorización Ambiental'!$D$16=\"\",'Base de datos'!$P$7,IF('HC_RO_Valorización Ambiental'!$E$16=\"$/kg\",'HC_RO_Valorización Ambiental'!$D$16*1000,'HC_RO_Valorización Ambiental'!$D$16))","v":257372.2967767138},"$/ton",null,null,null,null,null,null,null,null,null,null,null,null,null,null,null,null,null,"Tarifa de tratamiento de residuos orgánicos",{"$f":"+C16","v":257372.2967767138},"$/ton",null,null,null,null,null,null,null,null,null,null,null,null,null,null,null,null,null,"Tarifa de tratamiento de residuos orgánicos",{"$f":"+$C$16","v":257372.2967767138},"$/ton"]
[null,"Tarifa del agua - consumo (tarifa variable)- Comercial",{"$f":"IF(OR('HC_RO_Valorización Ambiental'!$F$12=Dropdown_digestores!$Q$5,'HC_RO_Valorización Ambiental'!$F$12=Dropdown_digestores!$Q$6),IF(_xlfn.XLOOKUP('HC_RO_Valorización Ambiental'!$F$7,'Base de datos'!$B$9:$B$41,'Base de datos'!$E$9:$E$41)=\"\",'Base de datos'!$E$13,_xlfn.XLOOKUP('HC_RO_Valorización Ambiental'!$F$7,'Base de datos'!$B$9:$B$41,'Base de datos'!$E$9:$E$41)))","v":false},"$/m3",null,null,null,null,null,null,null,null,null,null,null,null,null,null,null,null,null,"Tarifa del agua - consumo (tarifa variable)- Comercial",{"$f":"+C17","v":false},"$/m3",null,null,null,null,null,null,null,null,null,null,null,null,null,null,null,null,null,"Tarifa del agua - consumo (tarifa variable)- Comercial",{"$f":"+C17","v":false},"$/m3"]
[null,"Tarifa del agua - consumo (tarifa fija) - Comercial",{"$f":"IF(OR('HC_RO_Valorización Ambiental'!$F$12=Dropdown_digestores!$Q$5,'HC_RO_Valorización Ambiental'!$F$12=Dropdown_digestores!$Q$6),IF(_xlfn.XLOOKUP('HC_RO_Valorización Ambiental'!$F$7,'Base de datos'!$B$9:$B$41,'Base de datos'!$D$9:$D$41)=\"\",'Base de datos'!$D$13,_xlfn.XLOOKUP('HC_RO_Valorización Ambiental'!$F$7,'Base de datos'!$B$9:$B$41,'Base de datos'!$D$9:$D$41)))","v":false},"COP/mes",null,null,null,null,null,null,null,null,null,null,null,null,null,null,null,null,null,"Tarifa del agua - consumo (tarifa fija) - Comercial",{"$f":"+C18","v":false},"COP/mes",null,null,null,null,null,null,null,null,null,null,null,null,null,null,null,null,null,"Tarifa del agua - consumo (tarifa fija) - Comercial",{"$f":"+C18","v":false},"COP/mes"]
[null,"Tarifa del agua - consumo (tarifa variable) - Industrial",{"$f":"IF('HC_RO_Valorización Ambiental'!$F$12=Dropdown_digestores!$Q$4,IF(_xlfn.XLOOKUP('HC_RO_Valorización Ambiental'!$F$7,'Base de datos'!$B$9:$B$41,'Base de datos'!$G$9:$G$41)=\"\",'Base de datos'!$G$13,_xlfn.XLOOKUP('HC_RO_Valorización Ambiental'!$F$7,'Base de datos'!$B$9:$B$41,'Base de datos'!$G$9:$G$41)))","v":false},"COP/m3",null,null,null,null,null,null,null,null,null,null,null,null,null,null,null,null,null,"Tarifa del agua - consumo (tarifa variable) - Industrial",false,"COP/m3",null,null,null,null,null,null,null,null,null,null,null,null,null,null,null,null,null,"Tarifa del agua - consumo (tarifa variable) - Industrial",false,"COP/m3"]
[null,"Tarifa del agua - consumo (tarifa fija) - Industrial",{"$f":"IF('HC_RO_Valorización Ambiental'!$F$12=Dropdown_digestores!$Q$4,IF(_xlfn.XLOOKUP('HC_RO_Valorización Ambiental'!$F$7,'Base de datos'!$B$9:$B$41,'Base de datos'!$F$9:$F$41)=\"\",'Base de datos'!$F$13,_xlfn.XLOOKUP('HC_RO_Valorización Ambiental'!$F$7,'Base de datos'!$B$9:$B$41,'Base de datos'!$F$9:$F$41)))","v":false},"COP/mes",null,null,null,null,null,null,null,null,null,null,null,null,null,null,null,null,null,"Tarifa del agua - consumo (tarifafija) - Industrial",false,"COP/mes",null,null,null,null,null,null,null,null,null,null,null,null,null,null,null,null,null,"Tarifa del agua - consumo (tarifafija) - Industrial",false,"COP/mes"]
[null,"Tarifa del agua - tratamiento","-","$/m3",null,null,null,null,null,null,null,null,null,null,null,null,null,null,null,null,null,"Tarifa del agua - tratamiento","-","$/m3",null,null,null,null,null,null,null,null,null,null,null,null,null,null,null,null,null,"Tarifa del agua - tratamiento","-","$/m3"]
[null,"Tarifa eléctrica compra (comercial)",{"$f":"IF(OR('HC_RO_Valorización Ambiental'!$F$12=Dropdown_digestores!$Q$5,'HC_RO_Valorización Ambiental'!$F$12=Dropdown_digestores!$Q$6),IF(_xlfn.XLOOKUP('HC_RO_Valorización Ambiental'!$F$7,'Base de datos'!$B$9:$B$41,'Base de datos'!$H$9:$H$41)=\"\",'Base de datos'!$H$13,_xlfn.XLOOKUP('HC_RO_Valorización Ambiental'!$F$7,'Base de datos'!$B$9:$B$41,'Base de datos'!$H$9:$H$41)))","v":false},"$/kWh",null,null,null,null,null,null,null,null,null,null,null,null,null,null,null,null,null,"Tarifa eléctrica venta (comercial)",false,"$/kWh",null,null,null,null,null,null,null,null,null,null,null,null,null,null,null,null,null,"Tarifa eléctrica venta (comercial)",false,"$/kWh"]
[null,"Tarifa eléctrica compra (industrial)",{"$f":"IF('HC_RO_Valorización Ambiental'!$F$12=Dropdown_digestores!$Q$4,IF(_xlfn.XLOOKUP('HC_RO_Valorización Ambiental'!$F$7,'Base de datos'!$B$9:$B$41,'Base de datos'!$I$9:$I$41)=\"\",'Base de datos'!$I$13,_xlfn.XLOOKUP('HC_RO_Valorización Ambiental'!$F$7,'Base de datos'!$B$9:$B$41,'Base de datos'!$I$9:$I$41)))","v":false},"$/kWh",null,null,null,null,null,null,null,null,null,null,null,null,null,null,null,null,null,"Tarifa eléctrica venta (industrial)",false,"$/kWh",null,null,null,null,null,null,null,null,null,null,null,null,null,null,null,null,null,"Tarifa eléctrica venta (industrial)",false,"$/kWh"]
[null,"Tarifa eléctrica venta","-","$/kWh",null,null,null,null,null,null,null,null,null,null,null,null,null,null,null,null,null,"Tarifa eléctrica compra","-","$/kWh",null,null,null,null,null,null,null,null,null,null,null,null,null,null,null,null,null,"Tarifa eléctrica compra","-","$/kWh"]
[null,"Tarifa de gas variable",{"$f":"IF(OR('HC_RO_Valorización Ambiental'!$F$12=Dropdown_digestores!$Q$4,'HC_RO_Valorización Ambiental'!$F$12=Dropdown_digestores!$Q$6,'HC_RO_Valorización Ambiental'!$F$12=Dropdown_digestores!$Q$5),IF(_xlfn.XLOOKUP('HC_RO_Valorización Ambiental'!$F$7,'Base de datos'!$B$9:$B$41,'Base de datos'!$J$9:$J$41)=\"\",'Base de datos'!$J$13,_xlfn.XLOOKUP('HC_RO_Valorización Ambiental'!$F$7,'Base de datos'!$B$9:$B$41,'Base de datos'!$J$9:$J$41)))","v":false},"$/m3",null,null,null,null,null,null,null,null,null,null,null,null,null,null,null,null,null,"Tarifa de gas variable",false,"$/m3",null,null,null,null,null,null,null,null,null,null,null,null,null,null,null,null,null,"Tarifa de gas variable",false,"$/m3"]
[null,"Tarifa de gas fijo",{"$f":"IF(OR('HC_RO_Valorización Ambiental'!$F$12=Dropdown_digestores!$Q$4,'HC_RO_Valorización Ambiental'!$F$12=Dropdown_digestores!$Q$6,'HC_RO_Valorización Ambiental'!$F$12=Dropdown_digestores!$Q$5),IF(_xlfn.XLOOKUP('HC_RO_Valorización Ambiental'!$F$7,'Base de datos'!$B$9:$B$41,'Base de datos'!$K$9:$K$41)=\"\",'Base de datos'!$K$13,_xlfn.XLOOKUP('HC_RO_Valorización Ambiental'!$F$7,'Base de datos'!$B$9:$B$41,'Base de datos'!$K$9:$K$41)))","v":false},"$/factura",null,null,null,null,null,null,null,null,null,null,null,null,null,null,null,null,null,"Tarifa de gas fijo",false,"$/factura",null,null,null,null,null,null,null,null,null,null,null,null,null,null,null,null,null,"Tarifa de gas fijo",false,"$/factura"]
[null,"Tarifa digestato",50000,"$/ton",null,null,null,null,null,null,null,null,null,null,null,null,null,null,null,null,null,"Tarifa digestato",50000,"$/ton",null,null,null,null,null,null,null,null,null,null,null,null,null,null,null,null,null,"Tarifa digestato",50000,"$/ton"]
[null,"Capex",null,null,null,null,null,null,null,null,null,null,null,null,null,null,null,null,null,null,null,"Capex",null,null,null,null,null,null,null,null,null,null,null,null,null,null,null,null,null,null,null,"Capex"]
[null,"Valor tecnología",{"$f":"+Biodigestores!H7","v":497518399.06557399},null,null,null,null,null,null,null,null,null,null,null,null,null,null,null,null,null,null,"Valor tecnología",{"$f":"+Biodigestores!H8","v":619251624.36885273},"COP",null,null,null,null,null,null,null,null,null,null,null,null,null,null,null,null,null,"Valor tecnología",{"$f":"+Biodigestores!H9","v":1986700508.0103137}]
[]
[null,"Operacional",null,null,null,null,null,null,null,null,null,null,null,null,null,null,null,null,null,null,null,"Operacional",null,null,null,null,null,null,null,null,null,null,null,null,null,null,null,null,null,null,null,"Operacional"]
[null,"Numero de operadores",1,null,null,null,null,null,null,null,null,null,null,null,null,null,null,null,null,null,null,"Numero de operadores",{"$f":"+Biodigestores!M8","v":1},null,null,null,null,null,null,null,null,null,null,null,null,null,null,null,null,null,null,"Numero de operadores"]
[null,"Numero de profesionales",0,null,null,null,null,null,null,null,null,null,null,null,null,null,null,null,null,null,null,"Numero de profesionales",0,null,null,null,null,null,null,null,null,null,null,null,null,null,null,null,null,null,null,"Numero de profesionales"]
[null,"% mantenimiento",0.05,"%",null,null,null,null,null,null,null,null,null,null,null,null,null,null,null,null,null,"% mantenimiento",0.05,"%",null,null,null,null,null,null,null,null,null,null,null,null,null,null,null,null,null,"% mantenimiento",0.05]
[null,"Consumos",null,null,null,null,null,null,null,null,null,null,null,null,null,null,null,null,null,null,null,"Consumos",null,null,null,null,null,null,null,null,null,null,null,null,null,null,null,null,null,null,null,"Consumos"]
[null,"Consumo de energía",50,"kWh/día",null,null,null,null,null,null,null,null,null,null,null,null,null,null,null,null,null,"Consumo de energía",{"$f":"+Biodigestores!I8","v":70},"kWh/día",null,null,null,null,null,null,null,null,null,null,null,null,null,null,null,null,null,"Consumo de energía",{"$f":"+Biodigestores!I9","v":100},"kWh/día"]
[null,"Consumo de energía",{"$f":"+C36*330","v":16500},"kWh/año",null,null,null,null,null,null,null,null,null,null,null,null,null,null,null,null,null,"Consumo de energía",{"$f":"+W36*330","v":23100},"kWh/año",null,null,null,null,null,null,null,null,null,null,null,null,null,null,null,null,null,"Consumo de energía",{"$f":"+AQ36*330","v":33000},"kWh/año"]
[null,"Consumo de agua",0.2,"m3/día",null,null,null,null,null,null,null,null,null,null,null,null,null,null,null,null,null,"Consumo de agua",{"$f":"+Biodigestores!J8","v":0.4},"m3/día",null,null,null,null,null,null,null,null,null,null,null,null,null,null,null,null,null,"Consumo de agua",{"$f":"+Biodigestores!J9","v":1},"m3/día"]
[null,"Consumo de agua",{"$f":"+C38*330","v":66},"m3/año",null,null,null,null,null,null,null,null,null,null,null,null,null,null,null,null,null,"Consumo de agua",{"$f":"+W38*330","v":132},"m3/año",null,null,null,null,null,null,null,null,null,null,null,null,null,null,null,null,null,"Consumo de agua",{"$f":"+AQ38*330","v":330},"m3/año"]
[null,"Generaciones",null,null,null,null,null,null,null,null,null,null,null,null,null,null,null,null,null,null,null,"Generaciones",null,null,null,null,null,null,null,null,null,null,null,null,null,null,null,null,null,null,null,"Generaciones"]
[null,"Potencial de biogás por residuo",70,"m3/ton",null,null,null,null,null,null,null,null,null,null,null,null,null,null,null,null,null,"Biogas",70,"m3/ton",null,null,null,null,null,null,null,null,null,null,null,null,null,null,null,null,null,"Biogas",70,"m3/ton"]
[null,"Producción de biogás",{"$f":"+C41*C10","v":23100},"m3/año",null,null,null,null,null,null,null,null,null,null,null,null,null,null,null,null,null,"Biogas",{"$f":"+W41*W10","v":46200},"m3/año",null,null,null,null,null,null,null,null,null,null,null,null,null,null,null,null,null,"Biogas",{"$f":"+AQ41*AQ10","v":115500},"m3/año"]
[null,"Potencial energético",{"$f":"+'FE y conversiones'!$B$78","v":1.2223574999999998},"kWh/m3",null,null,null,null,null,null,null,null,null,null,null,null,null,null,null,null,null,"Potencial energético",{"$f":"+'FE y conversiones'!$B$78","v":1.2223574999999998},"kWh/m3",null,null,null,null,null,null,null,null,null,null,null,null,null,null,null,null,null,"Potencial energético",{"$f":"+'FE y conversiones'!$B$78","v":1.2223574999999998},"kWh/m3"]
[null,"Producción energia eléctrica",{"$f":"+C42*C43","v":28236.458249999996},"kWh/año",null,null,null,null,null,null,null,null,null,null,null,null,null,null,null,null,null,"Producción energia eléctrica",{"$f":"+W42*W43","v":56472.916499999992},"kWh/año",null,null,null,null,null,null,null,null,null,null,null,null,null,null,null,null,null,"Producción energia eléctrica",{"$f":"+AQ42*AQ43","v":141182.29124999998},"kWh/año"]
[null,"Potencial de digestato por residuo orgánico",0.1,"ton/tonRO",null,null,null,null,null,null,null,null,null,null,null,null,null,null,null,null,null,"Digestato",0.1,"ton/tonRO",null,null,null,null,null,null,null,null,null,null,null,null,null,null,null,null,null,"Digestato",0.1,"ton/tonRO"]
[]
[null,"Laboral","Cantidad",null,null,"Operador","Profesional","Porcentaje por la empresa",null,null,null,null,null,null,null,null,null,null,null,null,null,"Laboral","Cantidad",null,null,"Operador","Profesional","Porcentaje por la empresa",null,null,null,null,null,null,null,null,null,null,null,null,null,"Laboral","Cantidad",null,null,"Operador","Profesional","Porcentaje por la empresa"]
[null,"N° de Operadores",{"$f":"+C32","v":1},null,"Salario",{"$f":"(1423500*1.5)","v":2135250},{"$f":"+C52","v":0},null,null,null,null,null,null,null,null,null,null,null,null,null,null,"N° de Operadores",1,null,"Salario",{"$f":"(1423500*1.5)","v":2135250},{"$f":"+W52","v":0},null,null,null,null,null,null,null,null,null,null,null,null,null,null,"N° de Operadores",1,null,"Salario",{"$f":"(1423500*1.5)","v":2135250},{"$f":"+AQ52","v":"-"}]
[null,"Salario del Operador (1.5 smmlv) por mes",{"$f":"+F59","v":3686649.7250000001},null,"Auxilio de transporte",200000,0,null,null,null,null,null,null,null,null,null,null,null,null,null,null,"Salario del Operador (1.5 smmlv) por mes",{"$f":"+Z59","v":3686649.7250000001},null,"Auxilio de transporte",200000,0,null,null,null,null,null,null,null,null,null,null,null,null,null,null,"Salario del Operador (1.5 smmlv) por mes",{"$f":"+AT59","v":3686649.7250000001},null,"Auxilio de transporte",200000,0]
[null,"Meses requeridos por año",12,null,"Salud",{"$f":"F$48*H50","v":181496.25},{"$f":"$E$81*H50","v":0},8.5000000000000006E-2,null,null,null,null,null,null,null,null,null,null,null,null,null,"Meses requeridos por año",12,null,"Salud",{"$f":"$Z$48*AB50","v":181496.25},{"$f":"$E$81*AB50","v":0},8.5000000000000006E-2,null,null,null,null,null,null,null,null,null,null,null,null,null,"Meses requeridos por año",12,null,"Salud",{"$f":"$AT$48*AV50","v":181496.25},{"$f":"$E$81*AV50","v":0},8.5000000000000006E-2]
[null,"N° de Técnicos Especializados",0,null,"Pensión",256230,0,0.12,null,null,null,null,null,null,null,null,null,null,null,null,null,"N° de Técnicos Especializados",0,null,"Pensión",256230,0,0.12,null,null,null,null,null,null,null,null,null,null,null,null,null,"N° de Técnicos Especializados",0,null,"Pensión",256230,0,0.12]
[null,"Salario de un Técnico Especializado (2.5 smmlv)",null,null,"ARL",148613.4,0,6.9599999999999995E-2,null,null,null,null,null,null,null,null,null,null,null,null,null,"Salario de un Técnico Especializado (2.5 smmlv)",null,null,"ARL",148613.4,0,6.9599999999999995E-2,null,null,null,null,null,null,null,null,null,null,null,null,null,"Salario de un Técnico Especializado (2.5 smmlv)","-",null,"ARL",148613.4,0,6.9599999999999995E-2]
[null,"Meses requeridos por año",null,null,"Impuesto parafiscal",192172.5,0,0.09,null,null,null,null,null,null,null,null,null,null,null,null,null,"Meses requeridos por año",null,null,"Impuesto parafiscal",192172.5,0,0.09,null,null,null,null,null,null,null,null,null,null,null,null,null,"Meses requeridos por año","-",null,"Impuesto parafiscal",192172.5,0,0.09]
[null,"Costo total de mano de obra por año",null,null,"Bono",177866.32500000001,0,8.3299999999999999E-2,null,null,null,null,null,null,null,null,null,null,null,null,null,"Costo total de mano de obra por año",null,null,"Bono",177866.32500000001,0,8.3299999999999999E-2,null,null,null,null,null,null,null,null,null,null,null,null,null,"Costo total de mano de obra por año","-",null,"Bono",177866.32500000001,0,8.3299999999999999E-2]
[null,null,null,null,"Cesantía",177866.32500000001,0,8.3299999999999999E-2,null,null,null,null,null,null,null,null,null,null,null,null,null,null,null,null,"Cesantía",177866.32500000001,0,8.3299999999999999E-2,null,null,null,null,null,null,null,null,null,null,null,null,null,null,null,null,"Cesantía",177866.32500000001,0,8.3299999999999999E-2]
[null,null,null,null,"Intereses de despido",21352.5,0,0.01,null,null,null,null,null,null,null,null,null,null,null,null,null,null,null,null,"Intereses de despido",21352.5,0,0.01,null,null,null,null,null,null,null,null,null,null,null,null,null,null,null,null,"Intereses de despido",21352.5,0,0.01]
[null,null,null,null,"Vacaciones",89039.925000000003,0,4.1700000000000001E-2,null,null,null,null,null,null,null,null,null,null,null,null,null,null,null,null,"Vacaciones",89039.925000000003,0,4.1700000000000001E-2,null,null,null,null,null,null,null,null,null,null,null,null,null,null,null,null,"Vacaciones",89039.925000000003,0,4.1700000000000001E-2]
[null,null,null,null,"Dotación",106762.5,0,0.05,null,null,null,null,null,null,null,null,null,null,null,null,null,null,null,null,"Dotación",106762.5,0,0.05,null,null,null,null,null,null,null,null,null,null,null,null,null,null,null,null,"Dotación",106762.5,0,0.05]
[null,null,null,null,"Costo medio mensual",{"$f":"SUM(F48:F58)","v":3686649.7250000001},{"$f":"SUM(G48:G58)","v":0},null,null,null,null,null,null,null,null,null,null,null,null,null,null,null,null,null,"Costo medio mensual",{"$f":"SUM(Z48:Z58)","v":3686649.7250000001},{"$f":"SUM(AA48:AA58)","v":0},null,null,null,null,null,null,null,null,null,null,null,null,null,null,null,null,null,"Costo medio mensual",{"$f":"SUM(AT48:AT58)","v":3686649.7250000001},{"$f":"SUM(AU48:AU58)","v":0}]
[]
[]
[]
[null,"Ingresos (anuales)",0,1,2,3,4,5,6,7,8,9,10,11,12,13,14,15,null,null,null,"Ingresos (anuales)",0,1,2,3,4,5,6,7,8,9,10,11,12,13,14,15,null,null,null,"Ingresos (anuales)",0,1,2,3,4,5,6,7,8,9,10,11,12,13,14,15]
[{"$f":"ROUND(C64/$C$67,4)","v":0},"Venta de energía eléctrica",{"$f":"ROUND(IF('HC_RO_Valorización Ambiental'!$D$22=\"\",IF('HC_RO_Valorización Ambiental'!$F$12=Dropdown_digestores!$Q$4,'Modelo financiero (Energía)'!$C23*70%*'Modelo financiero (Energía)'!$C44,'Modelo financiero (Energía)'!$C22*70%*'Modelo financiero (Energía)'!$C44),'HC_RO_Valorización Ambiental'!$D$22*$C44*70%),0)","v":0},{"$f":"+C64*(1+$C$12)","v":0},{"$f":"+D64*(1+$C$12)","v":0},0,0,0,0,0,0,0,0,0,0,0,0,0,null,null,{"$f":"ROUND(W64/$W$67,4)","v":0},{"$f":"+B64","v":"Venta de energía eléctrica"},{"$f":"ROUND(IF('HC_RO_Valorización Ambiental'!$D$22=\"\",IF('HC_RO_Valorización Ambiental'!$F$12=Dropdown_digestores!$Q$4,'Modelo financiero (Energía)'!W$23*70%*'Modelo financiero (Energía)'!W$44,'Modelo financiero (Energía)'!W$22*70%*'Modelo financiero (Energía)'!W$44),'HC_RO_Valorización Ambiental'!$D$22*W$44*70%),0)","v":0},{"$f":"+W64*(1+$W$12)","v":0},{"$f":"+X64*(1+$W$12)","v":0},0,0,0,0,0,0,0,0,0,0,0,0,0,null,null,{"$f":"ROUND(AQ64/$AQ$67,4)","v":0},{"$f":"+V64","v":"Venta de energía eléctrica"},{"$f":"ROUND(IF('HC_RO_Valorización Ambiental'!$D$22=\"\",IF('HC_RO_Valorización Ambiental'!$F$12=Dropdown_digestores!$Q$4,'Modelo financiero (Energía)'!AQ$23*70%*'Modelo financiero (Energía)'!AQ$44,'Modelo financiero (Energía)'!AQ$22*70%*'Modelo financiero (Energía)'!AQ$44),'HC_RO_Valorización Ambiental'!$D$22*AQ$44*70%),0)","v":0},{"$f":"+AQ64*(1+$AQ$12)","v":0},{"$f":"+AR64*(1+$AQ$12)","v":0},0,0,0,0,0,0,0,0,0,0,0,0,0]
[{"$f":"ROUND(C65/$C$67,4)","v":1.9099999999999999E-2},"Venta de digestato",{"$f":"ROUND((C10*C45)*C27,0)","v":1650000},{"$f":"+C65*(1+$C$11)","v":1735800},1826061.6,1921016.8032000002,2020909.6769664004,2125996.9801686532,2236548.823137423,2352849.3619405692,2475197.5287614791,2603907.800257076,2739311.0058704442,2881755.1781757073,3031606.4474408445,3189249.9827077687,3355090.981808573,3529555.7128626187,null,null,{"$f":"ROUND(W65/$W$67,4)","v":1.9099999999999999E-2},"Venta de digestato",{"$f":"+W10*W45*W27","v":3300000},{"$f":"+W65*(1+$W$11)","v":3471600},3652123.2,3842033.6064000004,4041819.3539328007,4251993.9603373064,4473097.646274846,4705698.7238811385,4950395.0575229581,5207815.6005141521,5478622.0117408885,5763510.3563514147,6063212.894881689,6378499.9654155374,6710181.963617146,7059111.4257252375,null,null,{"$f":"ROUND(AQ65/$AQ$67,4)","v":1.9099999999999999E-2},"Venta de Digestato",{"$f":"+AQ10*AQ45*AQ27","v":8250000},{"$f":"+AQ65*(1+$AQ$11)","v":8679000},{"$f":"+AR65*(1+$AQ$11)","v":9130308},9605084.0160000008,10104548.384832,10629984.900843265,11182744.115687115,11764246.809702845,12375987.643807394,13019539.00128538,13696555.02935222,14408775.890878536,15158032.23720422,15946249.91353884,16775454.909042859,17647778.564313088]
[{"$f":"ROUND(C66/$C$67,4)","v":0.98089999999999999},"Tarifa de gestión de residuos",{"$f":"ROUND(C10*C16,0)","v":84932858},89349366.615999997,93995533.680032,98883301.431393668,104025233.10582614,109434545.22732911,115125141.57915023,121111648.94126604,127409454.68621188,134034746.32989492,141004553.13904947,148336789.90228006,156050302.97719863,164164918.73201296,172701494.50607765,181681972.22039369,null,null,{"$f":"ROUND(W66/$W$67,4)","v":0.98089999999999999},"Tarifa de gestión de residuos",{"$f":"+W10*W16","v":169865715.8726311},178698733.09800792,187991067.21910435,197766602.71449777,208050466.05565166,218869090.29054555,230250282.98565394,242223297.70090795,254818909.18135518,268069492.45878565,282009106.06664252,296673579.58210796,312100605.72037756,328329837.21783721,345402988.75316477,363363944.16832936,null,null,{"$f":"ROUND(AQ66/$AQ$67,4)","v":0.98089999999999999},"Tarifa de gestión de residuos",{"$f":"+AQ10*AQ16","v":424664289.6815778},{"$f":"+AQ66*(1+$AQ$11)","v":446746832.74501985},469977668.0477609,494416506.78624451,520126165.13912922,547172725.72636402,575625707.46413493,605558244.25226998,637047272.95338809,670173731.14696431,705022765.16660655,741683948.95527017,780251514.30094421,820824593.04459333,863507471.88291228,908409860.42082381]
[null,"Ingresos anuales previstos",{"$f":"+SUM(C64:C66)","v":86582858},91085166.615999997,95821595.280031994,100804318.23459367,106046142.78279254,111560542.20749776,117361690.40228765,123464498.30320661,129884652.21497336,136638654.13015199,143743864.1449199,151218545.08045578,159081909.42463946,167354168.71472073,176056585.48788622,185211527.9332563,null,null,null,"Ingresos anuales previstos",{"$f":"+SUM(W64:W66)","v":173165715.8726311},182170333.09800792,191643190.41910434,201608636.32089779,212092285.40958446,223121084.25088286,234723380.63192877,246928996.42478907,259769304.23887813,273277308.05929983,287487728.07838339,302437089.9384594,318163818.61525923,334708337.18325275,352113170.71678191,370423055.59405458,null,null,null,"Ingresos anuales previstos",{"$f":"+SUM(AQ64:AQ66)","v":432914289.6815778},{"$f":"+SUM(AR64:AR66)","v":455425832.74501985},479107976.0477609,504021590.80224448,530230713.52396125,557802710.62720728,586808451.57982206,617322491.06197286,649423260.59719551,683193270.14824975,718719320.19595873,756092724.84614873,795409546.5381484,836770842.95813215,880282926.79195511,926057638.98513687]
[]
[]
[null,"Costo (anual)",0,1,2,3,4,5,6,7,8,9,10,11,12,13,14,15,null,null,null,"Costo (anual)",0,1,2,3,4,5,6,7,8,9,10,11,12,13,14,15,null,null,null,"Costo (anual)",0,1,2,3,4,5,6,7,8,9,10,11,12,13,14,15]
[{"$f":"ROUND(C71/$C$76,4)","v":0},"Energía",{"$f":"ROUND(IF('HC_RO_Valorización Ambiental'!$D$22=\"\",IF('HC_RO_Valorización Ambiental'!$F$12=Dropdown_digestores!$Q$4,$C37*$C23,$C37*$C22),'HC_RO_Valorización Ambiental'!$D$22*$C37),0)","v":0},{"$f":"+C71*(1+$C$13)","v":0},{"$f":"+D71*(1+$C$13)","v":0},0,0,0,0,0,0,0,0,0,0,0,0,0,null,null,{"$f":"ROUND(W71/$W$76,4)","v":0},"Energía",{"$f":"IF('HC_RO_Valorización Ambiental'!$D$22=\"\",IF('HC_RO_Valorización Ambiental'!$F$12=Dropdown_digestores!$Q$4,$W37*$W23,$W37*$W22),'HC_RO_Valorización Ambiental'!$D$22*$W37)","v":0},{"$f":"+W71*(1+$W$13)","v":0},{"$f":"+X71*(1+$W$13)","v":0},0,0,0,0,0,0,0,0,0,0,0,0,0,null,null,{"$f":"ROUND(AQ71/$AQ$76,3)","v":0},"Energía",{"$f":"ROUND(IF('HC_RO_Valorización Ambiental'!$D$22=\"\",IF('HC_RO_Valorización Ambiental'!$F$12=Dropdown_digestores!$Q$4,AQ$37*AQ$23,AQ$37*AQ$22),'HC_RO_Valorización Ambiental'!$D$22*$AQ37),0)","v":0},{"$f":"+AQ71*(1+$AQ$13)","v":0},{"$f":"+AR71*(1+$AQ$13)","v":0},0,0,0,0,0,0,0,0,0,0,0,0,0]
[{"$f":"ROUND(C72/$C$76,4)","v":0},"Agua",{"$f":"ROUND(IF('HC_RO_Valorización Ambiental'!$F$12=Dropdown_digestores!$Q$4,(12*$C20)+($C39*$C19),(12*$C18)+($C39*$C17)),0)","v":0},{"$f":"+C72*(1+$C$14)","v":0},{"$f":"+D72*(1+$C$14)","v":0},0,0,0,0,0,0,0,0,0,0,0,0,0,null,null,{"$f":"ROUND(W72/$W$76,4)","v":0},"Agua",{"$f":"IF('HC_RO_Valorización Ambiental'!$F$12=Dropdown_digestores!$Q$4,(12*$W20)+($W39*$W19),(12*$W18)+($W39*$W17))","v":0},{"$f":"+W72*(1+$W$14)","v":0},{"$f":"+X72*(1+$W$14)","v":0},0,0,0,0,0,0,0,0,0,0,0,0,0,null,null,{"$f":"ROUND(AQ72/$AQ$76,3)","v":0},"Agua",{"$f":"ROUND(IF('HC_RO_Valorización Ambiental'!$F$12=Dropdown_digestores!$Q$4,(12*AQ$20)+(AQ$39*AQ$19),(12*AQ$18)+(AQ$39*AQ$17)),0)","v":0},{"$f":"+AQ72*(1+$AQ$14)","v":0},{"$f":"+AR72*(1+$AQ$14)","v":0},0,0,0,0,0,0,0,0,0,0,0,0,0]
[{"$f":"ROUND(C73/$C$76,4)","v":0.6401},"Personal",{"$f":"ROUND(C49*C50,0)","v":44239797},{"$f":"+C73*(1+$C$11)","v":46540266.444000006},48960360.299088009,51506299.034640588,54184626.5844419,57002227.166832879,59966342.979508191,63084592.81444262,66364991.640793636,69815971.206114903,73446401.708832875,77265614.597692192,81283426.556772187,85510164.737724349,89956693.304086015,94634441.355898485,null,null,{"$f":"ROUND(W73/$W$76,4)","v":0.58830000000000005},"Personal",{"$f":"+W49*W50","v":44239796.700000003},{"$f":"+W73*(1+$W$11)","v":46540266.128400005},48960359.967076808,51506298.685364805,54184626.217003778,57002226.780287974,59966342.572862953,63084592.386651829,66364991.190757729,69815970.732677132,73446401.210776344,77265614.073736712,81283426.005571023,85510164.157860726,89956692.69406949,94634440.714161113,null,null,{"$f":"ROUND(AQ73/$AQ$76,3)","v":0.308},"Personal",{"$f":"ROUND(AQ49*AQ50,0)","v":44239797},{"$f":"+AQ73*(1+$AQ$11)","v":46540266.444000006},48960360.299088009,51506299.034640588,54184626.5844419,57002227.166832879,59966342.979508191,63084592.81444262,66364991.640793636,69815971.206114903,73446401.708832875,77265614.597692192,81283426.556772187,85510164.737724349,89956693.304086015,94634441.355898485]
[{"$f":"ROUND(C74/$C$76,4)","v":0.3599},"Mantenimiento",{"$f":"ROUND($C$29*$C$34,0)","v":24875920},{"$f":"+$C$29*$C$34","v":24875919.953278702},24875919.953278702,24875919.953278702,24875919.953278702,24875919.953278702,24875919.953278702,24875919.953278702,24875919.953278702,24875919.953278702,24875919.953278702,24875919.953278702,24875919.953278702,24875919.953278702,24875919.953278702,24875919.953278702,null,null,{"$f":"ROUND(W74/$W$76,4)","v":0.41170000000000001},"Mantenimiento",{"$f":"+$W$29*$W$34","v":30962581.218442637},30962581.218442637,30962581.218442637,30962581.218442637,30962581.218442637,30962581.218442637,30962581.218442637,30962581.218442637,30962581.218442637,30962581.218442637,30962581.218442637,30962581.218442637,30962581.218442637,30962581.218442637,30962581.218442637,30962581.218442637,null,null,{"$f":"ROUND(AQ74/$AQ$76,3)","v":0.69199999999999995},"Mantenimiento",{"$f":"ROUND($AQ$29*$AQ$34,0)","v":99335025},{"$f":"+$AQ$29*$AQ$34","v":99335025.40051569},99335025.40051569,99335025.40051569,99335025.40051569,99335025.40051569,99335025.40051569,99335025.40051569,99335025.40051569,99335025.40051569,99335025.40051569,99335025.40051569,99335025.40051569,99335025.40051569,99335025.40051569,99335025.40051569]
[null,"Aguas residuales","-","-","-","-","-","-","-","-","-","-","-","-","-","-","-","-",null,null,null,"Aguas residuales",null,null,null,null,null,null,null,null,null,null,null,null,null,null,null,null,null,null,null,"Aguas residuales"]
[null,"Costos operativos anuales",{"$f":"+SUM(C71:C75)","v":69115717},71416186.397278711,73836280.252366707,76382218.987919286,79060546.537720606,81878147.120111585,84842262.932786897,87960512.767721325,91240911.594072342,94691891.159393609,98322321.66211158,102141534.5509709,106159346.51005089,110386084.69100305,114832613.25736472,119510361.30917719,null,null,null,"Costos operativos anuales",{"$f":"+SUM(W71:W75)","v":75202377.918442637},77502847.346842647,79922941.185519442,82468879.903807446,85147207.435446411,87964807.998730615,90928923.791305587,94047173.605094463,97327572.40920037,100778551.95111977,104408982.42921898,108228195.29217935,112246007.22401366,116472745.37630336,120919273.91251212,125597021.93260375,null,null,null,"Costos operativos anuales",{"$f":"+SUM(AQ71:AQ75)","v":143574822},145875291.84451568,148295385.69960371,150841324.43515629,153519651.98495758,156337252.56734857,null,{"$f":"+SUM(AX71:AX75)","v":162419618.21495831},165700017.04130933,169150996.60663059,172781427.10934857,176600639.99820787,180618451.95728788,184845190.13824004,189291718.70460171,193969466.75641418]
[null,"Capex total",{"$f":"+C29","v":497518399.06557399},null,null,null,null,null,null,null,null,null,null,null,null,null,null,null,null,null,null,"Capex total",{"$f":"+W29","v":619251624.36885273},null,null,null,null,null,null,null,null,null,null,null,null,null,null,null,null,null,null,"Capex total",{"$f":"+AQ29","v":1986700508.0103137}]
[]
[null,"Año",0,1,2,3,4,5,null,6,7,8,9,10,11,12,13,14,null,null,null,"Año",0,1,2,3,4,5,6,7,8,9,10,11,12,13,14,15,null,null,null,"Año",0,1,2,3,4,5,6,7,8,9,10,11,12,13,14,15]
[null,"Ganancias",{"$f":"+C67-C76","v":17467141},19668980.218721285,21985315.027665287,24422099.246674389,26985596.245071933,29682395.087386176,32519427.46950075,35503985.535485283,38643740.620901018,41946762.970758379,45421542.482808322,49077010.529484883,52922562.914588571,56968084.023717672,61223972.2305215,65701166.624079108,null,null,null,"Ganancias",{"$f":"+W67-W76","v":97963337.954188466},104667485.75116527,111720249.2335849,119139756.41709034,126945077.97413805,135156276.25215226,143794456.8406232,152881822.81969461,162441731.82967776,172498756.10818005,183078745.64916441,194208894.64628005,205917811.39124557,218235591.80694938,231193896.80426979,244826033.66145083,null,null,null,"Ganancias",{"$f":"+AQ67-AQ76","v":289339467.6815778},309550540.90050417,330812590.34815717,353180266.3670882,376711061.53900367,401465458.05985868,586808451.57982206,454902872.84701455,483723243.55588615,514042273.54161918,545937893.0866102,579492084.84794092,614791094.5808605,651925652.81989217,690991208.08735347,732088172.22872269]
[]
[]
[]
[null,"30 TPD",null,null,null,null,null,null,null,null,null,null,null,null,null,null,null,null,null,null,null,"13,6 TPD"]
[]
[null,"Información","Valor","Unidades",null,null,null,null,null,null,null,null,null,null,null,null,null,null,null,null,null,"Información","Valor","Unidades"]
[null,"Residuos orgánicos",30,"ton/día",null,null,null,null,null,null,null,null,null,null,null,null,null,null,null,null,null,"Residuos orgánicos",13.6,"ton/día"]
[null,"Residuos orgánicos",{"$f":"+C87*330","v":9900},"ton/año",null,null,null,null,null,null,null,null,null,null,null,null,null,null,null,null,null,"Residuos orgánicos",{"$f":"+W87*330","v":4488},"ton/año"]
[null,"IPC 2025",5.1999999999999998E-2,"%",null,null,null,null,null,null,null,null,null,null,null,null,null,null,null,null,null,"IPC 2025",5.1999999999999998E-2,"%"]
[null,"Incremento del biometano anual",0.14000000000000001,"%",null,null,null,null,null,null,null,null,null,null,null,null,null,null,null,null,null,"Incremento del biometano anual",0.14000000000000001,"%"]
[null,"Incremento de energía electrica anual",0.05,"%",null,null,null,null,null,null,null,null,null,null,null,null,null,null,null,null,null,"Incremento de energía electrica anual",0.05,"%"]
[null,"Incremento de agua anual",0.05,"%",null,null,null,null,null,null,null,null,null,null,null,null,null,null,null,null,null,"Incremento de agua anual",0.05,"%"]
[null,"Tarifas",null,null,null,null,null,null,null,null,null,null,null,null,null,null,null,null,null,null,null,"Tarifas"]
[null,"Tarifa de tratamiento de residuos orgánicos",{"$f":"+$C$16","v":257372.2967767138},"$/ton",null,null,null,null,null,null,null,null,null,null,null,null,null,null,null,null,null,"Tarifa de tratamiento de residuos orgánicos",{"$f":"+$C$16","v":257372.2967767138},"$/ton"]
[null,"Tarifa del agua - consumo (tarifa variable)- Comercial",{"$f":"+C17","v":false},"$/m3",null,null,null,null,null,null,null,null,null,null,null,null,null,null,null,null,null,"Tarifa del agua - consumo (tarifa variable)- Comercial",{"$f":"+C95","v":false},"$/m3"]
[null,"Tarifa del agua - consumo (tarifa fija) - Comercial",false,"COP/mes",null,null,null,null,null,null,null,null,null,null,null,null,null,null,null,null,null,"Tarifa del agua - consumo (tarifa fija) - Comercial",{"$f":"+C96","v":false},"COP/mes"]
[null,"Tarifa del agua - consumo (tarifa variable) - Industrial",false,"COP/m3",null,null,null,null,null,null,null,null,null,null,null,null,null,null,null,null,null,"Tarifa del agua - consumo (tarifa variable) - Industrial",false,"COP/m3"]
[null,"Tarifa del agua - consumo (tarifa fija) - Industrial",false,"COP/mes",null,null,null,null,null,null,null,null,null,null,null,null,null,null,null,null,null,"Tarifa del agua - consumo (tarifafija) - Industrial",false,"COP/mes"]
[null,"Tarifa del agua - tratamiento","-","$/m3",null,null,null,null,null,null,null,null,null,null,null,null,null,null,null,null,null,"Tarifa del agua - tratamiento","-","$/m3"]
[null,"Tarifa eléctrica venta (comercial)",false,"$/kWh",null,null,null,null,null,null,null,null,null,null,null,null,null,null,null,null,null,"Tarifa eléctrica venta (comercial)",false,"$/kWh"]
[null,"Tarifa eléctrica venta (industrial)",false,"$/kWh",null,null,null,null,null,null,null,null,null,null,null,null,null,null,null,null,null,"Tarifa eléctrica venta (industrial)",false,"$/kWh"]
[null,"Tarifa eléctrica compra","-","$/kWh",null,null,null,null,null,null,null,null,null,null,null,null,null,null,null,null,null,"Tarifa eléctrica compra","-","$/kWh"]
[null,"Tarifa de gas variable",false,"$/m3",null,null,null,null,null,null,null,null,null,null,null,null,null,null,null,null,null,"Tarifa de gas variable",false,"$/m3"]
[null,"Tarifa de gas fijo",false,"$/factura",null,null,null,null,null,null,null,null,null,null,null,null,null,null,null,null,null,"Tarifa de gas fijo",false,"$/factura"]
[null,"Tarifa digestato",50000,"$/ton",null,null,null,null,null,null,null,null,null,null,null,null,null,null,null,null,null,"Tarifa digestato",50000,"$/ton"]
[null,"Capex",null,null,null,null,null,null,null,null,null,null,null,null,null,null,null,null,null,null,null,"Capex"]
[null,"Valor tecnología",{"$f":"+Biodigestores!H11","v":8890161658.3841782},null,null,null,null,null,null,null,null,null,null,null,null,null,null,null,null,null,null,"Valor tecnología",{"$f":"+Biodigestores!H10","v":3734709078.9560957},"COP"]
[]
[null,"Operacional",null,null,null,null,null,null,null,null,null,null,null,null,null,null,null,null,null,null,null,"Operacional"]
[null,"Numero de operadores",1,null,null,null,null,null,null,null,null,null,null,null,null,null,null,null,null,null,null,"Numero de operadores",1]
[null,"Numero de profesionales",0,null,null,null,null,null,null,null,null,null,null,null,null,null,null,null,null,null,null,"Numero de profesionales",1]
[null,"% mantenimiento",0.05,"%",null,null,null,null,null,null,null,null,null,null,null,null,null,null,null,null,null,"% mantenimiento",0.05,"%"]
[null,"Consumos",null,null,null,null,null,null,null,null,null,null,null,null,null,null,null,null,null,null,null,"Consumos"]
[null,"Consumo de energía",{"$f":"+Biodigestores!I11","v":120},"kWh/día",null,null,null,null,null,null,null,null,null,null,null,null,null,null,null,null,null,"Consumo de energía",{"$f":"+Biodigestores!I10","v":120},"kWh/día"]
[null,"Consumo de energía",{"$f":"+C114*330","v":39600},"kWh/año",null,null,null,null,null,null,null,null,null,null,null,null,null,null,null,null,null,"Consumo de energía",{"$f":"+W114*330","v":39600},"kWh/año"]
[null,"Consumo de agua",{"$f":"+Biodigestores!J11","v":6},"m3/día",null,null,null,null,null,null,null,null,null,null,null,null,null,null,null,null,null,"Consumo de agua",{"$f":"+Biodigestores!J10","v":2.72},"m3/día"]
[null,"Consumo de agua",{"$f":"+C116*330","v":1980},"m3/año",null,null,null,null,null,null,null,null,null,null,null,null,null,null,null,null,null,"Consumo de agua",{"$f":"+W116*330","v":897.6},"m3/año"]
[null,"Generaciones",null,null,null,null,null,null,null,null,null,null,null,null,null,null,null,null,null,null,null,"Generaciones"]
[null,"Potencial de biogás por residuo",70,"m3/ton",null,null,null,null,null,null,null,null,null,null,null,null,null,null,null,null,null,"Biogas",70,"m3/ton"]
[null,"Producción de biogás",{"$f":"+C119*C88","v":693000},"m3/año",null,null,null,null,null,null,null,null,null,null,null,null,null,null,null,null,null,"Biogas",{"$f":"+W119*W88","v":314160},"m3/año"]
[null,"Potencial energético",{"$f":"+'FE y conversiones'!$B$78","v":1.2223574999999998},"kWh/m3",null,null,null,null,null,null,null,null,null,null,null,null,null,null,null,null,null,"Potencial energético",{"$f":"+'FE y conversiones'!$B$78","v":1.2223574999999998},"kWh/m3"]
[null,"Producción energia eléctrica",{"$f":"+C120*C121","v":847093.74749999982},"kWh/año",null,null,null,null,null,null,null,null,null,null,null,null,null,null,null,null,null,"Producción energia eléctrica",{"$f":"+W120*W121","v":384015.83219999995},"kWh/año"]
[null,"Digestato",0.1,"ton/tonRO",null,null,null,null,null,null,null,null,null,null,null,null,null,null,null,null,null,"Digestato",0.1,"ton/tonRO"]
[]
[null,"Laboral","Cantidad",null,null,"Operador","Profesional","Porcentaje por la empresa",null,null,null,null,null,null,null,null,null,null,null,null,null,"Laboral","Cantidad",null,null,"Operador","Profesional","Porcentaje por la empresa"]
[null,"N° de Operadores",2,null,"Salario",{"$f":"(1423500*1.5)","v":2135250},{"$f":"(1423500*2.5)","v":3558750},null,null,null,null,null,null,null,null,null,null,null,null,null,null,"N° de Operadores",1,null,"Salario",{"$f":"(1423500*1.5)","v":2135250},{"$f":"(1423500*2.5)","v":3558750}]
[null,"Salario del Operador (1.5 smmlv) por mes",{"$f":"+F137","v":3686649.7250000001},null,"Auxilio de transporte",200000,0,null,null,null,null,null,null,null,null,null,null,null,null,null,null,"Salario del Operador (1.5 smmlv) por mes",{"$f":"+Z137","v":3686649.7250000001},null,"Auxilio de transporte",200000,0]
[null,"Meses requeridos por año",12,null,"Salud",{"$f":"F$48*H128","v":181496.25},{"$f":"$G$126*H128","v":302493.75},8.5000000000000006E-2,null,null,null,null,null,null,null,null,null,null,null,null,null,"Meses requeridos por año",12,null,"Salud",{"$f":"$Z$48*AB128","v":181496.25},{"$f":"$AA$126*AB128","v":302493.75},8.5000000000000006E-2]
[null,"N° de Técnicos Especializados",1,null,"Pensión",256230,427050,0.12,null,null,null,null,null,null,null,null,null,null,null,null,null,"N° de Técnicos Especializados",1,null,"Pensión",256230,427050,0.12]
[null,"Salario de un Técnico Especializado (2.5 smmlv)",{"$f":"+G137","v":5811082.875},null,"ARL",148613.4,247688.99999999997,6.9599999999999995E-2,null,null,null,null,null,null,null,null,null,null,null,null,null,"Salario de un Técnico Especializado (2.5 smmlv)",{"$f":"+AA137","v":5811082.875},null,"ARL",148613.4,247688.99999999997,6.9599999999999995E-2]
[null,"Meses requeridos por año",6,null,"Impuesto parafiscal",192172.5,320287.5,0.09,null,null,null,null,null,null,null,null,null,null,null,null,null,"Meses requeridos por año",6,null,"Impuesto parafiscal",192172.5,320287.5,0.09]
[null,"Costo total de mano de obra por año",{"$f":"+(C127*C128)+(C130*C131)","v":79106293.950000003},null,"Bono",177866.32500000001,296443.875,8.3299999999999999E-2,null,null,null,null,null,null,null,null,null,null,null,null,null,"Costo total de mano de obra por año",{"$f":"+(W127*W128)+(AA137*W131)","v":79106293.950000003},null,"Bono",177866.32500000001,296443.875,8.3299999999999999E-2]
[null,null,null,null,"Cesantía",177866.32500000001,296443.875,8.3299999999999999E-2,null,null,null,null,null,null,null,null,null,null,null,null,null,null,null,null,"Cesantía",177866.32500000001,296443.875,8.3299999999999999E-2]
[null,null,null,null,"Intereses de despido",21352.5,35587.5,0.01,null,null,null,null,null,null,null,null,null,null,null,null,null,null,null,null,"Intereses de despido",21352.5,35587.5,0.01]
[null,null,null,null,"Vacaciones",89039.925000000003,148399.875,4.1700000000000001E-2,null,null,null,null,null,null,null,null,null,null,null,null,null,null,null,null,"Vacaciones",89039.925000000003,148399.875,4.1700000000000001E-2]
[null,null,null,null,"Dotación",106762.5,177937.5,0.05,null,null,null,null,null,null,null,null,null,null,null,null,null,null,null,null,"Dotación",106762.5,177937.5,0.05]
[null,null,null,null,"Costo medio mensual",{"$f":"SUM(F126:F136)","v":3686649.7250000001},{"$f":"SUM(G126:G136)","v":5811082.875},null,null,null,null,null,null,null,null,null,null,null,null,null,null,null,null,null,"Costo medio mensual",{"$f":"SUM(Z126:Z136)","v":3686649.7250000001},{"$f":"SUM(AA126:AA136)","v":5811082.875}]
[]
[]
[]
[null,"Ingresos (anuales)",0,1,2,3,4,5,null,6,7,8,9,10,11,12,13,14,null,null,null,"Ingresos (anuales)",0,1,2,3,4,5,null,6,7,8,9,10,11,12,13,14]
[{"$f":"ROUND(C142/$C$145,4)","v":0},{"$f":"+B64","v":"Venta de energía eléctrica"},{"$f":"ROUND(IF('HC_RO_Valorización Ambiental'!$D$22=\"\",IF('HC_RO_Valorización Ambiental'!$F$12=Dropdown_digestores!$Q$4,'Modelo financiero (Energía)'!C$101*70%*'Modelo financiero (Energía)'!C$122,'Modelo financiero (Energía)'!C$100*70%*'Modelo financiero (Energía)'!C$122),'HC_RO_Valorización Ambiental'!$D$22*C$122*70%),0)","v":0},{"$f":"+C142*(1+$C$90)","v":0},{"$f":"+D142*(1+$C$90)","v":0},0,0,0,0,0,0,0,0,0,0,0,0,0,null,null,{"$f":"ROUND(W142/$W$145,4)","v":0},{"$f":"+B142","v":"Venta de energía eléctrica"},{"$f":"ROUND(IF('HC_RO_Valorización Ambiental'!$D$22=\"\",IF('HC_RO_Valorización Ambiental'!$F$12=Dropdown_digestores!$Q$4,'Modelo financiero (Energía)'!W$101*70%*'Modelo financiero (Energía)'!W$122,'Modelo financiero (Energía)'!W$100*70%*'Modelo financiero (Energía)'!W$122),'HC_RO_Valorización Ambiental'!$D$22*W$122*70%),0)","v":0},{"$f":"+W142*(1+$W$90)","v":0},{"$f":"+X142*(1+$W$90)","v":0},0,0,0,0,0,0,0,0,0,0,0,0,0]
[{"$f":"ROUND(C143/$C$145,4)","v":1.9099999999999999E-2},"Venta de Digestato",{"$f":"+C88*C123*C105","v":49500000},{"$f":"+C143*(1+$C$89)","v":52074000},54781848,57630504.096000001,60627290.308992006,63779909.405059591,67096464.694122694,70585480.858217075,74255925.862844363,78117234.007712275,82179330.176113322,86452655.345271215,90948193.423225328,95677499.481233045,100652729.45425718,105886671.38587855,null,null,{"$f":"ROUND(W143/$W$145,4)","v":1.9099999999999999E-2},"Venta de Digestato",{"$f":"+W88*W123*W105","v":22440000},{"$f":"+W143*(1+$W$89)","v":23606880},24834437.760000002,26125828.523520004,27484371.606743045,28913558.930293683,30417063.994668957,31998751.322391745,33662686.391156115,35413146.083496235,37254629.679838039,39191870.423189618,41229847.685195483,43373799.76482565,45629237.352596588,48001957.694931611]
[{"$f":"ROUND(C144/$C$145,4)","v":0.98089999999999999},"Tarifa de gestión de residuos",{"$f":"+C88*C94","v":2547985738.0894666},2680480996.470119,2819866008.2865653,2966499040.7174668,3120756990.8347754,3283036354.3581839,3453754244.7848096,3633349465.5136199,3822283637.7203283,4021042386.8817854,4230136590.9996386,4450103693.7316198,4681509085.8056641,4924947558.2675591,5181044831.297472,5450459162.5249405,null,null,{"$f":"ROUND(W144/$W$145,4)","v":0.98089999999999999},"Tarifa de gestión de residuos",{"$f":"+W88*W94","v":1155086867.9338915},1215151385.0664539,1278339257.0899096,1344812898.458585,1414743169.1784315,1488309813.9757099,1565701924.3024468,1647118424.3661742,1732768582.4332154,1822872548.7197428,1917661921.2531695,2017380341.1583345,2122284118.8985679,2232642893.0812936,2348740323.5215211,2470874820.3446403]
[null,"Ingresos anuales previstos",{"$f":"+SUM(C142:C144)","v":2597485738.0894666},2732554996.470119,2874647856.2865653,3024129544.813467,3181384281.1437674,3346816263.7632437,3520850709.4789324,3703934946.3718371,3896539563.5831728,4099159620.8894978,4312315921.1757517,4536556349.0768909,4772457279.2288895,5020625057.7487917,5281697560.751729,5556345833.9108191,null,null,null,"Ingresos anuales previstos",{"$f":"+SUM(W142:W144)","v":1177526867.9338915},1238758265.0664539,1303173694.8499095,1370938726.982105,1442227540.7851746,1517223372.9060037,1596118988.2971158,1679117175.688566,1766431268.8243716,1858285694.8032391,1954916550.9330075,2056572211.5815241,2163513966.5837636,2276016692.8461194,2394369560.8741179,2518876778.0395718]
[]
[]
[null,"Costo (anual)",0,1,2,3,4,5,null,6,7,8,9,10,11,12,13,14,null,null,null,"Costo (anual)",0,1,2,3,4,5,null,6,7,8,9,10,11,12,13,14]
[{"$f":"ROUND(C149/$C$154,4)","v":0},"Energía",{"$f":"IF('HC_RO_Valorización Ambiental'!$D$22=\"\",IF('HC_RO_Valorización Ambiental'!$F$12=Dropdown_digestores!$Q$4,$C115*$C101,$C115*$C100),'HC_RO_Valorización Ambiental'!$D$22*$C115)","v":0},{"$f":"+C149*(1+$C$91)","v":0},{"$f":"+D149*(1+$C$91)","v":0},0,0,0,0,0,0,0,0,0,0,0,0,0,null,null,{"$f":"ROUND(W149/$W$154,3)","v":0},"Energía",{"$f":"IF('HC_RO_Valorización Ambiental'!$D$22=\"\",IF('HC_RO_Valorización Ambiental'!$F$12=Dropdown_digestores!$Q$4,$W115*$W101,$W115*$W100),'HC_RO_Valorización Ambiental'!$D$22*$W115)","v":0},{"$f":"+W149*(1+$W$91)","v":0},{"$f":"+X149*(1+$W$91)","v":0},0,0,0,0,0,0,0,0,0,0,0,0,0]
[{"$f":"ROUND(C150/$C$154,4)","v":0},"Agua",{"$f":"IF('HC_RO_Valorización Ambiental'!$F$12=Dropdown_digestores!$Q$4,(12*$C98)+($C117*$C97),(12*$C96)+($C117*$C95))","v":0},{"$f":"+C150*(1+$C$92)","v":0},{"$f":"+D150*(1+$C$92)","v":0},0,0,0,0,0,0,0,0,0,0,0,0,0,null,null,{"$f":"ROUND(W150/$W$154,3)","v":0},"Agua",{"$f":"IF('HC_RO_Valorización Ambiental'!$F$12=Dropdown_digestores!$Q$4,(12*$W98)+($W117*$W97),(12*$W96)+($W117*$W95))","v":0},{"$f":"+W150*(1+$W$92)","v":0},{"$f":"+X150*(1+$W$92)","v":0},0,0,0,0,0,0,0,0,0,0,0,0,0]
[{"$f":"ROUND(C151/$C$154,4)","v":0.15110000000000001},"Personal",{"$f":"+C132","v":79106293.950000003},{"$f":"+C151*(1+$C$89)","v":83219821.235400006},87547251.939640805,92099709.040502131,96888893.910608247,101927116.39395988,107227326.44644579,112803147.42166097,118668911.08758736,124839694.46414191,131331358.57627729,138160589.2222437,145344939.86180037,152902876.73461398,160853826.32481393,169218225.29370427,null,null,{"$f":"ROUND(W151/$W$154,3)","v":0.29799999999999999},"Personal",{"$f":"+W132","v":79106293.950000003},{"$f":"+W151*(1+$W$89)","v":83219821.235400006},87547251.939640805,92099709.040502131,96888893.910608247,101927116.39395988,107227326.44644579,112803147.42166097,118668911.08758736,124839694.46414191,131331358.57627729,138160589.2222437,145344939.86180037,152902876.73461398,160853826.32481393,169218225.29370427]
[{"$f":"ROUND(C152/$C$154,4)","v":0.84889999999999999},"Mantenimiento",{"$f":"+$C$107*$C$112","v":444508082.91920894},444508082.91920894,444508082.91920894,444508082.91920894,444508082.91920894,444508082.91920894,444508082.91920894,444508082.91920894,444508082.91920894,444508082.91920894,444508082.91920894,444508082.91920894,444508082.91920894,444508082.91920894,444508082.91920894,444508082.91920894,null,null,{"$f":"ROUND(W152/$W$154,3)","v":0.70199999999999996},"Mantenimiento",{"$f":"+$W$107*$W$112","v":186735453.94780481},196445697.55309066,206660873.82585138,217407239.26479566,228712415.70656505,240605461.32330644,253116945.31211838,266279026.46834856,280125535.84470272,294692063.70862728,310016051.02147591,326136885.67459267,343096003.72967148,360936995.92361438,379705719.71164232,399450417.13664776]
[null,"Aguas residuales",null,null,null,null,null,null,null,null,null,null,null,null,null,null,null,null,null,null,null,"Aguas residuales"]
[null,"Costos operativos anuales",{"$f":"+SUM(C149:C153)","v":523614376.86920893},527727904.15460896,532055334.85884976,536607791.95971107,541396976.82981718,546435199.31316876,551735409.36565471,557311230.3408699,563176994.00679636,569347777.38335085,575839441.49548626,582668672.14145267,589853022.78100932,597410959.6538229,605361909.24402285,613726308.21291327,null,null,null,"Costos operativos anuales",{"$f":"+SUM(W149:W153)","v":265841747.8978048},279665518.78849065,294208125.7654922,309506948.30529779,325601309.61717331,342532577.71726632,360344271.75856417,379082173.89000952,398794446.93229008,419531758.17276919,441347409.59775317,464297474.8968364,488440943.59147185,513839872.6582284,540559546.03645623,568668642.43035197]
[null,"Capex total",{"$f":"+C107","v":8890161658.3841782},null,null,null,null,null,null,null,null,null,null,null,null,null,null,null,null,null,null,"Capex total",{"$f":"+W107","v":3734709078.9560957}]
[]
[null,"Año",0,1,2,3,4,5,null,6,7,8,9,10,11,12,13,14,null,null,null,"Año",0,1,2,3,4,5,null,6,7,8,9,10,11,12,13,14]
[null,"Ganancias",{"$f":"+C145-C154","v":2073871361.2202578},2204827092.3155098,2342592521.4277153,2487521752.853756,2639987304.3139501,2800381064.4500751,2969115300.1132774,3146623716.0309672,3333362569.5763764,3529811843.5061469,3736476479.6802654,3953887676.9354382,4182604256.4478803,4423214098.0949688,4676335651.5077057,4942619525.6979055,null,null,null,"Ganancias",{"$f":"+W145-W154","v":911685120.0360868},959092746.27796328,1008965569.0844173,1061431778.6768072,1116626231.1680012,1174690795.1887374,1235774716.5385516,1300035001.7985563,1367636821.8920815,1438753936.6304698,1513569141.3352542,1592274736.6846876,1675073022.9922917,1762176820.187891,1853810014.8376617,1950208135.6092198]
[]
[]
[]
[]
[]
[null,null,null,null,null,"Costos operativos - Año 0",null,null,null,"Ingresos - Año 0"]
["Capacidad planta (ton/día)","Capacidad planta (ton/año)","CAPEX (COP)","OPEX (COP) - Año 0","Ingreso anual (COP) - Año 0","Energia (%)","Agua (%)","Personal (%)","Mantenimiento (%)","Venta de energia (%)","Venta de digestato (%)","Tarifa de gestión de residuos (%)"]
[{"$f":"+B166/330","v":1},{"$f":"+C10","v":330},{"$f":"+C77","v":497518399.06557399},{"$f":"+C76","v":69115717},{"$f":"+C67","v":86582858},{"$f":"+A71","v":0},{"$f":"+A72","v":0},{"$f":"+A73","v":0.6401},{"$f":"+A74","v":0.3599},{"$f":"+$A$64","v":0},{"$f":"+A65","v":1.9099999999999999E-2},{"$f":"+A66","v":0.98089999999999999}]
[{"$f":"+B167/330","v":2},{"$f":"+W10","v":660},{"$f":"+W77","v":619251624.36885273},{"$f":"+W76","v":75202377.918442637},{"$f":"+W67","v":173165715.8726311},{"$f":"+U71","v":0},{"$f":"+U72","v":0},{"$f":"+U73","v":0.58830000000000005},{"$f":"+U74","v":0.41170000000000001},{"$f":"+U64","v":0},{"$f":"+U65","v":1.9099999999999999E-2},{"$f":"+U66","v":0.98089999999999999}]
[5,{"$f":"+AQ10","v":1650},{"$f":"+AQ77","v":1986700508.0103137},{"$f":"+AQ76","v":143574822},{"$f":"+AQ67","v":432914289.6815778},{"$f":"+AO71","v":0},{"$f":"+AO72","v":0},{"$f":"+AO73","v":0.308},{"$f":"+AO74","v":0.69199999999999995},{"$f":"+AO64","v":0},{"$f":"+AO65","v":1.9099999999999999E-2},{"$f":"+AO66","v":0.98089999999999999}]
[{"$f":"+B169/330","v":13.6},{"$f":"+W88","v":4488},{"$f":"+W155","v":3734709078.9560957},{"$f":"+W154","v":265841747.8978048},{"$f":"+W145","v":1177526867.9338915},{"$f":"+U149","v":0},{"$f":"+U150","v":0},{"$f":"+U151","v":0.29799999999999999},{"$f":"+U152","v":0.70199999999999996},{"$f":"+U142","v":0},{"$f":"+U143","v":1.9099999999999999E-2},{"$f":"+U144","v":0.98089999999999999}]
[30,{"$f":"+C88","v":9900},{"$f":"+C155","v":8890161658.3841782},{"$f":"+C154","v":523614376.86920893},{"$f":"+C145","v":2597485738.0894666},{"$f":"+A149","v":0},{"$f":"+A150","v":0},{"$f":"+A151","v":0.15110000000000001},{"$f":"+A152","v":0.84889999999999999},{"$f":"+A142","v":0},{"$f":"+A143","v":1.9099999999999999E-2},{"$f":"+A144","v":0.98089999999999999}]
[null,null,null,null,"Promedio ponderado",{"$f":"ROUND(SUMPRODUCT(F166*B166+F167*B167+F168*B168+F169*B169+F170*B170)/SUM($B$166:$B$167,$B$168,$B$169:$B$170),5)","v":0},{"$f":"ROUND(SUMPRODUCT(G166*B166+G167*B167+G168*B168+G169*B169+G170*B170)/SUM($B$166:$B$167,$B$168,$B$169:$B$170),5)","v":0},{"$f":"ROUND(SUMPRODUCT(H166*B166+H167*B167+H168*B168+H169*B169+H170*B170)/SUM($B$166:$B$167,$B$168,$B$169:$B$170),5)","v":0.23144000000000001},{"$f":"ROUND(SUMPRODUCT(I166*B166+I167*B167+I168*B168+I169*B169+I170*B170)/SUM($B$166:$B$167,$B$168,$B$169:$B$170),5)","v":0.76856000000000002},{"$f":"ROUND(SUMPRODUCT(J166*B166+J167*B167+J168*B168+J169*B169+J170*B170)/SUM($B$166:$B$167,$B$168,$B$169:$B$170),3)","v":0},{"$f":"ROUND(SUMPRODUCT(K166*B166+K167*B167+K168*B168+K169*B169+K170*B170)/SUM($B$166:$B$167,$B$168,$B$169:$B$170),3)","v":1.9E-2},{"$f":"ROUND(SUMPRODUCT(L166*B166+L167*B167+L168*B168+L169*B169+L170*B170)/SUM($B$166:$B$167,$B$168,$B$169:$B$170),3)","v":0.98099999999999998}]
[]
[{"$f":"+(C166-($B$175*B166+$C$175))/C166","v":4.3591254245070293E-2},"Coeficientes de regresión lineal (CAPEX)",null,{"$f":"+B166","v":330},497518399.06557399,69115717,86582858]
[{"$f":"+(C167-($B$175*B167+$C$175))/C167","v":-0.23099261797553974},"m","b",660,619251624.36885273,75202377.918442637,173165715.8726311]
[{"$f":"+(C168-($B$175*B168+$C$175))/C168","v":0.18373007788029366},{"$f":"+LINEST(E173:E177,D173:D177)","v":868070.39462761628},189367717.81319284,1650,1986700508.0103137,143574822,432914289.6815778]
[{"$f":"+(C169-($B$175*B169+$C$175))/C169","v":-9.3865027378203458E-2},"Coeficientes de regresión lineal (OPEX)",null,{"$f":"+B169","v":4488},{"$f":"+C169","v":3734709078.9560957},265841747.8978048,1177526867.9338915]
[{"$f":"+(C170-($B$175*B170+$C$175))/C170","v":1.2024194594568766E-2},{"$f":"+LINEST(F173:F177,D173:D177)","v":47568.463128920186},53470650.305240691,{"$f":"+B170","v":9900},8890161658.3841782,523614376.86920893,2597485738.0894666]
[{"$f":"+AVERAGE(A173:A177)","v":-1.7102423726762093E-2},"Coeficientes de regresión lineal (Ingreso anual)"]
[null,{"$f":"+LINEST(G173:G177,D173:D177,FALSE)","v":262372.29677688685},0]

{"sheet":"Modelo financiero (Biogas)","index":9,"n_rows":175,"n_cols":58,"rows_kept":175,"cut":false,"hidden":true,"merged":[[168,1,168,2],[171,1,171,2],[159,5,159,8],[159,9,159,11],[173,1,173,2],[21,5,26,5],[21,25,26,25],[21,45,26,45],[1,2,1,57],[5,11,5,12],[5,31,5,32],[5,51,5,52],[14,1,14,3],[14,21,14,23],[14,41,14,43],[3,1,3,14],[27,1,27,3],[27,21,27,23],[27,41,27,43],[30,1,30,3],[30,21,30,23],[30,41,30,43],[81,51,81,52],[90,1,90,3],[90,21,90,23],[90,41,90,43],[34,1,34,3],[34,21,34,23],[34,41,34,43],[39,1,39,3],[39,21,39,23],[39,41,39,43],[97,5,102,5],[97,25,102,25],[97,45,102,45],[81,11,81,12],[81,31,81,32],[103,1,103,3],[103,21,103,23],[103,41,103,43],[106,1,106,3],[106,21,106,23],[106,41,106,43],[110,1,110,3],[110,21,110,23],[110,41,110,43],[115,1,115,3],[115,21,115,23],[115,41,115,43]]}
[]
[null,null,"MODELOS FINANCIEROS PARA EVALUAR LA VIABILIDAD DE LA IMPLEMENTACIÓN DE BIODIGESTORES IN SITU EN LAS PLAZAS DE MERCADO DE COLOMBIA SEGÚN EL TAMAÑO DE LA TECNOLOGÍA"]
[]
[null,"\nEl modelo financiero para evaluar la viabilidad de la implementación de biodigestores tiene como objetivo proporcionar un análisis exhaustivo de los aspectos económicos involucrados, considerando tanto los ingresos como los costos anuales durante un período de 15 años. Este análisis abarca el costo de inversión inicial (CAPEX), los costos operativos recurrentes y las diversas fuentes de ingresos, tales como la venta de biogás y digestato, así como los beneficios derivados de la reducción en los costos de gestión de residuos.\nEl estudio se desarrolla mediante cinco modelos financieros, correspondientes a biodigestores de diferentes tamaños: 1 tonelada, 2 toneladas, 5 toneladas, 15 toneladas y 30 toneladas. En cada uno de estos modelos, se detallan aspectos como el consumo anual de energía, agua y personal, así como la generación de biogás, digestato y las tarifas asociadas con la gestión de residuos. Estos valores se calculan para el primer año, y para los años siguientes se aplica el valor del IPC 2025 como variable fija, que ajusta tanto los costos como los ingresos de acuerdo con la inflación proyectada."]
[]
[null,"1 TPD",null,null,null,null,null,null,null,null,null,null,null,null,null,null,null,null,null,null,null,"2 TPD",null,null,null,null,null,null,null,null,null,null,null,null,null,null,null,null,null,null,null,"5 TPD"]
[]
[null,"Información","Valor","Unidades",null,null,null,null,null,null,null,null,null,null,null,null,null,null,null,null,null,"Información","Valor","Unidades",null,null,null,null,null,null,null,null,null,null,null,null,null,null,null,null,null,"Información","Valor","Unidades"]
[null,"Residuos orgánicos",1,"ton/día",null,null,null,null,null,null,null,null,null,null,null,null,null,null,null,null,null,"Residuos orgánicos",2,"ton/día",null,null,null,null,null,null,null,null,null,null,null,null,null,null,null,null,null,"Residuos orgánicos",5,"ton/día"]
[null,"Residuos orgánicos",{"$f":"+C9*330","v":330},"ton/año",null,null,null,null,null,null,null,null,null,null,null,null,null,null,null,null,null,"Residuos orgánicos",{"$f":"+W9*330","v":660},"ton/año",null,null,null,null,null,null,null,null,null,null,null,null,null,null,null,null,null,"Residuos orgánicos",{"$f":"+AQ9*330","v":1650},"ton/año"]
[null,"IPC 2025",5.1999999999999998E-2,"%",null,null,null,null,null,null,null,null,null,null,null,null,null,null,null,null,null,"IPC 2025",5.1999999999999998E-2,"%",null,null,null,null,null,null,null,null,null,null,null,null,null,null,null,null,null,"IPC 2025",5.1999999999999998E-2,"%"]
[null,"Incremento del biometano anual",0.14000000000000001,"%",null,null,null,null,null,null,null,null,null,null,null,null,null,null,null,null,null,"Incremento del biometano anual",0.14000000000000001,"%",null,null,null,null,null,null,null,null,null,null,null,null,null,null,null,null,null,"Incremento del biometano anual",0.14000000000000001,"%"]
[null,"Incremento de energía electrica anual",0.05,"%",null,null,null,null,null,null,null,null,null,null,null,null,null,null,null,null,null,"Incremento de energía electrica anual",0.05,"%",null,null,null,null,null,null,null,null,null,null,null,null,null,null,null,null,null,"Incremento de energía electrica anual",0.05,"%"]
[null,"Incremento de agua anual",0.05,"%",null,null,null,null,null,null,null,null,null,null,null,null,null,null,null,null,null,"Incremento de agua anual",0.05,"%",null,null,null,null,null,null,null,null,null,null,null,null,null,null,null,null,null,"Incremento de agua anual",0.05,"%"]
[null,"Tarifas",null,null,null,null,null,null,null,null,null,null,null,null,null,null,null,null,null,null,null,"Tarifas",null,null,null,null,null,null,null,null,null,null,null,null,null,null,null,null,null,null,null,"Tarifas"]
[null,"Tarifa de tratamiento de residuos orgánicos",{"$f":"IF('HC_RO_Valorización Ambiental'!$D$16=\"\",'Base de datos'!$P$7,IF('HC_RO_Valorización Ambiental'!$E$16=\"$/kg\",'HC_RO_Valorización Ambiental'!$D$16*1000,'HC_RO_Valorización Ambiental'!$D$16))","v":257372.2967767138},"$/ton",null,null,null,null,null,null,null,null,null,null,null,null,null,null,null,null,null,"Tarifa de tratamiento de residuos orgánicos",{"$f":"+C16","v":257372.2967767138},"$/ton",null,null,null,null,null,null,null,null,null,null,null,null,null,null,null,null,null,"Tarifa de tratamiento de residuos orgánicos",{"$f":"+$C$16","v":257372.2967767138},"$/ton"]
[null,"Tarifa del agua - consumo (tarifa variable)- Comercial",{"$f":"IF(OR('HC_RO_Valorización Ambiental'!$F$12=Dropdown_digestores!$Q$5,'HC_RO_Valorización Ambiental'!$F$12=Dropdown_digestores!$Q$6),IF(_xlfn.XLOOKUP('HC_RO_Valorización Ambiental'!$F$7,'Base de datos'!$B$9:$B$41,'Base de datos'!$E$9:$E$41)=\"\",'Base de datos'!$E$13,_xlfn.XLOOKUP('HC_RO_Valorización Ambiental'!$F$7,'Base de datos'!$B$9:$B$41,'Base de datos'!$E$9:$E$41)))","v":false},"$/m3",null,null,null,null,null,null,null,null,null,null,null,null,null,null,null,null,null,"Tarifa del agua - consumo (tarifa variable)- Comercial",{"$f":"+C17","v":false},"$/m3",null,null,null,null,null,null,null,null,null,null,null,null,null,null,null,null,null,"Tarifa del agua - consumo (tarifa variable)- Comercial",{"$f":"+C17","v":false},"$/m3"]
[null,"Tarifa del agua - consumo (tarifa fija) - Comercial",{"$f":"IF(OR('HC_RO_Valorización Ambiental'!$F$12=Dropdown_digestores!$Q$5,'HC_RO_Valorización Ambiental'!$F$12=Dropdown_digestores!$Q$6),IF(_xlfn.XLOOKUP('HC_RO_Valorización Ambiental'!$F$7,'Base de datos'!$B$9:$B$41,'Base de datos'!$D$9:$D$41)=\"\",'Base de datos'!$D$13,_xlfn.XLOOKUP('HC_RO_Valorización Ambiental'!$F$7,'Base de datos'!$B$9:$B$41,'Base de datos'!$D$9:$D$41)))","v":false},"COP/mes",null,null,null,null,null,null,null,null,null,null,null,null,null,null,null,null,null,"Tarifa del agua - consumo (tarifa fija) - Comercial",{"$f":"+C18","v":false},"COP/mes",null,null,null,null,null,null,null,null,null,null,null,null,null,null,null,null,null,"Tarifa del agua - consumo (tarifa fija) - Comercial",{"$f":"+C18","v":false},"COP/mes"]
[null,"Tarifa del agua - consumo (tarifa variable) - Industrial",{"$f":"IF('HC_RO_Valorización Ambiental'!$F$12=Dropdown_digestores!$Q$4,IF(_xlfn.XLOOKUP('HC_RO_Valorización Ambiental'!$F$7,'Base de datos'!$B$9:$B$41,'Base de datos'!$G$9:$G$41)=\"\",'Base de datos'!$G$13,_xlfn.XLOOKUP('HC_RO_Valorización Ambiental'!$F$7,'Base de datos'!$B$9:$B$41,'Base de datos'!$G$9:$G$41)))","v":false},"COP/m3",null,null,null,null,null,null,null,null,null,null,null,null,null,null,null,null,null,"Tarifa del agua - consumo (tarifa variable) - Industrial",false,"COP/m3",null,null,null,null,null,null,null,null,null,null,null,null,null,null,null,null,null,"Tarifa del agua - consumo (tarifa variable) - Industrial",false,"COP/m3"]
[null,"Tarifa del agua - consumo (tarifa fija) - Industrial",{"$f":"IF('HC_RO_Valorización Ambiental'!$F$12=Dropdown_digestores!$Q$4,IF(_xlfn.XLOOKUP('HC_RO_Valorización Ambiental'!$F$7,'Base de datos'!$B$9:$B$41,'Base de datos'!$F$9:$F$41)=\"\",'Base de datos'!$F$13,_xlfn.XLOOKUP('HC_RO_Valorización Ambiental'!$F$7,'Base de datos'!$B$9:$B$41,'Base de datos'!$F$9:$F$41)))","v":false},"COP/mes",null,null,null,null,null,null,null,null,null,null,null,null,null,null,null,null,null,"Tarifa del agua - consumo (tarifafija) - Industrial",false,"COP/mes",null,null,null,null,null,null,null,null,null,null,null,null,null,null,null,null,null,"Tarifa del agua - consumo (tarifafija) - Industrial",false,"COP/mes"]
[null,"Tarifa del agua - tratamiento","-","$/m3",null,null,null,null,null,null,null,null,null,null,null,null,null,null,null,null,null,"Tarifa del agua - tratamiento","-","$/m3",null,null,null,null,null,null,null,null,null,null,null,null,null,null,null,null,null,"Tarifa del agua - tratamiento","-","$/m3"]
[null,"Tarifa eléctrica compra (comercial)",{"$f":"IF(OR('HC_RO_Valorización Ambiental'!$F$12=Dropdown_digestores!$Q$5,'HC_RO_Valorización Ambiental'!$F$12=Dropdown_digestores!$Q$6),IF(_xlfn.XLOOKUP('HC_RO_Valorización Ambiental'!$F$7,'Base de datos'!$B$9:$B$41,'Base de datos'!$H$9:$H$41)=\"\",'Base de datos'!$H$13,_xlfn.XLOOKUP('HC_RO_Valorización Ambiental'!$F$7,'Base de datos'!$B$9:$B$41,'Base de datos'!$H$9:$H$41)))","v":false},"$/kWh",null,null,null,null,null,null,null,null,null,null,null,null,null,null,null,null,null,"Tarifa eléctrica venta (comercial)",false,"$/kWh",null,null,null,null,null,null,null,null,null,null,null,null,null,null,null,null,null,"Tarifa eléctrica venta (comercial)",false,"$/kWh"]
[null,"Tarifa eléctrica compra (industrial)",{"$f":"IF('HC_RO_Valorización Ambiental'!$F$12=Dropdown_digestores!$Q$4,IF(_xlfn.XLOOKUP('HC_RO_Valorización Ambiental'!$F$7,'Base de datos'!$B$9:$B$41,'Base de datos'!$I$9:$I$41)=\"\",'Base de datos'!$I$13,_xlfn.XLOOKUP('HC_RO_Valorización Ambiental'!$F$7,'Base de datos'!$B$9:$B$41,'Base de datos'!$I$9:$I$41)))","v":false},"$/kWh",null,null,null,null,null,null,null,null,null,null,null,null,null,null,null,null,null,"Tarifa eléctrica venta (industrial)",false,"$/kWh",null,null,null,null,null,null,null,null,null,null,null,null,null,null,null,null,null,"Tarifa eléctrica venta (industrial)",false,"$/kWh"]
[null,"Tarifa eléctrica venta","-","$/kWh",null,null,null,null,null,null,null,null,null,null,null,null,null,null,null,null,null,"Tarifa eléctrica compra","-","$/kWh",null,null,null,null,null,null,null,null,null,null,null,null,null,null,null,null,null,"Tarifa eléctrica compra","-","$/kWh"]
[null,"Tarifa de gas variable",{"$f":"IF(OR('HC_RO_Valorización Ambiental'!$F$12=Dropdown_digestores!$Q$4,'HC_RO_Valorización Ambiental'!$F$12=Dropdown_digestores!$Q$6,'HC_RO_Valorización Ambiental'!$F$12=Dropdown_digestores!$Q$5),IF(_xlfn.XLOOKUP('HC_RO_Valorización Ambiental'!$F$7,'Base de datos'!$B$9:$B$41,'Base de datos'!$J$9:$J$41)=\"\",'Base de datos'!$J$13,_xlfn.XLOOKUP('HC_RO_Valorización Ambiental'!$F$7,'Base de datos'!$B$9:$B$41,'Base de datos'!$J$9:$J$41)))","v":false},"$/m3",null,null,null,null,null,null,null,null,null,null,null,null,null,null,null,null,null,"Tarifa de gas variable",false,"$/m3",null,null,null,null,null,null,null,null,null,null,null,null,null,null,null,null,null,"Tarifa de gas variable",false,"$/m3"]
[null,"Tarifa de gas fijo",{"$f":"IF(OR('HC_RO_Valorización Ambiental'!$F$12=Dropdown_digestores!$Q$4,'HC_RO_Valorización Ambiental'!$F$12=Dropdown_digestores!$Q$6,'HC_RO_Valorización Ambiental'!$F$12=Dropdown_digestores!$Q$5),IF(_xlfn.XLOOKUP('HC_RO_Valorización Ambiental'!$F$7,'Base de datos'!$B$9:$B$41,'Base de datos'!$K$9:$K$41)=\"\",'Base de datos'!$K$13,_xlfn.XLOOKUP('HC_RO_Valorización Ambiental'!$F$7,'Base de datos'!$B$9:$B$41,'Base de datos'!$K$9:$K$41)))","v":false},"$/factura",null,null,null,null,null,null,null,null,null,null,null,null,null,null,null,null,null,"Tarifa de gas fijo",false,"$/factura",null,null,null,null,null,null,null,null,null,null,null,null,null,null,null,null,null,"Tarifa de gas fijo",false,"$/factura"]
[null,"Tarifa digestato",50000,"$/ton",null,null,null,null,null,null,null,null,null,null,null,null,null,null,null,null,null,"Tarifa digestato",50000,"$/ton",null,null,null,null,null,null,null,null,null,null,null,null,null,null,null,null,null,"Tarifa digestato",50000,"$/ton"]
[null,"Capex",null,null,null,null,null,null,null,null,null,null,null,null,null,null,null,null,null,null,null,"Capex",null,null,null,null,null,null,null,null,null,null,null,null,null,null,null,null,null,null,null,"Capex"]
[null,"Valor tecnología",{"$f":"+Biodigestores!H7","v":497518399.06557399},null,null,null,null,null,null,null,null,null,null,null,null,null,null,null,null,null,null,"Valor tecnología",{"$f":"+Biodigestores!H8","v":619251624.36885273},"COP",null,null,null,null,null,null,null,null,null,null,null,null,null,null,null,null,null,"Valor tecnología",{"$f":"+Biodigestores!H9","v":1986700508.0103137}]
[]
[null,"Operacional",null,null,null,null,null,null,null,null,null,null,null,null,null,null,null,null,null,null,null,"Operacional",null,null,null,null,null,null,null,null,null,null,null,null,null,null,null,null,null,null,null,"Operacional"]
[null,"Numero de operadores",1,null,null,null,null,null,null,null,null,null,null,null,null,null,null,null,null,null,null,"Numero de operadores",{"$f":"+Biodigestores!M8","v":1},null,null,null,null,null,null,null,null,null,null,null,null,null,null,null,null,null,null,"Numero de operadores"]
[null,"Numero de profesionales",0,null,null,null,null,null,null,null,null,null,null,null,null,null,null,null,null,null,null,"Numero de profesionales",0,null,null,null,null,null,null,null,null,null,null,null,null,null,null,null,null,null,null,"Numero de profesionales"]
[null,"% mantenimiento",0.05,"%",null,null,null,null,null,null,null,null,null,null,null,null,null,null,null,null,null,"% mantenimiento",0.05,"%",null,null,null,null,null,null,null,null,null,null,null,null,null,null,null,null,null,"% mantenimiento",0.05]
[null,"Consumos",null,null,null,null,null,null,null,null,null,null,null,null,null,null,null,null,null,null,null,"Consumos",null,null,null,null,null,null,null,null,null,null,null,null,null,null,null,null,null,null,null,"Consumos"]
[null,"Consumo de energía",50,"kWh/día",null,null,null,null,null,null,null,null,null,null,null,null,null,null,null,null,null,"Consumo de energía",{"$f":"+Biodigestores!I8","v":70},"kWh/día",null,null,null,null,null,null,null,null,null,null,null,null,null,null,null,null,null,"Consumo de energía",{"$f":"+Biodigestores!I9","v":100},"kWh/día"]
[null,"Consumo de energía",{"$f":"+C36*330","v":16500},"kWh/año",null,null,null,null,null,null,null,null,null,null,null,null,null,null,null,null,null,"Consumo de energía",{"$f":"+W36*330","v":23100},"kWh/año",null,null,null,null,null,null,null,null,null,null,null,null,null,null,null,null,null,"Consumo de energía",{"$f":"+AQ36*330","v":33000},"kWh/año"]
[null,"Consumo de agua",0.2,"m3/día",null,null,null,null,null,null,null,null,null,null,null,null,null,null,null,null,null,"Consumo de agua",{"$f":"+Biodigestores!J8","v":0.4},"m3/día",null,null,null,null,null,null,null,null,null,null,null,null,null,null,null,null,null,"Consumo de agua",{"$f":"+Biodigestores!J9","v":1},"m3/día"]
[null,"Consumo de agua",{"$f":"+C38*330","v":66},"m3/año",null,null,null,null,null,null,null,null,null,null,null,null,null,null,null,null,null,"Consumo de agua",{"$f":"+W38*330","v":132},"m3/año",null,null,null,null,null,null,null,null,null,null,null,null,null,null,null,null,null,"Consumo de agua",{"$f":"+AQ38*330","v":330},"m3/año"]
[null,"Generaciones",null,null,null,null,null,null,null,null,null,null,null,null,null,null,null,null,null,null,null,"Generaciones",null,null,null,null,null,null,null,null,null,null,null,null,null,null,null,null,null,null,null,"Generaciones"]
[null,"Potencial de biogás por residuo",70,"m3/ton",null,null,null,null,null,null,null,null,null,null,null,null,null,null,null,null,null,"Biogas",70,"m3/ton",null,null,null,null,null,null,null,null,null,null,null,null,null,null,null,null,null,"Biogas",70,"m3/ton"]
[null,"Producción de biogás",{"$f":"+C41*C10","v":23100},"m3/año",null,null,null,null,null,null,null,null,null,null,null,null,null,null,null,null,null,"Biogas",{"$f":"+W41*W10","v":46200},"m3/año",null,null,null,null,null,null,null,null,null,null,null,null,null,null,null,null,null,"Biogas",{"$f":"+AQ41*AQ10","v":115500},"m3/año"]
[null,"Potencial de digestato por residuo orgánico",0.1,"ton/tonRO",null,null,null,null,null,null,null,null,null,null,null,null,null,null,null,null,null,"Digestato",0.1,"ton/tonRO",null,null,null,null,null,null,null,null,null,null,null,null,null,null,null,null,null,"Digestato",0.1,"ton/tonRO"]
[]
[null,"Laboral","Cantidad",null,null,"Operador","Profesional","Porcentaje por la empresa",null,null,null,null,null,null,null,null,null,null,null,null,null,"Laboral","Cantidad",null,null,"Operador","Profesional","Porcentaje por la empresa",null,null,null,null,null,null,null,null,null,null,null,null,null,"Laboral","Cantidad",null,null,"Operador","Profesional","Porcentaje por la empresa"]
[null,"N° de Operadores",{"$f":"+C32","v":1},null,"Salario",{"$f":"(1423500*1.5)","v":2135250},{"$f":"+C50","v":0},null,null,null,null,null,null,null,null,null,null,null,null,null,null,"N° de Operadores",1,null,"Salario",{"$f":"(1423500*1.5)","v":2135250},{"$f":"+W50","v":0},null,null,null,null,null,null,null,null,null,null,null,null,null,null,"N° de Operadores",1,null,"Salario",{"$f":"(1423500*1.5)","v":2135250},{"$f":"+AQ50","v":"-"}]
[null,"Salario del Operador (1.5 smmlv) por mes",{"$f":"+F57","v":3686649.7250000001},null,"Auxilio de transporte",200000,0,null,null,null,null,null,null,null,null,null,null,null,null,null,null,"Salario del Operador (1.5 smmlv) por mes",{"$f":"+Z57","v":3686649.7250000001},null,"Auxilio de transporte",200000,0,null,null,null,null,null,null,null,null,null,null,null,null,null,null,"Salario del Operador (1.5 smmlv) por mes",{"$f":"+AT57","v":3686649.7250000001},null,"Auxilio de transporte",200000,0]
[null,"Meses requeridos por año",12,null,"Salud",{"$f":"F$46*H48","v":181496.25},{"$f":"$E$79*H48","v":0},8.5000000000000006E-2,null,null,null,null,null,null,null,null,null,null,null,null,null,"Meses requeridos por año",12,null,"Salud",{"$f":"$Z$46*AB48","v":181496.25},{"$f":"$E$79*AB48","v":0},8.5000000000000006E-2,null,null,null,null,null,null,null,null,null,null,null,null,null,"Meses requeridos por año",12,null,"Salud",{"$f":"$AT$46*AV48","v":181496.25},{"$f":"$E$79*AV48","v":0},8.5000000000000006E-2]
[null,"N° de Técnicos Especializados",0,null,"Pensión",256230,0,0.12,null,null,null,null,null,null,null,null,null,null,null,null,null,"N° de Técnicos Especializados",0,null,"Pensión",256230,0,0.12,null,null,null,null,null,null,null,null,null,null,null,null,null,"N° de Técnicos Especializados",0,null,"Pensión",256230,0,0.12]
[null,"Salario de un Técnico Especializado (2.5 smmlv)",null,null,"ARL",148613.4,0,6.9599999999999995E-2,null,null,null,null,null,null,null,null,null,null,null,null,null,"Salario de un Técnico Especializado (2.5 smmlv)",null,null,"ARL",148613.4,0,6.9599999999999995E-2,null,null,null,null,null,null,null,null,null,null,null,null,null,"Salario de un Técnico Especializado (2.5 smmlv)","-",null,"ARL",148613.4,0,6.9599999999999995E-2]
[null,"Meses requeridos por año",null,null,"Impuesto parafiscal",192172.5,0,0.09,null,null,null,null,null,null,null,null,null,null,null,null,null,"Meses requeridos por año",null,null,"Impuesto parafiscal",192172.5,0,0.09,null,null,null,null,null,null,null,null,null,null,null,null,null,"Meses requeridos por año","-",null,"Impuesto parafiscal",192172.5,0,0.09]
[null,"Costo total de mano de obra por año",null,null,"Bono",177866.32500000001,0,8.3299999999999999E-2,null,null,null,null,null,null,null,null,null,null,null,null,null,"Costo total de mano de obra por año",null,null,"Bono",177866.32500000001,0,8.3299999999999999E-2,null,null,null,null,null,null,null,null,null,null,null,null,null,"Costo total de mano de obra por año","-",null,"Bono",177866.32500000001,0,8.3299999999999999E-2]
[null,null,null,null,"Cesantía",177866.32500000001,0,8.3299999999999999E-2,null,null,null,null,null,null,null,null,null,null,null,null,null,null,null,null,"Cesantía",177866.32500000001,0,8.3299999999999999E-2,null,null,null,null,null,null,null,null,null,null,null,null,null,null,null,null,"Cesantía",177866.32500000001,0,8.3299999999999999E-2]
[null,null,null,null,"Intereses de despido",21352.5,0,0.01,null,null,null,null,null,null,null,null,null,null,null,null,null,null,null,null,"Intereses de despido",21352.5,0,0.01,null,null,null,null,null,null,null,null,null,null,null,null,null,null,null,null,"Intereses de despido",21352.5,0,0.01]
[null,null,null,null,"Vacaciones",89039.925000000003,0,4.1700000000000001E-2,null,null,null,null,null,null,null,null,null,null,null,null,null,null,null,null,"Vacaciones",89039.925000000003,0,4.1700000000000001E-2,null,null,null,null,null,null,null,null,null,null,null,null,null,null,null,null,"Vacaciones",89039.925000000003,0,4.1700000000000001E-2]
[null,null,null,null,"Dotación",106762.5,0,0.05,null,null,null,null,null,null,null,null,null,null,null,null,null,null,null,null,"Dotación",106762.5,0,0.05,null,null,null,null,null,null,null,null,null,null,null,null,null,null,null,null,"Dotación",106762.5,0,0.05]
[null,null,null,null,"Costo medio mensual",{"$f":"SUM(F46:F56)","v":3686649.7250000001},{"$f":"SUM(G46:G56)","v":0},null,null,null,null,null,null,null,null,null,null,null,null,null,null,null,null,null,"Costo medio mensual",{"$f":"SUM(Z46:Z56)","v":3686649.7250000001},{"$f":"SUM(AA46:AA56)","v":0},null,null,null,null,null,null,null,null,null,null,null,null,null,null,null,null,null,"Costo medio mensual",{"$f":"SUM(AT46:AT56)","v":3686649.7250000001},{"$f":"SUM(AU46:AU56)","v":0}]
[]
[]
[]
[null,"Ingresos (anuales)",0,1,2,3,4,5,6,7,8,9,10,11,12,13,14,15,null,null,null,"Ingresos (anuales)",0,1,2,3,4,5,6,7,8,9,10,11,12,13,14,15,null,null,null,"Ingresos (anuales)",0,1,2,3,4,5,6,7,8,9,10,11,12,13,14,15]
[{"$f":"ROUND(C62/$C$65,2)","v":0},"Venta de biogas",{"$f":"ROUND(IF('HC_RO_Valorización Ambiental'!$D$19=\"\",(C26*12)+(C25*C42),'HC_RO_Valorización Ambiental'!$D$19*$C$42),0)","v":0},{"$f":"+C62*(1+$C$12)","v":0},{"$f":"+D62*(1+$C$12)","v":0},0,0,0,0,0,0,0,0,0,0,0,0,0,null,null,{"$f":"ROUND(W62/$W$65,2)","v":0},"Venta de biogas",{"$f":"IF('HC_RO_Valorización Ambiental'!$D$19=\"\",(W26*12)+(W25*W42),'HC_RO_Valorización Ambiental'!$D$19*$W$42)","v":0},{"$f":"+W62*(1+$W$12)","v":0},{"$f":"+X62*(1+$W$12)","v":0},0,0,0,0,0,0,0,0,0,0,0,0,0,null,null,{"$f":"ROUND(AQ62/$AQ$65,2)","v":0},"Venta de biogas",{"$f":"IF('HC_RO_Valorización Ambiental'!$D$19=\"\",(AQ26*12)+(AQ25*AQ42),'HC_RO_Valorización Ambiental'!$D$19*$AQ$42)","v":0},{"$f":"+AQ62*(1+$AQ$12)","v":0},{"$f":"+AR62*(1+$AQ$12)","v":0},0,0,0,0,0,0,0,0,0,0,0,0,0]
[{"$f":"ROUND(C63/$C$65,2)","v":0.02},"Venta de digestato",{"$f":"ROUND((C10*C43)*C27,0)","v":1650000},{"$f":"+C63*(1+$C$11)","v":1735800},1826061.6,1921016.8032000002,2020909.6769664004,2125996.9801686532,2236548.823137423,2352849.3619405692,2475197.5287614791,2603907.800257076,2739311.0058704442,2881755.1781757073,3031606.4474408445,3189249.9827077687,3355090.981808573,3529555.7128626187,null,null,{"$f":"ROUND(W63/$W$65,2)","v":0.02},"Venta de digestato",{"$f":"+W10*W43*W27","v":3300000},{"$f":"+W63*(1+$W$11)","v":3471600},3652123.2,3842033.6064000004,4041819.3539328007,4251993.9603373064,4473097.646274846,4705698.7238811385,4950395.0575229581,5207815.6005141521,5478622.0117408885,5763510.3563514147,6063212.894881689,6378499.9654155374,6710181.963617146,7059111.4257252375,null,null,{"$f":"ROUND(AQ63/$AQ$65,2)","v":0.02},"Venta de Digestato",{"$f":"+AQ10*AQ43*AQ27","v":8250000},{"$f":"+AQ63*(1+$AQ$11)","v":8679000},{"$f":"+AR63*(1+$AQ$11)","v":9130308},9605084.0160000008,10104548.384832,10629984.900843265,11182744.115687115,11764246.809702845,12375987.643807394,13019539.00128538,13696555.02935222,14408775.890878536,15158032.23720422,15946249.91353884,16775454.909042859,17647778.564313088]
[{"$f":"ROUND(C64/$C$65,2)","v":0.98},"Tarifa de gestión de residuos",{"$f":"ROUND(C10*C16,0)","v":84932858},{"$f":"+C64*(1+$C$11)","v":89349366.615999997},93995533.680032,98883301.431393668,104025233.10582614,109434545.22732911,115125141.57915023,121111648.94126604,127409454.68621188,134034746.32989492,141004553.13904947,148336789.90228006,156050302.97719863,164164918.73201296,172701494.50607765,181681972.22039369,null,null,{"$f":"ROUND(W64/$W$65,2)","v":0.98},"Tarifa de gestión de residuos",{"$f":"+W10*W16","v":169865715.8726311},{"$f":"+W64*(1+$W$11)","v":178698733.09800792},187991067.21910435,197766602.71449777,208050466.05565166,218869090.29054555,230250282.98565394,242223297.70090795,254818909.18135518,268069492.45878565,282009106.06664252,296673579.58210796,312100605.72037756,328329837.21783721,345402988.75316477,363363944.16832936,null,null,{"$f":"ROUND(AQ64/$AQ$65,2)","v":0.98},"Tarifa de gestión de residuos",{"$f":"+AQ10*AQ16","v":424664289.6815778},{"$f":"+AQ64*(1+$AQ$11)","v":446746832.74501985},469977668.0477609,494416506.78624451,520126165.13912922,547172725.72636402,575625707.46413493,605558244.25226998,637047272.95338809,670173731.14696431,705022765.16660655,741683948.95527017,780251514.30094421,820824593.04459333,863507471.88291228,908409860.42082381]
[null,"Ingresos anuales previstos",{"$f":"+SUM(C62:C64)","v":86582858},91085166.615999997,95821595.280031994,100804318.23459367,106046142.78279254,111560542.20749776,117361690.40228765,123464498.30320661,129884652.21497336,136638654.13015199,143743864.1449199,151218545.08045578,159081909.42463946,167354168.71472073,176056585.48788622,185211527.9332563,null,null,null,"Ingresos anuales previstos",{"$f":"+SUM(W62:W64)","v":173165715.8726311},182170333.09800792,191643190.41910434,201608636.32089779,212092285.40958446,223121084.25088286,234723380.63192877,246928996.42478907,259769304.23887813,273277308.05929983,287487728.07838339,302437089.9384594,318163818.61525923,334708337.18325275,352113170.71678191,370423055.59405458,null,null,null,"Ingresos anuales previstos",{"$f":"+SUM(AQ62:AQ64)","v":432914289.6815778},{"$f":"+SUM(AR62:AR64)","v":455425832.74501985},479107976.0477609,504021590.80224448,530230713.52396125,557802710.62720728,586808451.57982206,617322491.06197286,649423260.59719551,683193270.14824975,718719320.19595873,756092724.84614873,795409546.5381484,836770842.95813215,880282926.79195511,926057638.98513687]
[]
[]
[null,"Costo (anual)",0,1,2,3,4,5,6,7,8,9,10,11,12,13,14,15,null,null,null,"Costo (anual)",0,1,2,3,4,5,6,7,8,9,10,11,12,13,14,15,null,null,null,"Costo (anual)",0,1,2,3,4,5,6,7,8,9,10,11,12,13,14,15]
[{"$f":"ROUND(C69/$C$74,4)","v":0},"Energía",{"$f":"ROUND(IF('HC_RO_Valorización Ambiental'!$D$22=\"\",IF('HC_RO_Valorización Ambiental'!$F$12=Dropdown_digestores!$Q$4,$C37*$C23,$C37*$C22),'HC_RO_Valorización Ambiental'!$D$22*$C37),0)","v":0},{"$f":"+C69*(1+$C$13)","v":0},{"$f":"+D69*(1+$C$13)","v":0},0,0,0,0,0,0,0,0,0,0,0,0,0,null,null,{"$f":"ROUND(W69/$W$74,4)","v":0},"Energía",{"$f":"IF('HC_RO_Valorización Ambiental'!$D$22=\"\",IF('HC_RO_Valorización Ambiental'!$F$12=Dropdown_digestores!$Q$4,$W37*$W23,$W37*$W22),'HC_RO_Valorización Ambiental'!$D$22*$W37)","v":0},{"$f":"+W69*(1+$W$13)","v":0},{"$f":"+X69*(1+$W$13)","v":0},0,0,0,0,0,0,0,0,0,0,0,0,0,null,null,{"$f":"ROUND(AQ69/$AQ$74,3)","v":0},"Energía",{"$f":"ROUND(IF('HC_RO_Valorización Ambiental'!$D$22=\"\",IF('HC_RO_Valorización Ambiental'!$F$12=Dropdown_digestores!$Q$4,AQ$37*AQ$23,AQ$37*AQ$22),'HC_RO_Valorización Ambiental'!$D$22*$AQ37),0)","v":0},{"$f":"+AQ69*(1+$AQ$13)","v":0},{"$f":"+AR69*(1+$AQ$13)","v":0},0,0,0,0,0,0,0,0,0,0,0,0,0]
[{"$f":"ROUND(C70/$C$74,4)","v":0},"Agua",{"$f":"ROUND(IF('HC_RO_Valorización Ambiental'!$F$12=Dropdown_digestores!$Q$4,(12*$C20)+($C39*$C19),(12*$C18)+($C39*$C17)),0)","v":0},{"$f":"+C70*(1+$C$14)","v":0},{"$f":"+D70*(1+$C$14)","v":0},0,0,0,0,0,0,0,0,0,0,0,0,0,null,null,{"$f":"ROUND(W70/$W$74,4)","v":0},"Agua",{"$f":"IF('HC_RO_Valorización Ambiental'!$F$12=Dropdown_digestores!$Q$4,(12*$W20)+($W39*$W19),(12*$W18)+($W39*$W17))","v":0},{"$f":"+W70*(1+$W$14)","v":0},{"$f":"+X70*(1+$W$14)","v":0},0,0,0,0,0,0,0,0,0,0,0,0,0,null,null,{"$f":"ROUND(AQ70/$AQ$74,3)","v":0},"Agua",{"$f":"ROUND(IF('HC_RO_Valorización Ambiental'!$F$12=Dropdown_digestores!$Q$4,(12*AQ$20)+(AQ$39*AQ$19),(12*AQ$18)+(AQ$39*AQ$17)),0)","v":0},{"$f":"+AQ70*(1+$AQ$14)","v":0},{"$f":"+AR70*(1+$AQ$14)","v":0},0,0,0,0,0,0,0,0,0,0,0,0,0]
[{"$f":"ROUND(C71/$C$74,4)","v":0.6401},"Personal",{"$f":"ROUND(C47*C48,0)","v":44239797},{"$f":"+C71*(1+$C$11)","v":46540266.444000006},48960360.299088009,51506299.034640588,54184626.5844419,57002227.166832879,59966342.979508191,63084592.81444262,66364991.640793636,69815971.206114903,73446401.708832875,77265614.597692192,81283426.556772187,85510164.737724349,89956693.304086015,94634441.355898485,null,null,{"$f":"ROUND(W71/$W$74,4)","v":0.58830000000000005},"Personal",{"$f":"+W47*W48","v":44239796.700000003},{"$f":"+W71*(1+$W$11)","v":46540266.128400005},48960359.967076808,51506298.685364805,54184626.217003778,57002226.780287974,59966342.572862953,63084592.386651829,66364991.190757729,69815970.732677132,73446401.210776344,77265614.073736712,81283426.005571023,85510164.157860726,89956692.69406949,94634440.714161113,null,null,{"$f":"ROUND(AQ71/$AQ$74,3)","v":0.308},"Personal",{"$f":"ROUND(AQ47*AQ48,0)","v":44239797},{"$f":"+AQ71*(1+$AQ$11)","v":46540266.444000006},48960360.299088009,51506299.034640588,54184626.5844419,57002227.166832879,59966342.979508191,63084592.81444262,66364991.640793636,69815971.206114903,73446401.708832875,77265614.597692192,81283426.556772187,85510164.737724349,89956693.304086015,94634441.355898485]
[{"$f":"ROUND(C72/$C$74,4)","v":0.3599},"Mantenimiento",{"$f":"ROUND($C$29*$C$34,0)","v":24875920},{"$f":"+$C$29*$C$34","v":24875919.953278702},24875919.953278702,24875919.953278702,24875919.953278702,24875919.953278702,24875919.953278702,24875919.953278702,24875919.953278702,24875919.953278702,24875919.953278702,24875919.953278702,24875919.953278702,24875919.953278702,24875919.953278702,24875919.953278702,null,null,{"$f":"ROUND(W72/$W$74,4)","v":0.41170000000000001},"Mantenimiento",{"$f":"+$W$29*$W$34","v":30962581.218442637},30962581.218442637,30962581.218442637,30962581.218442637,30962581.218442637,30962581.218442637,30962581.218442637,30962581.218442637,30962581.218442637,30962581.218442637,30962581.218442637,30962581.218442637,30962581.218442637,30962581.218442637,30962581.218442637,30962581.218442637,null,null,{"$f":"ROUND(AQ72/$AQ$74,3)","v":0.69199999999999995},"Mantenimiento",{"$f":"ROUND($AQ$29*$AQ$34,0)","v":99335025},{"$f":"+$AQ$29*$AQ$34","v":99335025.40051569},99335025.40051569,99335025.40051569,99335025.40051569,99335025.40051569,99335025.40051569,99335025.40051569,99335025.40051569,99335025.40051569,99335025.40051569,99335025.40051569,99335025.40051569,99335025.40051569,99335025.40051569,99335025.40051569]
[null,"Aguas residuales","-","-","-","-","-","-","-","-","-","-","-","-","-","-","-","-",null,null,null,"Aguas residuales",null,null,null,null,null,null,null,null,null,null,null,null,null,null,null,null,null,null,null,"Aguas residuales"]
[null,"Costos operativos anuales",{"$f":"+SUM(C69:C73)","v":69115717},71416186.397278711,73836280.252366707,76382218.987919286,79060546.537720606,81878147.120111585,84842262.932786897,87960512.767721325,91240911.594072342,94691891.159393609,98322321.66211158,102141534.5509709,106159346.51005089,110386084.69100305,114832613.25736472,119510361.30917719,null,null,null,"Costos operativos anuales",{"$f":"+SUM(W69:W73)","v":75202377.918442637},77502847.346842647,79922941.185519442,82468879.903807446,85147207.435446411,87964807.998730615,90928923.791305587,94047173.605094463,97327572.40920037,100778551.95111977,104408982.42921898,108228195.29217935,112246007.22401366,116472745.37630336,120919273.91251212,125597021.93260375,null,null,null,"Costos operativos anuales",{"$f":"+SUM(AQ69:AQ73)","v":143574822},145875291.84451568,148295385.69960371,150841324.43515629,153519651.98495758,156337252.56734857,null,{"$f":"+SUM(AX69:AX73)","v":162419618.21495831},165700017.04130933,169150996.60663059,172781427.10934857,176600639.99820787,180618451.95728788,184845190.13824004,189291718.70460171,193969466.75641418]
[null,"Capex total",{"$f":"+C29","v":497518399.06557399},null,null,null,null,null,null,null,null,null,null,null,null,null,null,null,null,null,null,"Capex total",{"$f":"+W29","v":619251624.36885273},null,null,null,null,null,null,null,null,null,null,null,null,null,null,null,null,null,null,"Capex total",{"$f":"+AQ29","v":1986700508.0103137}]
[]
[null,"Año",0,1,2,3,4,5,null,6,7,8,9,10,11,12,13,14,null,null,null,"Año",0,1,2,3,4,5,6,7,8,9,10,11,12,13,14,15,null,null,null,"Año",0,1,2,3,4,5,6,7,8,9,10,11,12,13,14,15]
[null,"Ganancias",{"$f":"+C65-C74","v":17467141},19668980.218721285,21985315.027665287,24422099.246674389,26985596.245071933,29682395.087386176,32519427.46950075,35503985.535485283,38643740.620901018,41946762.970758379,45421542.482808322,49077010.529484883,52922562.914588571,56968084.023717672,61223972.2305215,65701166.624079108,null,null,null,"Ganancias",{"$f":"+W65-W74","v":97963337.954188466},104667485.75116527,111720249.2335849,119139756.41709034,126945077.97413805,135156276.25215226,143794456.8406232,152881822.81969461,162441731.82967776,172498756.10818005,183078745.64916441,194208894.64628005,205917811.39124557,218235591.80694938,231193896.80426979,244826033.66145083,null,null,null,"Ganancias",{"$f":"+AQ65-AQ74","v":289339467.6815778},309550540.90050417,330812590.34815717,353180266.3670882,376711061.53900367,401465458.05985868,586808451.57982206,454902872.84701455,483723243.55588615,514042273.54161918,545937893.0866102,579492084.84794092,614791094.5808605,651925652.81989217,690991208.08735347,732088172.22872269]
[]
[]
[]
[null,"30 TPD",null,null,null,null,null,null,null,null,null,null,null,null,null,null,null,null,null,null,null,"13,6  TPD"]
[]
[null,"Información","Valor","Unidades",null,null,null,null,null,null,null,null,null,null,null,null,null,null,null,null,null,"Información","Valor","Unidades"]
[null,"Residuos orgánicos",30,"ton/día",null,null,null,null,null,null,null,null,null,null,null,null,null,null,null,null,null,"Residuos orgánicos",13.6,"ton/día"]
[null,"Residuos orgánicos",{"$f":"+C85*330","v":9900},"ton/año",null,null,null,null,null,null,null,null,null,null,null,null,null,null,null,null,null,"Residuos orgánicos",{"$f":"+W85*330","v":4488},"ton/año"]
[null,"IPC 2025",5.1999999999999998E-2,"%",null,null,null,null,null,null,null,null,null,null,null,null,null,null,null,null,null,"IPC 2025",5.1999999999999998E-2,"%"]
[null,"Incremento del biometano anual",0.14000000000000001,"%",null,null,null,null,null,null,null,null,null,null,null,null,null,null,null,null,null,"Incremento del biometano anual",0.14000000000000001,"%"]
[null,"Incremento de energía electrica anual",0.05,"%",null,null,null,null,null,null,null,null,null,null,null,null,null,null,null,null,null,"Incremento de energía electrica anual",0.05,"%"]
[null,"Incremento de agua anual",0.05,"%",null,null,null,null,null,null,null,null,null,null,null,null,null,null,null,null,null,"Incremento de agua anual",0.05,"%"]
[null,"Tarifas",null,null,null,null,null,null,null,null,null,null,null,null,null,null,null,null,null,null,null,"Tarifas"]
[null,"Tarifa de tratamiento de residuos orgánicos",{"$f":"+$C$16","v":257372.2967767138},"$/ton",null,null,null,null,null,null,null,null,null,null,null,null,null,null,null,null,null,"Tarifa de tratamiento de residuos orgánicos",{"$f":"+$C$16","v":257372.2967767138},"$/ton"]
[null,"Tarifa del agua - consumo (tarifa variable)- Comercial",{"$f":"+C17","v":false},"$/m3",null,null,null,null,null,null,null,null,null,null,null,null,null,null,null,null,null,"Tarifa del agua - consumo (tarifa variable)- Comercial",{"$f":"+C93","v":false},"$/m3"]
[null,"Tarifa del agua - consumo (tarifa fija) - Comercial",false,"COP/mes",null,null,null,null,null,null,null,null,null,null,null,null,null,null,null,null,null,"Tarifa del agua - consumo (tarifa fija) - Comercial",{"$f":"+C94","v":false},"COP/mes"]
[null,"Tarifa del agua - consumo (tarifa variable) - Industrial",false,"COP/m3",null,null,null,null,null,null,null,null,null,null,null,null,null,null,null,null,null,"Tarifa del agua - consumo (tarifa variable) - Industrial",false,"COP/m3"]
[null,"Tarifa del agua - consumo (tarifa fija) - Industrial",false,"COP/mes",null,null,null,null,null,null,null,null,null,null,null,null,null,null,null,null,null,"Tarifa del agua - consumo (tarifafija) - Industrial",false,"COP/mes"]
[null,"Tarifa del agua - tratamiento","-","$/m3",null,null,null,null,null,null,null,null,null,null,null,null,null,null,null,null,null,"Tarifa del agua - tratamiento","-","$/m3"]
[null,"Tarifa eléctrica venta (comercial)",false,"$/kWh",null,null,null,null,null,null,null,null,null,null,null,null,null,null,null,null,null,"Tarifa eléctrica venta (comercial)",false,"$/kWh"]
[null,"Tarifa eléctrica venta (industrial)",false,"$/kWh",null,null,null,null,null,null,null,null,null,null,null,null,null,null,null,null,null,"Tarifa eléctrica venta (industrial)",false,"$/kWh"]
[null,"Tarifa eléctrica compra","-","$/kWh",null,null,null,null,null,null,null,null,null,null,null,null,null,null,null,null,null,"Tarifa eléctrica compra","-","$/kWh"]
[null,"Tarifa de gas variable",false,"$/m3",null,null,null,null,null,null,null,null,null,null,null,null,null,null,null,null,null,"Tarifa de gas variable",false,"$/m3"]
[null,"Tarifa de gas fijo",false,"$/factura",null,null,null,null,null,null,null,null,null,null,null,null,null,null,null,null,null,"Tarifa de gas fijo",false,"$/factura"]
[null,"Tarifa digestato",50000,"$/ton",null,null,null,null,null,null,null,null,null,null,null,null,null,null,null,null,null,"Tarifa digestato",50000,"$/ton"]
[null,"Capex",null,null,null,null,null,null,null,null,null,null,null,null,null,null,null,null,null,null,null,"Capex"]
[null,"Valor tecnología",{"$f":"+Biodigestores!H11","v":8890161658.3841782},null,null,null,null,null,null,null,null,null,null,null,null,null,null,null,null,null,null,"Valor tecnología",{"$f":"+Biodigestores!H10","v":3734709078.9560957},"COP"]
[]
[null,"Operacional",null,null,null,null,null,null,null,null,null,null,null,null,null,null,null,null,null,null,null,"Operacional"]
[null,"Numero de operadores",1,null,null,null,null,null,null,null,null,null,null,null,null,null,null,null,null,null,null,"Numero de operadores",1]
[null,"Numero de profesionales",0,null,null,null,null,null,null,null,null,null,null,null,null,null,null,null,null,null,null,"Numero de profesionales",1]
[null,"% mantenimiento",0.05,"%",null,null,null,null,null,null,null,null,null,null,null,null,null,null,null,null,null,"% mantenimiento",0.05,"%"]
[null,"Consumos",null,null,null,null,null,null,null,null,null,null,null,null,null,null,null,null,null,null,null,"Consumos"]
[null,"Consumo de energía",{"$f":"+Biodigestores!I11","v":120},"kWh/día",null,null,null,null,null,null,null,null,null,null,null,null,null,null,null,null,null,"Consumo de energía",{"$f":"+Biodigestores!I10","v":120},"kWh/día"]
[null,"Consumo de energía",{"$f":"+C112*330","v":39600},"kWh/año",null,null,null,null,null,null,null,null,null,null,null,null,null,null,null,null,null,"Consumo de energía",{"$f":"+W112*330","v":39600},"kWh/año"]
[null,"Consumo de agua",{"$f":"+Biodigestores!J11","v":6},"m3/día",null,null,null,null,null,null,null,null,null,null,null,null,null,null,null,null,null,"Consumo de agua",{"$f":"+Biodigestores!J10","v":2.72},"m3/día"]
[null,"Consumo de agua",{"$f":"+C114*330","v":1980},"m3/año",null,null,null,null,null,null,null,null,null,null,null,null,null,null,null,null,null,"Consumo de agua",{"$f":"+W114*330","v":897.6},"m3/año"]
[null,"Generaciones",null,null,null,null,null,null,null,null,null,null,null,null,null,null,null,null,null,null,null,"Generaciones"]
[null,"Biogas",70,"m3/ton",null,null,null,null,null,null,null,null,null,null,null,null,null,null,null,null,null,"Biogas",70,"m3/ton"]
[null,"Biogas",{"$f":"+C117*C86","v":693000},"m3/año",null,null,null,null,null,null,null,null,null,null,null,null,null,null,null,null,null,"Biogas",{"$f":"+W117*W86","v":314160},"m3/año"]
[null,"Digestato",0.1,"ton/tonRO",null,null,null,null,null,null,null,null,null,null,null,null,null,null,null,null,null,"Digestato",0.1,"ton/tonRO"]
[]
[null,"Laboral","Cantidad",null,null,"Operador","Profesional","Porcentaje por la empresa",null,null,null,null,null,null,null,null,null,null,null,null,null,"Laboral","Cantidad",null,null,"Operador","Profesional","Porcentaje por la empresa"]
[null,"N° de Operadores",2,null,"Salario",{"$f":"(1423500*1.5)","v":2135250},{"$f":"(1423500*2.5)","v":3558750},null,null,null,null,null,null,null,null,null,null,null,null,null,null,"N° de Operadores",1,null,"Salario",{"$f":"(1423500*1.5)","v":2135250},{"$f":"(1423500*2.5)","v":3558750}]
[null,"Salario del Operador (1.5 smmlv) por mes",{"$f":"+F133","v":3686649.7250000001},null,"Auxilio de transporte",200000,0,null,null,null,null,null,null,null,null,null,null,null,null,null,null,"Salario del Operador (1.5 smmlv) por mes",{"$f":"+Z133","v":3686649.7250000001},null,"Auxilio de transporte",200000,0]
[null,"Meses requeridos por año",12,null,"Salud",{"$f":"F$46*H124","v":181496.25},{"$f":"$G$122*H124","v":302493.75},8.5000000000000006E-2,null,null,null,null,null,null,null,null,null,null,null,null,null,"Meses requeridos por año",12,null,"Salud",{"$f":"$Z$46*AB124","v":181496.25},{"$f":"$AA$122*AB124","v":302493.75},8.5000000000000006E-2]
[null,"N° de Técnicos Especializados",1,null,"Pensión",256230,427050,0.12,null,null,null,null,null,null,null,null,null,null,null,null,null,"N° de Técnicos Especializados",1,null,"Pensión",256230,427050,0.12]
[null,"Salario de un Técnico Especializado (2.5 smmlv)",{"$f":"+G133","v":5811082.875},null,"ARL",148613.4,247688.99999999997,6.9599999999999995E-2,null,null,null,null,null,null,null,null,null,null,null,null,null,"Salario de un Técnico Especializado (2.5 smmlv)",{"$f":"+AA133","v":5811082.875},null,"ARL",148613.4,247688.99999999997,6.9599999999999995E-2]
[null,"Meses requeridos por año",6,null,"Impuesto parafiscal",192172.5,320287.5,0.09,null,null,null,null,null,null,null,null,null,null,null,null,null,"Meses requeridos por año",6,null,"Impuesto parafiscal",192172.5,320287.5,0.09]
[null,"Costo total de mano de obra por año",{"$f":"+(C123*C124)+(C126*C127)","v":79106293.950000003},null,"Bono",177866.32500000001,296443.875,8.3299999999999999E-2,null,null,null,null,null,null,null,null,null,null,null,null,null,"Costo total de mano de obra por año",{"$f":"+(W123*W124)+(AA133*W127)","v":79106293.950000003},null,"Bono",177866.32500000001,296443.875,8.3299999999999999E-2]
[null,null,null,null,"Cesantía",177866.32500000001,296443.875,8.3299999999999999E-2,null,null,null,null,null,null,null,null,null,null,null,null,null,null,null,null,"Cesantía",177866.32500000001,296443.875,8.3299999999999999E-2]
[null,null,null,null,"Intereses de despido",21352.5,35587.5,0.01,null,null,null,null,null,null,null,null,null,null,null,null,null,null,null,null,"Intereses de despido",21352.5,35587.5,0.01]
[null,null,null,null,"Vacaciones",89039.925000000003,148399.875,4.1700000000000001E-2,null,null,null,null,null,null,null,null,null,null,null,null,null,null,null,null,"Vacaciones",89039.925000000003,148399.875,4.1700000000000001E-2]
[null,null,null,null,"Dotación",106762.5,177937.5,0.05,null,null,null,null,null,null,null,null,null,null,null,null,null,null,null,null,"Dotación",106762.5,177937.5,0.05]
[null,null,null,null,"Costo medio mensual",{"$f":"SUM(F122:F132)","v":3686649.7250000001},{"$f":"SUM(G122:G132)","v":5811082.875},null,null,null,null,null,null,null,null,null,null,null,null,null,null,null,null,null,"Costo medio mensual",{"$f":"SUM(Z122:Z132)","v":3686649.7250000001},{"$f":"SUM(AA122:AA132)","v":5811082.875}]
[]
[]
[]
[null,"Ingresos (anuales)",0,1,2,3,4,5,null,6,7,8,9,10,11,12,13,14,null,null,null,"Ingresos (anuales)",0,1,2,3,4,5,null,6,7,8,9,10,11,12,13,14]
[{"$f":"ROUND(C138/$C$141,2)","v":0},"Venta de biogas",{"$f":"IF('HC_RO_Valorización Ambiental'!$D$19=\"\",(C102*12)+(C118*C101),'HC_RO_Valorización Ambiental'!$D$19*$C$118)","v":0},{"$f":"+C138*(1+$C$88)","v":0},{"$f":"+D138*(1+$C$88)","v":0},0,0,0,0,0,0,0,0,0,0,0,0,0,null,null,{"$f":"ROUND(W138/$W$141,2)","v":0},"Venta de biogas",{"$f":"IF('HC_RO_Valorización Ambiental'!$D$19=\"\",(W102*12)+(W118*W101),'HC_RO_Valorización Ambiental'!$D$19*$W$118)","v":0},{"$f":"+W138*(1+$W$88)","v":0},{"$f":"+X138*(1+$W$88)","v":0},0,0,0,0,0,0,0,0,0,0,0,0,0]
[{"$f":"ROUND(C139/$C$141,2)","v":0.02},"Venta de Digestato",{"$f":"+C86*C119*C103","v":49500000},{"$f":"+C139*(1+$C$87)","v":52074000},54781848,57630504.096000001,60627290.308992006,63779909.405059591,67096464.694122694,70585480.858217075,74255925.862844363,78117234.007712275,82179330.176113322,86452655.345271215,90948193.423225328,95677499.481233045,100652729.45425718,105886671.38587855,null,null,{"$f":"ROUND(W139/$W$141,2)","v":0.02},"Venta de Digestato",{"$f":"+W86*W119*W103","v":22440000},{"$f":"+W139*(1+$W$87)","v":23606880},24834437.760000002,26125828.523520004,27484371.606743045,28913558.930293683,30417063.994668957,31998751.322391745,33662686.391156115,35413146.083496235,37254629.679838039,39191870.423189618,41229847.685195483,43373799.76482565,45629237.352596588,48001957.694931611]
[{"$f":"ROUND(C140/$C$141,2)","v":0.98},"Tarifa de gestión de residuos",{"$f":"+C86*C92","v":2547985738.0894666},{"$f":"+C140*(1+$C$87)","v":2680480996.470119},2819866008.2865653,2966499040.7174668,3120756990.8347754,3283036354.3581839,3453754244.7848096,3633349465.5136199,3822283637.7203283,4021042386.8817854,4230136590.9996386,4450103693.7316198,4681509085.8056641,4924947558.2675591,5181044831.297472,5450459162.5249405,null,null,{"$f":"ROUND(W140/$W$141,2)","v":0.98},"Tarifa de gestión de residuos",{"$f":"+W86*W92","v":1155086867.9338915},{"$f":"+W140*(1+$W$87)","v":1215151385.0664539},1278339257.0899096,1344812898.458585,1414743169.1784315,1488309813.9757099,1565701924.3024468,1647118424.3661742,1732768582.4332154,1822872548.7197428,1917661921.2531695,2017380341.1583345,2122284118.8985679,2232642893.0812936,2348740323.5215211,2470874820.3446403]
[null,"Ingresos anuales previstos",{"$f":"+SUM(C138:C140)","v":2597485738.0894666},2732554996.470119,2874647856.2865653,3024129544.813467,3181384281.1437674,3346816263.7632437,3520850709.4789324,3703934946.3718371,3896539563.5831728,4099159620.8894978,4312315921.1757517,4536556349.0768909,4772457279.2288895,5020625057.7487917,5281697560.751729,5556345833.9108191,null,null,null,"Ingresos anuales previstos",{"$f":"+SUM(W138:W140)","v":1177526867.9338915},1238758265.0664539,1303173694.8499095,1370938726.982105,1442227540.7851746,1517223372.9060037,1596118988.2971158,1679117175.688566,1766431268.8243716,1858285694.8032391,1954916550.9330075,2056572211.5815241,2163513966.5837636,2276016692.8461194,2394369560.8741179,2518876778.0395718]
[]
[]
[null,"Costo (anual)",0,1,2,3,4,5,null,6,7,8,9,10,11,12,13,14,null,null,null,"Costo (anual)",0,1,2,3,4,5,null,6,7,8,9,10,11,12,13,14]
[{"$f":"ROUND(C145/$C$150,4)","v":0},"Energía",{"$f":"IF('HC_RO_Valorización Ambiental'!$D$22=\"\",IF('HC_RO_Valorización Ambiental'!$F$12=Dropdown_digestores!$Q$4,$C113*$C99,$C113*$C98),'HC_RO_Valorización Ambiental'!$D$22*$C113)","v":0},{"$f":"+C145*(1+$C$89)","v":0},{"$f":"+D145*(1+$C$89)","v":0},0,0,0,0,0,0,0,0,0,0,0,0,0,null,null,{"$f":"ROUND(W145/$W$150,3)","v":0},"Energía",{"$f":"IF('HC_RO_Valorización Ambiental'!$D$22=\"\",IF('HC_RO_Valorización Ambiental'!$F$12=Dropdown_digestores!$Q$4,$W113*$W99,$W113*$W98),'HC_RO_Valorización Ambiental'!$D$22*$W113)","v":0},{"$f":"+W145*(1+$W$89)","v":0},{"$f":"+X145*(1+$W$89)","v":0},0,0,0,0,0,0,0,0,0,0,0,0,0]
[{"$f":"ROUND(C146/$C$150,4)","v":0},"Agua",{"$f":"IF('HC_RO_Valorización Ambiental'!$F$12=Dropdown_digestores!$Q$4,(12*$C96)+($C115*$C95),(12*$C94)+($C115*$C93))","v":0},{"$f":"+C146*(1+$C$90)","v":0},{"$f":"+D146*(1+$C$90)","v":0},0,0,0,0,0,0,0,0,0,0,0,0,0,null,null,{"$f":"ROUND(W146/$W$150,3)","v":0},"Agua",{"$f":"IF('HC_RO_Valorización Ambiental'!$F$12=Dropdown_digestores!$Q$4,(12*$W96)+($W115*$W95),(12*$W94)+($W115*$W93))","v":0},{"$f":"+W146*(1+$W$90)","v":0},{"$f":"+X146*(1+$W$90)","v":0},0,0,0,0,0,0,0,0,0,0,0,0,0]
[{"$f":"ROUND(C147/$C$150,4)","v":0.15110000000000001},"Personal",{"$f":"+C128","v":79106293.950000003},{"$f":"+C147*(1+$C$87)","v":83219821.235400006},87547251.939640805,92099709.040502131,96888893.910608247,101927116.39395988,107227326.44644579,112803147.42166097,118668911.08758736,124839694.46414191,131331358.57627729,138160589.2222437,145344939.86180037,152902876.73461398,160853826.32481393,169218225.29370427,null,null,{"$f":"ROUND(W147/$W$150,3)","v":0.29799999999999999},"Personal",{"$f":"+W128","v":79106293.950000003},{"$f":"+W147*(1+$W$87)","v":83219821.235400006},87547251.939640805,92099709.040502131,96888893.910608247,101927116.39395988,107227326.44644579,112803147.42166097,118668911.08758736,124839694.46414191,131331358.57627729,138160589.2222437,145344939.86180037,152902876.73461398,160853826.32481393,169218225.29370427]
[{"$f":"ROUND(C148/$C$150,4)","v":0.84889999999999999},"Mantenimiento",{"$f":"+$C$105*$C$110","v":444508082.91920894},444508082.91920894,444508082.91920894,444508082.91920894,444508082.91920894,444508082.91920894,444508082.91920894,444508082.91920894,444508082.91920894,444508082.91920894,444508082.91920894,444508082.91920894,444508082.91920894,444508082.91920894,444508082.91920894,444508082.91920894,null,null,{"$f":"ROUND(W148/$W$150,3)","v":0.70199999999999996},"Mantenimiento",{"$f":"+$W$105*$W$110","v":186735453.94780481},{"$f":"+W148*(1+$W$87)","v":196445697.55309066},206660873.82585138,217407239.26479566,228712415.70656505,240605461.32330644,253116945.31211838,266279026.46834856,280125535.84470272,294692063.70862728,310016051.02147591,326136885.67459267,343096003.72967148,360936995.92361438,379705719.71164232,399450417.13664776]
[null,"Aguas residuales",null,null,null,null,null,null,null,null,null,null,null,null,null,null,null,null,null,null,null,"Aguas residuales"]
[null,"Costos operativos anuales",{"$f":"+SUM(C145:C149)","v":523614376.86920893},527727904.15460896,532055334.85884976,536607791.95971107,541396976.82981718,546435199.31316876,551735409.36565471,557311230.3408699,563176994.00679636,569347777.38335085,575839441.49548626,582668672.14145267,589853022.78100932,597410959.6538229,605361909.24402285,613726308.21291327,null,null,null,"Costos operativos anuales",{"$f":"+SUM(W145:W149)","v":265841747.8978048},279665518.78849065,294208125.7654922,309506948.30529779,325601309.61717331,342532577.71726632,360344271.75856417,379082173.89000952,398794446.93229008,419531758.17276919,441347409.59775317,464297474.8968364,488440943.59147185,513839872.6582284,540559546.03645623,568668642.43035197]
[null,"Capex total",{"$f":"+C105","v":8890161658.3841782},null,null,null,null,null,null,null,null,null,null,null,null,null,null,null,null,null,null,"Capex total",{"$f":"+W105","v":3734709078.9560957}]
[]
[null,"Año",0,1,2,3,4,5,null,6,7,8,9,10,11,12,13,14,null,null,null,"Año",0,1,2,3,4,5,null,6,7,8,9,10,11,12,13,14]
[null,"Ganancias",{"$f":"+C141-C150","v":2073871361.2202578},2204827092.3155098,2342592521.4277153,2487521752.853756,2639987304.3139501,2800381064.4500751,2969115300.1132774,3146623716.0309672,3333362569.5763764,3529811843.5061469,3736476479.6802654,3953887676.9354382,4182604256.4478803,4423214098.0949688,4676335651.5077057,4942619525.6979055,null,null,null,"Ganancias",{"$f":"+W141-W150","v":911685120.0360868},959092746.27796328,1008965569.0844173,1061431778.6768072,1116626231.1680012,1174690795.1887374,1235774716.5385516,1300035001.7985563,1367636821.8920815,1438753936.6304698,1513569141.3352542,1592274736.6846876,1675073022.9922917,1762176820.187891,1853810014.8376617,1950208135.6092198]
[]
[]
[]
[]
[]
[null,null,null,null,null,"Costos operativos - Año 0",null,null,null,"Ingresos - Año 0"]
["Capacidad planta (ton/día)","Capacidad planta (ton/año)","CAPEX (COP)","OPEX (COP) - Año 0","Ingreso anual (COP) - Año 0","Energia (%)","Agua (%)","Personal (%)","Mantenimiento (%)","Venta de biogas (%)","Venta de digestato (%)","Tarifa de gestión de residuos (%)"]
[{"$f":"+B162/330","v":1},{"$f":"+C10","v":330},{"$f":"+C75","v":497518399.06557399},{"$f":"+C74","v":69115717},{"$f":"+C65","v":86582858},{"$f":"+A69","v":0},{"$f":"+A70","v":0},{"$f":"+A71","v":0.6401},{"$f":"+A72","v":0.3599},{"$f":"+$A$62","v":0},{"$f":"+A63","v":0.02},{"$f":"+A64","v":0.98}]
[{"$f":"+B163/330","v":2},{"$f":"+W10","v":660},{"$f":"+W75","v":619251624.36885273},{"$f":"+W74","v":75202377.918442637},{"$f":"+W65","v":173165715.8726311},{"$f":"+U69","v":0},{"$f":"+U70","v":0},{"$f":"+U71","v":0.58830000000000005},{"$f":"+U72","v":0.41170000000000001},{"$f":"+U62","v":0},{"$f":"+U63","v":0.02},{"$f":"+U64","v":0.98}]
[5,{"$f":"+AQ10","v":1650},{"$f":"+AQ75","v":1986700508.0103137},{"$f":"+AQ74","v":143574822},{"$f":"+AQ65","v":432914289.6815778},{"$f":"+AO69","v":0},{"$f":"+AO70","v":0},{"$f":"+AO71","v":0.308},{"$f":"+AO72","v":0.69199999999999995},{"$f":"+AO62","v":0},{"$f":"+AO63","v":0.02},{"$f":"+AO64","v":0.98}]
[13.6,{"$f":"+W86","v":4488},{"$f":"+W151","v":3734709078.9560957},{"$f":"+W150","v":265841747.8978048},{"$f":"+W141","v":1177526867.9338915},{"$f":"+U145","v":0},{"$f":"+U146","v":0},{"$f":"+U147","v":0.29799999999999999},{"$f":"+U148","v":0.70199999999999996},{"$f":"+U138","v":0},{"$f":"+U139","v":0.02},{"$f":"+U140","v":0.98}]
[30,{"$f":"+C86","v":9900},{"$f":"+C151","v":8890161658.3841782},{"$f":"+C150","v":523614376.86920893},{"$f":"+C141","v":2597485738.0894666},{"$f":"+A145","v":0},{"$f":"+A146","v":0},{"$f":"+A147","v":0.15110000000000001},{"$f":"+A148","v":0.84889999999999999},{"$f":"+A138","v":0},{"$f":"+A139","v":0.02},{"$f":"+A140","v":0.98}]
[null,null,null,null,"Promedio ponderado",{"$f":"ROUND(SUMPRODUCT(F162*B162+F163*B163+F164*B164+F165*B165+F166*B166)/SUM($B$162:$B$163,$B$164,$B$165:$B$166),5)","v":0},{"$f":"ROUND(SUMPRODUCT(G162*B162+G163*B163+G164*B164+G165*B165+G166*B166)/SUM($B$162:$B$163,$B$164,$B$165:$B$166),5)","v":0},{"$f":"ROUND(SUMPRODUCT(H162*B162+H163*B163+H164*B164+H165*B165+H166*B166)/SUM($B$162:$B$163,$B$164,$B$165:$B$166),5)","v":0.23144000000000001},{"$f":"ROUND(SUMPRODUCT(I162*B162+I163*B163+I164*B164+I165*B165+I166*B166)/SUM($B$162:$B$163,$B$164,$B$165:$B$166),5)","v":0.76856000000000002},{"$f":"ROUND(SUMPRODUCT(J162*B162+J163*B163+J164*B164+J165*B165+J166*B166)/SUM($B$162:$B$163,$B$164,$B$165:$B$166),3)","v":0},{"$f":"ROUND(SUMPRODUCT(K162*B162+K163*B163+K164*B164+K165*B165+K166*B166)/SUM($B$162:$B$163,$B$164,$B$165:$B$166),3)","v":0.02},{"$f":"ROUND(SUMPRODUCT(L162*B162+L163*B163+L164*B164+L165*B165+L166*B166)/SUM($B$162:$B$163,$B$164,$B$165:$B$166),3)","v":0.98}]
[]
[{"$f":"+(C162-($B$171*B162+$C$171))/C162","v":4.3591254245070293E-2},"Coeficientes de regresión lineal (CAPEX)",null,{"$f":"+B162","v":330},497518399.06557399,69115717,86582858]
[{"$f":"+(C163-($B$171*B163+$C$171))/C163","v":-0.23099261797553974},"m","b",660,619251624.36885273,75202377.918442637,173165715.8726311]
[{"$f":"+(C164-($B$171*B164+$C$171))/C164","v":0.18373007788029366},{"$f":"+LINEST(E169:E173,D169:D173)","v":868070.39462761628},189367717.81319284,1650,1986700508.0103137,143574822,432914289.6815778]
[{"$f":"+(C165-($B$171*B165+$C$171))/C165","v":-9.3865027378203458E-2},"Coeficientes de regresión lineal (OPEX)",null,{"$f":"+B165","v":4488},{"$f":"+C165","v":3734709078.9560957},265841747.8978048,1177526867.9338915]
[{"$f":"+(C166-($B$171*B166+$C$171))/C166","v":1.2024194594568766E-2},{"$f":"+LINEST(F169:F173,D169:D173)","v":47568.463128920186},53470650.305240691,{"$f":"+B166","v":9900},{"$f":"+C166","v":8890161658.3841782},523614376.86920893,2597485738.0894666]
[{"$f":"+AVERAGE(A169:A173)","v":-1.7102423726762093E-2},"Coeficientes de regresión lineal (Ingreso anual)"]
[null,{"$f":"+LINEST(G169:G173,D169:D173,FALSE)","v":262372.29677688685},0]

{"sheet":"Dropdown_digestores","index":10,"n_rows":1037,"n_cols":21,"rows_kept":1037,"cut":false,"hidden":true,"merged":[]}
[]
["Seleccione un departamento de Colombia","Categorías de clima","Departamento","Municipio","Clima","Si/No","Cantidad de tipos de residuos orgánicos","Tipo de residuos orgánicos","Asignación residuos orgánicos","Filtro de residuos orgánicos disponibles","Volumen de las canecas/bolsas","Porcentaje de llenado","Frecuencia de recolección de residuos","Tipo de combustible de transporte","Tipo de disposición final y/o tratamiento a los residuos orgánicos","Ubicación de la plaza de mercado","Sector de la plaza de mercado","Indique las unidades","Indique el tipo de combustible empleado"," ","Seleccione un uso"]
["Seleccione un departamento","Seleccione el tipo de clima","Seleccione el departamento","Seleccióne el municipio","Tipos de clima","Indique una respuesta","Seleccione la cantidad de tipos de residuos orgánicos existentes","Seleccione el tipo de residuo orgánico",{"$f":"+COUNTIFS('HC_RO_Valorización Ambiental'!$D$29:$E$33,H3)","v":0},{"$f":"+_xlfn._xlws.FILTER($H$3:$H$8,$I$3:$I$8=0)","v":"Seleccione el tipo de residuo orgánico"},"Indique el volumen correspondiente","Indique el porcentaje de llenado","Indique la frecuencia con la que se recolectan los residuos","Indique el tipo de combustible empleado","Indique el tipo de disposición final y/o tratamiento","Indique el área donde se ubica la plaza de mercado","Indique la zona donde se ubica la plaza de mercado","kg/día","Diésel B2","galón/viaje","Uso térmico - Biogás"]
["Dpto_Amazonas","Cálido húmedo","Antioquia","Abejorral","Frío","Si",1,"Verduras",{"$f":"+COUNTIFS('HC_RO_Valorización Ambiental'!$D$29:$E$33,H4)","v":0},"Verduras",12,"25% de llenado",1,"Diésel B2","Disposición final en relleno sanitario","Área urbana","Industrial","kg/semana","Gasolina E10","galón/viaje","Uso - Energía eléctrica"]
["Dpto_Antioquia","Cálido seco","Norte de Santander","Abrego","Templado","No",2,"Hortalizas (tubérculo)",{"$f":"+COUNTIFS('HC_RO_Valorización Ambiental'!$D$29:$E$33,H5)","v":0},"Hortalizas (tubérculo)",20,"50% de llenado",2,"Gasolina E10","Tratamiento via compostaje","Área rural dispersa","Comercial","kg/mes","Gas natural comprimido (GNC)","m3/viaje"]
["Dpto_Arauca","Frío","Antioquia","Abriaquí","Templado",null,3,"Frutas",{"$f":"+COUNTIFS('HC_RO_Valorización Ambiental'!$D$29:$E$33,H6)","v":0},"Frutas",35,"75% de llenado",3,"Gas natural comprimido (GNC)","Tratamiento via digestión anaerobica",null,"Desconozco la Zona","kg/año","Eléctrico","kWh/viaje"]
["Dpto_Archipiélago de San Andrés Providencia y Santa Catalina","Templado","Meta","Acacías","Templado",null,4,"Carnicos",{"$f":"+COUNTIFS('HC_RO_Valorización Ambiental'!$D$29:$E$33,H7)","v":0},"Carnicos",45,"100% de llenado",4,"Eléctrico",null,null,null,"t/día"]
["Dpto_Atlántico",null,"Chocó","Acandí","Cálido húmedo",null,5,"Orgánicos mixtos",{"$f":"+COUNTIFS('HC_RO_Valorización Ambiental'!$D$29:$E$33,H8)","v":0},"Orgánicos mixtos",53,null,5,null,null,null,null,"t/semana"]
["Bogotá D.C",null,"Huila","Acevedo","Templado",null,null,null,null,null,85,null,6,null,null,null,null,"t/mes"]
["Dpto_Bolívar",null,"Bolívar","Achí","Cálido húmedo",null,null,null,null,null,120,null,7,null,null,null,null,"t/año"]
["Dpto_Boyacá",null,"Huila","Agrado","Cálido seco",null,null,null,null,null,360]
["Dpto_Caldas",null,"Cundinamarca","Agua de Dios","Cálido seco"]
["Dpto_Caquetá",null,"Cesar","Aguachica","Templado"]
["Dpto_Casanare",null,"Santander","Aguada, Santander","Templado"]
["Dpto_Cauca",null,"Caldas","Aguadas","Frío"]
["Dpto_Cesar",null,"Casanare","Aguazul","Cálido húmedo"]
["Dpto_Chocó",null,"Cesar","Agustín Codazzi","Cálido húmedo"]
["Dpto_Córdoba",null,"Nariño","Albán, Nariño","Templado"]
["Dpto_Cundinamarca",null,"Cundinamarca","Albán","Frío"]
["Dpto_Guainía",null,"Guajira","Albania, Guajira","Cálido seco"]
["Dpto_Guaviare",null,"Caquetá","Albania","Cálido húmedo"]
["Dpto_Huila",null,"Santander","Albania, Santander","Templado"]
["Dpto_La Guajira",null,"Valle del Cauca","Alcalá","Templado"]
["Dpto_Magdalena",null,"Nariño","Aldana","Frío"]
["Dpto_Meta",null,"Antioquia","Alejandría","Templado"]
["Dpto_Nariño",null,"Magdalena","Algarrobo","Cálido seco"]
["Dpto_Norte_de_Santander",null,"Huila","Algeciras","Templado"]
["Dpto_Putumayo",null,"Cauca","Almaguer","Frío"]
["Dpto_Quindio",null,"Boyacá","Almeida","Templado"]
["Dpto_Risaralda",null,"Tolima","Alpujarra","Templado"]
["Dpto_Santander",null,"Huila","Altamira","Templado"]
["Dpto_Sucre",null,"Chocó","Alto Baudo","Cálido húmedo"]
["Dpto_Tolima",null,"Bolívar","Altos del Rosario","Cálido húmedo"]
["Dpto_Valle_del_Cauca",null,"Tolima","Alvarado","Cálido seco"]
["Dpto_Vaupés",null,"Antioquia","Amagá","Templado"]
["Dpto_Vichada",null,"Antioquia","Amalfi","Templado"]
[null,null,"Tolima","Ambalema","Cálido húmedo"]
[null,null,"Cundinamarca","Anapoima","Templado"]
[null,null,"Nariño","Ancuyá","Templado"]
[null,null,"Valle del Cauca","Andalucía","Templado"]
[null,null,"Antioquia","Andes","Templado"]
[null,null,"Antioquia","Angelópolis","Templado"]
[null,null,"Antioquia","Angostura","Templado"]
[null,null,"Cundinamarca","Anolaima","Templado"]
[null,null,"Antioquia","Anorí","Templado"]
[null,null,"Valle del Cauca","Ansermanuevo","Templado"]
[null,null,"Antioquia","Anza","Cálido húmedo"]
[null,null,"Tolima","Anzoátegui","Templado"]
[null,null,"Antioquia","Apartadó","Cálido húmedo"]
[null,null,"Risaralda","Apía","Cálido húmedo"]
[null,null,"Cundinamarca","Apulo","Cálido seco"]
[null,null,"Boyacá","Aquitania","Frío"]
[null,null,"Magdalena","Aracataca","Cálido seco"]
[null,null,"Caldas","Aranzazu","Templado"]
[null,null,"Santander","Aratoca","Templado"]
[null,null,"Arauca","Arauca","Cálido húmedo"]
[null,null,"Arauca","Arauquita","Cálido húmedo"]
[null,null,"Cundinamarca","Arbeláez","Templado"]
[null,null,"Nariño","Arboleda","Frío"]
[null,null,"Norte de Santander","Arboledas","Templado"]
[null,null,"Antioquia","Arboletes","Cálido húmedo"]
[null,null,"Boyacá","Arcabuco","Frío"]
[null,null,"Bolívar","Arenal","Cálido húmedo"]
[null,null,"Cauca","Argelia","Templado"]
[null,null,"Valle del Cauca","Argelia, VC","Templado"]
[null,null,"Magdalena","Ariguaní","Cálido seco"]
[null,null,"Bolívar","Arjona","Cálido húmedo"]
[null,null,"Quindio","Armenia","Templado"]
[null,null,"Bolívar","Arroyohondo","Cálido húmedo"]
[null,null,"Cesar","Astrea","Cálido húmedo"]
[null,null,"Tolima","Carmen de Apicalá","Templado"]
[null,null,"Chocó","Bagadó","Cálido húmedo"]
[null,null,"Chocó","Bahía Solano","Cálido húmedo"]
[null,null,"Chocó","Bajo Baudó","Cálido húmedo"]
[null,null,"Cauca","Balboa","Templado"]
[null,null,"Risaralda","Balboa, Risaralda","Templado"]
[null,null,"Atlántico","Baranoa","Cálido húmedo"]
[null,null,"Huila","Baraya","Cálido seco"]
[null,null,"Nariño","Barbacoas","Cálido húmedo"]
[null,null,"Antioquia","Barbosa","Templado"]
[null,null,"Santander","Barbosa, Santander","Templado"]
[null,null,"Santander","Barichara","Templado"]
[null,null,"Meta","Barranca de Upía","Cálido húmedo"]
[null,null,"Santander","Barrancabermeja","Cálido húmedo"]
[null,null,"Guajira","Barrancas","Cálido seco"]
[null,null,"Bolívar","Barranco de Loba","Cálido seco"]
[null,null,"Guainía","Barranco Minas","Cálido húmedo"]
[null,null,"Atlántico","Barranquilla","Cálido húmedo"]
[null,null,"Cesar","Becerril","Templado"]
[null,null,"Caldas","Belalcázar","Templado"]
[null,null,"Boyacá","Belén","Frío"]
[null,null,"Nariño","Belén, Nariño","Frío"]
[null,null,"Caquetá","Belén de los Andaquies","Cálido húmedo"]
[null,null,"Risaralda","Belén de Umbría","Templado"]
[null,null,"Antioquia","Bello","Templado"]
[null,null,"Antioquia","Belmira","Frío"]
[null,null,"Cundinamarca","Beltrán","Templado"]
[null,null,"Boyacá","Berbeo","Templado"]
[null,null,"Antioquia","Betania","Templado"]
[null,null,"Boyacá","Betéitiva","Frío"]
[null,null,"Antioquia","Betulia","Templado"]
[null,null,"Santander","Betulia, Santander","Templado"]
[null,null,"Cundinamarca","Bituima","Templado"]
[null,null,"Boyacá","Boavita","Frío"]
[null,null,"Norte de Santander","Bochalema","Templado"]
[null,null,"Bogotá","Bogotá","Frío"]
[null,null,"Cundinamarca","Bojacá","Frío"]
[null,null,"Chocó","Bojaya","Cálido húmedo"]
[null,null,"Cauca","Bolívar","Templado"]
[null,null,"Valle del Cauca","Bolívar, VC","Templado"]
[null,null,"Santander","Bolívar, Santander","Frío"]
[null,null,"Cesar","Bosconia","Cálido seco"]
[null,null,"Boyacá","Boyacá","Frío"]
[null,null,"Antioquia","Briceño","Templado"]
[null,null,"Boyacá","Briceño, Boyacá","Templado"]
[null,null,"Santander","Bucaramanga","Cálido seco"]
[null,null,"Norte de Santander","Bucarasica","Templado"]
[null,null,"Valle del Cauca","Buenaventura","Cálido húmedo"]
[null,null,"Córdoba","Buenavista, Córdoba","Cálido húmedo"]
[null,null,"Sucre","Buenavista, Sucre","Cálido seco"]
[null,null,"Boyacá","Buenavista","Frío"]
[null,null,"Quindio","Buenavista, Quindío","Templado"]
[null,null,"Cauca","Buenos Aires","Templado"]
[null,null,"Nariño","Buesaco","Templado"]
[null,null,"Valle del Cauca","Bugalagrande","Templado"]
[null,null,"Antioquia","Buriticá","Templado"]
[null,null,"Boyacá","Busbanzá","Frío"]
[null,null,"Cundinamarca","Cabrera","Frío"]
[null,null,"Santander","Cabrera, Santander","Cálido seco"]
[null,null,"Meta","Cabuyaro","Cálido húmedo"]
[null,null,"Guainía","Cacahual","Cálido húmedo"]
[null,null,"Cundinamarca","Cachipay","Templado"]
[null,null,"Norte de Santander","Cachirá","Frío"]
[null,null,"Norte de Santander","Cácota","Frío"]
[null,null,"Antioquia","Caicedo","Templado"]
[null,null,"Sucre","Caimito","Cálido seco"]
[null,null,"Cauca","Cajibío","Templado"]
[null,null,"Cundinamarca","Cajicá","Frío"]
[null,null,"Bolívar","Calamar","Cálido húmedo"]
[null,null,"Guaviare","Calamar, Guaviare","Cálido húmedo"]
[null,null,"Antioquia","Miraflores, Guaviare","Templado"]
[null,null,"Boyacá","San José del Guaviare","Frío"]
[null,null,"Cauca","Caldono","Templado"]
[null,null,"Valle del Cauca","Santiago de Cali","Cálido seco"]
[null,null,"Santander","California","Frío"]
[null,null,"Valle del Cauca","Calima","Templado"]
[null,null,"Cauca","Caloto","Templado"]
[null,null,"Antioquia","Campamento","Templado"]
[null,null,"Atlántico","Campo de La Cruz","Cálido húmedo"]
[null,null,"Huila","Campoalegre","Cálido seco"]
[null,null,"Córdoba","Canalete","Cálido seco"]
[null,null,"Valle del Cauca","Candelaria, VC","Templado"]
[null,null,"Atlántico","Candelaria","Cálido húmedo"]
[null,null,"Antioquia","Cañasgordas","Templado"]
[null,null,"Cundinamarca","Caparrapí","Templado"]
[null,null,"Santander","Capitanejo","Templado"]
[null,null,"Cundinamarca","Caqueza","Templado"]
[null,null,"Antioquia","Caracolí","Cálido húmedo"]
[null,null,"Antioquia","Caramanta","Frío"]
[null,null,"Santander","Carcasí","Frío"]
[null,null,"Antioquia","Carepa","Cálido húmedo"]
[null,null,"Cundinamarca","Carmen de Carupa","Frío"]
[null,null,"Chocó","Carmen del Darien","Cálido húmedo"]
[null,null,"Antioquia","Carolina","Templado"]
[null,null,"Bolívar","Cartagena de Indias","Cálido húmedo"]
[null,null,"Caquetá","Cartagena del Chairá","Cálido húmedo"]
[null,null,"Valle del Cauca","Cartago","Templado"]
[null,null,"Vaupés","Caruru","Cálido húmedo"]
[null,null,"Tolima","Casabianca","Frío"]
[null,null,"Meta","Castilla la Nueva","Cálido húmedo"]
[null,null,"Antioquia","Caucasia","Cálido húmedo"]
[null,null,"Santander","Cepitá","Cálido seco"]
[null,null,"Córdoba","Cereté","Cálido seco"]
[null,null,"Boyacá","Cerinza","Frío"]
[null,null,"Santander","Cerrito","Frío"]
[null,null,"Magdalena","Cerro San Antonio","Cálido húmedo"]
[null,null,"Chocó","Cértegui","Cálido húmedo"]
[null,null,"Nariño","Chachagüí","Templado"]
[null,null,"Cundinamarca","Chaguaní","Templado"]
[null,null,"Casanare","Chameza","Templado"]
[null,null,"Tolima","Chaparral","Frío"]
[null,null,"Santander","Charalá","Templado"]
[null,null,"Santander","Charta","Templado"]
[null,null,"Cundinamarca","Chía","Frío"]
[null,null,"Antioquia","Chigorodó","Cálido húmedo"]
[null,null,"Santander","Chima","Templado"]
[null,null,"Córdoba","Chimá","Cálido seco"]
[null,null,"Cesar","Chimichagua","Templado"]
[null,null,"Norte de Santander","Chinácota","Templado"]
[null,null,"Boyacá","Chinavita","Templado"]
[null,null,"Caldas","Chinchiná","Templado"]
[null,null,"Cundinamarca","Chipaque","Frío"]
[null,null,"Santander","Chipatá","Templado"]
[null,null,"Boyacá","Chiquinquirá","Frío"]
[null,null,"Boyacá","Chíquiza","Frío"]
[null,null,"Cesar","Chiriguaná","Cálido seco"]
[null,null,"Boyacá","Chiscas","Frío"]
[null,null,"Boyacá","Chita","Frío"]
[null,null,"Norte de Santander","Chitagá","Frío"]
[null,null,"Boyacá","Chivatá","Frío"]
[null,null,"Magdalena","Chivolo","Cálido húmedo"]
[null,null,"Boyacá","Chivor","Templado"]
[null,null,"Cundinamarca","Choachí","Templado"]
[null,null,"Cundinamarca","Chocontá","Frío"]
[null,null,"Magdalena","Ciénaga, Magdalena","Cálido seco"]
[null,null,"Córdoba","Ciénaga de Oro","Cálido seco"]
[null,null,"Boyacá","Ciénega","Templado"]
[null,null,"Santander","Cimitarra","Cálido húmedo"]
[null,null,"Quindio","Circasia","Templado"]
[null,null,"Antioquia","Cisneros","Templado"]
[null,null,"Antioquia","Ciudad Bolívar","Templado"]
[null,null,"Antioquia","Cocorná","Templado"]
[null,null,"Tolima","Coello","Cálido seco"]
[null,null,"Cundinamarca","Cogua","Frío"]
[null,null,"Huila","Colombia","Cálido seco"]
[null,null,"Nariño","Colón","Templado"]
[null,null,"Putumayo","Colón, Putumayo","Cálido húmedo"]
[null,null,"Boyacá","Cómbita","Frío"]
[null,null,"Santander","Concepción, Santander","Frío"]
[null,null,"Antioquia","Concepción","Templado"]
[null,null,"Antioquia","Concordia","Frío"]
[null,null,"Magdalena","Concordia, Magdalena","Cálido húmedo"]
[null,null,"Chocó","Condoto","Cálido húmedo"]
[null,null,"Santander","Confines","Templado"]
[null,null,"Nariño","Consaca","Templado"]
[null,null,"Nariño","Contadero","Frío"]
[null,null,"Santander","Contratación","Templado"]
[null,null,"Norte de Santander","Convención","Templado"]
[null,null,"Antioquia","Copacabana","Templado"]
[null,null,"Boyacá","Coper","Cálido húmedo"]
[null,null,"Bolívar","Córdoba","Cálido seco"]
[null,null,"Quindio","Córdoba, Quindío","Templado"]
[null,null,"Cauca","Corinto","Templado"]
[null,null,"Santander","Coromoro","Templado"]
[null,null,"Sucre","Corozal","Cálido seco"]
[null,null,"Boyacá","Corrales","Frío"]
[null,null,"Cundinamarca","Cota","Frío"]
[null,null,"Córdoba","Cotorra","Cálido seco"]
[null,null,"Sucre","Coveñas","Cálido seco"]
[null,null,"Tolima","Coyaima","Frío"]
[null,null,"Arauca","Cravo Norte","Cálido húmedo"]
[null,null,"Nariño","Cuaspud","Frío"]
[null,null,"Boyacá","Cubará","Cálido húmedo"]
[null,null,"Meta","Cubarral","Cálido húmedo"]
[null,null,"Boyacá","Cucaita","Frío"]
[null,null,"Cundinamarca","Cucunubá","Frío"]
[null,null,"Norte de Santander","Cúcuta","Cálido seco"]
[null,null,"Norte de Santander","Cucutilla","Templado"]
[null,null,"Boyacá","Cuítiva","Frío"]
[null,null,"Meta","Cumaral","Cálido húmedo"]
[null,null,"Vichada","Cumaribo","Cálido húmedo"]
[null,null,"Nariño","Cumbal","Frío"]
[null,null,"Nariño","Cumbitara","Templado"]
[null,null,"Tolima","Cunday","Templado"]
[null,null,"Caquetá","Curillo","Cálido húmedo"]
[null,null,"Santander","Curití","Templado"]
[null,null,"Cesar","Curumaní","Templado"]
[null,null,"Antioquia","Dabeiba","Cálido húmedo"]
[null,null,"Valle del Cauca","Dagua","Cálido seco"]
[null,null,"Guajira","Dibulla","Cálido seco"]
[null,null,"Guajira","Distracción","Cálido seco"]
[null,null,"Tolima","Dolores","Templado"]
[null,null,"Antioquia","Don Matías","Frío"]
[null,null,"Risaralda","Dosquebradas","Templado"]
[null,null,"Boyacá","Duitama","Frío"]
[null,null,"Norte de Santander","Durania","Templado"]
[null,null,"Antioquia","Ebéjico","Templado"]
[null,null,"Valle del Cauca","El Águila","Templado"]
[null,null,"Antioquia","El Bagre","Cálido húmedo"]
[null,null,"Valle del Cauca","El Cairo","Templado"]
[null,null,"Meta","El Calvario","Cálido húmedo"]
[null,null,"Chocó","El Cantón del San Pablo","Cálido húmedo"]
[null,null,"Norte de Santander","El Carmen","Templado"]
[null,null,"Chocó","El Carmen de Atrato","Cálido húmedo"]
[null,null,"Bolívar","El Carmen de Bolívar","Cálido seco"]
[null,null,"Santander","El Carmen de Chucurí","Cálido seco"]
[null,null,"Antioquia","El Carmen de Viboral","Frío"]
[null,null,"Meta","El Castillo","Cálido húmedo"]
[null,null,"Valle del Cauca","El Cerrito","Templado"]
[null,null,"Nariño","El Charco","Cálido húmedo"]
[null,null,"Boyacá","El Cocuy","Frío"]
[null,null,"Cundinamarca","El Colegio","Templado"]
[null,null,"Cesar","El Copey","Cálido húmedo"]
[null,null,"Caquetá","El Doncello","Cálido húmedo"]
[null,null,"Meta","El Dorado","Cálido húmedo"]
[null,null,"Valle del Cauca","El Dovio","Templado"]
[null,null,"Amazonas","El Encanto","Cálido húmedo"]
[null,null,"Boyacá","El Espino","Frío"]
[null,null,"Santander","El Guacamayo","Templado"]
[null,null,"Bolívar","El Guamo","Cálido seco"]
[null,null,"Cesar","El Paso","Cálido seco"]
[null,null,"Caquetá","El Paujil","Cálido húmedo"]
[null,null,"Nariño","El Peñol","Templado"]
[null,null,"Bolívar","El Peñón","Cálido húmedo"]
[null,null,"Santander","El Peñón, Santander","Frío"]
[null,null,"Cundinamarca","El Peñón, Cundinamarca","Templado"]
[null,null,"Magdalena","El Piñon","Cálido seco"]
[null,null,"Santander","El Playón","Frío"]
[null,null,"Magdalena","El Retén","Cálido húmedo"]
[null,null,"Guaviare","El Retorno","Cálido húmedo"]
[null,null,"Sucre","El Roble","Cálido seco"]
[null,null,"Cundinamarca","El Rosal","Frío"]
[null,null,"Nariño","El Rosario","Templado"]
[null,null,"Antioquia","El Santuario","Frío"]
[null,null,"Nariño","El Tablón de Gómez","Templado"]
[null,null,"Cauca","El Tambo","Templado"]
[null,null,"Nariño","El Tambo, Nariño","Frío"]
[null,null,"Norte de Santander","El Tarra","Templado"]
[null,null,"Norte de Santander","El Zulia","Cálido seco"]
[null,null,"Huila","Elías","Templado"]
[null,null,"Santander","Encino","Frío"]
[null,null,"Santander","Enciso","Templado"]
[null,null,"Antioquia","Entrerrios","Frío"]
[null,null,"Antioquia","Envigado","Templado"]
[null,null,"Tolima","Espinal","Cálido seco"]
[null,null,"Cundinamarca","Facatativá","Frío"]
[null,null,"Tolima","Falan","Cálido húmedo"]
[null,null,"Caldas","Filadelfia","Templado"]
[null,null,"Quindio","Filandia","Templado"]
[null,null,"Boyacá","Firavitoba","Frío"]
[null,null,"Tolima","Flandes","Cálido seco"]
[null,null,"Caquetá","Florencia","Templado"]
[null,null,"Cauca","Florencia, Cauca","Templado"]
[null,null,"Boyacá","Floresta","Frío"]
[null,null,"Santander","Florián","Templado"]
[null,null,"Valle del Cauca","Florida","Templado"]
[null,null,"Santander","Floridablanca","Cálido seco"]
[null,null,"Cundinamarca","Fomeque","Templado"]
[null,null,"Guajira","Fonseca","Cálido seco"]
[null,null,"Arauca","Fortul","Cálido húmedo"]
[null,null,"Cundinamarca","Fosca","Frío"]
[null,null,"Nariño","Francisco Pizarro","Cálido húmedo"]
[null,null,"Antioquia","Fredonia","Templado"]
[null,null,"Tolima","Fresno","Templado"]
[null,null,"Antioquia","Frontino","Templado"]
[null,null,"Meta","Fuente de Oro","Cálido húmedo"]
[null,null,"Magdalena","Fundación","Cálido seco"]
[null,null,"Nariño","Funes","Frío"]
[null,null,"Cundinamarca","Funza","Frío"]
[null,null,"Cundinamarca","Fúquene","Frío"]
[null,null,"Cundinamarca","Fusagasugá","Templado"]
[null,null,"Cundinamarca","Gachala","Templado"]
[null,null,"Cundinamarca","Gachancipá","Frío"]
[null,null,"Boyacá","Gachantivá","Frío"]
[null,null,"Cundinamarca","Gachetá","Templado"]
[null,null,"Santander","Galán","Cálido seco"]
[null,null,"Atlántico","Galapa","Cálido húmedo"]
[null,null,"Sucre","Galeras","Cálido seco"]
[null,null,"Cundinamarca","Gama","Frío"]
[null,null,"Cesar","Gamarra","Cálido húmedo"]
[null,null,"Santander","Gambita","Templado"]
[null,null,"Boyacá","Gameza","Frío"]
[null,null,"Boyacá","Garagoa","Templado"]
[null,null,"Huila","Garzón","Frío"]
[null,null,"Quindio","Génova","Templado"]
[null,null,"Huila","Gigante","Cálido seco"]
[null,null,"Valle del Cauca","Ginebra","Templado"]
[null,null,"Antioquia","Giraldo","Templado"]
[null,null,"Cundinamarca","Girardot","Cálido seco"]
[null,null,"Antioquia","Girardota","Templado"]
[null,null,"Santander","Girón","Cálido seco"]
[null,null,"Antioquia","Gómez Plata","Templado"]
[null,null,"Norte de Santander","Gramalote","Templado"]
[null,null,"Meta","Granada, Meta","Templado"]
[null,null,"Antioquia","Granada","Frío"]
[null,null,"Cundinamarca","Granada, Cundinamarca","Templado"]
[null,null,"Santander","Guaca","Frío"]
[null,null,"Boyacá","Guacamayas","Frío"]
[null,null,"Valle del Cauca","Guacarí","Templado"]
[null,null,"Cauca","Guachené","Cálido seco"]
[null,null,"Cundinamarca","Guachetá","Frío"]
[null,null,"Nariño","Guachucal","Frío"]
[null,null,"Valle del Cauca","Guadalajara de Buga","Templado"]
[null,null,"Huila","Guadalupe, Huila","Cálido seco"]
[null,null,"Antioquia","Guadalupe","Templado"]
[null,null,"Santander","Guadalupe, Santander","Templado"]
[null,null,"Cundinamarca","Guaduas","Cálido húmedo"]
[null,null,"Nariño","Guaitarilla","Frío"]
[null,null,"Nariño","Gualmatán","Frío"]
[null,null,"Meta","Guamal","Cálido húmedo"]
[null,null,"Tolima","Guamo","Cálido húmedo"]
[null,null,"Cauca","Guapi","Cálido húmedo"]
[null,null,"Santander","Guapotá","Templado"]
[null,null,"Sucre","Guaranda","Cálido seco"]
[null,null,"Antioquia","Guarne","Frío"]
[null,null,"Cundinamarca","Guasca","Frío"]
[null,null,"Antioquia","Guatapé","Templado"]
[null,null,"Cundinamarca","Guataquí","Cálido seco"]
[null,null,"Cundinamarca","Guatavita","Frío"]
[null,null,"Boyacá","Guateque","Templado"]
[null,null,"Risaralda","Guática","Cálido húmedo"]
[null,null,"Santander","Guavatá","Templado"]
[null,null,"Cundinamarca","Guayabal de Siquima","Templado"]
[null,null,"Cundinamarca","Guayabetal","Templado"]
[null,null,"Boyacá","Guayatá","Templado"]
[null,null,"Santander","Güepsa","Templado"]
[null,null,"Boyacá","Güicán","Frío"]
[null,null,"Cundinamarca","Gutiérrez","Frío"]
[null,null,"Norte de Santander","Hacarí","Templado"]
[null,null,"Bolívar","Hatillo de Loba","Cálido húmedo"]
[null,null,"Santander","Hato","Templado"]
[null,null,"Casanare","Hato Corozal","Cálido húmedo"]
[null,null,"Guajira","Hatonuevo","Cálido seco"]
[null,null,"Antioquia","Heliconia","Templado"]
[null,null,"Norte de Santander","Herrán","Templado"]
[null,null,"Tolima","Herveo","Frío"]
[null,null,"Antioquia","Hispania","Templado"]
[null,null,"Huila","Hobo","Cálido seco"]
[null,null,"Tolima","Honda","Cálido húmedo"]
[null,null,"Tolima","Ibagué","Templado"]
[null,null,"Nariño","Iles","Frío"]
[null,null,"Nariño","Imués","Frío"]
[null,null,"Guainía","Inírida","Cálido húmedo"]
[null,null,"Cauca","Inzá","Templado"]
[null,null,"Nariño","Ipiales","Frío"]
[null,null,"Huila","Iquira","Templado"]
[null,null,"Chocó","Istmina","Cálido húmedo"]
[null,null,"Antioquia","Itagui","Templado"]
[null,null,"Antioquia","Ituango","Templado"]
[null,null,"Boyacá","Iza","Frío"]
[null,null,"Cauca","Jambaló","Frío"]
[null,null,"Valle del Cauca","Jamundí","Cálido seco"]
[null,null,"Antioquia","Jardín","Templado"]
[null,null,"Boyacá","Jenesano","Frío"]
[null,null,"Antioquia","Jericó","Templado"]
[null,null,"Boyacá","Jericó, Boyacá","Frío"]
[null,null,"Cundinamarca","Jerusalén","Frío"]
[null,null,"Santander","Jesús María","Frío"]
[null,null,"Santander","Jordán","Cálido seco"]
[null,null,"Cundinamarca","Junín","Frío"]
[null,null,"Chocó","Juradó","Cálido húmedo"]
[null,null,"Córdoba","La Apartada","Cálido húmedo"]
[null,null,"Santander","La Belleza","Templado"]
[null,null,"Cundinamarca","La Calera","Frío"]
[null,null,"Boyacá","La Capilla","Templado"]
[null,null,"Antioquia","La Ceja","Frío"]
[null,null,"Risaralda","La Celia","Templado"]
[null,null,"Amazonas","La Chorrera","Cálido húmedo"]
[null,null,"Nariño","La Cruz","Frío"]
[null,null,"Valle del Cauca","La Cumbre","Templado"]
[null,null,"Caldas","La Dorada","Cálido húmedo"]
[null,null,"Norte de Santander","La Esperanza","Templado"]
[null,null,"Antioquia","La Estrella","Templado"]
[null,null,"Nariño","La Florida","Frío"]
[null,null,"Cesar","La Gloria","Cálido húmedo"]
[null,null,"Guainía","La Guadalupe","Cálido húmedo"]
[null,null,"Cesar","La Jagua de Ibirico","Templado"]
[null,null,"Nariño","La Llanada","Frío"]
[null,null,"Meta","La Macarena","Cálido húmedo"]
[null,null,"Caldas","La Merced","Templado"]
[null,null,"Cundinamarca","La Mesa","Templado"]
[null,null,"Caquetá","La Montañita","Cálido húmedo"]
[null,null,"Cundinamarca","La Palma","Templado"]
[null,null,"Cesar","La Paz","Cálido seco"]
[null,null,"Santander","La Paz, Santander","Templado"]
[null,null,"Amazonas","La Pedrera","Cálido húmedo"]
[null,null,"Cundinamarca","La Peña","Templado"]
[null,null,"Antioquia","La Pintada","Cálido húmedo"]
[null,null,"Norte de Santander","La Playa","Templado"]
[null,null,"Vichada","La Primavera","Cálido húmedo"]
[null,null,"Casanare","La Salina","Templado"]
[null,null,"Cauca","La Sierra","Templado"]
[null,null,"Quindio","La Tebaida","Templado"]
[null,null,"Nariño","La Tola","Cálido húmedo"]
[null,null,"Valle del Cauca","La Unión, VC","Templado"]
[null,null,"Nariño","La Unión, Nariño","Templado"]
[null,null,"Antioquia","La Unión","Frío"]
[null,null,"Sucre","La Unión, Sucre","Cálido seco"]
[null,null,"Boyacá","La Uvita","Frío"]
[null,null,"Cauca","La Vega","Frío"]
[null,null,"Cundinamarca","La Vega, Cundinamarca","Templado"]
[null,null,"Valle del Cauca","La Victoria, VC","Templado"]
[null,null,"Boyacá","La Victoria, Boyacá","Templado"]
[null,null,"Amazonas","La Victoria","Cálido húmedo"]
[null,null,"Risaralda","La Virginia","Cálido húmedo"]
[null,null,"Norte de Santander","Labateca","Templado"]
[null,null,"Boyacá","Labranzagrande","Templado"]
[null,null,"Santander","Landázuri","Templado"]
[null,null,"Santander","Lebríja","Templado"]
[null,null,"Putumayo","Leguízamo","Cálido húmedo"]
[null,null,"Nariño","Leiva","Frío"]
[null,null,"Meta","Lejanías","Cálido húmedo"]
[null,null,"Cundinamarca","Lenguazaque","Frío"]
[null,null,"Tolima","Lérida","Cálido seco"]
[null,null,"Amazonas","Leticia","Cálido húmedo"]
[null,null,"Tolima","Líbano","Templado"]
[null,null,"Antioquia","Liborina","Cálido húmedo"]
[null,null,"Nariño","Linares","Templado"]
[null,null,"Chocó","Litoral de San Juan","Cálido húmedo"]
[null,null,"Chocó","Lloró","Cálido húmedo"]
[null,null,"Cauca","López","Cálido húmedo"]
[null,null,"Córdoba","Lorica","Cálido seco"]
[null,null,"Córdoba","Los Córdobas","Cálido seco"]
[null,null,"Sucre","Los Palmitos","Cálido seco"]
[null,null,"Norte de Santander","Los Patios","Cálido seco"]
[null,null,"Santander","Los Santos","Templado"]
[null,null,"Norte de Santander","Lourdes","Templado"]
[null,null,"Boyacá","Macanal","Templado"]
[null,null,"Santander","Macaravita","Frío"]
[null,null,"Antioquia","Maceo","Cálido húmedo"]
[null,null,"Cundinamarca","Macheta","Frío"]
[null,null,"Cundinamarca","Madrid","Frío"]
[null,null,"Nariño","Magüi","Templado"]
[null,null,"Bolívar","Mahates","Cálido húmedo"]
[null,null,"Guajira","Maicao","Cálido seco"]
[null,null,"Sucre","Majagual","Cálido húmedo"]
[null,null,"Santander","Málaga","Templado"]
[null,null,"Atlántico","Malambo","Cálido húmedo"]
[null,null,"Nariño","Mallama","Templado"]
[null,null,"Atlántico","Manatí","Cálido húmedo"]
[null,null,"Guajira","Manaure, Guajira","Cálido seco"]
[null,null,"Cesar","Manaure","Templado"]
[null,null,"Casanare","Maní","Cálido húmedo"]
[null,null,"Caldas","Manizales","Frío"]
[null,null,"Cundinamarca","Manta","Templado"]
[null,null,"Meta","Mapiripán","Cálido húmedo"]
[null,null,"Bolívar","Margarita","Cálido húmedo"]
[null,null,"Antioquia","Marinilla","Frío"]
[null,null,"Boyacá","Maripí","Templado"]
[null,null,"Tolima","Mariquita","Cálido húmedo"]
[null,null,"Caldas","Marmato","Templado"]
[null,null,"Caldas","Marquetalia","Templado"]
[null,null,"Risaralda","Marsella","Templado"]
[null,null,"Caldas","Marulanda","Frío"]
[null,null,"Santander","Matanza","Templado"]
[null,null,"Antioquia","Medellín","Templado"]
[null,null,"Cundinamarca","Medina","Templado"]
[null,null,"Chocó","Medio Baudó","Cálido húmedo"]
[null,null,"Chocó","Medio San Juan","Cálido húmedo"]
[null,null,"Tolima","Melgar","Cálido seco"]
[null,null,"Cauca","Mercaderes","Templado"]
[null,null,"Meta","Mesetas","Cálido húmedo"]
[null,null,"Caquetá","Milán","Cálido húmedo"]
[null,null,"Guaviare","Miraflores, Guaviare","Cálido húmedo"]
[null,null,"Boyacá","Miraflores","Templado"]
[null,null,"Cauca","Miranda","Templado"]
[null,null,"Amazonas","Miriti - Paraná","Cálido húmedo"]
[null,null,"Risaralda","Mistrató","Templado"]
[null,null,"Vaupés","Mitú","Cálido húmedo"]
[null,null,"Putumayo","Mocoa","Cálido húmedo"]
[null,null,"Santander","Mogotes","Templado"]
[null,null,"Santander","Molagavita","Frío"]
[null,null,"Córdoba","Momil","Cálido seco"]
[null,null,"Bolívar","Mompós","Cálido húmedo"]
[null,null,"Boyacá","Mongua","Frío"]
[null,null,"Boyacá","Monguí","Frío"]
[null,null,"Boyacá","Moniquirá","Templado"]
[null,null,"Antioquia","Montebello","Frío"]
[null,null,"Bolívar","Montecristo","Cálido húmedo"]
[null,null,"Córdoba","Montelíbano","Cálido húmedo"]
[null,null,"Quindio","Montenegro","Templado"]
[null,null,"Córdoba","Montería","Cálido seco"]
[null,null,"Casanare","Monterrey","Cálido húmedo"]
[null,null,"Córdoba","Moñitos","Cálido seco"]
[null,null,"Bolívar","Morales","Cálido seco"]
[null,null,"Caquetá","Morelia","Cálido húmedo"]
[null,null,"Guainía","Morichal","Cálido húmedo"]
[null,null,"Sucre","Morroa","Cálido seco"]
[null,null,"Cundinamarca","Mosquera","Frío"]
[null,null,"Nariño","Mosquera, Nariño","Cálido húmedo"]
[null,null,"Boyacá","Motavita","Frío"]
[null,null,"Tolima","Murillo","Cálido seco"]
[null,null,"Antioquia","Murindó","Cálido húmedo"]
[null,null,"Antioquia","Mutatá","Cálido húmedo"]
[null,null,"Norte de Santander","Mutiscua","Frío"]
[null,null,"Boyacá","Muzo","Cálido húmedo"]
[null,null,"Nariño","Nariño","Templado"]
[null,null,"Cundinamarca","Nariño","Templado"]
[null,null,"Tolima","Natagaima","Cálido seco"]
[null,null,"Antioquia","Nechí","Cálido húmedo"]
[null,null,"Antioquia","Necoclí","Cálido húmedo"]
[null,null,"Caldas","Neira","Templado"]
[null,null,"Huila","Neiva","Cálido seco"]
[null,null,"Cundinamarca","Nemocón","Frío"]
[null,null,"Cundinamarca","Nilo","Templado"]
[null,null,"Cundinamarca","Nimaima","Templado"]
[null,null,"Boyacá","Nobsa","Frío"]
[null,null,"Cundinamarca","Nocaima","Templado"]
[null,null,"Caldas","Norcasia","Templado"]
[null,null,"Chocó","Nóvita","Cálido húmedo"]
[null,null,"Magdalena","Nueva Granada","Cálido seco"]
[null,null,"Boyacá","Nuevo Colón","Frío"]
[null,null,"Casanare","Nunchía","Cálido húmedo"]
[null,null,"Chocó","Nuquí","Cálido húmedo"]
[null,null,"Valle del Cauca","Obando","Templado"]
[null,null,"Santander","Ocamonte","Templado"]
[null,null,"Norte de Santander","Ocaña","Templado"]
[null,null,"Santander","Oiba","Templado"]
[null,null,"Boyacá","Oicatá","Frío"]
[null,null,"Antioquia","Olaya","Cálido húmedo"]
[null,null,"Nariño","Olaya Herrera","Cálido húmedo"]
[null,null,"Santander","Onzaga","Templado"]
[null,null,"Huila","Oporapa","Templado"]
[null,null,"Putumayo","Orito","Cálido húmedo"]
[null,null,"Casanare","Orocué","Cálido húmedo"]
[null,null,"Tolima","Ortega","Cálido húmedo"]
[null,null,"Nariño","Ospina","Frío"]
[null,null,"Boyacá","Otanche","Templado"]
[null,null,"Sucre","Ovejas","Cálido seco"]
[null,null,"Boyacá","Pachavita","Cálido húmedo"]
[null,null,"Cundinamarca","Pacho","Templado"]
[null,null,"Vaupés","Pacoa","Cálido húmedo"]
[null,null,"Caldas","Pácora","Templado"]
[null,null,"Cauca","Padilla","Templado"]
[null,null,"Cauca","Paez","Templado"]
[null,null,"Boyacá","Páez","Templado"]
[null,null,"Cesar","Pailitas","Templado"]
[null,null,"Cundinamarca","Paime","Templado"]
[null,null,"Boyacá","Paipa","Frío"]
[null,null,"Boyacá","Pajarito","Cálido húmedo"]
[null,null,"Huila","Palermo","Cálido seco"]
[null,null,"Caldas","Palestina","Templado"]
[null,null,"Huila","Palestina, Huila","Templado"]
[null,null,"Santander","Palmar","Cálido seco"]
[null,null,"Atlántico","Palmar de Varela","Cálido húmedo"]
[null,null,"Santander","Palmas del Socorro","Templado"]
[null,null,"Valle del Cauca","Palmira","Templado"]
[null,null,"Tolima","Palocabildo","Templado"]
[null,null,"Norte de Santander","Pamplona","Frío"]
[null,null,"Norte de Santander","Pamplonita","Templado"]
[null,null,"Guainía","Pana Pana","Cálido húmedo"]
[null,null,"Cundinamarca","Pandi","Templado"]
[null,null,"Boyacá","Panqueba","Frío"]
[null,null,"Vaupés","Papunaua","Cálido húmedo"]
[null,null,"Santander","Páramo","Templado"]
[null,null,"Cundinamarca","Paratebueno","Cálido húmedo"]
[null,null,"Cundinamarca","Pasca","Frío"]
[null,null,"Nariño","Pasto","Frío"]
[null,null,"Cauca","Patía","Cálido seco"]
[null,null,"Boyacá","Pauna","Templado"]
[null,null,"Boyacá","Paya","Cálido húmedo"]
[null,null,"Casanare","Paz de Ariporo","Cálido húmedo"]
[null,null,"Boyacá","Paz del Río","Frío"]
[null,null,"Magdalena","Pedraza","Cálido húmedo"]
[null,null,"Cesar","Pelaya","Cálido húmedo"]
[null,null,"Caldas","Pensilvania","Frío"]
[null,null,"Antioquia","Peñol","Templado"]
[null,null,"Antioquia","Peque","Templado"]
[null,null,"Risaralda","Pereira","Templado"]
[null,null,"Boyacá","Pesca","Frío"]
[null,null,"Cauca","Piamonte","Cálido húmedo"]
[null,null,"Santander","Piedecuesta","Templado"]
[null,null,"Tolima","Piedras","Cálido seco"]
[null,null,"Cauca","Piendamó","Templado"]
[null,null,"Quindio","Pijao","Templado"]
[null,null,"Magdalena","Pijiño del Carmen","Cálido seco"]
[null,null,"Santander","Pinchote","Templado"]
[null,null,"Bolívar","Pinillos","Cálido seco"]
[null,null,"Boyacá","Pisba","Templado"]
[null,null,"Huila","Pital","Cálido seco"]
[null,null,"Huila","Pitalito","Templado"]
[null,null,"Magdalena","Pivijay","Cálido húmedo"]
[null,null,"Tolima","Planadas","Templado"]
[null,null,"Córdoba","Planeta Rica","Cálido húmedo"]
[null,null,"Magdalena","Plato","Cálido seco"]
[null,null,"Nariño","Policarpa","Templado"]
[null,null,"Atlántico","Polonuevo","Cálido húmedo"]
[null,null,"Atlántico","Ponedera","Cálido húmedo"]
[null,null,"Cauca","Popayán","Templado"]
[null,null,"Casanare","Pore","Cálido húmedo"]
[null,null,"Nariño","Potosí","Frío"]
[null,null,"Valle del Cauca","Pradera","Templado"]
[null,null,"Tolima","Prado","Cálido húmedo"]
[null,null,"Nariño","Providencia, Nariño","Frío"]
[null,null,"San Andrés y Providencia","Providencia","Cálido húmedo"]
[null,null,"Cesar","Pueblo Bello","Templado"]
[null,null,"Córdoba","Pueblo Nuevo","Cálido seco"]
[null,null,"Risaralda","Pueblo Rico, Risaralda","Templado"]
[null,null,"Antioquia","Pueblorrico","Templado"]
[null,null,"Magdalena","Puebloviejo","Cálido seco"]
[null,null,"Santander","Puente Nacional","Templado"]
[null,null,"Nariño","Puerres","Frío"]
[null,null,"Amazonas","Puerto Alegría","Cálido húmedo"]
[null,null,"Amazonas","Puerto Arica","Cálido húmedo"]
[null,null,"Putumayo","Puerto Asís","Cálido húmedo"]
[null,null,"Antioquia","Puerto Berrío","Cálido húmedo"]
[null,null,"Boyacá","Puerto Boyacá","Cálido húmedo"]
[null,null,"Putumayo","Puerto Caicedo","Cálido húmedo"]
[null,null,"Vichada","Puerto Carreño","Cálido húmedo"]
[null,null,"Guainía","Puerto Colombia","Cálido húmedo"]
[null,null,"Meta","Puerto Concordia","Cálido húmedo"]
[null,null,"Córdoba","Puerto Escondido","Cálido seco"]
[null,null,"Meta","Puerto Gaitán","Cálido húmedo"]
[null,null,"Putumayo","Puerto Guzmán","Cálido húmedo"]
[null,null,"Córdoba","Puerto Libertador","Cálido húmedo"]
[null,null,"Meta","Puerto Lleras","Cálido húmedo"]
[null,null,"Meta","Puerto López","Cálido húmedo"]
[null,null,"Antioquia","Puerto Nare","Cálido húmedo"]
[null,null,"Amazonas","Puerto Nariño","Cálido húmedo"]
[null,null,"Santander","Puerto Parra","Cálido húmedo"]
[null,null,"Caquetá","Puerto Rico","Cálido húmedo"]
[null,null,"Meta","Puerto Rico, Meta","Cálido húmedo"]
[null,null,"Arauca","Puerto Rondón","Cálido húmedo"]
[null,null,"Norte de Santander","Puerto Santander, NS","Cálido húmedo"]
[null,null,"Amazonas","Puerto Santander","Cálido húmedo"]
[null,null,"Cauca","Puerto Tejada","Cálido seco"]
[null,null,"Antioquia","Puerto Triunfo","Cálido húmedo"]
[null,null,"Santander","Puerto Wilches","Cálido húmedo"]
[null,null,"Cundinamarca","Pulí","Templado"]
[null,null,"Nariño","Pupiales","Frío"]
[null,null,"Cauca","Puracé","Frío"]
[null,null,"Tolima","Purificación","Cálido húmedo"]
[null,null,"Córdoba","Purísima","Cálido seco"]
[null,null,"Cundinamarca","Quebradanegra","Templado"]
[null,null,"Cundinamarca","Quetame","Templado"]
[null,null,"Chocó","Quibdó","Cálido húmedo"]
[null,null,"Quindio","Quimbaya","Templado"]
[null,null,"Boyacá","Quípama","Templado"]
[null,null,"Cundinamarca","Quipile","Templado"]
[null,null,"Norte de Santander","Ragonvalia","Templado"]
[null,null,"Boyacá","Ramiriquí","Frío"]
[null,null,"Boyacá","Ráquira","Frío"]
[null,null,"Casanare","Recetor","Cálido húmedo"]
[null,null,"Bolívar","Regidor","Templado"]
[null,null,"Atlántico","Repelón","Cálido húmedo"]
[null,null,"Valle del Cauca","Restrepo, VC","Templado"]
[null,null,"Meta","Restrepo","Cálido húmedo"]
[null,null,"Antioquia","Retiro","Frío"]
[null,null,"Nariño","Ricaurte","Templado"]
[null,null,"Cundinamarca","Ricaurte","Cálido seco"]
[null,null,"Bolívar","Río Viejo","Cálido húmedo"]
[null,null,"Tolima","Rioblanco","Frío"]
[null,null,"Valle del Cauca","Riofrío","Templado"]
[null,null,"Guajira","Riohacha","Cálido seco"]
[null,null,"Antioquia","Rionegro","Frío"]
[null,null,"Santander","Rionegro, Santander","Cálido seco"]
[null,null,"Caldas","Riosucio","Templado"]
[null,null,"Chocó","Riosucio, Chocó","Cálido húmedo"]
[null,null,"Huila","Rivera","Cálido seco"]
[null,null,"Nariño","Roberto Payán","Cálido húmedo"]
[null,null,"Valle del Cauca","Roldanillo","Templado"]
[null,null,"Tolima","Roncesvalles","Frío"]
[null,null,"Boyacá","Rondón","Frío"]
[null,null,"Cauca","Rosas","Templado"]
[null,null,"Tolima","Rovira","Templado"]
[null,null,"Santander","Sabana de Torres","Cálido seco"]
[null,null,"Atlántico","Sabanagrande","Cálido húmedo"]
[null,null,"Atlántico","Sabanalarga, Atlántico","Cálido húmedo"]
[null,null,"Antioquia","Sabanalarga","Templado"]
[null,null,"Casanare","Sabanalarga, Casanare","Cálido húmedo"]
[null,null,"Antioquia","Sabaneta","Templado"]
[null,null,"Boyacá","Saboyá","Frío"]
[null,null,"Casanare","Sácama","Templado"]
[null,null,"Boyacá","Sáchica","Frío"]
[null,null,"Córdoba","Sahagún","Cálido seco"]
[null,null,"Huila","Saladoblanco","Templado"]
[null,null,"Caldas","Salamina","Templado"]
[null,null,"Magdalena","Salamina, Magdalena","Cálido húmedo"]
[null,null,"Norte de Santander","Salazar","Templado"]
[null,null,"Tolima","Saldaña","Templado"]
[null,null,"Quindio","Salento","Templado"]
[null,null,"Antioquia","Salgar","Templado"]
[null,null,"Boyacá","Samacá","Frío"]
[null,null,"Caldas","Samaná","Templado"]
[null,null,"Nariño","Samaniego","Templado"]
[null,null,"Sucre","Sampués","Cálido seco"]
[null,null,"Huila","San Agustín","Templado"]
[null,null,"San Andrés y Providencia","San Andrés","Cálido húmedo"]
[null,null,"Santander","San Andrés, Santander","Templado"]
[null,null,"Antioquia","San Andrés de Cuerquía","Cálido húmedo"]
[null,null,"Nariño","San Andres de Tumaco","Cálido húmedo"]
[null,null,"Córdoba","San Andrés Sotavento","Cálido seco"]
[null,null,"Córdoba","San Antero","Cálido seco"]
[null,null,"Tolima","San Antonio","Templado"]
[null,null,"Cundinamarca","San Antonio del Tequendama","Templado"]
[null,null,"Santander","San Benito","Templado"]
[null,null,"Sucre","San Benito Abad","Cálido seco"]
[null,null,"Nariño","San Bernardo","Frío"]
[null,null,"Cundinamarca","San Bernardo","Templado"]
[null,null,"Córdoba","San Bernardo del Viento","Cálido seco"]
[null,null,"Norte de Santander","San Calixto","Templado"]
[null,null,"Córdoba","San Carlos, Córdoba","Cálido seco"]
[null,null,"Antioquia","San Carlos","Templado"]
[null,null,"Meta","San Carlos de Guaroa","Cálido húmedo"]
[null,null,"Cundinamarca","San Cayetano","Frío"]
[null,null,"Norte de Santander","San Cayetano, NS","Cálido seco"]
[null,null,"Bolívar","San Cristóbal","Cálido seco"]
[null,null,"Boyacá","San Eduardo","Templado"]
[null,null,"Bolívar","San Estanislao","Cálido seco"]
[null,null,"Guainía","San Felipe","Cálido húmedo"]
[null,null,"Bolívar","San Fernando","Cálido seco"]
[null,null,"Cundinamarca","San Francisco, Cundinamarca","Templado"]
[null,null,"Putumayo","San Francisco, Putumayo","Frío"]
[null,null,"Antioquia","San Francisco","Templado"]
[null,null,"Santander","San Gil","Cálido seco"]
[null,null,"Bolívar","San Jacinto","Cálido seco"]
[null,null,"Bolívar","San Jacinto del Cauca","Cálido húmedo"]
[null,null,"Antioquia","San Jerónimo","Cálido húmedo"]
[null,null,"Santander","San Joaquín","Templado"]
[null,null,"Caldas","San José","Templado"]
[null,null,"Antioquia","San José de La Montaña","Frío"]
[null,null,"Santander","San José de Miranda","Templado"]
[null,null,"Caquetá","San José del Fragua","Cálido húmedo"]
[null,null,"Guaviare","San José del Guaviare","Cálido húmedo"]
[null,null,"Chocó","San José del Palmar","Templado"]
[null,null,"Meta","San Juan de Arama","Cálido húmedo"]
[null,null,"Sucre","San Juan de Betulia","Cálido seco"]
[null,null,"Cundinamarca","San Juan de Río Seco","Templado"]
[null,null,"Antioquia","San Juan de Urabá","Cálido húmedo"]
[null,null,"Bolívar","San Juan Nepomuceno","Cálido seco"]
[null,null,"Meta","San Juanito","Templado"]
[null,null,"Nariño","San Lorenzo","Frío"]
[null,null,"Antioquia","San Luis","Templado"]
[null,null,"Boyacá","San Luis de Gaceno","Cálido húmedo"]
[null,null,"Casanare","San Luis de Palenque","Cálido húmedo"]
[null,null,"Sucre","San Marcos","Cálido seco"]
[null,null,"Meta","San Martín, Meta","Cálido húmedo"]
[null,null,"Cesar","San Martín","Templado"]
[null,null,"Bolívar","San Martín de Loba","Cálido húmedo"]
[null,null,"Boyacá","San Mateo","Frío"]
[null,null,"Putumayo","San Miguel","Cálido húmedo"]
[null,null,"Santander","San Miguel","Templado"]
[null,null,"Boyacá","San Miguel de Sema","Frío"]
[null,null,"Sucre","San Onofre","Cálido seco"]
[null,null,"Bolívar","San Pablo","Cálido húmedo"]
[null,null,"Nariño","San Pablo, Nariño","Templado"]
[null,null,"Boyacá","San Pablo de Borbur","Cálido húmedo"]
[null,null,"Antioquia","San Pedro","Frío"]
[null,null,"Valle del Cauca","San Pedro, VC","Templado"]
[null,null,"Sucre","San Pedro, Sucre","Cálido seco"]
[null,null,"Nariño","San Pedro de Cartago","Templado"]
[null,null,"Antioquia","San Pedro de Urabá","Cálido húmedo"]
[null,null,"Córdoba","San Pelayo","Cálido seco"]
[null,null,"Antioquia","San Rafael","Templado"]
[null,null,"Antioquia","San Roque","Templado"]
[null,null,"Cauca","San Sebastián","Frío"]
[null,null,"Magdalena","San Sebastián de Buenavista","Cálido seco"]
[null,null,"Antioquia","San Vicente","Frío"]
[null,null,"Santander","San Vicente de Chucurí","Cálido húmedo"]
[null,null,"Caquetá","San Vicente del Caguán","Templado"]
[null,null,"Magdalena","San Zenón","Cálido seco"]
[null,null,"Nariño","Sandoná","Templado"]
[null,null,"Magdalena","Santa Ana","Cálido seco"]
[null,null,"Antioquia","Santa Bárbara","Templado"]
[null,null,"Nariño","Santa Bárbara, Nariño","Frío"]
[null,null,"Santander","Santa Bárbara, Santander","Templado"]
[null,null,"Magdalena","Santa Bárbara de Pinto","Cálido seco"]
[null,null,"Santander","Santa Helena del Opón","Templado"]
[null,null,"Tolima","Santa Isabel","Frío"]
[null,null,"Huila","Santa María, Huila","Cálido seco"]
[null,null,"Boyacá","Santa María","Cálido húmedo"]
[null,null,"Magdalena","Santa Marta","Cálido seco"]
[null,null,"Cauca","Santa Rosa","Templado"]
[null,null,"Risaralda","Santa Rosa de Cabal","Templado"]
[null,null,"Antioquia","Santa Rosa de Osos","Frío"]
[null,null,"Boyacá","Santa Rosa de Viterbo","Frío"]
[null,null,"Bolívar","Santa Rosa del Sur","Cálido húmedo"]
[null,null,"Vichada","Santa Rosalía","Cálido húmedo"]
[null,null,"Boyacá","Santa Sofía","Frío"]
[null,null,"Antioquia","Santafé de Antioquia","Cálido húmedo"]
[null,null,"Cauca","Santander de Quilichao","Templado"]
[null,null,"Putumayo","Santiago, Putumayo","Frío"]
[null,null,"Norte de Santander","Santiago","Cálido seco"]
[null,null,"Sucre","San Luis de Sincé","Cálido seco"]
[null,null,"Antioquia","Santo Domingo","Templado"]
[null,null,"Atlántico","Santo Tomás","Cálido húmedo"]
[null,null,"Risaralda","Santuario","Templado"]
[null,null,"Nariño","Sapuyes","Frío"]
[null,null,"Arauca","Saravena","Templado"]
[null,null,"Norte de Santander","Sardinata","Cálido húmedo"]
[null,null,"Cundinamarca","Sasaima","Templado"]
[null,null,"Boyacá","Sativanorte","Frío"]
[null,null,"Boyacá","Sativasur","Frío"]
[null,null,"Antioquia","Segovia","Cálido húmedo"]
[null,null,"Cundinamarca","Sesquilé","Frío"]
[null,null,"Valle del Cauca","Sevilla","Templado"]
[null,null,"Boyacá","Siachoque","Frío"]
[null,null,"Cundinamarca","Sibaté","Frío"]
[null,null,"Putumayo","Sibundoy","Frío"]
[null,null,"Norte de Santander","Silos","Frío"]
[null,null,"Cundinamarca","Silvania","Templado"]
[null,null,"Cauca","Silvia","Frío"]
[null,null,"Santander","Simacota","Templado"]
[null,null,"Cundinamarca","Simijaca","Frío"]
[null,null,"Bolívar","Simití","Cálido húmedo"]
[null,null,"Sucre","Sincelejo","Cálido seco"]
[null,null,"Chocó","Sipí","Cálido húmedo"]
[null,null,"Magdalena","Sitionuevo","Cálido húmedo"]
[null,null,"Cundinamarca","Soacha","Frío"]
[null,null,"Boyacá","Soatá","Templado"]
[null,null,"Boyacá","Socha","Frío"]
[null,null,"Santander","Socorro","Templado"]
[null,null,"Boyacá","Socotá","Frío"]
[null,null,"Boyacá","Sogamoso","Frío"]
[null,null,"Caquetá","Solano","Cálido húmedo"]
[null,null,"Atlántico","Soledad","Cálido húmedo"]
[null,null,"Caquetá","Solita","Cálido húmedo"]
[null,null,"Boyacá","Somondoco","Templado"]
[null,null,"Antioquia","Sonson","Frío"]
[null,null,"Antioquia","Sopetrán","Cálido húmedo"]
[null,null,"Bolívar","Soplaviento","Cálido húmedo"]
[null,null,"Cundinamarca","Sopó","Frío"]
[null,null,"Boyacá","Sora","Frío"]
[null,null,"Boyacá","Soracá","Frío"]
[null,null,"Boyacá","Sotaquirá","Frío"]
[null,null,"Cauca","Sotara","Frío"]
[null,null,"Santander","Suaita","Templado"]
[null,null,"Atlántico","Suan","Cálido húmedo"]
[null,null,"Tolima","Suárez","Templado"]
[null,null,"Huila","Suaza","Templado"]
[null,null,"Cundinamarca","Subachoque","Frío"]
[null,null,"Sucre","Sucre","Cálido húmedo"]
[null,null,"Santander","Sucre, Santander","Templado"]
[null,null,"Cundinamarca","Suesca","Frío"]
[null,null,"Caldas","Supía","Templado"]
[null,null,"Santander","Suratá","Templado"]
[null,null,"Cundinamarca","Susa","Frío"]
[null,null,"Boyacá","Susacón","Frío"]
[null,null,"Boyacá","Sutamarchán","Frío"]
[null,null,"Cundinamarca","Sutatausa","Frío"]
[null,null,"Boyacá","Sutatenza","Templado"]
[null,null,"Cundinamarca","Tabio","Frío"]
[null,null,"Chocó","Tadó","Cálido húmedo"]
[null,null,"Cesar","Tamalameque","Cálido húmedo"]
[null,null,"Casanare","Támara","Templado"]
[null,null,"Arauca","Tame","Templado"]
[null,null,"Antioquia","Támesis","Templado"]
[null,null,"Nariño","Taminango","Templado"]
[null,null,"Nariño","Tangua","Frío"]
[null,null,"Vaupés","Taraira","Cálido húmedo"]
[null,null,"Amazonas","Tarapacá","Cálido húmedo"]
[null,null,"Antioquia","Tarazá","Cálido húmedo"]
[null,null,"Huila","Tarqui","Cálido seco"]
[null,null,"Antioquia","Tarso","Templado"]
[null,null,"Boyacá","Tasco","Frío"]
[null,null,"Casanare","Tauramena","Cálido húmedo"]
[null,null,"Cundinamarca","Tausa","Frío"]
[null,null,"Huila","Tello","Cálido seco"]
[null,null,"Cundinamarca","Tena","Templado"]
[null,null,"Magdalena","Tenerife","Cálido seco"]
[null,null,"Cundinamarca","Tenjo","Frío"]
[null,null,"Boyacá","Tenza","Templado"]
[null,null,"Norte de Santander","Teorama","Templado"]
[null,null,"Huila","Teruel","Cálido seco"]
[null,null,"Cundinamarca","Tibacuy","Templado"]
[null,null,"Boyacá","Tibaná","Frío"]
[null,null,"Boyacá","Tibasosa","Frío"]
[null,null,"Cundinamarca","Tibirita","Templado"]
[null,null,"Norte de Santander","Tibú","Cálido húmedo"]
[null,null,"Córdoba","Tierralta","Cálido húmedo"]
[null,null,"Huila","Timaná","Templado"]
[null,null,"Cauca","Timbío","Templado"]
[null,null,"Cauca","Timbiquí","Cálido húmedo"]
[null,null,"Boyacá","Tinjacá","Frío"]
[null,null,"Boyacá","Tipacoque","Templado"]
[null,null,"Antioquia","Titiribí","Templado"]
[null,null,"Boyacá","Toca","Frío"]
[null,null,"Cundinamarca","Tocaima","Cálido seco"]
[null,null,"Cundinamarca","Tocancipá","Frío"]
[null,null,"Norte de Santander","Toledo, NS","Templado"]
[null,null,"Antioquia","Toledo","Templado"]
[null,null,"Sucre","Tolú","Cálido seco"]
[null,null,"Santander","Tona","Templado"]
[null,null,"Boyacá","Tópaga","Frío"]
[null,null,"Cundinamarca","Topaipí","Templado"]
[null,null,"Cauca","Toribio","Templado"]
[null,null,"Valle del Cauca","Toro","Templado"]
[null,null,"Boyacá","Tota","Frío"]
[null,null,"Cauca","Totoró","Frío"]
[null,null,"Casanare","Trinidad","Cálido húmedo"]
[null,null,"Valle del Cauca","Trujillo","Templado"]
[null,null,"Valle del Cauca","Tuluá","Templado"]
[null,null,"Boyacá","Tunja","Frío"]
[null,null,"Boyacá","Tununguá","Templado"]
[null,null,"Nariño","Túquerres","Frío"]
[null,null,"Bolívar","Turbaco","Cálido seco"]
[null,null,"Antioquia","Turbo","Cálido húmedo"]
[null,null,"Boyacá","Turmequé","Frío"]
[null,null,"Boyacá","Tuta","Frío"]
[null,null,"Boyacá","Tutazá","Frío"]
[null,null,"Cundinamarca","Ubalá","Templado"]
[null,null,"Cundinamarca","Ubaque","Templado"]
[null,null,"Valle del Cauca","Ulloa","Templado"]
[null,null,"Boyacá","Umbita","Frío"]
[null,null,"Cundinamarca","Une","Frío"]
[null,null,"Chocó","Unguía","Cálido húmedo"]
[null,null,"Chocó","Unión Panamericana","Cálido húmedo"]
[null,null,"Antioquia","Uramita","Templado"]
[null,null,"Meta","Uribe","Cálido húmedo"]
[null,null,"Guajira","Uribia","Cálido seco"]
[null,null,"Antioquia","Urrao","Templado"]
[null,null,"Atlántico","Usiacurí","Cálido húmedo"]
[null,null,"Cundinamarca","Útica","Templado"]
[null,null,"Antioquia","Valdivia","Templado"]
[null,null,"Córdoba","Valencia","Cálido seco"]
[null,null,"Santander","Valle de San José","Templado"]
[null,null,"Tolima","Valle de San Juan","Cálido seco"]
[null,null,"Putumayo","Valle del Guamuez","Cálido húmedo"]
[null,null,"Cesar","Valledupar","Cálido seco"]
[null,null,"Caquetá","Valparaíso","Cálido húmedo"]
[null,null,"Antioquia","Valparaíso","Templado"]
[null,null,"Antioquia","Vegachí","Cálido húmedo"]
[null,null,"Santander","Vélez","Frío"]
[null,null,"Tolima","Venadillo","Cálido seco"]
[null,null,"Cundinamarca","Venecia","Templado"]
[null,null,"Boyacá","Ventaquemada","Frío"]
[null,null,"Cundinamarca","Vergara","Templado"]
[null,null,"Valle del Cauca","Versalles, VC","Templado"]
[null,null,"Santander","Vetas","Frío"]
[null,null,"Cundinamarca","Vianí","Templado"]
[null,null,"Caldas","Victoria","Cálido húmedo"]
[null,null,"Antioquia","Vigía del Fuerte","Cálido húmedo"]
[null,null,"Valle del Cauca","Vijes","Templado"]
[null,null,"Norte de Santander","Villa Caro","Templado"]
[null,null,"Boyacá","Villa de Leyva","Frío"]
[null,null,"Norte de Santander","Villa del Rosario","Cálido seco"]
[null,null,"Cauca","Villa Rica","Templado"]
[null,null,"Putumayo","Villagarzón","Cálido húmedo"]
[null,null,"Cundinamarca","Villagómez","Templado"]
[null,null,"Tolima","Villahermosa","Frío"]
[null,null,"Caldas","Villamaría","Templado"]
[null,null,"Casanare","Villanueva","Cálido húmedo"]
[null,null,"Santander","Villanueva, Santander","Templado"]
[null,null,"Cundinamarca","Villapinzón","Frío"]
[null,null,"Tolima","Villarrica","Templado"]
[null,null,"Meta","Villavicencio","Cálido húmedo"]
[null,null,"Huila","Villavieja","Cálido seco"]
[null,null,"Cundinamarca","Villeta","Templado"]
[null,null,"Cundinamarca","Viotá","Templado"]
[null,null,"Boyacá","Viracachá","Frío"]
[null,null,"Meta","Vistahermosa","Cálido húmedo"]
[null,null,"Cundinamarca","Yacopí","Templado"]
[null,null,"Nariño","Yacuanquer","Frío"]
[null,null,"Huila","Yaguará","Cálido seco"]
[null,null,"Antioquia","Yalí","Templado"]
[null,null,"Antioquia","Yarumal","Frío"]
[null,null,"Vaupés","Yavaraté","Cálido húmedo"]
[null,null,"Antioquia","Yolombó","Templado"]
[null,null,"Casanare","Yopal","Cálido húmedo"]
[null,null,"Valle del Cauca","Yotoco","Templado"]
[null,null,"Valle del Cauca","Yumbo","Templado"]
[null,null,"Santander","Zapatoca","Templado"]
[null,null,"Antioquia","Zaragoza","Cálido húmedo"]
[null,null,"Valle del Cauca","Zarzal, VC","Templado"]
[null,null,"Boyacá","Zetaquira","Templado"]
[null,null,"Cundinamarca","Zipacón","Frío"]
[null,null,"Cundinamarca","Zipaquirá","Frío"]

{"sheet":"Biodigestores","index":11,"n_rows":15,"n_cols":15,"rows_kept":15,"cut":false,"hidden":true,"merged":[[1,2,1,14],[3,1,3,14],[11,1,11,5]]}
[]
[null,null,"VALOR CAPEX PARA EVALUAR LA VIABILIDAD DE LA IMPLEMENTACIÓN DE BIODIGESTORES IN SITU EN LAS PLAZAS DE MERCADO DE COLOMBIA "]
[]
[null,"Se consideran los valores CAPEX de los proyectos de prefactibilidad realizados por Ambire Global, así como las cotizaciones solicitadas. Los valores de CAPEX expresados en dólares son convertidos a COP (pesos colombianos) utilizando la TRM  correspondiente al año del proyecto. Además, para ajustar estos valores a valor de tiempo real, se asume la variación del IPC  del año correspondiente, lo que permite reflejar de manera precisa el impacto de la inflación en los costos a lo largo del tiempo. Los proyectos de referencia para el cálculo del CAPEX son los siguientes: \n\n1. Cotización empresa GPS - India\n2. Cotización empresa GPS - India\n5. Prefactibilidad para un proyecto de gestión de residuos orgánicos en el Aeropuerto Internacional El Dorado, GIZ\n15.Prefactibilidad: sistema de tratamiento de residuos orgánicos de las plazas de mercadoo en Barranquilla, CATF\n30. Prefactibilidad: sistema de tratamiento de residuos orgánicos de la plaza de mercadoo Bazurto en Cartagena, CATF"]
[]
[null,"Biodigestor\n(ton/día)","CAPEX valor real","Año del proyecto","Valor CAPEX en COP","CAPEX valor presente","Importación","Valor total CAPEX","Consumo de energía día\nkWh/d","Agua\nm3/día","Espacio requerido\nm2","Digestato\nt/t","Operador","Técnico","Proyecto o cotización de referencia"]
[null,1,94000,2024,{"$f":"+C7*F15","v":382706460.81967229},{"$f":"+E7","v":382706460.81967229},0.3,{"$f":"+F7*(1+G7)","v":497518399.06557399},50,0.2,55,"0.1",1,null,"GPS"]
[null,2,117000,2024,{"$f":"+C8*F15","v":476347403.3606559},{"$f":"+E8","v":476347403.3606559},0.3,{"$f":"+F8*(1+G8)","v":619251624.36885273},70,0.4,186,"0.1",1,null,"GPS"]
[null,5,300000,2022,{"$f":"+C9*D15","v":1276631958.9041085},{"$f":"+E9*(F$14/D$14)","v":1528231160.0079336},0.3,{"$f":"+F9*(1+G9)","v":1986700508.0103137},100,{"$f":"0.2*B9","v":1},null,"0.1",1,null,"Aeropuerto"]
[null,13.6,620000,2023,{"$f":"+C10*E15","v":2681531084.9315052},{"$f":"+E10*(F$14/E$14)","v":2872853137.658535},0.3,{"$f":"+F10*(1+G10)","v":3734709078.9560957},120,{"$f":"0.2*B10","v":2.72},null,"0.1",1,1,"Barranquilla"]
[null,30,1500000,2023,{"$f":"+C11*D15","v":6383159794.5205421},{"$f":"+E11*(F$14/E$14)","v":6838585891.0647516},0.3,{"$f":"+F11*(1+G11)","v":8890161658.3841782},120,{"$f":"0.2*B11","v":6},null,"0.1",2,1,"Cartagena"]
[]
[null,null,"2021","2022","2023",2024]
[null,"IPC",149.55976319986601,164.780806314133,184.11932436903399,197.25588179435923]
[null,"TRM (COP)",null,4255.4398630136948,4325.0501369862986,4071.3453278688539]

{"sheet":"Dropdown_Dptos","index":12,"n_rows":121,"n_cols":33,"rows_kept":121,"cut":false,"hidden":true,"merged":[]}
[]
["Dpto_Amazonas","Dpto_Antioquia","Dpto_Arauca","Dpto_Atlántico","Bogotá","Dpto_Bolívar","Dpto_Boyacá","Dpto_Caldas","Dpto_Caquetá","Dpto_Casanare","Dpto_Cauca","Dpto_Cesar","Dpto_Chocó","Dpto_Córdoba","Dpto_Cundinamarca","Dpto_Guainía","Dpto_Guaviare","Dpto_Huila","Dpto_Guajira","Dpto_Magdalena","Dpto_Meta","Dpto_Nariño","Dpto_Norte_de_Santander","Dpto_Putumayo","Dpto_Quindio","Dpto_Risaralda","Dpto_SanAndrés","Dpto_Santander","Dpto_Sucre","Dpto_Tolima","Dpto_Valle_del_Cauca","Dpto_Vaupés","Dpto_Vichada"]
["El Encanto","Abejorral","Arauca","Baranoa","Bogotá","Achí","Almeida","Aguadas","Albania","Aguazul","Almaguer","Aguachica","Acandí","Buenavista, Córdoba","Agua de Dios","Barranco Minas","Calamar, Guaviare","Acevedo","Albania, Guajira","Algarrobo","Acacías","Albán, Nariño","Abrego","Colón, Putumayo","Armenia","Apía","Providencia","Aguada, Santander","Buenavista, Sucre","Alpujarra","Alcalá","Caruru","Cumaribo"]
["La Chorrera","Abriaquí","Arauquita","Barranquilla",null,"Altos del Rosario","Aquitania","Aranzazu","Belén de los Andaquies","Chameza","Argelia","Agustín Codazzi","Alto Baudó","Canalete","Albán","Cacahual","El Retorno","Agrado","Barrancas","Aracataca","Barranca de Upía","Aldana","Arboledas","Leguízamo","Buenavista, Quindío","Balboa, Risaralda","San Andrés","Albania, Santander","Caimito","Alvarado","Andalucía","Mitú","La Primavera"]
["La Pedrera","Alejandría","Cravo Norte","Campo de La Cruz",null,"Arenal","Arcabuco","Belalcázar","Cartagena del Chairá","Hato Corozal","Balboa","Astrea","Bagadó","Cereté","Anapoima","Inírida","Miraflores, Guaviare","Aipe","Dibulla","Ariguaní","Cabuyaro","Ancuyá","Bochalema","Mocoa","Circasia","Belén de Umbría",null,"Aratoca","Corozal","Ambalema","Ansermanuevo","Pacoa","Puerto Carreño"]
["La Victoria","Amagá","Fortul","Candelaria",null,"Arjona","Belén","Chinchiná","Curillo","La Salina","Bolívar","Becerril","Bahía Solano","Chimá","Anolaima","La Guadalupe","San José del Guaviare","Algeciras","Distracción","Cerro San Antonio","Castilla la Nueva","Arboleda","Bucarasica","Orito","Córdoba, Quindío","Dosquebradas",null,"Barbosa, Santander","Coveñas","Anzoátegui","Argelia, VC","Papunaua","Santa Rosalía"]
["Leticia","Amalfi","Puerto Rondón","Galapa",null,"Arroyohondo","Berbeo","Filadelfia","El Doncello","Maní","Buenos Aires","Bosconia","Bajo Baudó","Ciénaga de Oro","Apulo","Morichal",null,"Altamira","Fonseca","Chivolo","Cubarral","Barbacoas","Cachirá","Puerto Asís","Filandia","Guática",null,"Barichara","El Roble","Carmen de Apicalá","Bolívar, VC","Taraira"]
["Miriti - Paraná","Andes","Saravena","Malambo",null,"Barranco de Loba","Betéitiva","La Dorada","El Paujil","Monterrey","Cajibío","Chimichagua","Bojaya","Cotorra","Arbeláez","Pana Pana",null,"Baraya","Hatonuevo","Ciénaga, Magdalena","Cumaral","Belén, Nariño","Cácota","Puerto Caicedo","Génova","La Celia",null,"Barrancabermeja","Galeras","Casabianca","Buenaventura","Yavaraté"]
["Puerto Alegría","Angelópolis","Tame","Manatí",null,"Calamar","Boavita","La Merced","Florencia","Nunchía","Caldono","Chiriguaná","Carmen del Darién","La Apartada","Beltrán","Puerto Colombia",null,"Campoalegre","Maicao","Concordia, Magdalena","El Calvario","Buesaco","Chinácota","Puerto Guzmán","La Tebaida","La Virginia",null,"Betulia, Santander","Guaranda","Chaparral","Bugalagrande"]
["Puerto Arica","Angostura",null,"Palmar de Varela",null,"Cartagena de Indias","Boyacá","Manizales","La Montañita","Orocué","Caloto","Curumaní","Cértegui","Lorica","Bituima","San Felipe",null,"Colombia","Manaure, Guajira","El Piñon","El Castillo","Chachagüí","Chitagá","San Francisco, Putumayo","Montenegro","Marsella",null,"Bolívar, Santander","La Unión, Sucre","Coello","Calima"]
["Puerto Nariño","Anorí",null,"Polonuevo",null,"Clemencia","Briceño, Boyacá","Marmato","Milán","Paz de Ariporo","Corinto","El Copey","Condoto","Los Córdobas","Bojacá",null,null,"Elías","Riohacha","El Retén","El Dorado","Colón","Convención","San Miguel","Pijao","Mistrató",null,"Bucaramanga","Los Palmitos","Coyaima","Candelaria, VC"]
["Puerto Santander","Anza",null,"Ponedera",null,"Córdoba","Buenavista","Marquetalia","Morelia","Pore","El Tambo","El Paso","El Cantón del San Pablo","Momil","Cabrera",null,null,"Garzón","Uribia","Fundación","Fuente de Oro","Consaca","Cúcuta","Santiago, Putumayo","Quimbaya","Pereira",null,"Cabrera, Santander","Majagual","Cunday","Cartago"]
["Tarapacá","Apartadó",null,"Puerto Colombia",null,"El Carmen de Bolívar","Busbanzá","Marulanda","Puerto Rico","Recetor","Florencia, Cauca","Gamarra","El Carmen de Atrato","Montelíbano","Cachipay",null,null,"Gigante",null,"Nueva Granada","Granada, Meta","Contadero","Cucutilla","Sibundoy","Salento","Pueblo Rico, Risaralda",null,"California","Morroa","Dolores","Dagua"]
[null,"Arboletes",null,"Repelón",null,"El Guamo","Caldas, Boyacá","Neira","San José del Fragua","Sabanalarga, Casanare","Guachené","La Gloria","Litoral de San Juan","Montería","Cajicá",null,null,"Guadalupe, Huila",null,"Pedraza","Guamal","Cuaspud","Durania","Valle del Guamuez",null,"Santa Rosa de Cabal",null,"Capitanejo","Ovejas","Espinal","El Águila"]
[null,"Barbosa",null,"Sabanagrande",null,"El Peñón","Cerinza","Norcasia","San Vicente del Caguán","Sácama","Guapi","La Jagua de Ibirico","Istmina","Moñitos","Caparrapí",null,null,"Hobo",null,"Pijiño del Carmen","La Macarena","Cumbal","El Carmen","Villagarzón",null,"Santuario",null,"Carcasí","Sampués","Falan","El Cairo"]
[null,"Bello",null,"Sabanalarga, Atlántico",null,"Hatillo de Loba","Chinavita","Pácora","Solano","San Luis de Palenque","Inzá","La Paz","Juradó","Planeta Rica","Caqueza",null,null,"Iquira",null,"Pivijay","Lejanías","Cumbitara","El Tarra",null,null,null,null,"Cepitá","San Benito Abad","Flandes","El Cerrito"]
[null,"Belmira",null,"Santo Tomás",null,"Mahates","Chiquinquirá","Palestina","Solita","Támara","Jambaló","Manaure","Lloró","Pueblo Nuevo","Carmen de Carupa",null,null,"Neiva",null,"Plato","Mapiripán","El Charco","El Zulia",null,null,null,null,"Cerrito","San Juan de Betulia","Fresno","El Dovio"]
[null,"Betania",null,"Soledad",null,"Margarita","Chíquiza","Pensilvania","Valparaíso","Tauramena","La Sierra","Pailitas","Medio Baudó","Puerto Escondido","Chaguaní",null,null,"Oporapa",null,"Puebloviejo","Mesetas","El Peñol","Gramalote",null,null,null,null,"Charalá","San Luis de Sincé","Guamo","Florida"]
[null,"Betulia",null,"Suan",null,"Mompós","Chiscas","Riosucio",null,"Trinidad","La Vega","Pelaya","Medio San Juan","Puerto Libertador","Chía",null,null,"Palermo",null,"Salamina, Magdalena","Puerto Concordia","El Rosario","Hacarí",null,null,null,null,"Charta","San Marcos","Herveo","Ginebra"]
[null,"Briceño",null,"Usiacurí",null,"Montecristo","Chita","Salamina",null,"Villanueva","López","Pueblo Bello","Nóvita","Purísima","Chipaque",null,null,"Palestina, Huila",null,"San Sebastián de Buenavista","Puerto Gaitán","El Tablón de Gómez","Herrán",null,null,null,null,"Chima","San Onofre","Honda","Guacarí"]
[null,"Buriticá",null,null,null,"Morales","Chivatá","Samaná",null,"Yopal","Mercaderes","San Martín","Nuquí","Sahagún","Choachí",null,null,"Pital",null,"San Zenón","Puerto Lleras","El Tambo, Nariño","La Esperanza",null,null,null,null,"Chipatá","San Pedro, Sucre","Ibagué","Guadalajara de Buga"]
[null,"Cáceres",null,null,null,"Pinillos","Chivor","San José",null,null,"Miranda","Tamalameque","Quibdó","San Andrés Sotavento","Chocontá",null,null,"Pitalito",null,"Santa Ana","Puerto López","Francisco Pizarro","La Playa",null,null,null,null,"Cimitarra","Sincelejo","Lérida","Jamundí"]
[null,"Caicedo",null,null,null,"Regidor","Ciénega","Supía",null,null,"Morales","Valledupar","Riosucio, Chocó","San Antero","Cogua",null,null,"Rivera",null,"Santa Bárbara de Pinto","Puerto Rico, Meta","Funes","Labateca",null,null,null,null,"Concepción, Santander","Sucre","Líbano","La Cumbre"]
[null,"Caldas",null,null,null,"Río Viejo","Cómbita","Victoria",null,null,"Padilla",null,"San José del Palmar","San Bernardo del Viento","Cota",null,null,"Saladoblanco",null,"Santa Marta","Restrepo","Guachucal","Los Patios",null,null,null,null,"Confines","Tolú","Mariquita","La Unión, VC"]
[null,"Campamento",null,null,null,"San Cristóbal","Coper","Villamaría",null,null,"Paez",null,"Sipí","San Carlos, Córdoba","Cucunubá",null,null,"San Agustín",null,"Sitionuevo","San Carlos de Guaroa","Guaitarilla","Lourdes",null,null,null,null,"Contratación",null,"Melgar","La Victoria, VC"]
[null,"Cañasgordas",null,null,null,"San Estanislao","Corrales",null,null,null,"Patía",null,"Tadó","San Pelayo","El Colegio",null,null,"Santa María, Huila",null,"Tenerife","San Juan de Arama","Gualmatán","Mutiscua",null,null,null,null,"Coromoro",null,"Murillo","Obando"]
[null,"Caracolí",null,null,null,"San Fernando","Cubará",null,null,null,"Piamonte",null,"Unguía","Tierralta","El Peñón, Cundinamarca",null,null,"Suaza",null,null,"San Juanito","Iles","Ocaña",null,null,null,null,"Curití",null,"Natagaima","Palmira"]
[null,"Caramanta",null,null,null,"San Jacinto","Cucaita",null,null,null,"Piendamó",null,"Unión Panamericana","Valencia","El Rosal",null,null,"Tarqui",null,null,"San Martín, Meta","Imués","Pamplona",null,null,null,null,"El Carmen de Chucurí",null,"Ortega","Pradera"]
[null,"Carepa",null,null,null,"San Jacinto del Cauca","Cuítiva",null,null,null,"Popayán",null,null,null,"Facatativá",null,null,"Tello",null,null,"Villavicencio","Ipiales","Pamplonita",null,null,null,null,"El Guacamayo",null,"Palocabildo","Restrepo, VC"]
[null,"Carolina",null,null,null,"San Juan Nepomuceno","Duitama",null,null,null,"Puerto Tejada",null,null,null,"Fomeque",null,null,"Teruel",null,null,"Vistahermosa","La Cruz","Puerto Santander, NS",null,null,null,null,"El Peñón, Santander",null,"Piedras","Riofrío"]
[null,"Caucasia",null,null,null,"San Martín de Loba","El Cocuy",null,null,null,"Puracé",null,null,null,"Fosca",null,null,"Timaná",null,null,null,"La Florida","Ragonvalia",null,null,null,null,"El Playón",null,"Planadas","Roldanillo"]
[null,"Chigorodó",null,null,null,"San Pablo","El Espino",null,null,null,"Rosas",null,null,null,"Funza",null,null,"Villavieja",null,null,null,"La Llanada","Salazar",null,null,null,null,"Encino",null,"Prado","San Pedro, VC"]
[null,"Cisneros",null,null,null,"Santa Rosa del Sur","Firavitoba",null,null,null,"San Sebastián",null,null,null,"Fúquene",null,null,"Yaguará",null,null,null,"La Tola","San Calixto",null,null,null,null,"Enciso",null,"Purificación","Santiago de Cali"]
[null,"Ciudad Bolívar",null,null,null,"Simití","Floresta",null,null,null,"Santa Rosa",null,null,null,"Fusagasugá",null,null,null,null,null,null,"La Unión, Nariño","San Cayetano, NS",null,null,null,null,"Florián",null,"Rioblanco","Sevilla"]
[null,"Cocorná",null,null,null,"Soplaviento","Gachantivá",null,null,null,"Santander de Quilichao",null,null,null,"Gachala",null,null,null,null,null,null,"Leiva","Santiago",null,null,null,null,"Floridablanca",null,"Roncesvalles","Toro"]
[null,"Concepción",null,null,null,"Turbaco","Gameza",null,null,null,"Silvia",null,null,null,"Gachancipá",null,null,null,null,null,null,"Linares","Sardinata",null,null,null,null,"Galán",null,"Rovira","Trujillo"]
[null,"Concordia",null,null,null,null,"Garagoa",null,null,null,"Sotara",null,null,null,"Gachetá",null,null,null,null,null,null,"Magüi","Silos",null,null,null,null,"Gambita",null,"Saldaña","Tuluá"]
[null,"Copacabana",null,null,null,null,"Guacamayas",null,null,null,"Suárez",null,null,null,"Gama",null,null,null,null,null,null,"Mallama","Teorama",null,null,null,null,"Girón",null,"San Antonio","Ulloa"]
[null,"Dabeiba",null,null,null,null,"Guateque",null,null,null,"Timbío",null,null,null,"Girardot",null,null,null,null,null,null,"Mosquera, Nariño","Tibú",null,null,null,null,"Guaca",null,"Santa Isabel","Versalles, VC"]
[null,"Don Matías",null,null,null,null,"Guayatá",null,null,null,"Timbiquí",null,null,null,"Granada, Cundinamarca",null,null,null,null,null,null,"Nariño","Toledo, NS",null,null,null,null,"Guadalupe, Santander",null,"Suárez","Vijes"]
[null,"Ebéjico",null,null,null,null,"Güicán",null,null,null,"Toribio",null,null,null,"Guachetá",null,null,null,null,null,null,"Olaya Herrera","Villa Caro",null,null,null,null,"Guapotá",null,"Valle de San Juan","Yotoco"]
[null,"El Bagre",null,null,null,null,"Iza",null,null,null,"Totoró",null,null,null,"Guaduas",null,null,null,null,null,null,"Ospina","Villa del Rosario",null,null,null,null,"Guavatá",null,"Venadillo","Yumbo"]
[null,"El Carmen de Viboral",null,null,null,null,"Jenesano",null,null,null,"Villa Rica",null,null,null,"Guasca",null,null,null,null,null,null,"Pasto",null,null,null,null,null,"Güepsa",null,"Villahermosa","Zarzal, VC"]
[null,"El Santuario",null,null,null,null,"Jericó, Boyacá",null,null,null,null,null,null,null,"Guataquí",null,null,null,null,null,null,"Policarpa",null,null,null,null,null,"Hato",null,"Villarrica"]
[null,"Entrerrios",null,null,null,null,"La Capilla",null,null,null,null,null,null,null,"Guatavita",null,null,null,null,null,null,"Potosí",null,null,null,null,null,"Jesús María"]
[null,"Envigado",null,null,null,null,"La Uvita",null,null,null,null,null,null,null,"Guayabal de Siquima",null,null,null,null,null,null,"Providencia, Nariño",null,null,null,null,null,"Jordán"]
[null,"Fredonia",null,null,null,null,"La Victoria, Boyacá",null,null,null,null,null,null,null,"Guayabetal",null,null,null,null,null,null,"Puerres",null,null,null,null,null,"La Belleza"]
[null,"Frontino",null,null,null,null,"Labranzagrande",null,null,null,null,null,null,null,"Gutiérrez",null,null,null,null,null,null,"Pupiales",null,null,null,null,null,"La Paz, Santander"]
[null,"Giraldo",null,null,null,null,"Macanal",null,null,null,null,null,null,null,"Jerusalén",null,null,null,null,null,null,"Ricaurte, Nariño",null,null,null,null,null,"Landázuri"]
[null,"Girardota",null,null,null,null,"Maripí",null,null,null,null,null,null,null,"Junín",null,null,null,null,null,null,"Roberto Payán",null,null,null,null,null,"Lebríja"]
[null,"Gómez Plata",null,null,null,null,"Miraflores",null,null,null,null,null,null,null,"La Calera",null,null,null,null,null,null,"Samaniego",null,null,null,null,null,"Los Santos"]
[null,"Granada",null,null,null,null,"Mongua",null,null,null,null,null,null,null,"La Mesa",null,null,null,null,null,null,"San Andres de Tumaco",null,null,null,null,null,"Macaravita"]
[null,"Guadalupe",null,null,null,null,"Monguí",null,null,null,null,null,null,null,"La Palma",null,null,null,null,null,null,"San Bernardo",null,null,null,null,null,"Málaga"]
[null,"Guarne",null,null,null,null,"Moniquirá",null,null,null,null,null,null,null,"La Peña",null,null,null,null,null,null,"San Lorenzo",null,null,null,null,null,"Matanza"]
[null,"Guatapé",null,null,null,null,"Motavita",null,null,null,null,null,null,null,"La Vega, Cundinamarca",null,null,null,null,null,null,"San Pablo, Nariño",null,null,null,null,null,"Mogotes"]
[null,"Heliconia",null,null,null,null,"Muzo",null,null,null,null,null,null,null,"Lenguazaque",null,null,null,null,null,null,"San Pedro de Cartago",null,null,null,null,null,"Molagavita"]
[null,"Hispania",null,null,null,null,"Nobsa",null,null,null,null,null,null,null,"Machetá",null,null,null,null,null,null,"Sandoná",null,null,null,null,null,"Ocamonte"]
[null,"Itagui",null,null,null,null,"Nuevo Colón",null,null,null,null,null,null,null,"Madrid",null,null,null,null,null,null,"Santa Bárbara, Nariño",null,null,null,null,null,"Oiba"]
[null,"Ituango",null,null,null,null,"Oicatá",null,null,null,null,null,null,null,"Manta",null,null,null,null,null,null,"Sapuyes",null,null,null,null,null,"Onzaga"]
[null,"Jardín",null,null,null,null,"Otanche",null,null,null,null,null,null,null,"Medina",null,null,null,null,null,null,"Taminango",null,null,null,null,null,"Palmar"]
[null,"Jericó",null,null,null,null,"Pachavita",null,null,null,null,null,null,null,"Mosquera",null,null,null,null,null,null,"Tangua",null,null,null,null,null,"Palmas del Socorro"]
[null,"La Ceja",null,null,null,null,"Páez",null,null,null,null,null,null,null,"Nariño",null,null,null,null,null,null,"Túquerres",null,null,null,null,null,"Páramo"]
[null,"La Estrella",null,null,null,null,"Paipa",null,null,null,null,null,null,null,"Nemocón",null,null,null,null,null,null,"Yacuanquer",null,null,null,null,null,"Piedecuesta"]
[null,"La Pintada",null,null,null,null,"Pajarito",null,null,null,null,null,null,null,"Nilo",null,null,null,null,null,null,null,null,null,null,null,null,"Pinchote"]
[null,"La Unión",null,null,null,null,"Panqueba",null,null,null,null,null,null,null,"Nimaima",null,null,null,null,null,null,null,null,null,null,null,null,"Puente Nacional"]
[null,"Liborina",null,null,null,null,"Pauna",null,null,null,null,null,null,null,"Nocaima",null,null,null,null,null,null,null,null,null,null,null,null,"Puerto Parra"]
[null,"Maceo",null,null,null,null,"Paya",null,null,null,null,null,null,null,"Pacho",null,null,null,null,null,null,null,null,null,null,null,null,"Puerto Wilches"]
[null,"Marinilla",null,null,null,null,"Paz del Río",null,null,null,null,null,null,null,"Paime",null,null,null,null,null,null,null,null,null,null,null,null,"Rionegro, Santander"]
[null,"Medellín",null,null,null,null,"Pesca",null,null,null,null,null,null,null,"Pandi",null,null,null,null,null,null,null,null,null,null,null,null,"Sabana de Torres"]
[null,"Montebello",null,null,null,null,"Pisba",null,null,null,null,null,null,null,"Paratebueno",null,null,null,null,null,null,null,null,null,null,null,null,"San Andrés, Santander"]
[null,"Murindó",null,null,null,null,"Puerto Boyacá",null,null,null,null,null,null,null,"Pasca",null,null,null,null,null,null,null,null,null,null,null,null,"San Benito"]
[null,"Mutatá",null,null,null,null,"Quípama",null,null,null,null,null,null,null,"Pulí",null,null,null,null,null,null,null,null,null,null,null,null,"San Gil"]
[null,"Nechí",null,null,null,null,"Ramiriquí",null,null,null,null,null,null,null,"Quebradanegra",null,null,null,null,null,null,null,null,null,null,null,null,"San Joaquín"]
[null,"Necoclí",null,null,null,null,"Ráquira",null,null,null,null,null,null,null,"Quetame",null,null,null,null,null,null,null,null,null,null,null,null,"San José de Miranda"]
[null,"Olaya",null,null,null,null,"Rondón",null,null,null,null,null,null,null,"Quipile",null,null,null,null,null,null,null,null,null,null,null,null,"San Miguel"]
[null,"Peñol",null,null,null,null,"Saboyá",null,null,null,null,null,null,null,"Ricaurte",null,null,null,null,null,null,null,null,null,null,null,null,"San Vicente de Chucurí"]
[null,"Peque",null,null,null,null,"Sáchica",null,null,null,null,null,null,null,"San Antonio del Tequendama",null,null,null,null,null,null,null,null,null,null,null,null,"Santa Bárbara, Santander"]
[null,"Pueblorrico",null,null,null,null,"Samacá",null,null,null,null,null,null,null,"San Bernardo",null,null,null,null,null,null,null,null,null,null,null,null,"Santa Helena del Opón"]
[null,"Puerto Berrío",null,null,null,null,"San Eduardo",null,null,null,null,null,null,null,"San Cayetano",null,null,null,null,null,null,null,null,null,null,null,null,"Simacota"]
[null,"Puerto Nare",null,null,null,null,"San Luis de Gaceno",null,null,null,null,null,null,null,"San Francisco, Cundinamarca",null,null,null,null,null,null,null,null,null,null,null,null,"Socorro"]
[null,"Puerto Triunfo",null,null,null,null,"San Mateo",null,null,null,null,null,null,null,"San Juan de Río Seco",null,null,null,null,null,null,null,null,null,null,null,null,"Suaita"]
[null,"Retiro",null,null,null,null,"San Miguel de Sema",null,null,null,null,null,null,null,"Sasaima",null,null,null,null,null,null,null,null,null,null,null,null,"Sucre, Santander"]
[null,"Rionegro",null,null,null,null,"San Pablo de Borbur",null,null,null,null,null,null,null,"Sesquilé",null,null,null,null,null,null,null,null,null,null,null,null,"Suratá"]
[null,"Sabanalarga",null,null,null,null,"Santa María",null,null,null,null,null,null,null,"Sibaté",null,null,null,null,null,null,null,null,null,null,null,null,"Tona"]
[null,"Sabaneta",null,null,null,null,"Santa Rosa de Viterbo",null,null,null,null,null,null,null,"Silvania",null,null,null,null,null,null,null,null,null,null,null,null,"Valle de San José"]
[null,"Salgar",null,null,null,null,"Santa Sofía",null,null,null,null,null,null,null,"Simijaca",null,null,null,null,null,null,null,null,null,null,null,null,"Vélez"]
[null,"San Andrés de Cuerquía",null,null,null,null,"Sativanorte",null,null,null,null,null,null,null,"Soacha",null,null,null,null,null,null,null,null,null,null,null,null,"Vetas"]
[null,"San Carlos",null,null,null,null,"Sativasur",null,null,null,null,null,null,null,"Sopó",null,null,null,null,null,null,null,null,null,null,null,null,"Villanueva, Santander"]
[null,"San Francisco",null,null,null,null,"Siachoque",null,null,null,null,null,null,null,"Subachoque",null,null,null,null,null,null,null,null,null,null,null,null,"Zapatoca"]
[null,"San Jerónimo",null,null,null,null,"Soatá",null,null,null,null,null,null,null,"Suesca"]
[null,"San José de La Montaña",null,null,null,null,"Socha",null,null,null,null,null,null,null,"Susa"]
[null,"San Juan de Urabá",null,null,null,null,"Socotá",null,null,null,null,null,null,null,"Sutatausa"]
[null,"San Luis",null,null,null,null,"Sogamoso",null,null,null,null,null,null,null,"Tabio"]
[null,"San Pedro",null,null,null,null,"Somondoco",null,null,null,null,null,null,null,"Tausa"]
[null,"San Pedro de Uraba",null,null,null,null,"Sora",null,null,null,null,null,null,null,"Tena"]
[null,"San Rafael",null,null,null,null,"Soracá",null,null,null,null,null,null,null,"Tenjo"]
[null,"San Roque",null,null,null,null,"Sotaquirá",null,null,null,null,null,null,null,"Tibacuy"]
[null,"San Vicente",null,null,null,null,"Susacón",null,null,null,null,null,null,null,"Tibirita"]
[null,"Santa Bárbara",null,null,null,null,"Sutamarchán",null,null,null,null,null,null,null,"Tocaima"]
[null,"Santa Rosa de Osos",null,null,null,null,"Sutatenza",null,null,null,null,null,null,null,"Tocancipá"]
[null,"Santafé de Antioquia",null,null,null,null,"Tasco",null,null,null,null,null,null,null,"Topaipí"]
[null,"Santo Domingo",null,null,null,null,"Tenza",null,null,null,null,null,null,null,"Ubalá"]
[null,"Segovia",null,null,null,null,"Tibaná",null,null,null,null,null,null,null,"Ubaque"]
[null,"Sonson",null,null,null,null,"Tibasosa",null,null,null,null,null,null,null,"Une"]
[null,"Sopetrán",null,null,null,null,"Tinjacá",null,null,null,null,null,null,null,"Útica"]
[null,"Támesis",null,null,null,null,"Tipacoque",null,null,null,null,null,null,null,"Venecia"]
[null,"Tarazá",null,null,null,null,"Toca",null,null,null,null,null,null,null,"Vergara"]
[null,"Tarso",null,null,null,null,"Tópaga",null,null,null,null,null,null,null,"Vianí"]
[null,"Titiribí",null,null,null,null,"Tota",null,null,null,null,null,null,null,"Villagómez"]
[null,"Toledo",null,null,null,null,"Tunja",null,null,null,null,null,null,null,"Villapinzón"]
[null,"Turbo",null,null,null,null,"Tununguá",null,null,null,null,null,null,null,"Villeta"]
[null,"Uramita",null,null,null,null,"Turmequé",null,null,null,null,null,null,null,"Viotá"]
[null,"Urrao",null,null,null,null,"Tuta",null,null,null,null,null,null,null,"Yacopí"]
[null,"Valdivia",null,null,null,null,"Tutazá",null,null,null,null,null,null,null,"Zipacón"]
[null,"Valparaíso",null,null,null,null,"Umbita",null,null,null,null,null,null,null,"Zipaquirá"]
[null,"Vegachí",null,null,null,null,"Ventaquemada"]
[null,"Vigía del Fuerte",null,null,null,null,"Villa de Leyva"]
[null,"Yalí",null,null,null,null,"Viracachá"]
[null,"Yarumal",null,null,null,null,"Zetaquira"]
[null,"Yolombó"]
[null,"Zaragoza"]

{"sheet":"Base de datos","index":13,"n_rows":42,"n_cols":16,"rows_kept":42,"cut":false,"hidden":true,"merged":[[41,1,41,10],[6,9,6,10],[3,1,3,15],[1,2,1,16],[5,1,7,1],[5,2,7,2],[5,3,5,6],[5,7,5,8],[5,9,5,10],[6,3,6,4],[6,5,6,6],[6,7,6,8]]}
[]
[null,null,"BASE DE DATOS DE TARIFAS PARA LOS SERVICIOS PÚBLICOS, PARA EL FUNCIONAMIENTO DE LOS MODELOS FINANCIEROS QUE EVALUAN LA VIABILIDAD DE LA IMPLEMENTACIÓN DE BIODIGESTORES IN SITU EN LAS PLAZAS DE MERCADO DE COLOMBIA "]
[]
[null,"Para el desarrollo y funcionamiento adecuado de los modelos financieros, se consideraron los siguientes datos relativos a las tarifas de los servicios públicos de energía, agua y gas. Estos datos son esenciales para realizar proyecciones económicas precisas y garantizar la viabilidad financiera de los proyectos. A continuación, se detallan los aspectos clave de la base de datos utilizada:\n\n* Para la tarifa de agua, se selecciona la clasificación comercial-industrial, considerando tanto la tarifa fija como la variable, conforme a la estructura tarifaria aplicada en el sistema de suministro. En este caso, la tarifa fija se refiere al monto determinado por el acceso al servicio, independientemente del consumo, mientras que la tarifa variable se ajusta según el volumen de agua utilizado, calculado en metros cúbicos (m³). \n** Para la tarifa de energía, se asume la tarifa comercial e industrial de la Tensión 1, dado que es el nivel de tensión en el que se encuentra más del 80% de los usuarios. Esta tarifa se ajusta a las necesidades y características de los usuarios en este rango de tensión, reflejando de manera más precisa los costos asociados a su consumo energético.\n*** Para la tarifa de gas, se asume el estrato 4, ya que es el estrato que refleja el costo real del servicio, al no recibir subsidios ni realizar contribuciones. De igual manera, se opta por este estrato debido a que no existe una diferencia tarifaria significativa entre los sectores residencial, industrial y comercial. En este caso, se contempla una estructura tarifaria que incluye tanto una tarifa fija, correspondiente al costo de acceso al servicio, como una tarifa variable, que se ajusta según el volumen de gas consumido. \n****  Se asume una tarifa de tratamiento de residuos orgánicos utilizada en el documento titulado \"Conceptualización técnico-económica de tecnologías viables para el tratamiento in situ de residuos orgánicos en las Plazas de Mercado de Bogotá con enfoque en Quirigua\" desarrollado por Black Forest Solutions para la GIZ  en el año 2022. Este valor se actualiza a valor presente, para ajustarlo a las condiciones económicas actuales y reflejar su impacto en los modelos financieros del proyecto."]
[]
[null,"Departamento","Capital","Agua*",null,null,null,"Energía **",null,"Gas ***",null,null,"Tarifa de residuos ****","Año","Valor","Valor tiempo real / 2024"]
[null,null,null,"Comercial",null,"Industrial",null,"Compra",null,"Estrato 4",null,null,"Plazas de mercado ",2022,215000,{"$f":"+O7*(Biodigestores!F14/Biodigestores!$D$14)","v":257372.2967767138}]
[null,null,null,"Cargo fijo\nmes","Cargo variable\nm3","Cargo fijo\nmes","Cargo variable\nm3","Comercial","Industrial","Componente variable del costo unitario (CUv = $/m3)","Componente fijo del costo unitario (CF = $/factura)"]
[null,"Dpto_Amazonas","Leticia",5756.56,3919.67,5111.78,3478]
[null,"Dpto_Antioquia","Medellín",12150.98,2557,10559,2216,674.72,784.83,2461.6799999999998,3823.83]
[null,"Dpto_Arauca","Arauca",null,null,null,null,680,640.16999999999996]
[null,"Dpto_Atlántico","Barranquilla",12150.98,4456.7,11315.6,4150.3100000000004,536.59,766.96,2617.8000000000002,4681.62]
[null,"Bogotá","Bogotá",13793.69,5278.53,11954.53,4856.25,680,640.16999999999996,2448.3200000000002,3795.5]
[null,"Dpto_Bolívar","Cartagena",39005,4461,39005,3866.2,784.11,803.42,2243.77,3436.66]
[null,"Dpto_Boyacá","Tunja",27832.17,3853.17,28364.25,3853.17,null,null,1840.6,2784.23]
[null,"Dpto_Caldas","Manizales",26000,2099,26000,2099,674.72,784.83,2481.4699999999998,3600.91]
[null,"Dpto_Caquetá","Florencia",11588.52,2375.2800000000002,10043.379999999999,2058.5700000000002,768.23,788.44,3550.32,2855.34]
[null,"Dpto_Casanare","Yopal",13416.8,3084.53,13416.8,3084.53,768.23,788.44,743.24,5283.11]
[null,"Dpto_Cauca","Popayán",12516.56,1997.32,11097.53,1757.08,669.41,672.68,3550.32,1854.72]
[null,"Dpto_Cesar","Valledupar",null,null,null,null,784.11,803.42,2617.8000000000002,4681.62]
[null,"Dpto_Chocó","Quibdó",13339.89,2248.84,11561.24,1949]
[null,"Dpto_Córdoba","Montería",8712.82,2831,8712.82,2831,784.11,803.42,2243.77,3436.66]
[null,"Dpto_Cundinamarca","Soacha",13793.69,5761.49,11954.53,5924.25,680,640.16999999999996,2448.3200000000002,3795.5]
[null,"Dpto_Guainía","Inirida",5756.56,3919.67,5111.78,3478,768.23,788.44]
[null,"Dpto_Guaviare","San Jose del Guaviare",5756.56,3919.67,5111.78,3478,768.23,788.44]
[null,"Dpto_Guajira","Riohacha",null,null,null,null,536.59,766.96,2564.8200000000002,3072.96]
[null,"Dpto_Huila","Neiva",null,null,null,null,680,640.16999999999996,3550.32,3065.11]
[null,"Dpto_Magdalena","Santa Marta",9516.11,2528,8247.44,2191.33,536.59,766.96,2617.8000000000002,4702.38]
[null,"Dpto_Meta","Villavicencio",14024.17,2329.83,3266,743,768.23,788.44,2018.9,2599.36]
[null,"Dpto_Nariño","Pasto",10208.94,3492.47,8847.75,3026.8,669.41,672.68,3550.32,4138.1899999999996]
[null,"Dpto_Norte_de_Santander","Cúcuta",15797.91,3480.73,15797.91,3480.73,674.72,784.83,3267.13,3184.38]
[null,"Dpto_Putumayo","Mocoa",18135.29,null,18135.29,null,768.23,788.44]
[null,"Dpto_Quindio","Armenia",8831.5300000000007,3192.24,7653.99,2766.61,674.72,784.83,3388.37,2763.31]
[null,"Dpto_Risaralda","Pereira",10075,1985,10075,1985,674.72,784.83,2508.4499999999998,3804.29]
[null,"Dpto_SanAndrés","San Andrés",null,19298,null,19298]
[null,"Dpto_Santander","Bucaramanga",4435.41,14877.93,3844.02,12894.21,674.72,784.83,1832.67,2465.66]
[null,"Dpto_Sucre","Sincelejo",27495.33,6508.17,27495.33,6508.17,784.11,803.42,2243.77,3436.66]
[null,"Dpto_Tolima","Ibagué",6362,730,6182,null,null,null,3550.32,4817.32]
[null,"Dpto_Valle_del_Cauca","Cali",20394,1995,20394,1995,669.41,672.68,3072.55,2953.4]
[null,"Dpto_Vaupés","Mitú",3570,1478,3094,1281]
[null,"Dpto_Vichada","Puerto Carreño",7603,1188,7603,1188]
[null,"NA* Departamento en donde la capital no tiene prestación del servicio de gas natural"]